{"text_format":"1","workbook":"xlsx","n_sheets":21,"sheets":["Title","ii) Table of Contents","iii) Description","iv) Instructions","v) Assumptions","vi) Start","1.1) Community Data","1.2) Existing System","1.3) Existing Expenditures","1.4) Existing Revenue","1.5) Results","2.1) Start","2.2) Design Parameters","2.3) Treatment Upgrades","2.4) Pumping Upgrades","2.5) Distribution Upgrades","2.6) Cost Curve Predictions","2.7) Financing Results","3.1) Infrastructure Replacement","Calculations","Table Inputs"],"not_rendered":{"charts":6,"images":2,"macros":1,"external_links":0,"defined_names":24,"comments":0,"pivot_tables":0},"unopened":[],"bounds":{"document_bytes":16777216,"sheet_cells":100000,"rows_first":2000,"rows_last":500,"rows_between":2000,"halvings":0,"cell_chars":16384,"cell_head_chars":4096},"cells_cut":0,"cells_raw":0,"read":"whole","date_system":"1900"}

{"sheet":"Title","index":0,"n_rows":23,"n_cols":15,"rows_kept":23,"cut":false,"hidden":false,"merged":[[22,2,22,15],[1,1,1,19],[20,8,20,10],[20,11,20,13],[20,14,20,15],[20,16,20,17],[14,8,14,17]]}
[]
[null,"Title Page"]
[]
[]
[]
[]
[]
[]
[null,null,"Province of Newfoundland & Labrador"]
[null,null,"Full Cost Accounting Assessment Tool"]
[null,null,"To Achieve Complete Cost Recovery of Drinking Water"]
[null,null,"Supply System Operation & Maintenance,"]
[null,null,"Capital Upgrade Projects and Infrastructure Replacement"]
[]
[null,null,"Community:"]
[null,null,"Geographic Region:"]
[]
[]
[]
[]
[null,null,"Date:",null,null,null,null,null,"Month",null,null,"Day ",null,null,"Year:"]
[]
[null,null,"Note: Each geographic region is associated with a cost multiplier to represent adjustment of predicted O&M and capital costs by geographic region across the province. The multiplier is displayed next to the geographic region in the dropdown menu."]

{"sheet":"ii) Table of Contents","index":1,"n_rows":28,"n_cols":15,"rows_kept":28,"cut":false,"hidden":false,"merged":[[6,14,6,17],[8,14,8,17],[1,1,1,19],[2,14,2,17],[4,14,4,17],[5,14,5,17],[2,4,2,13],[27,9,27,10],[21,14,21,17],[20,14,20,17],[7,14,7,17],[10,14,10,17],[11,14,11,17],[12,14,12,17],[9,14,9,17],[13,14,13,17],[14,14,14,17],[16,14,16,17],[17,14,17,17],[18,14,18,17],[19,14,19,17],[15,14,15,17],[22,4,22,12]]}
[]
[null,"Table of Contents"]
[null,null,"Page #",null,"Title",null,null,null,null,null,null,null,null,null,"Tab Details"]
[]
[null,null,"i",null,"Title Page",null,null,null,null,null,null,null,null,null,"Title Slide"]
[null,null,"ii",null,"Table of Contents",null,null,null,null,null,null,null,null,null,"Information"]
[null,null,"iii",null,"Description of Cost Accounting Tool",null,null,null,null,null,null,null,null,null,"Information"]
[null,null,"iv",null,"Instructions",null,null,null,null,null,null,null,null,null,"Information"]
[null,null,"v",null,"Assumptions",null,null,null,null,null,null,null,null,null,"Information"]
[null,null,"vi",null,"Start",null,null,null,null,null,null,null,null,null,"Information"]
[null,null,1.1000000000000001,null,"Community Data",null,null,null,null,null,null,null,null,null,"Data Entry"]
[null,null,1.2,null,"Existing System",null,null,null,null,null,null,null,null,null,"Data Entry"]
[null,null,1.3,null,"Existing Expenditures",null,null,null,null,null,null,null,null,null,"Data Entry"]
[null,null,1.4,null,"Existing Revenue",null,null,null,null,null,null,null,null,null,"Data Entry"]
[null,null,1.5,null,"Part 1 Results - Full Cost Accounting",null,null,null,null,null,null,null,null,null,"Results"]
[null,null,2.1,null,"Part 2 - Start",null,null,null,null,null,null,null,null,null,"Information"]
[null,null,2.2000000000000002,null,"Design Parameters for Upgrades",null,null,null,null,null,null,null,null,null,"Data Entry"]
[null,null,2.2999999999999998,null,"Description of Proposed Treatment System",null,null,null,null,null,null,null,null,null,"Data Entry"]
[null,null,2.4,null,"Description of Pumping System Upgrades",null,null,null,null,null,null,null,null,null,"Data Entry"]
[null,null,2.5,null,"Description of Distribution System Upgrades",null,null,null,null,null,null,null,null,null,"Data Entry"]
[null,null,2.6,null,"Cost Curve Predictions",null,null,null,null,null,null,null,null,null,"Data Entry"]
[null,null,2.7,null,"Part 2 Results - Financing and Water Taxes",null,null,null,null,null,null,null,null,null,"Results"]
[null,null,3.1,null,"Infrastructure Replacement Cost "]
[]
[]
[]
[]
[null,null,null,null,null,null,null,null,null,"ii"]

{"sheet":"iii) Description","index":2,"n_rows":10,"n_cols":10,"rows_kept":10,"cut":false,"hidden":false,"merged":[[1,1,1,19],[4,3,4,17],[9,9,9,10]]}
[]
[null,"Description of Full Cost Accounting Assessment Tool"]
[]
[]
[null,null,null,"The purpose of the Full Cost Accounting Assessment Tool is to help owners of public drinking water systems in the Province of Newfoundland and Labrador to predict the costs of operating their systems to establish water taxes that will adequately fund proper operation. The second part of the Full Cost Accounting Assessment Tool is for communities that are considering upgrades to their treatment system. The third part factors in the annualized cost of existing infrastructure replacement. The Full Cost Accounting Assessment Tool will generate a water tax based on predicted capital and annual operation and maintenance costs. The sole purpose of the Full Cost Accounting Assessment Tool is to provide information for establishing water taxes. It should not be used to estimate capital budgets. Non-Operating costs such as depreciation and debt servicing, which are typically costs included in full-cost accounting for water systems, have not been included in the calculations. Provincial or Federal sales or services taxes have also not been included. The Full Cost Accounting Assessment Tool is set-up to determine the amount of revenue that is needed to cover the costs of O&M, upgrades and infrastruture replacement for a water system on a break even basis."]
[]
[]
[]
[]
[null,null,null,null,null,null,null,null,null,"iii"]

{"sheet":"iv) Instructions","index":3,"n_rows":16,"n_cols":10,"rows_kept":16,"cut":false,"hidden":false,"merged":[[15,9,15,10],[9,3,9,17],[1,1,1,19],[4,3,4,17],[5,3,5,17],[6,3,6,17],[7,3,7,17]]}
[]
[null,"Instructions"]
[]
[]
[null,null,"-","Complete the Full Cost Accounting Assessment Tool by filling out data in each of the pages. The Full Cost Accounting Assessment Tool includes two parts: Part 1 is an analysis of the existing operation and maintenance costs and water taxes, Part 2 is an analysis of future upgrade costs for communities that are considering upgrades to their water treatment system(s).  "]
[null,null,"-","The colour of each tab (bottom of screen) indicates the following: grey tabs introduction section, blue tabs are for Part 1 of the Tool, green tabs are for Part 2 of the Tool, and otange tabs are for Part 3 of the Tool.. "]
[null,null,"-","Buttons have been placed throughout the Full Cost Accounting Assessment Tool to assist with navigation from one tab to the next, as well as to access pages containing additional information."]
[null,null,"-","Data entry cells are white with a black outline. This tool also uses drop-down menus and selector options buttons."]
[null,null,"-","Where prompted, enter the most recent available information. "]
[null,null,"-","For communities with more than one water supply system, the Full Cost Accounting Assessment Tool may be completed separately for each system, or it can be completed for all systems at once. However, if completing the tool for more than one system, make sure to add the values for all systems before entering in the data entry cells."]
[]
[]
[]
[]
[]
[null,null,null,null,null,null,null,null,null,"iv"]

{"sheet":"v) Assumptions","index":4,"n_rows":16,"n_cols":10,"rows_kept":16,"cut":false,"hidden":false,"merged":[[15,9,15,10],[10,3,10,17],[1,1,1,19],[9,3,9,17],[4,3,4,17],[5,3,5,17],[8,3,8,17],[7,3,7,17],[6,3,6,17]]}
[]
[null,"Limitations"]
[null,null,"Limitations"]
[]
[null,null,"-","This program relies on conceptual cost curves to predict capital and operation and maintenance costs based on user entered data. The cost data is based on 2017 costs and is inflated using 3% inflation rate for subsequent years."]
[null,null,"-","The cost curves were developed based on data from water supply systems constructed in Newfoundland and Labrador and information supplied by various vendors. The curves were calculated based on many assumptions and allowances. The program is intended only to help communities establish water taxes. "]
[null,null,"-","Cost predictions generated by this program do not include depreciation. The tool does not consider existing non-operating expenses such as debt servicing. "]
[null,null,"-","All cost predictions are provided in Canadian dollars"]
[null,null,"-","Cost predictions DO NOT include applicable taxes"]
[null,null,"-","The cost predictions generated through this tool do not include special costs for land acquisition, permit costs, legal fees, or site specific costs."]
[null,null,"-","Actual capital costs and operation and maintenance costs for system upgrades may vary substantially from those calculated by this program. It is recommended that a site specific engineering study should be completed to establish costs used for capital budgeting."]
[]
[]
[]
[]
[null,null,null,null,null,null,null,null,null,"v"]

{"sheet":"vi) Start","index":5,"n_rows":17,"n_cols":10,"rows_kept":17,"cut":false,"hidden":false,"merged":[[5,6,5,17],[8,6,8,17],[1,1,1,19],[16,9,16,10],[11,6,11,17]]}
[]
[null,"Section Selection"]
[]
[]
[null,null,null,null,null,null,"SECTION 1 - ANALYSIS OF EXISTING COSTS"]
[null,null,null,null,null,null,"In this section, users will enter existing operation and maintenance costs and revenue data. The tool will evaluate the existing operation and maintenance costs and will provide a recommended water tax to adequately fund the operation of the water supply system."]
[]
[null,null,null,null,null,null,"SECTION 2 - ANALYSIS OF UPGRADE COSTS"]
[null,null,null,null,null,null,"This section is for communities that are evaluating capital upgrade options. The community can select a type of treatment system to construct, and the tool will provide a range of potential capital and operation and maintenance costs. The tool will then generate a water tax to fund the capital and operation and maintnenace costs of the proposed system. "]
[]
[null,null,null,null,null,null,"SECTION 3 - INFRASTRUCTURE REPLACEMENT COST"]
[null,null,null,null,null,null,"This section is for communities that are evaluating annual cost of infrastructure replacement. The community can select a type of infrastructure asset to replace, and the tool will provide the age and price of the asset where annual cost can be calculated. The tool will generate the unfunded portion and then the total annual cost of the selected assets."]
[]
[]
[]
[]
[null,null,null,null,null,null,null,null,null,"vi"]

{"sheet":"1.1) Community Data","index":6,"n_rows":26,"n_cols":16,"rows_kept":26,"cut":false,"hidden":false,"merged":[[25,9,25,10],[1,1,1,18],[2,1,2,18],[6,8,6,16],[5,8,5,16],[17,11,17,12],[14,2,14,17],[19,8,19,9],[17,8,17,9],[18,8,18,9],[16,15,16,17],[16,8,16,9],[17,15,17,16],[18,11,18,12],[19,11,19,12],[18,15,18,16]]}
[]
[null,"PART 1"]
[null,"Community Data"]
[null,null,"General"]
[]
[null,null,"System:"]
[null,null,"Type of Water Supply:",null,null,null,null,null,"<Type of Supply>"]
[]
[null,null,"Population"]
[]
[null,null,"Enter the permanent service population for the water system being evaluated:"]
[]
[null,null,"Existing System Flows"]
[]
[null,null,"Enter flow data below and select the correct units."]
[null,null,"Note: If flow data is not entered, the Cost Accounting Tool will estimate flows based on population data."]
[null,null,null,null,null,null,null,"Value","Units",null,null,null,null,null,null,{"$f":"IF(OR(H18=0,I18=\"<Units>\"),\"\",\"Per Capita Consumption\")","v":""}]
[null,null,"Average Flow/Water Use:",null,null,null,null,null,"m3/d",null,{"$f":"IF(H18>0,Calculations!G51,\"\")","v":""},{"$f":"IF(H18=0,\"\",\"m3/d\")","v":""},null,null,null,{"$f":"IF(OR(H18=0,I18=\"<Units>\"),\"\",ROUND(Calculations!D62,0))","v":""}]
[null,null,"Maximum Day Flow:",null,null,null,null,null,"<Units>",null,{"$f":"IF(I19=\"<Units>\",\"\",IF(H19>0,Calculations!G52,\"\"))","v":""},{"$f":"IF(H19=0,\"\",\"m3/d\")","v":""},null,null,null,{"$f":"IF(OR(H19=0,I19=\"<Units>\"),\"\",ROUND(Calculations!D63,0))","v":""}]
[null,null,"Peak Hour Flow:",null,null,null,null,null,"<Units>",null,{"$f":"IF(I20=\"<Units>\",\"\",IF(H20>0,Calculations!G53,\"\"))","v":""},{"$f":"IF(H20=0,\"\",\"m3/d\")","v":""}]
[]
[]
[]
[]
[]
[null,null,null,null,null,null,null,null,null,1.1000000000000001]

{"sheet":"1.2) Existing System","index":7,"n_rows":46,"n_cols":15,"rows_kept":46,"cut":false,"hidden":false,"merged":[[45,9,45,10],[1,1,1,19],[2,1,2,19],[28,2,30,13],[39,3,40,14],[23,2,26,11]]}
[]
[null,"PART 1"]
[null,"Description of Existing Water Supply System"]
[null,null,"Existing Treatment & Disinfection Systems"]
[]
[null,null,"Select the disinfection system(s) operated at the facility:"]
[null,null,null,"Sodium Hypochlorite (liquid chlorine)"]
[null,null,null,"Chlorine Gas"]
[null,null,null,"Onsite Sodium Hypochlorite Generation (Mixed Oxidants)"]
[null,null,null,"Calcium Hypochlorite (chlorine powder)"]
[null,null,null,"UV Disinfection"]
[]
[]
[null,null,"Existing Treatment & Disinfection Systems"]
[]
[null,null,"If the treatment process includes pH adjustment, select the chemical that is used:"]
[null,null,null,"None",null,null,"Soda Ash",null,null,null,"Lime",null,null,null,"Caustic Soda"]
[]
[null,null,"If applicable, select the treatment processes that are provided at the existing facility:"]
[null,null,null,"Inline Filtration (for particle removal)",null,null,null,null,null,null,null,"Membrane Treatment"]
[null,null,null,"Iron / Manganese Removal",null,null,null,null,null,null,null,"Conventional WTP"]
[null,null,null,"Arsenic Removal",null,null,null,null,null,null,null,"PWDU"]
[]
[null,null,"Does the existing water distribution system include chlorine booster stations?"]
[]
[]
[]
[]
[null,null,"If chlorine boosting is included, what fraction of the distribution system receives water that has been boosted with chlorine?"]
[]
[]
[]
[null,null,"Existing Pumping Systems"]
[]
[null,null,"Does the existing water supply system include any of the following pumping systems:"]
[null,null,null,"Ground water pumping"]
[null,null,null,"Low lift pumping (pumping from surface water source to treatment building)"]
[null,null,null,"High lift pumping (pumping from treatment building to distribution system)"]
[null,null,null,"Distribution System Pressure Booster Pumping"]
[null,null,null,"If distribution system booster pumping is provided, approximately what fraction of the distribution system is fed from the booster pumping station?"]
[]
[]
[]
[]
[]
[null,null,null,null,null,null,null,null,null,1.2]

{"sheet":"1.3) Existing Expenditures","index":8,"n_rows":151,"n_cols":17,"rows_kept":151,"cut":false,"hidden":false,"merged":[[55,3,55,18],[59,3,59,18],[2,1,2,19],[57,2,57,18],[58,16,58,18],[44,2,44,18],[36,3,36,18],[37,3,37,18],[38,3,38,18],[39,3,39,18],[40,3,40,18],[41,3,41,18],[45,2,45,18],[52,3,52,18],[53,3,53,18],[26,3,26,18],[27,3,27,18],[30,2,30,18],[31,3,31,18],[29,2,29,18],[32,3,32,18],[33,3,33,18],[34,3,34,18],[3,2,3,18],[6,16,6,18],[13,2,13,18],[8,16,8,18],[9,16,9,18],[20,2,20,18],[7,16,7,18],[11,16,11,18],[10,16,10,18],[5,2,5,18],[10,2,10,15],[90,2,90,19],[91,2,91,7],[92,2,92,7],[93,2,93,7],[94,2,94,7],[95,2,95,7],[96,2,96,7],[97,2,97,7],[79,2,79,19],[81,2,81,7],[82,2,82,7],[83,2,83,7],[84,2,84,7],[85,2,85,7],[86,2,86,7],[81,8,81,19],[82,8,82,19],[83,8,83,19],[84,8,84,19],[85,8,85,19],[86,8,86,19],[80,2,80,7],[80,8,80,19],[98,2,98,7],[91,8,91,19],[92,8,92,19],[93,8,93,19],[94,8,94,19],[95,8,95,19],[96,8,96,19],[97,8,97,19],[98,8,98,19],[102,2,102,19],[103,2,103,7],[104,2,104,7],[105,2,105,7],[106,2,106,7],[107,2,107,7],[108,2,108,7],[109,2,109,7],[110,2,110,7],[111,2,111,7],[112,2,112,7],[113,2,113,7],[114,2,114,7],[115,2,115,7],[116,2,116,7],[117,2,117,7],[103,8,103,19],[104,8,104,19],[105,8,105,19],[106,8,106,19],[107,8,107,19],[108,8,108,19],[109,8,109,19],[110,8,110,19],[111,8,111,19],[112,8,112,19],[113,8,113,19],[114,8,114,19],[115,8,115,19],[116,8,116,19],[117,8,117,19],[122,2,122,19],[123,2,123,7],[124,2,124,7],[125,2,125,7],[126,2,126,7],[127,2,127,7],[128,2,128,7],[129,2,129,7],[130,2,130,7],[132,2,132,7],[133,2,133,7],[134,2,134,7],[135,2,135,7],[123,8,123,19],[124,8,124,19],[125,8,125,19],[126,8,126,19],[127,8,127,19],[128,8,128,19],[129,8,129,19],[130,8,130,19],[131,8,131,19],[132,8,132,19],[133,8,133,19],[134,8,134,19],[135,8,135,19],[35,3,35,18],[54,3,54,18],[149,2,149,7],[150,2,150,7],[141,8,141,19],[142,8,142,19],[143,8,143,19],[144,8,144,19],[145,8,145,19],[146,8,146,19],[147,8,147,19],[148,8,148,19],[149,8,149,19],[150,8,150,19],[140,2,140,19],[141,2,141,7],[142,2,142,7],[143,2,143,7],[144,2,144,7],[145,2,145,7],[146,2,146,7],[147,2,147,7],[148,2,148,7],[131,2,131,7],[65,9,65,10],[1,1,1,19],[58,2,58,15],[46,3,46,18],[47,3,47,18],[48,3,48,18],[49,3,49,18],[50,3,50,18],[51,3,51,18],[6,2,6,15],[7,2,7,15],[8,2,8,15],[9,2,9,15],[11,2,11,15],[21,2,21,15],[15,3,15,17],[16,3,16,17],[17,3,17,17],[18,3,18,17],[21,16,21,18],[22,3,22,18],[23,3,23,18],[24,3,24,18],[25,3,25,18]]}
[]
[null,"PART 1"]
[null,"Existing Expenditures"]
[null,null,"Enter the actual expenditures from the most recent year. Items that would be included within each category are listed below, and a detailed description of each item can be reviewed by clicking the \"Detailed Descriptions\" buttons. "]
[]
[null,null,"Expenditures"]
[null,null,"Expeniture Category",null,null,null,null,null,null,null,null,null,null,null,null,null,{"$f":"Calculations!D176&\" Actual Expenditures\"","v":" Actual Expenditures"}]
[null,null,"Source of Supply"]
[null,null,"Pumping & Power"]
[null,null,"Water Disinfection & Treatment"]
[null,null,"Transmission & Distribution "]
[null,null,"Administration"]
[]
[null,null,"Source of Supply"]
[null,null,"These costs may include the following items:"]
[null,null,"-","Wages and Benefits "]
[null,null,"-","Maintenance of Source of Supply - Surface Water Watersheds incl. travel"]
[null,null,"-","Maintenance of Source of Supply - Groundwater Recharge Areas incl. travel"]
[null,null,"-","Professional Services - Consulting & Engineering"]
[]
[null,null,"Power & Pumping"]
[null,null,"These costs may include the following items:"]
[null,null,"-","Wages and Benefits "]
[null,null,"-","Maintenance of Pump Station Structures incl. travel"]
[null,null,"-","Maintenance of Pumps and Controls incl. travel"]
[null,null,"-","Electricity"]
[null,null,"-","Fuel for Generators and for Building Heat"]
[null,null,"-","Professional Services"]
[]
[null,null,"Water Disinfection and Treatment"]
[null,null,"These costs may include the following items:"]
[null,null,"-","Wages and Benefits "]
[null,null,"-","Electricity and Fuel"]
[null,null,"-","Chemicals"]
[null,null,"-","Maintenance of Treatment Plant Equipment"]
[null,null,"-","Maintenance and Repair of Buildings and Structures"]
[null,null,"-","Maintenance of Computer Controls and SCADA"]
[null,null,"-","Materials and Supplies"]
[null,null,"-","Sludge Handling and Disposal"]
[null,null,"-","Water Testing"]
[null,null,"-","Vehicle Expense Including Vehicles and Operating Costs"]
[null,null,"-","Professional Services"]
[]
[]
[null,null,"Transmission & Distribution "]
[null,null,"These costs may include the following items:"]
[null,null,"-","Wages and Benefits "]
[null,null,"-","Maintenance of Water Mains Including Valves"]
[null,null,"-","Maintenance of Service Laterals to the Property Boundary"]
[null,null,"-","Maintenance of Water Reservoirs and Storage Tanks"]
[null,null,"-","Maintenance of Hydrants Including Hydrant Valves"]
[null,null,"-","Cell Phones and Dedicated Communication Lines"]
[null,null,"-","Supplies/Materials/Tools/Equipment"]
[null,null,"-","Leak Detection"]
[null,null,"-","Vehicle Expense Including Vehicles and Operating Costs"]
[null,null,"-","Professional Services"]
[]
[null,null,"Administration"]
[null,null,"These costs may include the following items:"]
[null,null,"-","Administration costs allocated to drinking water service"]
[null,null,"*Note: Administration costs are typically in the range of 10% of all other operation and maintenance costs"]
[]
[]
[]
[]
[null,null,null,null,null,null,null,null,null,1.3]
[]
[]
[]
[]
[]
[]
[]
[]
[]
[]
[]
[]
[]
[null,null,"Source of Supply"]
[null,null,"Item",null,null,null,null,null,"Description"]
[null,null,"Source of Supply",null,null,null,null,null,"The Source of Supply expenses relate to the maintenance of the surface watershed for surface water supplies and the recharge area for groundwater supplies. "]
[null,null,"Wages and Benefits",null,null,null,null,null,"This expense item is the estimated cost for staff to maintain the watershed or groundwater recharge area. Staff time could relate to cleaning of intake screens for surface water, tree cutting, garbage collection, placement and maintenance of signage, fencing and responding to public concerns to name a few items. Benefits relate to overheads including matching contributions for income tax, CPP, EI, health plans and vacations are included.  "]
[null,null,"Maintenance of Source of Supply Surface Watersheds including Travel",null,null,null,null,null,"This expense item relates to expenses, other than Wages and Benefits, that pertain to maintaining the surface watershed.  This item might include replacing intake screen, materials for maintenance of the intake screens, gravel, stone or concrete for dam and/or intake maintenance, signage, gravel for roads and travel to the undertake work to name a few. "]
[null,null,"Maintenance of Source of Supply Groundwater Recharge Areas including Travel",null,null,null,null,null,"This expense item relates to expenses, other than Wages and Benefits, that pertain to maintaining the groundwater recharge area.  This item might include drilling new supply and/or monitoring wells, cleaning screens on existing wells, wellhead maintenance, signage, gravel for roads, fencing and travel to undertake work to name a few.  "]
[null,null,"Professional Services",null,null,null,null,null,"This expense item relates to the hiring of outside consultants to undertake works that require professional input relating to the Source of Supply."]
[null,null,"Other ",null,null,null,null,null,"This category is included such that the Operator/Supervisor can add other items that are unique to the location."]
[]
[]
[]
[null,null,"Power and Pumping"]
[null,null,"Item",null,null,null,null,null,"Description"]
[null,null,"Power and Pumping",null,null,null,null,null,"The Power and Pumping expenses relate to the operation and maintenance of all pumping equipment associated with the water system including supply pumps for surface water, supply/well pumps for groundwater and booster pumps to boost water pressure in the distribution network. "]
[null,null,"Wages and Benefits ",null,null,null,null,null,"This expense item is the estimated cost for staff to operate and maintain all the pumping equipment in the system. Staff time could relate to routine checking of pump operation, routine cleaning and lubrication, and pressure checks to ensure the pumps are operating as per the requirements of the system. Benefits relate to overheads including matching contributions for income tax, CPP, EI, health plans and vacations are included.  "]
[null,null,"Maintenance of Pumps and Controls including Travel",null,null,null,null,null,"This expense item relates to expenses, other than Wages and Benefits, that pertain to maintaining the pumping equipment including pump controls.  This item might include routine maintenance of pumps, monitoring of electrical power consumption, monitoring of pump outputs if flow meters are installed, inspection of pump control panels and travel to undertake work to name a few. "]
[null,null,"Electricity",null,null,null,null,null,"This expense is to cover the cost of supplying electricity to the pumping equipment including electricity for space heating if required."]
[null,null,"Fuel for Generators and Building Heat ",null,null,null,null,null,"This expense is to cover the cost of fuel for generators, diesel/gasoline powered backup pumps and heating oil/propane for building heat."]
[null,null,"Professional Services",null,null,null,null,null,"This expense item relates to the hiring of outside consultants to undertake works that require professional input relating to pumping requirements in the system."]
[null,null,"Other",null,null,null,null,null,"This category is included such that the Operator/Supervisor can add other items that are unique to the location"]
[]
[]
[]
[null,null,"Water Disinfection & Treatment"]
[null,null,"Item",null,null,null,null,null,"Description"]
[null,null,"Water Treatment",null,null,null,null,null,"The Water Treatment expenses relate to the operation and maintenance of the water treatment equipment associated with water system including operation and maintenance of water treatment plants and chlorination systems. "]
[null,null,"Wages and Benefits ",null,null,null,null,null,"This expense item is the estimated cost for staff to operate and maintain the water treatment equipment. Staff time could relate to regular checking of treatment plant operation, adjustment of the treatment processes including chemical feed rates, routine testing to verify treatment requirements and performance, and routine chlorine residual testing as per the requirements of the regulators. Benefits relate to overheads including matching contributions for income tax, CPP, EI, health plans and vacations are included.  "]
[null,null,"Maintenance of Pump Station Structures including Travel ",null,null,null,null,null,"This expense item relates to expenses, other than Wages and Benefits, that pertain to maintaining the pump station structures.  This item might include routine maintenance on the structures including repair of damage caused by vandalism and/or storms and travel to undertake required works to name a few.  "]
[null,null,"Electricity and Fuel ",null,null,null,null,null,"This expense is to cover the cost of supplying electricity to the water treatment system including electricity and/or heating oil/propane for space heating if required."]
[null,null,"Chemicals",null,null,null,null,null,"This expense is to cover the cost of all chemicals used in the water treatment process."]
[null,null,"Maintenance of Treatment Plant Equipment ",null,null,null,null,null,"This expense item relates to expenses, other than Wages and Benefits, that pertain to maintaining the water treatment equipment.  This item might include routine maintenance/replacment of chemical feed pumps, monitoring of electrical power consumption, monitoring of treatment plant production and backwash volumes, monitoring of turbidity and chlorine residual values to name a few. "]
[null,null,"Maintenance of Pump Station Structures",null,null,null,null,null,"This expense item relates to expenses, other than Wages and Benefits, that pertain to maintaining the water treatment plant structures.  This item might include routine maintenance on the structures including repair of damage cause by vandalism and/or storms and travel to undertake work to name a few.  "]
[null,null,"Maintenance of Computer Controls and SCADA",null,null,null,null,null,"This expense item relates to expenses, other than Wages and Benefits, that pertain to maintaining the computer systems in the water treatment plant including SCADA systems."]
[null,null,"Materials and Supplies",null,null,null,null,null,"This expense is to cover the cost of routine materials and supplies that are required for the operation of the Water Treatment Plant."]
[null,null,"Sludge Handling and Disposal",null,null,null,null,null,"This expense is to cover the cost of sludge handling at the Water Treatment Plant including short term storage, transportation (if required) and long term disposal."]
[null,null,"Water Testing ",null,null,null,null,null,"This expense is to cover the cost of routine water testing as required for the operation by the Regulators of the Water Treatment Plant."]
[null,null,"Vehicle Expense Including Vehicles and Operating Costs ",null,null,null,null,null,"This expense is to cover the cost of providing vehicles including operating costs that are required for the operation of the Water Treatment Plant. If dedicated vehicles are not required this expense item should be used for any travel expenses associated with the Water Treatment Plant."]
[null,null,"Professional Services ",null,null,null,null,null,"This expense item relates to the hiring of outside consultants to undertake works that require professional input relating to pumping requirements in the system."]
[null,null,"Other",null,null,null,null,null,"This category is included such that the Operator/Supervisor can add other items that are unique to the location"]
[]
[]
[]
[]
[null,null,"Transmission and Distribution"]
[null,null,"Item",null,null,null,null,null,"Description"]
[null,null,"Transmission and Distribution",null,null,null,null,null,"The Transmission and Distribution expenses relate to the operation and maintenance of all the water transmission and distribution system including the operation and maintenance of reservoirs/storage tanks, customer services/laterals and fire hydrants (if installed)."]
[null,null,"Wages and Benefits",null,null,null,null,null,"This expense item is the estimated cost for staff to maintain and operate the water distribution network. Staff time could relate to locating and repairing leaks in distribution pipes including service laterals, routine maintenance of pressure reducing valves, maintenance and repair of reservoirs/storage tanks and any hydrants that may be installed in the water system. Benefits relate to overheads including matching contributions for income tax, CPP, EI, health plans and vacations are included.  "]
[null,null,"Maintenance of Water Mains including Valves",null,null,null,null,null,"This expense item relates to expenses, other than Wages and Benefits, that pertain to maintaining the water transmission and distribution pipes including valves.  This item might include routine maintenance such as valve exercising and watermain flushing, location and repair of leaks, any outside contractors who provide backhoes/excavators and/or other equipment to name a few.  "]
[null,null,"Maintenance of Service Laterals to the Property Boundary",null,null,null,null,null,"This expense item relates to expenses, other than Wages and Benefits, that pertain to maintaining and repairing service laterals to customer properties including location of shut off valves on water mains and curb shut off valves at the property boundary and any outside contractors who provide backhoes/excavators and/or other equipment."]
[null,null,"Maintenance of Water Reservoirs and Storage Tanks",null,null,null,null,null,"This expense item relates to expenses, other than Wages and Benefits, that pertain to maintaining and repairing all water reservoirs and storage tanks in the water distribution system. This item might include routine inspection for leaks, repairs to structures, and maintenance of altitude valves and any outside contractors who provide backhoes/excavators and/or other equipment to name a few.  "]
[null,null,"Maintenance of Hydrants including Hydrant Valves ",null,null,null,null,null,"This expense item relates to expenses, other than Wages and Benefits, that pertain to maintaining hydrants (if installed) in the distribution system.  This item might include routine maintenance such as painting, leak repairs, exercising hydrant valves and any outside contractors who provide backhoes/excavators and/or other equipment to name a few.  "]
[null,null,"Cell Phones and Dedicated Communication Lines ",null,null,null,null,null,"This expense is to cover the cost of providing cell phones and any dedicated communication lines that may exist in the water distribution system."]
[null,null,"Supplies/Materials/Tools and Equipment ",null,null,null,null,null,"This expense is to cover the cost of routine supplies, materials, tools and equipment that are required for the operation of the water distribution system."]
[null,null,"Leak Detection ",null,null,null,null,null,"This expense is to cover the cost of leak detection services provided by outside service providers."]
[null,null,"Vehicle Expense Including Vehicles and Operating Costs ",null,null,null,null,null,"This expense is to cover the cost of providing vehicles including operating costs that are required for the operation and maintenance of the distribution system. If dedicated vehicles are not required this expense item should be used for any travel expenses associated with the water distribution system."]
[null,null,"Professional Services ",null,null,null,null,null,"This expense item relates to the hiring of outside consultants to undertake works that require professional input relating to pumping requirements in the system."]
[null,null,"Other",null,null,null,null,null,"This category is included such that the Operator/Supervisor can add other items that are unique to the location"]
[]
[]
[]
[]
[null,null,"Administration and General"]
[null,null,"Item",null,null,null,null,null,"Description"]
[null,null,"Administration and General",null,null,null,null,null,"The Administration and General expenses relate to the overall administration of the water system including customer service, billing, annual audits and the provision of insurance. "]
[null,null,"Wages and Benefits ",null,null,null,null,null,"This expense item is the estimated cost for staff to administer the water system. Staff time could relate to receiving and directing phone calls, preparation of bills for the water service, collection of bills, annual audit and provision of insurance. Benefits relate to overheads including matching contributions for income tax, CPP, EI, health plans and vacations are included.  "]
[null,null,"Administrative Office/Phones/Billing/Supplies ",null,null,null,null,null,"This expense item relates to expenses, other than Wages and Benefits, that pertain to operating the administration office.  This item might include office space, office supplies, postage, computer allowance including software, phones, billing and miscellaneous office supplies to name a few.  "]
[null,null,"Allowance for Doubtful Accounts ",null,null,null,null,null,"This expense is to cover the cost of doubtful accounts or bills that have been issued and payment is doubtful."]
[null,null,"Rents/Building Operation/Maintenance ",null,null,null,null,null,"This expense is to cover the cost of any building, or part of a building that are provided for the operation of the water system."]
[null,null,"Liability and Facility Insurance ",null,null,null,null,null,"This expense is to cover the cost of any insurance required for the operation of the water system."]
[null,null,"Regulatory/Legal/Auditor ",null,null,null,null,null,"This expense is to cover the cost of any regulatory requirements such as water rights, legal advice and audit services required by the water system."]
[null,null,"Professional Services ",null,null,null,null,null,"This expense item relates to the hiring of outside consultants to undertake works that require professional input relating to pumping requirements in the system."]
[null,null,"Other",null,null,null,null,null,"This category is included such that the Operator/Supervisor can add other items that are unique to the location."]

{"sheet":"1.4) Existing Revenue","index":9,"n_rows":32,"n_cols":17,"rows_kept":32,"cut":false,"hidden":false,"merged":[[31,9,31,10],[1,1,1,18],[2,1,2,18]]}
[]
[null,"PART 1"]
[null,"Existing Revenue"]
[null,null,"Revenue"]
[]
[null,null,"Water Taxes"]
[null,null,"Enter the number of customers that pay Water Taxes:"]
[null,null,"Enter the annual water rate/water tax charged to each customer:"]
[]
[]
[null,null,"Water and Sewer Taxes"]
[null,null,"Enter the number of customers that pay Water & Sewer Taxes:"]
[null,null,"Enter the annual Water & Sewer Tax rate charged to each customer:"]
[null,null,"Select the approximate percentage of the tax that funds sewer operations:",null,null,null,null,null,null,null,null,null,null,null,null,null,0]
[]
[]
[null,null,"Other Sources of Revenue"]
[null,null,"If industrial/commercial customers are charged a different rate: "]
[null,null,null,"- Enter the number of commercial/industrial customers charged at this rate"]
[null,null,null,"- Enter the rate charged to each industrial/commercial customer"]
[]
[null,null,"Enter the total revenue generated from any other sources:"]
[]
[]
[]
[null,null,null,null,null,null,null,null,null,null,null,null,null,null,"Total Revenue",null,{"$f":"IF(Calculations!D216>0,Calculations!D216,\"\")","v":""}]
[]
[]
[]
[]
[]
[null,null,null,null,null,null,null,null,null,1.4]

{"sheet":"1.5) Results","index":10,"n_rows":46,"n_cols":22,"rows_kept":46,"cut":false,"hidden":false,"merged":[[25,3,26,15],[15,13,15,15],[18,13,18,15],[19,13,19,15],[21,13,21,15],[22,13,22,15],[1,1,1,17],[45,8,45,9],[38,3,40,15],[34,13,34,15],[33,13,33,15],[32,13,32,15],[35,13,35,15],[36,13,36,15],[2,1,2,17],[5,13,5,15],[6,13,6,15],[9,13,9,15],[11,3,11,15],[23,13,23,15],[20,13,20,15],[27,2,28,16]]}
[]
[null,"PART 1"]
[null,"Results"]
[null,null,"Net Revenue"]
[]
[null,null,null,"Total Revenue",null,null,null,null,null,null,null,null,null,{"$f":"Calculations!D216","v":0}]
[null,null,null,"Total Expenditures",null,null,null,null,null,null,null,null,null,{"$f":"Calculations!D227","v":0}]
[]
[]
[null,null,null,"Balance",null,null,null,null,null,null,null,null,null,{"$f":"Calculations!D228","v":0},null,null,null,null,null,null,{"$f":"N6","v":0},"Revenue"]
[null,null,null,null,null,null,null,null,null,null,null,null,null,null,null,null,null,null,null,null,{"$f":"N7","v":0},"Expenses"]
[null,null,null,{"$f":"Calculations!D230","v":""},null,null,null,null,null,null,null,null,null,null,null,null,null,null,null,null,{"$f":"IF(N10<0,N10*-1,0)","v":0}]
[]
[null,null,"Evaluation of Existing Costs"]
[]
[null,null,null,null,null,null,null,null,null,null,null,null,null,"Recommended "]
[null,null,null,"Item",null,null,null,null,null,null,null,{"$f":"\"Actual \"&Calculations!D176","v":"Actual "},null,null,"Annual Investment1"]
[]
[null,null,null,"Source of Supply",null,null,null,null,null,null,null,{"$f":"IF(Calculations!D180=0,\"\",Calculations!D180)","v":""},null,{"$f":"Calculations!F161","v":0}]
[null,null,null,"Pumping",null,null,null,null,null,null,null,{"$f":"IF(Calculations!D181=0,\"\",Calculations!D181)","v":""},null,{"$f":"Calculations!F162","v":0}]
[null,null,null,"Treatment & Disinfection",null,null,null,null,null,null,null,{"$f":"IF(Calculations!D182=0,\"\",Calculations!D182)","v":""},null,{"$f":"Calculations!F163","v":0}]
[null,null,null,"Transmission & Distribution",null,null,null,null,null,null,null,{"$f":"IF(Calculations!D183=0,\"\",Calculations!D183)","v":""},null,{"$f":"Calculations!F164","v":0}]
[null,null,null,"Administration",null,null,null,null,null,null,null,{"$f":"IF(Calculations!D184=0,\"\",Calculations!D184)","v":""},null,{"$f":"Calculations!F165","v":0}]
[null,null,null,"Total",null,null,null,null,null,null,null,{"$f":"IF(Calculations!D185=0,\"\",Calculations!D185)","v":""},null,{"$f":"Calculations!F166","v":0}]
[]
[null,null,null,{"$f":"Calculations!C243","v":""}]
[]
[null,null,"1Recommended investments were estimated based on the size of the community and characteristics of the water supply system. These values were estimated assuming best practices are followed for items such as montoring, preventive maintenance, etc. While every water supply system is unique, large variations between actual and typical expenditures  may indicate that actual budgets should be re-evaluated."]
[]
[]
[null,null,"Gap Analysis"]
[]
[null,null,null,null,null,null,null,null,null,null,null,"Annual Water Tax ",null,"Gap From"]
[null,null,null,null,null,null,null,null,null,null,null,"per Customer",null,"Current"]
[null,null,null,"Current",null,null,null,null,null,null,null,{"$f":"Calculations!D219","v":{"$error":"#DIV/0!"}},null,"-",null,null,null,null,null,null,"Current Tax"]
[null,null,null,"Minimum to Fund Existing Operations",null,null,null,null,null,null,null,{"$f":"Calculations!D251","v":{"$error":"#DIV/0!"}},null,{"$f":"Calculations!E251","v":{"$error":"#DIV/0!"}},null,null,null,null,null,null,"To Fund Current Operations"]
[null,null,null,"Minimum to Fund Recommended Investment",null,null,null,null,null,null,null,{"$f":"Calculations!D252","v":{"$error":"#DIV/0!"}},null,{"$f":"Calculations!E252","v":{"$error":"#DIV/0!"}},null,null,null,null,null,null,"To Fund Best Practices Operations"]
[]
[null,null,null,{"$f":"IF(Calculations!D254=TRUE,Calculations!C255,Calculations!C256)","v":{"$error":"#DIV/0!"}}]
[]
[]
[]
[]
[]
[]
[null,null,null,null,null,null,null,null,1.5]

{"sheet":"2.1) Start","index":11,"n_rows":27,"n_cols":10,"rows_kept":27,"cut":false,"hidden":false,"merged":[[1,1,1,19],[26,9,26,10],[5,2,9,18],[11,2,13,18],[18,2,21,18],[2,1,2,19],[15,2,16,18]]}
[]
[null,"Part 2"]
[null,"Analysis of Proposed Upgrades"]
[]
[]
[null,null,"This section of the Full Cost Accounting Assessment Tool is for communities that are considering upgrades to their  water supply system. Enter information to describe the proposed upgrades as well as the existing components that will remain in operation. From the information, the Tool will use cost ratings curves to generate an opinion of capital and operation and maintenance costs. The Full Cost Accounting Assessment Tool will then calculate a water tax that would allow the community to achieve full cost recovery. "]
[]
[]
[]
[]
[]
[null,null,"If a cost estimate for an upgrade has already been developed by an engineer or other qualified professional, this value should be entered in the Upgrade Costspage, as such costs are considered to be more accurate than the costs predicted by the tool. "]
[]
[]
[]
[null,null,"Costs predicted by the Full Cost Accounting Assessment Tool do not include: Provincial or Federal sales or service taxes, depreciation, or existing non-operating expenses such as debt servicing. "]
[]
[]
[null,null,"If a particular type of upgrade is not included in the tool, the user should enter the value manually on the upgrade costs page. Operation and maintenance costs for items entered manually will not be captured by the Full Cost Accounting Assessment Tool, and therefore, the user should keep this in mind when evaluating the recommended future water tax result. "]
[]
[]
[]
[]
[]
[]
[]
[null,null,null,null,null,null,null,null,null,2.1]

{"sheet":"2.2) Design Parameters","index":12,"n_rows":45,"n_cols":18,"rows_kept":45,"cut":false,"hidden":false,"merged":[[1,1,1,18],[30,3,31,16],[38,4,38,5],[37,15,37,16],[2,1,2,18],[35,11,35,12],[36,11,36,12],[37,11,37,12],[38,11,38,12],[35,15,35,16],[36,15,36,16],[35,4,35,5],[36,4,36,5],[37,4,37,5],[38,15,38,16],[5,2,7,17],[44,5,44,6],[41,11,41,12],[40,6,40,9],[40,11,40,16],[41,5,41,6],[42,5,42,6],[43,5,43,6],[42,11,42,12],[44,11,44,12],[42,14,42,15],[43,14,43,15],[43,11,43,12],[18,2,19,17],[23,2,24,17],[13,12,13,13],[8,15,9,17],[11,15,11,17],[12,15,12,17],[13,9,13,10],[11,12,11,13],[9,9,9,10],[11,9,11,10],[12,9,12,10],[9,12,9,13],[12,12,12,13]]}
[]
[null,"Part 2"]
[null,"Design Parameters for Upgrades"]
[null,null,"Design Parameters for Proposed Upgrades"]
[]
[null,null,"Enter the current population who will be serviced by the upgraded infrastructure/system. If flow data is available, enter it in the fields below and select the correct flow units. If flows are not known, leave the fields blank and flows will be estimated by assuming per capita consumption of 340 L/p/d."]
[]
[]
[null,null,null,null,null,null,null,null,null,null,null,null,null,null,null,"Per Capita Use (L/p/d)"]
[null,null,null,null,null,null,null,null,"Value","Units",null,null,"Flow (m3/d)"]
[null,null,null,"Population Serviced",null,null,null,null,{"$f":"'1.1) Community Data'!Q11","v":0}]
[null,null,null,"Average Flow ",null,null,null,null,null,"m3/d",null,null,{"$f":"IF(AND(I12>0,NOT(OR(J12=\"\",J12=\"<Units>\"))),Calculations!G266,\"\")","v":""},null,null,{"$f":"IF(AND(I12>0,NOT(OR(J12=\"\",J12=\"<Units>\"))),Calculations!H266,\"\")","v":""}]
[null,null,null,"Maximum Day Flow",null,null,null,null,null,"<Units>",null,null,{"$f":"IF(AND(I13>0,NOT(OR(J13=\"\",J13=\"<Units>\"))),Calculations!G267,\"\")","v":""},null,null,{"$f":"IF(AND(I13>0,NOT(OR(J13=\"\",J13=\"<Units>\"))),Calculations!H267,\"\")","v":""}]
[null,null,null,"Peak Flow",null,null,null,null,null,"<Units>",null,null,{"$f":"IF(AND(I14>0,NOT(OR(J14=\"\",J14=\"<Units>\"))),Calculations!G268,\"\")","v":""}]
[]
[]
[null,null,"Select the design life (in years) for the upgrades:",null,null,null,null,null,null,null,null,15,null,20,null,25,null,30]
[]
[null,null,"(This design life is used to establish the amortization  for loans taken out for upgrades; if no loans are taken out the design life input here is not used)"]
[]
[]
[null,null,"The new treatment facility will need to have capacity to service the existing population, as well as the"]
[null,null,"population at the end of the system's service life. Enter population data from the most recent three"]
[null,null,"censuses below in order to determine population growth rate, or skip to the groth rate selection dropdown menu below:"]
[]
[null,null,null,null,null,null,null,null,"Census Year",null,"Population"]
[null,null,null,null,null,null,null,null,{"$f":"IF(Title!Q21=\"\",\"\",Calculations!C288)","v":""}]
[null,null,null,null,null,null,null,null,{"$f":"IF(I27=\"\",\"\",Calculations!C289)","v":""}]
[null,null,null,null,null,null,null,null,{"$f":"IF(I28=\"\",\"\",Calculations!C290)","v":""}]
[]
[null,null,null,{"$f":"IF(K27*K28>0,Calculations!C293,\"\")","v":""}]
[]
[]
[null,null,"Select an Annual Population Growth Rate (%) for the system's service life:"]
[]
[]
[]
[]
[]
[null,null,"Based on the data above, the design parameters are as follows:"]
[null,null,null,null,null,null,"Current",null,null,null,null,{"$f":"\"Year \"&Title!Q21+Calculations!D284","v":"Year 15"}]
[null,null,"Population:",null,null,{"$f":"Calculations!D265","v":0},null,null,null,null,null,{"$f":"ROUND(Calculations!D323,0)","v":0}]
[null,null,"Avg. Day Flow:",null,null,{"$f":"Calculations!D272","v":0},null,"m3/d",{"$f":"Calculations!E272","v":0},{"$f":"Calculations!E327","v":"L/p/d"},null,{"$f":"Calculations!D332","v":0},null,{"$f":"Calculations!E332","v":"m3/d"},{"$f":"Calculations!D327","v":0},null,{"$f":"Calculations!E327","v":"L/p/d"}]
[null,null,"Max. Day Flow:",null,null,{"$f":"Calculations!D273","v":0},null,"m3/d",{"$f":"Calculations!E273","v":0},{"$f":"Calculations!E328","v":"L/p/d"},null,{"$f":"Calculations!D333","v":0},null,{"$f":"Calculations!E333","v":"m3/d"},{"$f":"Calculations!D328","v":0},null,{"$f":"Calculations!E328","v":"L/p/d"}]
[null,null,"Peak Hour Flow:",null,null,{"$f":"Calculations!D274","v":0},null,"m3/d",null,null,null,{"$f":"Calculations!D334","v":0},null,{"$f":"Calculations!E334","v":"m3/d"}]

{"sheet":"2.3) Treatment Upgrades","index":13,"n_rows":201,"n_cols":19,"rows_kept":201,"cut":false,"hidden":false,"merged":[[1,1,1,19],[47,2,48,18],[2,1,2,19],[6,14,6,18],[12,14,12,18],[19,2,19,5],[19,14,19,18],[19,6,19,13],[50,15,50,17],[57,2,58,18],[54,15,54,17],[50,2,52,13],[54,2,56,13],[137,2,137,7],[137,8,137,19],[134,2,134,19],[135,2,135,7],[135,8,135,19],[136,2,136,7],[136,8,136,19],[138,2,138,7],[138,8,138,19],[139,2,139,7],[139,8,139,19],[140,2,140,7],[140,8,140,19],[155,2,155,19],[156,2,156,7],[156,8,156,19],[157,2,157,7],[157,8,157,19],[158,2,158,7],[158,8,158,19],[159,2,159,7],[159,8,159,19],[160,2,160,7],[160,8,160,19],[63,9,63,10],[199,2,199,7],[199,8,199,19],[200,2,200,7],[200,8,200,19],[196,2,196,19],[197,2,197,7],[197,8,197,19],[198,2,198,7],[198,8,198,19],[161,2,161,7],[161,8,161,19],[162,2,162,7],[162,8,162,19],[163,2,163,7],[163,8,163,19]]}
[]
[null,"Part 2"]
[null,"Upgrades: Description of Proposed Treatment"]
[null,null,"Proposed Disinfection System"]
[]
[null,null,"What type of chemical disinfection system will be used?"]
[null,null,null,"Sodium Hypochlorite (liquid chlorine)"]
[null,null,null,"Chlorine Gas"]
[null,null,null,"Onsite Generated Sodium Hypochlorite (Mixed oxidants)"]
[null,null,null,"Calcium Hypochlorite "]
[]
[null,null,"Will existing disinfection equipment be used or will new equipment be purchased?"]
[null,null,null,"New"]
[null,null,null,"Existing"]
[]
[null,null,"Proposed Treatment Process"]
[]
[null,null,"Specify the processes that will be included, whether the equipment will be new or existing."]
[null,null,"Note: Only select the processes that are included."]
[null,null,"Treatment Process",null,null,null,"Equipment"]
[null,null,"UV Disinfection System",null,null,null,null,"Not included",null,null,"New",null,"Existing"]
[null,null,"pH Adjustment System",null,null,null,null,"Not included",null,null,"New",null,"Existing"]
[null,null,"Inline Pressure Filtration",null,null,null,null,"Not included",null,null,"New",null,"Existing"]
[null,null,"Iron / Manganese Removal",null,null,null,null,"Not included",null,null,"New",null,"Existing"]
[null,null,"Arsenic Removal",null,null,null,null,"Not included",null,null,"New",null,"Existing"]
[null,null,"Membrane Treatment",null,null,null,null,"Not included",null,null,"New",null,"Existing"]
[null,null,"Conventional WTP",null,null,null,null,"Not included",null,null,"New",null,"Existing"]
[null,null,"PWDU",null,null,null,null,"Not included",null,null,"New",null,"Existing"]
[]
[null,null,"New Treatment Plant Building"]
[]
[null,null,"Will a new building be required? ",null,null,null,null,null,null,null,null,null,null,null,"Yes",null,null,"No"]
[]
[null,null,"If a new building is required, select the processes that will need to be housed in the new building?"]
[null,null,"In this list below, do not select processes that will be housed in an existing building. "]
[null,null,null,null,null,"Chlorine Disinfection System (Sodium hypochlorite, chlorine gas, other)"]
[null,null,null,null,null,"UV Disinfection System"]
[null,null,null,null,null,"pH Adjustment System"]
[null,null,null,null,null,"Inline Pressure Filtration"]
[null,null,null,null,null,"Fe and/or Mn Removal"]
[null,null,null,null,null,"As Removal"]
[null,null,null,null,null,"Membrane Treatment"]
[null,null,null,null,null,"Conventional WTP"]
[null,null,null,null,null,"PWDU"]
[]
[null,null,"Yard Piping"]
[]
[null,null,"Yard piping is defined as the in-ground piping constructed at the treatment facility site. Do not include distribution system upgrades here, as there is a separate page for those upgrades."]
[]
[]
[null,null,"Enter the length of piping connecting the new water WTP to the nearest point in the distribution system. If unknown, the program assumes 20 m. ",null,null,null,null,null,null,null,null,null,null,null,null,null,null,null,"m"]
[]
[]
[]
[null,null,"If the treatment plant will require a connection to the wastewater collection system, enter the distance to the nearest point in the collection system.",null,null,null,null,null,null,null,null,null,null,null,null,null,null,null,"m"]
[]
[]
[null,null,"Note: if a conventional water treatment process is being used, a connection to the collection system is required. This program assumes that the facility can be connected to the sewer system using a gravity collection system. "]
[]
[]
[]
[]
[]
[null,null,null,null,null,null,null,null,null,2.2999999999999998]
[]
[]
[]
[]
[]
[]
[]
[]
[]
[]
[]
[]
[]
[]
[]
[]
[]
[]
[]
[]
[]
[]
[]
[]
[]
[]
[]
[]
[]
[]
[]
[]
[]
[]
[]
[]
[]
[]
[]
[]
[]
[]
[]
[]
[]
[]
[]
[]
[]
[]
[]
[]
[]
[]
[]
[]
[]
[]
[]
[]
[]
[]
[]
[]
[]
[]
[]
[]
[]
[]
[null,null,"Description of Disinfection Chemicals"]
[null,null,"Disinfection Chemical",null,null,null,null,null,"Description"]
[null,null,"Sodium Hypochlorite",null,null,null,null,null,"Sodium hypochlorite is liquid chlorine. Generally it is a preferred disinfectant for smaller systems, because it is relatively easy to handle compared to chlorine gas. The product used in the water treatment industry typically has a trade strength of 12% available chlorine (10.2% sodium hypochlorite)."]
[null,null,"Gas Chlorination",null,null,null,null,null,"Chlorine gas is typically delivered in 120 lb cylinders or tonne containers. The product is 100% available chlorine, so it is typically used in larger installations where large tanks would otherwise be required for storing liquid chlorine. The gas must be stored in a separate room from other process equipment. Facilities using chlorine gas must have chlorine gas detectors and alarms. Operators handling chlorine gas must be trained for using self-contained breathing apparatus. A bystander must also be present when changing chlorine containers. "]
[null,null,"Onsite Sodium Hypochlorite Generation",null,null,null,null,null,"Onsite sodium hypochlorite generation systems use high purity salt to create a dilute sodium hypochlorite product (0.8%). The process requires a power input to create sodium hypochlorite and has a high capital cost. The chemicals are easier to handle and the shelf life of the salt is substantially greater than that of 12% sodium hypochlorite. "]
[null,null,"Calcium Hypochlorite",null,null,null,null,null,"Calcium hypochlorite is a solid form of chlorine, which is typically supplied in powdered form containing 60% available chlorine. It has a longer shelf life than sodium hypochlorite and has slightly lower cost per kg of available chlorine. It requires a separate tanks for batching and dosing. Batches are prepared by dissolving the solid in a batch tank for 24 hours. THe batch tank must be fit with a motorized mixer. "]
[null,null,"UV Disinfection",null,null,null,null,null,"UV disinfection is a method of disinfection that does not use chemicals. The light inactivates microorganisms through destruciton of DNA. It requires a power input and efficacy is dependent on clarity of the water. It is effective at inactivating pathogens that are chlorine resistant, such as Crypto and Giardia. It does not, however, produce a residual, so a chlorine based chemical must also be included in order to provide secondary disinfection (free chlorine residual throughout distribution system)."]
[]
[]
[]
[]
[]
[]
[]
[]
[]
[]
[]
[]
[]
[]
[null,null,"Description of Treatment Processes"]
[null,null,"Disinfection Chemical",null,null,null,null,null,"Description"]
[null,null,"pH Adjustment",null,null,null,null,null,"In this process, chemicals are added to increase pH in the distribution system. This process is generally included to reduce corrosion of distribution system and premise plumbing pipes and components. This helps protect distribution system pipes and reduces concentrations of metals such as iron, copper, and lead.  "]
[null,null,"Inline Pressure Filtration",null,null,null,null,null,"Inline pressure filtration uses media installed in fibreglass or steel vessels to reduce turbidity and remove particles. These systems must be pressurized, either through gravity or by using pumps. "]
[null,null,"Iron and/or Manganese Removal",null,null,null,null,null,"Iron and manganese removal is used where iron concentrations exceed 0.3 mg/L or manganese concentrations exceed 0.05 mg/L. Iron and manganese are aesthetic parameters, as they can contribute to the water's colour and cause staining of sinks, toilets, and clothing. Iron and manganese systems generally use a special media, which may be installed in gravity or pressure filters. Water is pre-treated with an oxidant such as chlorine or potassium permanganate."]
[null,null,"Arsenic Removal",null,null,null,null,null,"Arsenic is a health based parameter, and arsenic treatment is required where arsenic concentrations in the source water exceed 0.01 mg/L. Arsenic removal systems often use a coated media installed in fibreglass or steel tanks. The media requires periodic replacement. "]
[null,null,"Membrane Filtration",null,null,null,null,null,"Membrane filtration is a physical treatment process where particles are physically removed by exclusion, as water is passed through a membrane with an effective pore size. The process is often used to remove particles and organics (colour).  Membranes are classified based on their pore sizes. Depending on the type of membrane process used, the systems may or may not require the use of pre-treatment chemicals to achieve organics (colour) removal. They require periodic cleaning, which is typically accomplished using citric acid. As a result, come means of handling the process waste must be included. "]
[null,null,"Conventional WTP",null,null,null,null,null,"Conventional water treatment plants use chemical pre-treatment to create particles that can be removed through a clarification step and/or filtration. Examples include: dissolved air flotation, conventional filtration, and direct filtration. The processes require chemical coagulation and pH adjustment. A significant amount of process residuals, which include chemicals such as aluminum, are generated through filter backwashing. As a result, these facilities must be connected to the community's wastewater collection system or they require some method of residuals treatment. "]
[null,null,"Potable Water Dispensing Units",null,null,null,null,null,"Potable water dispensing units are suitable alternatives for smaller communities. The units includes treatment, disinfection, and dispensing systems. Members from the community collect water for potable use from the units, and transport the water using containers. The units are designed to meet the potable consumption demands of the community. Other non-potable uses are met through traditional distribution systems."]
[]
[]
[]
[]
[]
[]
[]
[]
[]
[]
[]
[]
[]
[]
[]
[]
[]
[]
[]
[]
[]
[]
[]
[]
[]
[]
[]
[]
[]
[]
[]
[]
[null,null,"Description of Pumping Systems"]
[null,null,"Disinfection Chemical",null,null,null,null,null,"Description"]
[null,null,"Low Lift Pumping",null,null,null,null,null,"Low lift pumps move water from the source to the treatment facility. They operate at a relatively low discharge pressure and are required where the source water is not at an elevation that is insufficiently above the elevation of the treatment facility."]
[null,null,"High Lift Pumping",null,null,null,null,null,"High lift pumps move water from the treatment plant to the distribution system. In cases where water is pumped from the source (groundwater or surface), through treatment, and directly to the distribution system, it may be considered high lift pumping. "]
[null,null,"Distribution System Pumping",null,null,null,null,null,"Distribution system pumps increase pressure within the distribution system. These are also often referred to as booster pumps. They are required distribution systems with substantial elevation differences. "]

{"sheet":"2.4) Pumping Upgrades","index":14,"n_rows":57,"n_cols":18,"rows_kept":57,"cut":false,"hidden":false,"merged":[[1,1,1,19],[2,1,2,19],[55,2,55,7],[55,8,55,19],[56,2,56,7],[56,8,56,19],[52,2,52,19],[53,2,53,7],[53,8,53,19],[54,2,54,7],[54,8,54,19],[26,9,26,10]]}
[]
[null,"Part 2"]
[null,"Description of Proposed Pumping"]
[null,null,"Describe the types of pumps that will be included in the proposed system"]
[]
[null,null,"Indicate if pumping equipment will be included, whether it will be new or existing,"]
[null,null,"and if the equipment will be installed in a new or existing building. "]
[null,null,"Note: you only need to select the processes that are included. Those that are not included can be left as is."]
[]
[null,null,null,"Pumping Process"]
[null,null,null,"Well Pump",null,null,null,null,null,"Not Included",null,null,null,"New",null,null,null,"Existing"]
[]
[null,null,null,"Low Lift Pump",null,null,null,null,null,"Not Included",null,null,null,"New",null,null,null,"Existing"]
[]
[null,null,null,"High Lift Pump",null,null,null,null,null,"Not Included",null,null,null,"New",null,null,null,"Existing"]
[]
[null,null,"Indicate below if a new building is being constructed to house the pumping systems."]
[null,null,null,"Low Lift Pump"]
[null,null,null,"High Lift Pump"]
[]
[]
[]
[]
[]
[]
[]
[null,null,null,null,null,null,null,null,null,2.4]
[]
[]
[]
[]
[]
[]
[]
[]
[]
[]
[]
[]
[]
[]
[]
[]
[]
[]
[]
[]
[]
[]
[]
[]
[]
[null,null,"Description of Pumping Systems"]
[null,null,"Disinfection Chemical",null,null,null,null,null,"Description"]
[null,null,"Low Lift Pumping",null,null,null,null,null,"Low lift pumps move water from the source to the treatment facility. They operate at a relatively low discharge pressure and are required where the source water is not at an elevation that is insufficiently above the elevation of the treatment facility."]
[null,null,"High Lift Pumping",null,null,null,null,null,"High lift pumps move water from the treatment plant to the distribution system. In cases where water is pumped from the source (groundwater or surface), through treatment, and directly to the distribution system, it may be considered high lift pumping. "]
[null,null,"Distribution System Pumping",null,null,null,null,null,"Distribution system pumps increase pressure within the distribution system. These are also often referred to as booster pumps. They are required distribution systems with substantial elevation differences. "]

{"sheet":"2.5) Distribution Upgrades","index":15,"n_rows":149,"n_cols":18,"rows_kept":149,"cut":false,"hidden":false,"merged":[[1,1,1,19],[146,2,146,7],[146,8,146,19],[147,2,147,7],[147,8,147,19],[106,2,106,7],[106,8,106,19],[79,2,79,7],[79,8,79,19],[80,2,80,7],[80,8,80,19],[81,2,81,7],[81,8,81,19],[103,2,103,19],[104,2,104,7],[104,8,104,19],[148,2,148,7],[148,8,148,19],[145,2,145,7],[145,8,145,19],[107,2,107,7],[107,8,107,19],[108,2,108,7],[108,8,108,19],[109,2,109,7],[109,8,109,19],[110,2,110,7],[110,8,110,19],[111,2,111,7],[111,8,111,19],[144,2,144,19],[105,2,105,7],[105,8,105,19],[76,2,76,7],[76,8,76,19],[77,2,77,7],[77,8,77,19],[78,2,78,7],[78,8,78,19],[26,14,26,16],[75,2,75,19],[10,2,11,11],[11,14,11,16],[13,2,14,11],[14,14,14,16],[16,2,16,18],[22,14,22,16],[31,9,31,10],[6,14,6,16],[8,14,8,16],[2,1,2,19],[20,14,20,16],[24,14,24,16]]}
[]
[null,"Part 2"]
[null,"Description of Distribution Upgrades"]
[null,null,"Treated Water Storage"]
[]
[null,null,"Do the proposed upgrades include the construction of a new "]
[null,null,"treated water storage tanks? ",null,null,null,null,null,null,null,null,null,null,null,"<Yes/No>"]
[]
[null,null,"Will storage tank include a fire storage component?",null,null,null,null,null,null,null,null,null,null,null,"<Yes/No>"]
[]
[null,null,"The default fire storage value for this program is 2 hours. If a different value should be used, enter it here:"]
[null,null,null,null,null,null,null,null,null,null,null,null,null,null,"<Fire Storage>",null,null,"minutes"]
[]
[null,null,"The default fire flowrate is 1250 gpm. If a different value should be used, enter it here: "]
[null,null,null,null,null,null,null,null,null,null,null,null,null,null,"<Fire flow>",null,null,"gpm"]
[]
[null,null,"*NOTE: The level of fire protection is the responsibility of the municipality. Fire flow requirements are typically established by the appropriate Insurance Advisory Organization, and should be satisfied where fire protection is provided. "]
[]
[null,null,"New Distribution System"]
[]
[null,null,"Is the community planning to expand the distribution system? ",null,null,null,null,null,null,null,null,null,null,null,"<Yes/No>"]
[]
[null,null,"Enter the length of new distribution system that is being installed",null,null,null,null,null,null,null,null,null,null,null,null,null,null,"m"]
[]
[null,null,"Enter the number of valves that will be installed",null,null,null,null,null,null,null,null,null,null,null,null,null,null,"m"]
[]
[null,null,"Enter the number of hydrants that will be installed"]
[]
[]
[]
[]
[null,null,null,null,null,null,null,null,null,2.5]
[]
[]
[]
[]
[]
[]
[]
[]
[]
[]
[]
[]
[]
[]
[]
[]
[]
[]
[]
[]
[]
[]
[]
[]
[]
[]
[]
[]
[]
[]
[]
[]
[]
[]
[]
[]
[]
[]
[]
[]
[]
[]
[]
[null,null,"Description of Disinfection Chemicals"]
[null,null,"Disinfection Chemical",null,null,null,null,null,"Description"]
[null,null,"Sodium Hypochlorite",null,null,null,null,null,"Sodium hypochlorite is liquid chlorine. Generally it is a preferred disinfectant for smaller systems, because it is relatively easy to handle compared to chlorine gas. The product used in the water treatment industry typically has a trade strength of 12% available chlorine (10.2% sodium hypochlorite)."]
[null,null,"Gas Chlorination",null,null,null,null,null,"Chlorine gas is typically delivered in 120 lb cylinders or tonne containers. The product is 100% available chlorine, so it is typically used in larger installations where large tanks would otherwise be required for storing liquid chlorine. The gas must be stored in a separate room from other process equipment. Facilities using chlorine gas must have chlorine gas detectors and alarms. Operators handling chlorine gas must be trained for using self-contained breathing apparatus. A bystander must also be present when changing chlorine containers. "]
[null,null,"Onsite Sodium Hypochlorite Generation",null,null,null,null,null,"Onsite sodium hypochlorite generation systems use high purity salt to create a dilute sodium hypochlorite product (0.8%). The process requires a power input to create sodium hypochlorite and has a high capital cost. The chemicals are easier to handle and the shelf life of the salt is substantially greater than that of 12% sodium hypochlorite. "]
[null,null,"Calcium Hypochlorite",null,null,null,null,null,"Calcium hypochlorite is a solid form of chlorine, which is typically supplied in powdered form containing 60% available chlorine. It has a longer shelf life than sodium hypochlorite and has slightly lower cost per kg of available chlorine. It requires a separate tanks for batching and dosing. Batches are prepared by dissolving the solid in a batch tank for 24 hours. THe batch tank must be fit with a motorized mixer. "]
[null,null,"UV Disinfection",null,null,null,null,null,"UV disinfection is a method of disinfection that does not use chemicals. The light inactivates microorganisms through destruciton of DNA. It requires a power input and efficacy is dependent on clarity of the water. It is effective at inactivating pathogens that are chlorine resistant, such as Crypto and Giardia. It does not, however, produce a residual, so a chlorine based chemical must also be included in order to provide secondary disinfection (free chlorine residual throughout distribution system)."]
[]
[]
[]
[]
[]
[]
[]
[]
[]
[]
[]
[]
[]
[]
[]
[]
[]
[]
[]
[]
[]
[null,null,"Description of Treatment Processes"]
[null,null,"Disinfection Chemical",null,null,null,null,null,"Description"]
[null,null,"pH Adjustment",null,null,null,null,null,"In this process, chemicals are added to increase pH in the distribution system. This process is generally included to reduce corrosion of distribution system and premise plumbing pipes and components. This helps protect distribution system pipes and reduces concentrations of metals such as iron, copper, and lead.  "]
[null,null,"Inline Pressure Filtration",null,null,null,null,null,"Inline pressure filtration uses media installed in fibreglass or steel vessels to reduce turbidity and remove particles. These systems must be pressurized, either through gravity or by using pumps. "]
[null,null,"Iron and/or Manganese Removal",null,null,null,null,null,"Iron and manganese removal is used where iron concentrations exceed 0.3 mg/L or manganese concentrations exceed 0.05 mg/L. Iron and manganese are aesthetic parameters, as they can contribute to the water's colour and cause staining of sinks, toilets, and clothing. Iron and manganese systems generally use a special media, which may be installed in gravity or pressure filters. Water is pre-treated with an oxidant such as chlorine or potassium permanganate."]
[null,null,"Arsenic Removal",null,null,null,null,null,"Arsenic is a health based parameter, and arsenic treatment is required where arsenic concentrations in the source water exceed 0.01 mg/L. Arsenic removal systems often use a coated media installed in fibreglass or steel tanks. The media requires periodic replacement. "]
[null,null,"Membrane Filtration",null,null,null,null,null,"Membrane filtration is a physical treatment process where particles are physically removed by exclusion, as water is passed through a membrane with an effective pore size. The process is often used to remove particles and organics (colour).  Membranes are classified based on their pore sizes. Depending on the type of membrane process used, the systems may or may not require the use of pre-treatment chemicals to achieve organics (colour) removal. They require periodic cleaning, which is typically accomplished using citric acid. As a result, come means of handling the process waste must be included. "]
[null,null,"Conventional WTP",null,null,null,null,null,"Conventional water treatment plants use chemical pre-treatment to create particles that can be removed through a clarification step and/or filtration. Examples include: dissolved air flotation, conventional filtration, and direct filtration. The processes require chemical coagulation and pH adjustment. A significant amount of process residuals, which include chemicals such as aluminum, are generated through filter backwashing. As a result, these facilities must be connected to the community's wastewater collection system or they require some method of residuals treatment. "]
[null,null,"Potable Water Dispensing Units",null,null,null,null,null,"Potable water dispensing units are suitable alternatives for smaller communities. The units includes treatment, disinfection, and dispensing systems. Members from the community collect water for potable use from the units, and transport the water using containers. The units are designed to meet the potable consumption demands of the community. Other non-potable uses are met through traditional distribution systems."]
[]
[]
[]
[]
[]
[]
[]
[]
[]
[]
[]
[]
[]
[]
[]
[]
[]
[]
[]
[]
[]
[]
[]
[]
[]
[]
[]
[]
[]
[]
[]
[]
[null,null,"Description of Pumping Systems"]
[null,null,"Disinfection Chemical",null,null,null,null,null,"Description"]
[null,null,"Low Lift Pumping",null,null,null,null,null,"Low lift pumps move water from the source to the treatment facility. They operate at a relatively low discharge pressure and are required where the source water is not at an elevation that is insufficiently above the elevation of the treatment facility."]
[null,null,"High Lift Pumping",null,null,null,null,null,"High lift pumps move water from the treatment plant to the distribution system. In cases where water is pumped from the source (groundwater or surface), through treatment, and directly to the distribution system, it may be considered high lift pumping. "]
[null,null,"Distribution System Pumping",null,null,null,null,null,"Distribution system pumps increase pressure within the distribution system. These are also often referred to as booster pumps. They are required distribution systems with substantial elevation differences. "]

{"sheet":"2.6) Cost Curve Predictions","index":16,"n_rows":54,"n_cols":17,"rows_kept":54,"cut":false,"hidden":false,"merged":[[1,1,1,19],[12,2,13,18],[10,8,10,10],[2,1,2,19],[15,16,15,18],[5,16,5,18],[19,16,20,18],[19,2,20,9],[19,13,20,15],[19,10,20,12],[23,13,23,15],[23,10,23,12],[21,16,21,18],[22,16,22,18],[23,16,23,18],[24,16,24,18],[21,2,21,9],[22,2,22,9],[23,2,23,9],[21,13,21,15],[22,13,22,15],[21,10,21,12],[22,10,22,12],[24,10,24,12],[24,13,24,15],[24,2,24,9],[26,10,26,12],[26,13,26,15],[26,16,26,18],[40,13,40,15],[47,2,48,18],[45,13,45,15],[43,13,43,15],[44,13,44,15],[41,13,41,15],[42,13,42,15],[53,9,53,10],[30,2,31,18],[6,16,6,18],[16,2,17,18],[32,2,35,18],[39,13,39,15],[38,12,38,16],[25,16,25,18],[25,13,25,15],[25,10,25,12],[27,10,27,12],[27,13,27,15],[27,16,27,18],[28,10,28,12],[28,13,28,15],[28,16,28,18]]}
[]
[null,"Part 2"]
[null,"Cost Curve Predictions"]
[null,null,"Predicted Capital Costs for Upgrades"]
[]
[null,null,"Enter the number of customers on the water supply system:",null,null,null,null,null,null,null,null,null,null,null,null,null,{"$f":"IF('1.4) Existing Revenue'!Q7=\"\"&'1.4) Existing Revenue'!Q12=\"\"&'1.4) Existing Revenue'!Q19=\"\",\"\",'1.4) Existing Revenue'!Q7+'1.4) Existing Revenue'!Q12+'1.4) Existing Revenue'!Q19)","v":0}]
[null,null,"Enter the Current Annual Water Tax:",null,null,null,null,null,null,null,null,null,null,null,null,null,{"$f":"IFERROR('1.5) Results'!L35,\"\")","v":""}]
[]
[null,null,"Has a cost estimate for the proposed upgrades been developed through an engineering study?"]
[]
[null,null,null,null,"Yes, the estimate is:"]
[null,null,null,null,"No, have the tool calculate an approximate value based on historical data."]
[null,null,"Note: Estimates obtained through an engineering study are considered to be more reliable than the values generated by this program, which are based on cost data from previous projects in the Province."]
[]
[]
[null,null,"Enter the fraction of the capital cost will be covered by government funding:",null,null,null,null,null,null,null,null,null,null,null,null,null,"<Funding>"]
[null,null,"Note: Project funding is reduced by the amout of GST rebate due to the community if the full project project costs are expended. The community is responsible for applying for the appropriate rebates and interim financing of the rebates. "]
[]
[]
[null,null,"Upgrade Component",null,null,null,null,null,null,null,"Capital Cost",null,null,"Government Contributions",null,null,"Balance Covered by Community"]
[]
[null,null,{"$f":"Calculations!C537","v":"Water Treatment Facility"},null,null,null,null,null,null,null,{"$f":"IF(Calculations!D546>0,Calculations!D546,\"\")","v":""},null,null,{"$f":"IF(Calculations!E546>0,Calculations!E546,\"\")","v":""},null,null,{"$f":"IF(Calculations!F546>0,Calculations!F546,\"\")","v":""}]
[null,null,{"$f":"Calculations!C538","v":"Pumping Systems"},null,null,null,null,null,null,null,{"$f":"IF(Calculations!D547>0,Calculations!D547,\"\")","v":""},null,null,{"$f":"IF(Calculations!E547>0,Calculations!E547,\"\")","v":""},null,null,{"$f":"IF(Calculations!F547>0,Calculations!F547,\"\")","v":""}]
[null,null,{"$f":"Calculations!C539","v":"Distribution "},null,null,null,null,null,null,null,{"$f":"IF(Calculations!D548>0,Calculations!D548,\"\")","v":""},null,null,{"$f":"IF(Calculations!E548>0,Calculations!E548,\"\")","v":""},null,null,{"$f":"IF(Calculations!F548>0,Calculations!F548,\"\")","v":""}]
[null,null,{"$f":"Calculations!C540","v":"Storage"},null,null,null,null,null,null,null,{"$f":"IF(Calculations!D549>0,Calculations!D549,\"\")","v":""},null,null,{"$f":"IF(Calculations!E549>0,Calculations!E549,\"\")","v":""},null,null,{"$f":"IF(Calculations!F549>0,Calculations!F549,\"\")","v":""}]
[null,null,"Range of Probable Cost"]
[null,null,null,"-30%",null,null,null,null,null,null,{"$f":"IF(Calculations!D551>0,Calculations!D551,\"\")","v":""},null,null,{"$f":"IF(Calculations!E551>0,Calculations!E551,\"\")","v":""},null,null,{"$f":"IF(Calculations!F551>0,Calculations!F551,\"\")","v":""}]
[null,null,null,"Median",null,null,null,null,null,null,{"$f":"IF(Calculations!D550>0,Calculations!D550,\"\")","v":""},null,null,{"$f":"IF(Calculations!E550>0,Calculations!E550,\"\")","v":""},null,null,{"$f":"IF(Calculations!F550>0,Calculations!F550,\"\")","v":""}]
[null,null,null,"+30%",null,null,null,null,null,null,{"$f":"IF(Calculations!D552>0,Calculations!D552,\"\")","v":""},null,null,{"$f":"IF(Calculations!E552>0,Calculations!E552,\"\")","v":""},null,null,{"$f":"IF(Calculations!F552>0,Calculations!F552,\"\")","v":""}]
[null,null,"Notes:"]
[null,null,"1. The values above do not include taxes or take into account any site specific feastures, and were calculated based on historical costs from other projects."]
[]
[null,null,"2.The values presented in the table above were calculated to demonstrate the potential impacts that proposed upgrades may have on the annual costs of operating the water supply system. For capital budgeting, an assessment should be conducted by an engineer or qualified person."]
[]
[]
[]
[null,null,"Predicted Operation and Maintenance Costs"]
[]
[null,null,"Item",null,null,null,null,null,null,null,null,null,"Predicted"]
[null,null,null,null,null,null,null,null,null,null,null,null,null,"O&M Costs1"]
[null,null,"Source of Supply",null,null,null,null,null,null,null,null,null,null,{"$f":"Calculations!E650","v":0}]
[null,null,"Pumping",null,null,null,null,null,null,null,null,null,null,{"$f":"Calculations!E651","v":0}]
[null,null,"Treatment & Disinfection",null,null,null,null,null,null,null,null,null,null,{"$f":"Calculations!E652","v":0}]
[null,null,"Transmission & Distribution",null,null,null,null,null,null,null,null,null,null,{"$f":"Calculations!E653","v":0}]
[null,null,"Administration",null,null,null,null,null,null,null,null,null,null,{"$f":"Calculations!E654","v":0}]
[null,null,"Total",null,null,null,null,null,null,null,null,null,null,{"$f":"Calculations!E655","v":0}]
[]
[null,null,"1Predicted O&M expenditures have been calculated based on the size of the community, characteristics of the water supply system, and the type of systems included in the proposed upgrade. These values were estimated assuming best practices are followed for items such as montoring, preventive maintenance, etc."]
[]
[]
[]
[]
[]
[null,null,null,null,null,null,null,null,null,2.6]

{"sheet":"2.7) Financing Results","index":17,"n_rows":74,"n_cols":16,"rows_kept":74,"cut":false,"hidden":false,"merged":[[31,9,31,10],[24,2,25,18],[22,15,22,17],[19,15,19,17],[21,15,21,17],[20,15,20,17],[1,1,1,19],[73,2,73,7],[73,8,73,19],[70,2,70,19],[71,2,71,7],[71,8,71,19],[72,2,72,7],[72,8,72,19],[2,1,2,19],[5,15,5,17],[7,15,7,17],[8,15,8,17],[10,2,11,13]]}
[]
[null,"Part 2"]
[null,"Financing and Water Taxes"]
[null,null,"Financing"]
[]
[null,null,"If reserve funds will be used to reduce the loan amount, enter the amount:"]
[]
[null,null,"Enter the term length, in years, for the loan. Must not be more than 30 years."]
[null,null,"Enter the anticipated interest rate on any borrowed funds:",null,null,null,null,null,null,null,null,null,null,null,null,"<Loan Interest Rate>"]
[]
[null,null,"Select whether loan payments will be serial or blended. If this is not known, leave blank, and the program will use serial payments by default",null,null,null,null,null,null,null,null,null,null,null,null,"Blended payments"]
[null,null,null,null,null,null,null,null,null,null,null,null,null,null,null,"Serial payments"]
[]
[]
[]
[]
[]
[null,null,"For Recommended Operations:"]
[]
[null,null,"Current Annual Water Tax per Household:",null,null,null,null,null,null,null,null,null,null,null,null,{"$f":"Calculations!D661","v":""}]
[null,null,"Current Number of Customers:",null,null,null,null,null,null,null,null,null,null,null,null,{"$f":"Calculations!D660","v":0}]
[null,null,"Recommended Average Annual Water Tax (Year 1 following Upgrade)",null,null,null,null,null,null,null,null,null,null,null,null,{"$f":"Calculations!D663","v":0}]
[null,null,null,null,null,null,null,null,null,null,null,null,null,null,null,{"$f":"\"$\"&ROUNDUP(P22/12,0)&\"/month\"","v":"$0/month"}]
[]
[null,null,{"$f":"IF(P20>P22,\"\",\"Annual Average Water Tax would need to be increased by $\"&ROUND((P22-P20),0)&\" per year in order to completely fund the upgrades.\")","v":""}]
[]
[]
[]
[]
[]
[]
[null,null,null,null,null,null,null,null,null,2.7]
[]
[]
[]
[]
[]
[]
[]
[]
[]
[]
[]
[]
[]
[]
[]
[]
[]
[]
[]
[]
[]
[]
[]
[]
[]
[]
[]
[]
[]
[]
[]
[]
[]
[]
[]
[]
[]
[]
[null,null,"Source of Supply"]
[null,null,"Item",null,null,null,null,null,"Description"]
[null,null,"Blended Payment",null,null,null,null,null,"Blended payment is a loan repayment method where the loan is repaid in equal instalment amounts over the period of the loan. "]
[null,null,"Serial Payment",null,null,null,null,null,"Serial payment is a loan repayment method where the principal is paid in equal amounts over the period of the loan. Interest payments decrease each period, meaning the highest annual payment is in the first year of the loan. "]

{"sheet":"3.1) Infrastructure Replacement","index":18,"n_rows":70,"n_cols":23,"rows_kept":70,"cut":false,"hidden":false,"merged":[[64,3,64,7],[64,8,64,9],[64,10,64,12],[64,13,64,16],[64,17,64,20],[64,21,64,23],[65,3,65,7],[65,8,65,9],[65,10,65,12],[65,13,65,16],[65,17,65,20],[65,21,65,23],[62,3,62,7],[62,8,62,9],[62,10,62,12],[62,13,62,16],[62,17,62,20],[62,21,62,23],[63,3,63,7],[63,8,63,9],[63,10,63,12],[63,13,63,16],[63,17,63,20],[63,21,63,23],[60,3,60,7],[60,8,60,9],[60,10,60,12],[60,13,60,16],[60,17,60,20],[60,21,60,23],[61,3,61,7],[61,8,61,9],[61,10,61,12],[61,13,61,16],[61,17,61,20],[61,21,61,23],[69,1,69,25],[68,1,68,25],[66,8,66,9],[29,6,31,11],[13,10,13,11],[34,21,34,23],[34,10,34,12],[34,3,34,7],[34,17,34,20],[34,8,34,9],[34,13,34,16],[19,10,19,12],[17,10,17,12],[19,3,19,9],[16,3,17,9],[19,14,19,16],[17,14,17,16],[29,13,31,22],[35,3,35,7],[35,8,35,9],[35,10,35,12],[35,13,35,16],[35,17,35,20],[35,21,35,23],[1,1,1,25],[2,1,2,25],[3,1,3,25],[17,18,17,21],[24,3,24,8],[26,3,26,8],[26,10,26,12],[24,10,24,12],[26,20,26,22],[24,20,24,22],[24,14,24,19],[26,14,26,19],[6,3,6,9],[6,10,6,20],[8,3,8,9],[10,3,10,9],[13,3,13,9],[13,14,13,21],[10,10,10,11],[8,10,8,11],[36,3,36,7],[36,8,36,9],[36,10,36,12],[36,13,36,16],[36,17,36,20],[36,21,36,23],[37,3,37,7],[37,8,37,9],[37,10,37,12],[37,13,37,16],[37,17,37,20],[37,21,37,23],[38,3,38,7],[38,8,38,9],[38,10,38,12],[38,13,38,16],[38,17,38,20],[38,21,38,23],[39,3,39,7],[39,8,39,9],[39,10,39,12],[39,13,39,16],[39,17,39,20],[39,21,39,23],[40,3,40,7],[40,8,40,9],[40,10,40,12],[40,13,40,16],[40,17,40,20],[40,21,40,23],[41,3,41,7],[41,8,41,9],[41,10,41,12],[41,13,41,16],[41,17,41,20],[41,21,41,23],[42,3,42,7],[42,8,42,9],[42,10,42,12],[42,13,42,16],[42,17,42,20],[42,21,42,23],[43,3,43,7],[43,8,43,9],[43,10,43,12],[43,13,43,16],[43,17,43,20],[43,21,43,23],[44,3,44,7],[44,8,44,9],[44,10,44,12],[44,13,44,16],[44,17,44,20],[44,21,44,23],[45,3,45,7],[45,8,45,9],[45,10,45,12],[45,13,45,16],[45,17,45,20],[45,21,45,23],[46,3,46,7],[46,8,46,9],[46,10,46,12],[46,13,46,16],[46,17,46,20],[46,21,46,23],[47,3,47,7],[47,8,47,9],[47,10,47,12],[47,13,47,16],[47,17,47,20],[47,21,47,23],[48,3,48,7],[48,8,48,9],[48,10,48,12],[48,13,48,16],[48,17,48,20],[48,21,48,23],[49,3,49,7],[49,8,49,9],[49,10,49,12],[49,13,49,16],[49,17,49,20],[49,21,49,23],[50,3,50,7],[50,8,50,9],[50,10,50,12],[50,13,50,16],[50,17,50,20],[50,21,50,23],[51,3,51,7],[51,8,51,9],[51,10,51,12],[51,13,51,16],[51,17,51,20],[51,21,51,23],[52,3,52,7],[52,8,52,9],[52,10,52,12],[52,13,52,16],[52,17,52,20],[52,21,52,23],[53,3,53,7],[53,8,53,9],[53,10,53,12],[53,13,53,16],[53,17,53,20],[53,21,53,23],[54,3,54,7],[54,8,54,9],[54,10,54,12],[54,13,54,16],[54,17,54,20],[54,21,54,23],[55,3,55,7],[55,8,55,9],[55,10,55,12],[55,13,55,16],[55,17,55,20],[55,21,55,23],[56,3,56,7],[56,8,56,9],[56,10,56,12],[56,13,56,16],[56,17,56,20],[56,21,56,23],[57,3,57,7],[57,8,57,9],[57,10,57,12],[57,13,57,16],[57,17,57,20],[57,21,57,23],[58,3,58,7],[58,8,58,9],[58,10,58,12],[58,13,58,16],[58,17,58,20],[58,21,58,23],[59,3,59,7],[59,8,59,9],[59,10,59,12],[59,13,59,16],[59,17,59,20],[59,21,59,23]]}
[]
[null,"Part 3"]
[null,"Infrastructure Replacement Cost"]
[]
[]
[]
[null,null,null,"Choose Asset from Drop-down Menu for Calculation:",null,null,null,null,null,null,"Select Asset"]
[]
[null,null,null,"Insert Year of Asset Acquisition/Construction:",null,null,null,null,null,null,null,null,"Year"]
[]
[null,null,null,"Asset Age:",null,null,null,null,null,null,{"$f":"VLOOKUP(K7,Calculations!C669:K705,5,FALSE)","v":0},null,"Years"]
[]
[]
[null,null,null,"Estimated Book Life Remaining for Asset:",null,null,null,null,null,null,{"$f":"VLOOKUP(K7,Calculations!C669:L705,10,FALSE)","v":0},null,"Years",null,"Insert Asset Life Remaining if Different from Book Value: "]
[]
[]
[null,null,null,"Estimated Book Value for Asset Replacement:"]
[null,null,null,null,null,null,null,null,null,null,{"$f":"VLOOKUP(K7,Calculations!C669:K705,6,FALSE)","v":0},null,null,null,"Bank Interest Rate: ",null,null,0,"Construction Cost Inflation Rate: ",null,null,null,0]
[]
[null,null,null,"Asset Replacement Cost if Different from Book Value:",null,null,null,null,null,null,null,null,null,null,"Funded Portion",null,null,0]
[]
[]
[]
[]
[null,null,null,"Annualized Asset Replacement Cost:",null,null,null,null,null,null,{"$f":"VLOOKUP(K7,Calculations!C712:AK854,23,TRUE)","v":0},null,null,null,"Total Annual Cost:",null,null,null,null,null,{"$f":"VLOOKUP(O25,Calculations!V856:Z856,4,FALSE)","v":0}]
[]
[null,null,null,"Annualized Unfunded Asset Replacement Cost:",null,null,null,null,null,null,{"$f":"VLOOKUP(K7,Calculations!C712:AK854,24,TRUE)","v":0},null,null,null,"Total Unfunded Annual Cost:",null,null,null,null,null,{"$f":"VLOOKUP(O25,Calculations!V856:Z856,5,FALSE)","v":0}]
[]
[]
[null,null,null,null,null,null,"Recommended Average Annual Water Tax Including Infrastracture Replacement Annualized Cost:  ",null,null,null,null,null,null,{"$f":"IFERROR(\"\",Calculations!G663)","v":""}]
[null,null,null,null,null,null,null,null,null,null,null,null,{"$f":"IFERROR(Calculations!E663,\"\")","v":""}]
[]
[]
[]
[null,null,null,"Infrastructure Asset type:",null,null,null,null,"Year of Acquisition/Construction",null,"Asset Replacement Cost",null,null,"Unfunded Replacement Cost",null,null,null,"Annualized Asset Replacement Cost",null,null,null,"Annualized Unfunded Asset Replacement Cost:"]
[null,null,null,{"$f":"IF(Calculations!C713>\"\",Calculations!C713,\"\")","v":""},null,null,null,null,{"$f":"IF(D36>\"\",VLOOKUP(D36,Calculations!$C$712:$AK$854,2,FALSE),\"\")","v":""},null,{"$f":"IF(Calculations!C713>\"\",Calculations!AK713,\"\")","v":""},null,null,{"$f":"IF(Calculations!C713>\"\",Calculations!AI713,\"\")","v":""},null,null,null,{"$f":"IF(D36>\"\",Calculations!Y713,\"\")","v":""},null,null,null,{"$f":"IF(D36>\"\",Calculations!Z713,\"\")","v":""}]
[null,null,null,{"$f":"IF(Calculations!C714>\"\",Calculations!C714,\"\")","v":""},null,null,null,null,{"$f":"IF(D37>\"\",VLOOKUP(D37,Calculations!$C$712:$AK$854,2,FALSE),\"\")","v":""},null,{"$f":"IF(Calculations!C714>\"\",Calculations!AK714,\"\")","v":""},null,null,{"$f":"IF(Calculations!C714>\"\",Calculations!AI714,\"\")","v":""},null,null,null,{"$f":"IF(D37>\"\",Calculations!Y714,\"\")","v":""},null,null,null,{"$f":"IF(D37>\"\",Calculations!Z714,\"\")","v":""}]
[null,null,null,{"$f":"IF(Calculations!C715>\"\",Calculations!C715,\"\")","v":""},null,null,null,null,{"$f":"IF(D38>\"\",VLOOKUP(D38,Calculations!$C$712:$AK$854,2,FALSE),\"\")","v":""},null,{"$f":"IF(Calculations!C715>\"\",Calculations!AK715,\"\")","v":""},null,null,{"$f":"IF(Calculations!C715>\"\",Calculations!AI715,\"\")","v":""},null,null,null,{"$f":"IF(D38>\"\",Calculations!Y715,\"\")","v":""},null,null,null,{"$f":"IF(D38>\"\",Calculations!Z715,\"\")","v":""}]
[null,null,null,{"$f":"IF(Calculations!C716>\"\",Calculations!C716,\"\")","v":""},null,null,null,null,{"$f":"IF(D39>\"\",VLOOKUP(D39,Calculations!$C$712:$AK$854,2,FALSE),\"\")","v":""},null,{"$f":"IF(Calculations!C716>\"\",Calculations!AK716,\"\")","v":""},null,null,{"$f":"IF(Calculations!C716>\"\",Calculations!AI716,\"\")","v":""},null,null,null,{"$f":"IF(D39>\"\",Calculations!Y716,\"\")","v":""},null,null,null,{"$f":"IF(D39>\"\",Calculations!Z716,\"\")","v":""}]
[null,null,null,{"$f":"IF(Calculations!C717>\"\",Calculations!C717,\"\")","v":""},null,null,null,null,{"$f":"IF(D40>\"\",VLOOKUP(D40,Calculations!$C$712:$AK$854,2,FALSE),\"\")","v":""},null,{"$f":"IF(Calculations!C717>\"\",Calculations!AK717,\"\")","v":""},null,null,{"$f":"IF(Calculations!C717>\"\",Calculations!AI717,\"\")","v":""},null,null,null,{"$f":"IF(D40>\"\",Calculations!Y717,\"\")","v":""},null,null,null,{"$f":"IF(D40>\"\",Calculations!Z717,\"\")","v":""}]
[null,null,null,{"$f":"IF(Calculations!C718>\"\",Calculations!C718,\"\")","v":""},null,null,null,null,{"$f":"IF(D41>\"\",VLOOKUP(D41,Calculations!$C$712:$AK$854,2,FALSE),\"\")","v":""},null,{"$f":"IF(Calculations!C718>\"\",Calculations!AK718,\"\")","v":""},null,null,{"$f":"IF(Calculations!C718>\"\",Calculations!AI718,\"\")","v":""},null,null,null,{"$f":"IF(D41>\"\",Calculations!Y718,\"\")","v":""},null,null,null,{"$f":"IF(D41>\"\",Calculations!Z718,\"\")","v":""}]
[null,null,null,{"$f":"IF(Calculations!C719>\"\",Calculations!C719,\"\")","v":""},null,null,null,null,{"$f":"IF(D42>\"\",VLOOKUP(D42,Calculations!$C$712:$AK$854,2,FALSE),\"\")","v":""},null,{"$f":"IF(Calculations!C719>\"\",Calculations!AK719,\"\")","v":""},null,null,{"$f":"IF(Calculations!C719>\"\",Calculations!AI719,\"\")","v":""},null,null,null,{"$f":"IF(D42>\"\",Calculations!Y719,\"\")","v":""},null,null,null,{"$f":"IF(D42>\"\",Calculations!Z719,\"\")","v":""}]
[null,null,null,{"$f":"IF(Calculations!C720>\"\",Calculations!C720,\"\")","v":""},null,null,null,null,{"$f":"IF(D43>\"\",VLOOKUP(D43,Calculations!$C$712:$AK$854,2,FALSE),\"\")","v":""},null,{"$f":"IF(Calculations!C720>\"\",Calculations!AK720,\"\")","v":""},null,null,{"$f":"IF(Calculations!C720>\"\",Calculations!AI720,\"\")","v":""},null,null,null,{"$f":"IF(D43>\"\",Calculations!Y720,\"\")","v":""},null,null,null,{"$f":"IF(D43>\"\",Calculations!Z720,\"\")","v":""}]
[null,null,null,{"$f":"IF(Calculations!C721>\"\",Calculations!C721,\"\")","v":""},null,null,null,null,{"$f":"IF(D44>\"\",VLOOKUP(D44,Calculations!$C$712:$AK$854,2,FALSE),\"\")","v":""},null,{"$f":"IF(Calculations!C721>\"\",Calculations!AK721,\"\")","v":""},null,null,{"$f":"IF(Calculations!C721>\"\",Calculations!AI721,\"\")","v":""},null,null,null,{"$f":"IF(D44>\"\",Calculations!Y721,\"\")","v":""},null,null,null,{"$f":"IF(D44>\"\",Calculations!Z721,\"\")","v":""}]
[null,null,null,{"$f":"IF(Calculations!C722>\"\",Calculations!C722,\"\")","v":""},null,null,null,null,{"$f":"IF(D45>\"\",VLOOKUP(D45,Calculations!$C$712:$AK$854,2,FALSE),\"\")","v":""},null,{"$f":"IF(Calculations!C722>\"\",Calculations!AK722,\"\")","v":""},null,null,{"$f":"IF(Calculations!C722>\"\",Calculations!AI722,\"\")","v":""},null,null,null,{"$f":"IF(D45>\"\",Calculations!Y722,\"\")","v":""},null,null,null,{"$f":"IF(D45>\"\",Calculations!Z722,\"\")","v":""}]
[null,null,null,{"$f":"IF(Calculations!C723>\"\",Calculations!C723,\"\")","v":""},null,null,null,null,{"$f":"IF(D46>\"\",VLOOKUP(D46,Calculations!$C$712:$AK$854,2,FALSE),\"\")","v":""},null,{"$f":"IF(Calculations!C723>\"\",Calculations!AK723,\"\")","v":""},null,null,{"$f":"IF(Calculations!C723>\"\",Calculations!AI723,\"\")","v":""},null,null,null,{"$f":"IF(D46>\"\",Calculations!Y723,\"\")","v":""},null,null,null,{"$f":"IF(D46>\"\",Calculations!Z723,\"\")","v":""}]
[null,null,null,{"$f":"IF(Calculations!C724>\"\",Calculations!C724,\"\")","v":""},null,null,null,null,{"$f":"IF(D47>\"\",VLOOKUP(D47,Calculations!$C$712:$AK$854,2,FALSE),\"\")","v":""},null,{"$f":"IF(Calculations!C724>\"\",Calculations!AK724,\"\")","v":""},null,null,{"$f":"IF(Calculations!C724>\"\",Calculations!AI724,\"\")","v":""},null,null,null,{"$f":"IF(D47>\"\",Calculations!Y724,\"\")","v":""},null,null,null,{"$f":"IF(D47>\"\",Calculations!Z724,\"\")","v":""}]
[null,null,null,{"$f":"IF(Calculations!C725>\"\",Calculations!C725,\"\")","v":""},null,null,null,null,{"$f":"IF(D48>\"\",VLOOKUP(D48,Calculations!$C$712:$AK$854,2,FALSE),\"\")","v":""},null,{"$f":"IF(Calculations!C725>\"\",Calculations!AK725,\"\")","v":""},null,null,{"$f":"IF(Calculations!C725>\"\",Calculations!AI725,\"\")","v":""},null,null,null,{"$f":"IF(D48>\"\",Calculations!Y725,\"\")","v":""},null,null,null,{"$f":"IF(D48>\"\",Calculations!Z725,\"\")","v":""}]
[null,null,null,{"$f":"IF(Calculations!C726>\"\",Calculations!C726,\"\")","v":""},null,null,null,null,{"$f":"IF(D49>\"\",VLOOKUP(D49,Calculations!$C$712:$AK$854,2,FALSE),\"\")","v":""},null,{"$f":"IF(Calculations!C726>\"\",Calculations!AK726,\"\")","v":""},null,null,{"$f":"IF(Calculations!C726>\"\",Calculations!AI726,\"\")","v":""},null,null,null,{"$f":"IF(D49>\"\",Calculations!Y726,\"\")","v":""},null,null,null,{"$f":"IF(D49>\"\",Calculations!Z726,\"\")","v":""}]
[null,null,null,{"$f":"IF(Calculations!C727>\"\",Calculations!C727,\"\")","v":""},null,null,null,null,{"$f":"IF(D50>\"\",VLOOKUP(D50,Calculations!$C$712:$AK$854,2,FALSE),\"\")","v":""},null,{"$f":"IF(Calculations!C727>\"\",Calculations!AK727,\"\")","v":""},null,null,{"$f":"IF(Calculations!C727>\"\",Calculations!AI727,\"\")","v":""},null,null,null,{"$f":"IF(D50>\"\",Calculations!Y727,\"\")","v":""},null,null,null,{"$f":"IF(D50>\"\",Calculations!Z727,\"\")","v":""}]
[null,null,null,{"$f":"IF(Calculations!C728>\"\",Calculations!C728,\"\")","v":""},null,null,null,null,{"$f":"IF(D51>\"\",VLOOKUP(D51,Calculations!$C$712:$AK$854,2,FALSE),\"\")","v":""},null,{"$f":"IF(Calculations!C728>\"\",Calculations!AK728,\"\")","v":""},null,null,{"$f":"IF(Calculations!C728>\"\",Calculations!AI728,\"\")","v":""},null,null,null,{"$f":"IF(D51>\"\",Calculations!Y728,\"\")","v":""},null,null,null,{"$f":"IF(D51>\"\",Calculations!Z728,\"\")","v":""}]
[null,null,null,{"$f":"IF(Calculations!C729>\"\",Calculations!C729,\"\")","v":""},null,null,null,null,{"$f":"IF(D52>\"\",VLOOKUP(D52,Calculations!$C$712:$AK$854,2,FALSE),\"\")","v":""},null,{"$f":"IF(Calculations!C729>\"\",Calculations!AK729,\"\")","v":""},null,null,{"$f":"IF(Calculations!C729>\"\",Calculations!AI729,\"\")","v":""},null,null,null,{"$f":"IF(D52>\"\",Calculations!Y729,\"\")","v":""},null,null,null,{"$f":"IF(D52>\"\",Calculations!Z729,\"\")","v":""}]
[null,null,null,{"$f":"IF(Calculations!C730>\"\",Calculations!C730,\"\")","v":""},null,null,null,null,{"$f":"IF(D53>\"\",VLOOKUP(D53,Calculations!$C$712:$AK$854,2,FALSE),\"\")","v":""},null,{"$f":"IF(Calculations!C730>\"\",Calculations!AK730,\"\")","v":""},null,null,{"$f":"IF(Calculations!C730>\"\",Calculations!AI730,\"\")","v":""},null,null,null,{"$f":"IF(D53>\"\",Calculations!Y730,\"\")","v":""},null,null,null,{"$f":"IF(D53>\"\",Calculations!Z730,\"\")","v":""}]
[null,null,null,{"$f":"IF(Calculations!C731>\"\",Calculations!C731,\"\")","v":""},null,null,null,null,{"$f":"IF(D54>\"\",VLOOKUP(D54,Calculations!$C$712:$AK$854,2,FALSE),\"\")","v":""},null,{"$f":"IF(Calculations!C731>\"\",Calculations!AK731,\"\")","v":""},null,null,{"$f":"IF(Calculations!C731>\"\",Calculations!AI731,\"\")","v":""},null,null,null,{"$f":"IF(D54>\"\",Calculations!Y731,\"\")","v":""},null,null,null,{"$f":"IF(D54>\"\",Calculations!Z731,\"\")","v":""}]
[null,null,null,{"$f":"IF(Calculations!C732>\"\",Calculations!C732,\"\")","v":""},null,null,null,null,{"$f":"IF(D55>\"\",VLOOKUP(D55,Calculations!$C$712:$AK$854,2,FALSE),\"\")","v":""},null,{"$f":"IF(Calculations!C732>\"\",Calculations!AK732,\"\")","v":""},null,null,{"$f":"IF(Calculations!C732>\"\",Calculations!AI732,\"\")","v":""},null,null,null,{"$f":"IF(D55>\"\",Calculations!Y732,\"\")","v":""},null,null,null,{"$f":"IF(D55>\"\",Calculations!Z732,\"\")","v":""}]
[null,null,null,{"$f":"IF(Calculations!C733>\"\",Calculations!C733,\"\")","v":""},null,null,null,null,{"$f":"IF(D56>\"\",VLOOKUP(D56,Calculations!$C$712:$AK$854,2,FALSE),\"\")","v":""},null,{"$f":"IF(Calculations!C733>\"\",Calculations!AK733,\"\")","v":""},null,null,{"$f":"IF(Calculations!C733>\"\",Calculations!AI733,\"\")","v":""},null,null,null,{"$f":"IF(D56>\"\",Calculations!Y733,\"\")","v":""},null,null,null,{"$f":"IF(D56>\"\",Calculations!Z733,\"\")","v":""}]
[null,null,null,{"$f":"IF(Calculations!C734>\"\",Calculations!C734,\"\")","v":""},null,null,null,null,{"$f":"IF(D57>\"\",VLOOKUP(D57,Calculations!$C$712:$AK$854,2,FALSE),\"\")","v":""},null,{"$f":"IF(Calculations!C734>\"\",Calculations!AK734,\"\")","v":""},null,null,{"$f":"IF(Calculations!C734>\"\",Calculations!AI734,\"\")","v":""},null,null,null,{"$f":"IF(D57>\"\",Calculations!Y734,\"\")","v":""},null,null,null,{"$f":"IF(D57>\"\",Calculations!Z734,\"\")","v":""}]
[null,null,null,{"$f":"IF(Calculations!C735>\"\",Calculations!C735,\"\")","v":""},null,null,null,null,{"$f":"IF(D58>\"\",VLOOKUP(D58,Calculations!$C$712:$AK$854,2,FALSE),\"\")","v":""},null,{"$f":"IF(Calculations!C735>\"\",Calculations!AK735,\"\")","v":""},null,null,{"$f":"IF(Calculations!C735>\"\",Calculations!AI735,\"\")","v":""},null,null,null,{"$f":"IF(D58>\"\",Calculations!Y735,\"\")","v":""},null,null,null,{"$f":"IF(D58>\"\",Calculations!Z735,\"\")","v":""}]
[null,null,null,{"$f":"IF(Calculations!C736>\"\",Calculations!C736,\"\")","v":""},null,null,null,null,{"$f":"IF(D59>\"\",VLOOKUP(D59,Calculations!$C$712:$AK$854,2,FALSE),\"\")","v":""},null,{"$f":"IF(Calculations!C736>\"\",Calculations!AK736,\"\")","v":""},null,null,{"$f":"IF(Calculations!C736>\"\",Calculations!AI736,\"\")","v":""},null,null,null,{"$f":"IF(D59>\"\",Calculations!Y736,\"\")","v":""},null,null,null,{"$f":"IF(D59>\"\",Calculations!Z736,\"\")","v":""}]
[null,null,null,{"$f":"IF(Calculations!C737>\"\",Calculations!C737,\"\")","v":""},null,null,null,null,{"$f":"IF(D60>\"\",VLOOKUP(D60,Calculations!$C$712:$AK$854,2,FALSE),\"\")","v":""},null,{"$f":"IF(Calculations!C737>\"\",Calculations!AK737,\"\")","v":""},null,null,{"$f":"IF(Calculations!C737>\"\",Calculations!AI737,\"\")","v":""},null,null,null,{"$f":"IF(D60>\"\",Calculations!Y737,\"\")","v":""},null,null,null,{"$f":"IF(D60>\"\",Calculations!Z737,\"\")","v":""}]
[null,null,null,{"$f":"IF(Calculations!C738>\"\",Calculations!C738,\"\")","v":""},null,null,null,null,{"$f":"IF(D61>\"\",VLOOKUP(D61,Calculations!$C$712:$AK$854,2,FALSE),\"\")","v":""},null,{"$f":"IF(Calculations!C738>\"\",Calculations!AK738,\"\")","v":""},null,null,{"$f":"IF(Calculations!C738>\"\",Calculations!AI738,\"\")","v":""},null,null,null,{"$f":"IF(D61>\"\",Calculations!Y738,\"\")","v":""},null,null,null,{"$f":"IF(D61>\"\",Calculations!Z738,\"\")","v":""}]
[null,null,null,{"$f":"IF(Calculations!C739>\"\",Calculations!C739,\"\")","v":""},null,null,null,null,{"$f":"IF(D62>\"\",VLOOKUP(D62,Calculations!$C$712:$AK$854,2,FALSE),\"\")","v":""},null,{"$f":"IF(Calculations!C739>\"\",Calculations!AK739,\"\")","v":""},null,null,{"$f":"IF(Calculations!C739>\"\",Calculations!AI739,\"\")","v":""},null,null,null,{"$f":"IF(D62>\"\",Calculations!Y739,\"\")","v":""},null,null,null,{"$f":"IF(D62>\"\",Calculations!Z739,\"\")","v":""}]
[null,null,null,{"$f":"IF(Calculations!C740>\"\",Calculations!C740,\"\")","v":""},null,null,null,null,{"$f":"IF(D63>\"\",VLOOKUP(D63,Calculations!$C$712:$AK$854,2,FALSE),\"\")","v":""},null,{"$f":"IF(Calculations!C740>\"\",Calculations!AK740,\"\")","v":""},null,null,{"$f":"IF(Calculations!C740>\"\",Calculations!AI740,\"\")","v":""},null,null,null,{"$f":"IF(D63>\"\",Calculations!Y740,\"\")","v":""},null,null,null,{"$f":"IF(D63>\"\",Calculations!Z740,\"\")","v":""}]
[null,null,null,{"$f":"IF(Calculations!C741>\"\",Calculations!C741,\"\")","v":""},null,null,null,null,{"$f":"IF(D64>\"\",VLOOKUP(D64,Calculations!$C$712:$AK$854,2,FALSE),\"\")","v":""},null,{"$f":"IF(Calculations!C741>\"\",Calculations!AK741,\"\")","v":""},null,null,{"$f":"IF(Calculations!C741>\"\",Calculations!AI741,\"\")","v":""},null,null,null,{"$f":"IF(D64>\"\",Calculations!Y741,\"\")","v":""},null,null,null,{"$f":"IF(D64>\"\",Calculations!Z741,\"\")","v":""}]
[null,null,null,{"$f":"IF(Calculations!C742>\"\",Calculations!C742,\"\")","v":""},null,null,null,null,{"$f":"IF(D65>\"\",VLOOKUP(D65,Calculations!$C$712:$AK$854,2,FALSE),\"\")","v":""},null,{"$f":"IF(Calculations!C742>\"\",Calculations!AK742,\"\")","v":""},null,null,{"$f":"IF(Calculations!C742>\"\",Calculations!AI742,\"\")","v":""},null,null,null,{"$f":"IF(D65>\"\",Calculations!Y742,\"\")","v":""},null,null,null,{"$f":"IF(D65>\"\",Calculations!Z742,\"\")","v":""}]
[null,null,null,{"$f":"IF(Calculations!C743>\"\",Calculations!C743,\"\")","v":""},null,null,null,null,{"$f":"IF(D66>\"\",VLOOKUP(D66,Calculations!$C$712:$AK$854,2,FALSE),\"\")","v":""},null,{"$f":"IF(Calculations!C743>\"\",Calculations!AK743,\"\")","v":""},null,null,{"$f":"IF(Calculations!C743>\"\",Calculations!AI743,\"\")","v":""},null,null,null,{"$f":"IF(D66>\"\",Calculations!Y743,\"\")","v":""},null,null,null,{"$f":"IF(D66>\"\",Calculations!Z743,\"\")","v":""}]
[]
[]
[]
[null,3.1]

{"sheet":"Calculations","index":19,"n_rows":856,"n_cols":73,"rows_kept":856,"cut":false,"hidden":true,"merged":[[104,7,104,9],[104,4,104,6],[610,4,610,5],[855,21,855,23],[1,26,1,27],[668,3,668,4],[662,4,662,5],[181,54,181,56],[0,25,0,69],[636,14,636,16],[636,17,636,19],[150,17,150,19],[150,14,150,16],[407,11,407,17],[408,11,408,13],[408,14,408,17],[636,5,636,13],[150,5,150,13],[566,3,566,6],[566,7,566,10],[408,5,408,7],[407,5,407,10],[408,8,408,10]]}
[]
[null,"Legend:",null,null,null,null,null,null,null,null,null,null,null,null,null,null,null,null,null,null,null,null,null,null,null,"<asset type>","life range",null,"AVG life range","age:","Price($)","years left","Funded Portion","Interest","Inflation","asset","year","price",null,"est price","interest rate","inflation","Rate %","funded portion","estimated municipality cost","municipality cost","avg life ","age","years left","pv given data","annual given data","pv est life","AC est life","pvest cost","annual est price","pv est both","AC est both",null,null,"pv given data","annual given data","pv est life","AC est life","pv est cost","annual est price","pv est both","AC est both","if statement for table:","funded annual cost","If statement for Price"]
[null,"X","Indicates cells that can be modified by Government of Newfoundland",null,null,null,null,null,null,null,null,null,null,null,null,null,null,null,null,null,null,null,null,null,null,"Choose Reservoir and Dams type:",null,null,null,null,null,null,0,0,0,null,null,null,null,null,null,null,{"$f":"AP3-AO3","v":0},0.9,{"$f":"AN3*(1-AR3)","v":0},{"$f":"AL3*(1-AR3)","v":0},{"$f":"VLOOKUP(AJ3,'3.1) Infrastructure Replacement'!$AE$74:$AK$109,4,FALSE)","v":{"$error":"#N/A"}},{"$f":"DATEDIF(AK3,NOW(),\"Y\")","v":122},{"$f":"IF(AU3*1<AV3,\"past due\",AU3*1-AV3)","v":{"$error":"#N/A"}},{"$f":"(AL3*((1+AQ3)^(-AW3)))","v":{"$error":"#N/A"}},{"$f":"IF(AQ3=0%,(AX3/AW3),((AX3*AQ3)*((1+AQ3)^(AW3)))/(((1+AQ3)^(AW3))-1))","v":{"$error":"#N/A"}},{"$f":"(AL3/((1+AQ3)^(AM3)))","v":0},{"$f":"IF(AQ3=0%,(AZ3/AM3),((AZ3*AQ3)*((1+AQ3)^(AM3)))/(((1+AQ3)^(AM3))-1))","v":{"$error":"#DIV/0!"}},{"$f":"(AN3/((1+AQ3)^(AW3)))","v":{"$error":"#N/A"}},{"$f":"IF(AQ3=0%,(BB3/AW3),(BB3*((AQ3*((1+AQ3)^(AW3)))/(((1+AQ3)^(AW3))-1))))","v":{"$error":"#N/A"}},{"$f":"AN3/((1+AQ3)^(AM3))","v":0},{"$f":"IF(AQ3=0%,(BD3/AM3),(BD3*((AQ3*((1+AQ3)^(AM3)))/(((1+AQ3)^(AM3))-1))))","v":{"$error":"#DIV/0!"}},{"$f":"IF(AND(AN3>0,AM3>0),BE3,IF(AN3>0,BC3,IF(AM3>0,BA3,AY3)))","v":{"$error":"#N/A"}},{"$f":"IF(AND(AN3>0,AM3>0),BO3,IF(AND(AM3=0,AN3>0),BM3,IF(AND(AN3=0,AM3>0),BK3,BI3)))","v":{"$error":"#N/A"}},{"$f":"AT3*((1+AQ3)^(-AW3))","v":{"$error":"#N/A"}},{"$f":"IF(AQ3=0%,(BH3/AW3),((BH3*AQ3)*((1+AQ3)^(AW3)))/(((1+AQ3)^(AW3))-1))","v":{"$error":"#N/A"}},{"$f":"AT3/((1+AQ3)^(AM3))","v":0},{"$f":"IF(AQ3=0%,(BJ3/AM3),((BJ3*AQ3)*((1+AQ3)^(AM3)))/(((1+AQ3)^(AM3))-1))","v":{"$error":"#DIV/0!"}},{"$f":"AS3/((1+AQ3)^(AW3))","v":{"$error":"#N/A"}},{"$f":"IF(AQ3=0%,(BL3/AW3),(BL3*((AQ3*((1+AQ3)^(AW3)))/(((1+AQ3)^(AW3))-1))))","v":{"$error":"#N/A"}},{"$f":"AS3/((1+AQ3)^(AM3))","v":0},{"$f":"IF(AQ3=0%,(BN3/AM3),(BN3*((AQ3*((1+AQ3)^(AM3)))/(((1+AQ3)^(AM3))-1))))","v":{"$error":"#DIV/0!"}},{"$f":"IF(AN3>0,AS3,IF(AN3=0,AT3))","v":0},{"$f":"BF3-BG3","v":{"$error":"#N/A"}},{"$f":"IF(#REF!=0,AL3,IF(#REF!>0,AN3))","v":{"$error":"#REF!"}}]
[null,null,"Indicates cells that are linked from other spreadsheets (provided separately); note, links have been removed in this version of the file.",null,null,null,null,null,null,null,null,null,null,null,null,null,null,null,null,null,null,null,null,null,null,"Concrete Reservoir and Dams",50,100,{"$f":"AVERAGE(AA4,AB4)","v":75},{"$f":"DATEDIF($I$9,NOW(),\"Y\")","v":122},1000000,{"$f":"IF(AC4*1<$I$11,\"past due\",AC4*1-$I$11)","v":75},0.05,5.0000000000000001E-3,5.0000000000000001E-3,null,null,null,null,null,null,null,0,0.65,0,0,{"$f":"VLOOKUP(AJ4,'3.1) Infrastructure Replacement'!$AE$74:$AK$109,4,FALSE)","v":{"$error":"#N/A"}},122,{"$error":"#N/A"},{"$error":"#N/A"},{"$error":"#N/A"},0,{"$error":"#DIV/0!"},{"$error":"#N/A"},{"$error":"#N/A"},0,{"$error":"#DIV/0!"},{"$error":"#N/A"},{"$error":"#N/A"},{"$error":"#N/A"},{"$error":"#N/A"},0,{"$error":"#DIV/0!"},{"$error":"#N/A"},{"$error":"#N/A"},0,{"$error":"#DIV/0!"},0,{"$error":"#N/A"},{"$f":"IF(#REF!=0,AL4,IF(#REF!>0,AN4))","v":{"$error":"#REF!"}}]
[null,null,null,null,null,null,null,null,null,null,null,null,null,null,null,null,null,null,null,null,null,null,null,null,null,"Steel Reservoir and Dams",30,80,{"$f":"AVERAGE(AA5,AB5)","v":55},122,1000000,{"$f":"IF(AC5*1<$I$11,\"past due\",AC5*1-$I$11)","v":55},0.1,0.01,0.01,null,null,null,null,null,null,null,0,0,0,0,{"$f":"VLOOKUP(AJ5,'3.1) Infrastructure Replacement'!$AE$74:$AK$109,4,FALSE)","v":{"$error":"#N/A"}},122,{"$error":"#N/A"},{"$error":"#N/A"},{"$error":"#N/A"},0,{"$error":"#DIV/0!"},{"$error":"#N/A"},{"$error":"#N/A"},0,{"$error":"#DIV/0!"},{"$error":"#N/A"},{"$error":"#N/A"},{"$error":"#N/A"},{"$error":"#N/A"},0,{"$error":"#DIV/0!"},{"$error":"#N/A"},{"$error":"#N/A"},0,{"$error":"#DIV/0!"},0,{"$error":"#N/A"},{"$f":"IF(#REF!=0,AL5,IF(#REF!>0,AN5))","v":{"$error":"#REF!"}}]
[null,null,null,null,null,null,null,null,null,null,null,null,null,null,null,null,null,null,null,null,null,null,null,null,null,"Wood Reservoir and Dams",15,30,{"$f":"AVERAGE(AA6,AB6)","v":22.5},122,1000000,{"$f":"IF(AC6*1<$I$11,\"past due\",AC6*1-$I$11)","v":22.5},0.15,1.4999999999999999E-2,1.4999999999999999E-2,null,null,null,null,null,null,null,0,0,0,0,{"$f":"VLOOKUP(AJ6,'3.1) Infrastructure Replacement'!$AE$74:$AK$109,4,FALSE)","v":{"$error":"#N/A"}},122,{"$error":"#N/A"},{"$error":"#N/A"},{"$error":"#N/A"},0,{"$error":"#DIV/0!"},{"$error":"#N/A"},{"$error":"#N/A"},0,{"$error":"#DIV/0!"},{"$error":"#N/A"},{"$error":"#N/A"},{"$error":"#N/A"},{"$error":"#N/A"},0,{"$error":"#DIV/0!"},{"$error":"#N/A"},{"$error":"#N/A"},0,{"$error":"#DIV/0!"},0,{"$error":"#N/A"},{"$f":"IF(#REF!=0,AL6,IF(#REF!>0,AN6))","v":{"$error":"#REF!"}}]
[null,"PART 1 EXISTING OPERATIONS:",null,null,null,null,null,null,null,null,null,null,null,null,null,null,null,null,null,null,null,null,null,null,null,"Earthen Reservoir and Dams",20,50,{"$f":"AVERAGE(AA7,AB7)","v":35},122,1000000,{"$f":"IF(AC7*1<$I$11,\"past due\",AC7*1-$I$11)","v":35},0.2,0.02,0.02,null,null,null,null,null,null,null,0,0.9,0,0,{"$f":"VLOOKUP(AJ7,'3.1) Infrastructure Replacement'!$AE$74:$AK$109,4,FALSE)","v":{"$error":"#N/A"}},122,{"$error":"#N/A"},{"$error":"#N/A"},{"$error":"#N/A"},0,{"$error":"#DIV/0!"},{"$error":"#N/A"},{"$error":"#N/A"},0,{"$error":"#DIV/0!"},{"$error":"#N/A"},{"$error":"#N/A"},{"$error":"#N/A"},{"$error":"#N/A"},0,{"$error":"#DIV/0!"},{"$error":"#N/A"},{"$error":"#N/A"},0,{"$error":"#DIV/0!"},0,{"$error":"#N/A"},{"$f":"IF(#REF!=0,AL7,IF(#REF!>0,AN7))","v":{"$error":"#REF!"}}]
[null,null,null,null,null,null,null,null,null,null,null,null,null,null,null,null,null,null,null,null,null,null,null,null,null,null,null,null,null,122,null,null,0.25,2.5000000000000001E-2,2.5000000000000001E-2,null,null,null,null,null,null,null,0,0.9,0,0,{"$f":"VLOOKUP(AJ8,'3.1) Infrastructure Replacement'!$AE$74:$AK$109,4,FALSE)","v":{"$error":"#N/A"}},122,{"$error":"#N/A"},{"$error":"#N/A"},{"$error":"#N/A"},0,{"$error":"#DIV/0!"},{"$error":"#N/A"},{"$error":"#N/A"}," ",{"$error":"#VALUE!"},{"$error":"#N/A"},{"$error":"#N/A"},{"$error":"#N/A"},{"$error":"#N/A"},0,{"$error":"#DIV/0!"},{"$error":"#N/A"},{"$error":"#N/A"},0,{"$error":"#DIV/0!"},0,{"$error":"#N/A"},{"$f":"IF(#REF!=0,AL8,IF(#REF!>0,AN8))","v":{"$error":"#REF!"}}]
[null,null,null,null,null,null,null,null,null,null,null,null,null,null,null,null,null,null,null,null,null,null,null,null,null,"Intake (no impoundment)",20,50,{"$f":"AVERAGE(AA9,AB9)","v":35},122,100000,{"$f":"IF(AC9*1<$I$11,\"past due\",AC9*1-$I$11)","v":35},0.3,0.03,0.03,null,null,null,null,null,null,null,0,0.9,0,0,{"$f":"VLOOKUP(AJ9,'3.1) Infrastructure Replacement'!$AE$74:$AK$109,4,FALSE)","v":{"$error":"#N/A"}},122,{"$error":"#N/A"},{"$error":"#N/A"},{"$error":"#N/A"},0,{"$error":"#DIV/0!"},{"$error":"#N/A"},{"$error":"#N/A"},{"$f":"AN9/((1+AQ9)^(AM9))","v":0},{"$error":"#DIV/0!"},{"$error":"#N/A"},{"$error":"#N/A"},{"$error":"#N/A"},{"$error":"#N/A"},0,{"$error":"#DIV/0!"},{"$error":"#N/A"},{"$error":"#N/A"},0,{"$error":"#DIV/0!"},0,{"$error":"#N/A"},{"$f":"IF(#REF!=0,AL9,IF(#REF!>0,AN9))","v":{"$error":"#REF!"}}]
[null,null,"PAGE 1 - Community Data",null,null,null,null,null,null,null,null,null,null,null,null,null,null,null,null,null,null,null,null,null,null,"Growndwater Wells",15,35,{"$f":"AVERAGE(AA10,AB10)","v":25},122,100000,{"$f":"IF(AC10*1<$I$11,\"past due\",AC10*1-$I$11)","v":25},0.35,3.5000000000000003E-2,3.5000000000000003E-2,null,null,null,null,null,null,null,0,0.9,0,0,{"$f":"VLOOKUP(AJ10,'3.1) Infrastructure Replacement'!$AE$74:$AK$109,4,FALSE)","v":{"$error":"#N/A"}},122,{"$error":"#N/A"},{"$error":"#N/A"},{"$error":"#N/A"},0,{"$error":"#DIV/0!"},{"$error":"#N/A"},{"$error":"#N/A"},0,{"$error":"#DIV/0!"},{"$error":"#N/A"},{"$error":"#N/A"},{"$error":"#N/A"},{"$error":"#N/A"},0,{"$error":"#DIV/0!"},{"$error":"#N/A"},{"$error":"#N/A"},0,{"$error":"#DIV/0!"},0,{"$error":"#N/A"},{"$f":"IF(#REF!=0,AL10,IF(#REF!>0,AN10))","v":{"$error":"#REF!"}}]
[null,null,null,null,null,null,null,null,null,null,null,null,null,null,null,null,null,null,null,null,null,null,null,null,null,"Water Treatment Plants-Concrete Structures",20,50,{"$f":"AVERAGE(AA11,AB11)","v":35},122,500000,{"$f":"IF(AC11*1<$I$11,\"past due\",AC11*1-$I$11)","v":35},0.4,0.04,0.04,null,null,null,null,null,null,null,0,13.1,0,0,{"$f":"VLOOKUP(AJ11,'3.1) Infrastructure Replacement'!$AE$74:$AK$109,4,FALSE)","v":{"$error":"#N/A"}},122,{"$error":"#N/A"},{"$error":"#N/A"},{"$error":"#N/A"},0,{"$error":"#DIV/0!"},{"$error":"#N/A"},{"$error":"#N/A"},0,{"$error":"#DIV/0!"},{"$error":"#N/A"},{"$error":"#N/A"},{"$error":"#N/A"},{"$error":"#N/A"},0,{"$error":"#DIV/0!"},{"$error":"#N/A"},{"$error":"#N/A"},0,{"$error":"#DIV/0!"},0,{"$error":"#N/A"},{"$f":"IF(#REF!=0,AL11,IF(#REF!>0,AN11))","v":{"$error":"#REF!"}}]
[null,null,null,null,null,null,null,null,null,null,null,null,null,null,null,null,null,null,null,null,null,null,null,null,null,"Water Treatment Plants-Mechanicsl and Electrical",15,25,{"$f":"AVERAGE(AA12,AB12)","v":20},122,500000,{"$f":"IF(AC12*1<$I$11,\"past due\",AC12*1-$I$11)","v":20},0.45,4.4999999999999998E-2,4.4999999999999998E-2,null,null,null,null,null,null,null,0,14.1,0,0,{"$f":"VLOOKUP(AJ12,'3.1) Infrastructure Replacement'!$AE$74:$AK$109,4,FALSE)","v":{"$error":"#N/A"}},122,{"$error":"#N/A"},{"$error":"#N/A"},{"$error":"#N/A"},0,{"$error":"#DIV/0!"},{"$error":"#N/A"},{"$error":"#N/A"},0,{"$error":"#DIV/0!"},{"$error":"#N/A"},{"$error":"#N/A"},{"$error":"#N/A"},{"$error":"#N/A"},0,{"$error":"#DIV/0!"},{"$error":"#N/A"},{"$error":"#N/A"},0,{"$error":"#DIV/0!"},0,{"$error":"#N/A"},{"$f":"IF(#REF!=0,AL12,IF(#REF!>0,AN12))","v":{"$error":"#REF!"}}]
[null,null,"Community:",{"$f":"Title!I15","v":0},null,null,null,null,null,null,null,null,null,null,null,null,null,null,null,null,null,null,null,null,null,"Chlorination Equipment",10,15,{"$f":"AVERAGE(AA13,AB13)","v":12.5},122,50000,{"$f":"IF(AC13*1<$I$11,\"past due\",AC13*1-$I$11)","v":12.5},0.5,0.05,0.05,null,null,null,null,null,null,null,0,15.1,0,0,{"$f":"VLOOKUP(AJ13,'3.1) Infrastructure Replacement'!$AE$74:$AK$109,4,FALSE)","v":{"$error":"#N/A"}},122,{"$error":"#N/A"},{"$error":"#N/A"},{"$error":"#N/A"},0,{"$error":"#DIV/0!"},{"$error":"#N/A"},{"$error":"#N/A"},0,{"$error":"#DIV/0!"},{"$error":"#N/A"},{"$error":"#N/A"},{"$error":"#N/A"},{"$error":"#N/A"},0,{"$error":"#DIV/0!"},{"$error":"#N/A"},{"$error":"#N/A"},0,{"$error":"#DIV/0!"},0,{"$error":"#N/A"},{"$f":"IF(#REF!=0,AL13,IF(#REF!>0,AN13))","v":{"$error":"#REF!"}}]
[null,null,"Water Supply System:",{"$f":"'1.1) Community Data'!I6","v":0},null,null,null,null,null,null,null,null,null,null,null,null,null,null,null,null,null,null,null,null,null,null,null,null,null,null,null,null,0.55000000000000004,null,null,null,null,null,null,null,null,null,0,16.100000000000001,0,0,{"$f":"VLOOKUP(AJ14,'3.1) Infrastructure Replacement'!$AE$74:$AK$109,4,FALSE)","v":{"$error":"#N/A"}},122,{"$error":"#N/A"},{"$error":"#N/A"},{"$error":"#N/A"},0,{"$error":"#DIV/0!"},{"$error":"#N/A"},{"$error":"#N/A"},0,{"$error":"#DIV/0!"},{"$error":"#N/A"},{"$error":"#N/A"},{"$error":"#N/A"},{"$error":"#N/A"},0,{"$error":"#DIV/0!"},{"$error":"#N/A"},{"$error":"#N/A"},0,{"$error":"#DIV/0!"},0,{"$error":"#N/A"},{"$f":"IF(#REF!=0,AL14,IF(#REF!>0,AN14))","v":{"$error":"#REF!"}}]
[null,null,"Month:",{"$f":"Title!I21","v":"Month"},null,null,null,null,null,null,null,null,null,null,null,null,null,null,null,null,null,null,null,null,null,"Choose Trunk Mains and Distribution Mains Type:",null,null,null,{"$f":"DATEDIF($I$9,NOW(),\"Y\")","v":122},null,null,0.6,null,null,null,null,null,null,null,null,null,0,17.100000000000001,0,0,{"$f":"VLOOKUP(AJ15,'3.1) Infrastructure Replacement'!$AE$74:$AK$109,4,FALSE)","v":{"$error":"#N/A"}},122,{"$error":"#N/A"},{"$error":"#N/A"},{"$error":"#N/A"},0,{"$error":"#DIV/0!"},{"$error":"#N/A"},{"$error":"#N/A"},0,{"$error":"#DIV/0!"},{"$error":"#N/A"},{"$error":"#N/A"},{"$error":"#N/A"},{"$error":"#N/A"},0,{"$error":"#DIV/0!"},{"$error":"#N/A"},{"$error":"#N/A"},0,{"$error":"#DIV/0!"},0,{"$error":"#N/A"},{"$f":"IF(#REF!=0,AL15,IF(#REF!>0,AN15))","v":{"$error":"#REF!"}}]
[null,null,"Day:",{"$f":"Title!L21","v":"Day "},null,null,null,null,null,null,null,null,null,null,null,null,null,null,null,null,null,null,null,null,null,"Cast Iron Trunk Mains and Distribution Mains",25,100,{"$f":"AVERAGE(AA16,AB16)","v":62.5},122,1,{"$f":"IF(AC16*1<$I$11,\"past due\",AC16*1-$I$11)","v":62.5},0.65,null,null,null,null,null,null,null,null,null,0,18.100000000000001,0,0,{"$f":"VLOOKUP(AJ16,'3.1) Infrastructure Replacement'!$AE$74:$AK$109,4,FALSE)","v":{"$error":"#N/A"}},122,{"$error":"#N/A"},{"$error":"#N/A"},{"$error":"#N/A"},0,{"$error":"#DIV/0!"},{"$error":"#N/A"},{"$error":"#N/A"},0,{"$error":"#DIV/0!"},{"$error":"#N/A"},{"$error":"#N/A"},{"$error":"#N/A"},{"$error":"#N/A"},0,{"$error":"#DIV/0!"},{"$error":"#N/A"},{"$error":"#N/A"},0,{"$error":"#DIV/0!"},0,{"$error":"#N/A"},{"$f":"IF(#REF!=0,AL16,IF(#REF!>0,AN16))","v":{"$error":"#REF!"}}]
[null,null,"Year:",{"$f":"Title!Q21","v":0},null,null,null,null,null,null,null,null,null,null,null,null,null,null,null,null,null,null,null,null,null,"Ductile Iron Trunk Mains and Distribution Mains",75,100,87.5,122,1,87.5,0.7,null,null,null,null,null,null,null,null,null,0,19.100000000000001,0,0,{"$f":"VLOOKUP(AJ17,'3.1) Infrastructure Replacement'!$AE$74:$AK$109,4,FALSE)","v":{"$error":"#N/A"}},122,{"$error":"#N/A"},{"$error":"#N/A"},{"$error":"#N/A"},0,{"$error":"#DIV/0!"},{"$error":"#N/A"},{"$error":"#N/A"},0,{"$error":"#DIV/0!"},{"$error":"#N/A"},{"$error":"#N/A"},{"$error":"#N/A"},{"$error":"#N/A"},0,{"$error":"#DIV/0!"},{"$error":"#N/A"},{"$error":"#N/A"},0,{"$error":"#DIV/0!"},0,{"$error":"#N/A"},{"$f":"IF(#REF!=0,AL17,IF(#REF!>0,AN17))","v":{"$error":"#REF!"}}]
[null,null,null,null,null,null,null,null,null,null,null,null,null,null,null,null,null,null,null,null,null,null,null,null,null,"Steel Trunk Mains and Distribution Mains",50,100,75,122,1,75,0.75,null,null,null,null,null,null,null,null,null,0,20.100000000000001,0,0,{"$f":"VLOOKUP(AJ18,'3.1) Infrastructure Replacement'!$AE$74:$AK$109,4,FALSE)","v":{"$error":"#N/A"}},122,{"$error":"#N/A"},{"$error":"#N/A"},{"$error":"#N/A"},0,{"$error":"#DIV/0!"},{"$error":"#N/A"},{"$error":"#N/A"},0,{"$error":"#DIV/0!"},{"$error":"#N/A"},{"$error":"#N/A"},{"$error":"#N/A"},{"$error":"#N/A"},0,{"$error":"#DIV/0!"},{"$error":"#N/A"},{"$error":"#N/A"},0,{"$error":"#DIV/0!"},0,{"$error":"#N/A"},{"$f":"IF(#REF!=0,AL18,IF(#REF!>0,AN18))","v":{"$error":"#REF!"}}]
[null,null,"Type of Water Supply:",{"$f":"'1.1) Community Data'!I7","v":"<Type of Supply>"},{"$f":"IF(D19=\"surface water\",1,0)","v":0},"(1= surface water, 0 = groundwater)",null,null,null,null,null,null,null,null,null,null,null,null,null,null,null,null,null,null,null,"Concrete Trunk Mains and Distribution Mains",75,100,87.5,122,1,87.5,0.8,null,null,null,null,null,null,null,null,null,0,21.1,0,0,{"$f":"VLOOKUP(AJ19,'3.1) Infrastructure Replacement'!$AE$74:$AK$109,4,FALSE)","v":{"$error":"#N/A"}},122,{"$error":"#N/A"},{"$error":"#N/A"},{"$error":"#N/A"},0,{"$error":"#DIV/0!"},{"$error":"#N/A"},{"$error":"#N/A"},0,{"$error":"#DIV/0!"},{"$error":"#N/A"},{"$error":"#N/A"},{"$error":"#N/A"},{"$error":"#N/A"},0,{"$error":"#DIV/0!"},{"$error":"#N/A"},{"$error":"#N/A"},0,{"$error":"#DIV/0!"},0,{"$error":"#N/A"},{"$f":"IF(#REF!=0,AL19,IF(#REF!>0,AN19))","v":{"$error":"#REF!"}}]
[null,null,"Annual O&M Inflation Rate:",1.4999999999999999E-2,null,null,null,null,null,null,null,null,null,null,null,null,null,null,null,null,null,null,null,null,null,"Asbestos Cement Trunk Mains and Distribution Mains",60,100,80,122,1,80,0.85,null,null,null,null,null,null,null,null,null,0,22.1,0,0,{"$f":"VLOOKUP(AJ20,'3.1) Infrastructure Replacement'!$AE$74:$AK$109,4,FALSE)","v":{"$error":"#N/A"}},122,{"$error":"#N/A"},{"$error":"#N/A"},{"$error":"#N/A"},0,{"$error":"#DIV/0!"},{"$error":"#N/A"},{"$error":"#N/A"},0,{"$error":"#DIV/0!"},{"$error":"#N/A"},{"$error":"#N/A"},{"$error":"#N/A"},{"$error":"#N/A"},0,{"$error":"#DIV/0!"},{"$error":"#N/A"},{"$error":"#N/A"},0,{"$error":"#DIV/0!"},0,{"$error":"#N/A"},{"$f":"IF(#REF!=0,AL20,IF(#REF!>0,AN20))","v":{"$error":"#REF!"}}]
[null,null,"Annual Capital Inflation Rate:",0.03,null,null,null,null,null,null,null,null,null,null,null,null,null,null,null,null,null,null,null,null,null,"PVC Trunk Mains and Distribution Mains",25,100,62.5,122,1,62.5,0.9,null,null,null,null,null,null,null,null,null,0,23.1,0,0,{"$f":"VLOOKUP(AJ21,'3.1) Infrastructure Replacement'!$AE$74:$AK$109,4,FALSE)","v":{"$error":"#N/A"}},122,{"$error":"#N/A"},{"$error":"#N/A"},{"$error":"#N/A"},0,{"$error":"#DIV/0!"},{"$error":"#N/A"},{"$error":"#N/A"},0,{"$error":"#DIV/0!"},{"$error":"#N/A"},{"$error":"#N/A"},{"$error":"#N/A"},{"$error":"#N/A"},0,{"$error":"#DIV/0!"},{"$error":"#N/A"},{"$error":"#N/A"},0,{"$error":"#DIV/0!"},0,{"$error":"#N/A"},{"$f":"IF(#REF!=0,AL21,IF(#REF!>0,AN21))","v":{"$error":"#REF!"}}]
[null,null,"Base Year for O&M & Capital Cost Data:",2017,null,null,null,null,null,null,null,null,null,null,null,null,null,null,null,null,null,null,null,null,null,"HDPE  Trunk Mains and Distribution Mains",70,100,85,122,1,{"$f":"IF(AC16*1<$I$11,\"past due\",AC16*1-$I$11)","v":62.5},null,null,null,null,null,null,null,null,null,null,0,24.1,0,0,{"$f":"VLOOKUP(AJ22,'3.1) Infrastructure Replacement'!$AE$74:$AK$109,4,FALSE)","v":{"$error":"#N/A"}},122,{"$error":"#N/A"},{"$error":"#N/A"},{"$error":"#N/A"},0,{"$error":"#DIV/0!"},{"$error":"#N/A"},{"$error":"#N/A"},0,{"$error":"#DIV/0!"},{"$error":"#N/A"},{"$error":"#N/A"},{"$error":"#N/A"},{"$error":"#N/A"},0,{"$error":"#DIV/0!"},{"$error":"#N/A"},{"$error":"#N/A"},0,{"$error":"#DIV/0!"},0,{"$error":"#N/A"},{"$f":"IF(#REF!=0,AL22,IF(#REF!>0,AN22))","v":{"$error":"#REF!"}}]
[null,null,"O&M Inflation Factor:",{"$f":"(1+D20)^(D17-D22)","v":9.0780544498945002E-14},null,null,null,null,null,null,null,null,null,null,null,null,null,null,null,null,null,null,null,null,null,null,null,null,null,122,null,null,null,null,null,null,null,null,null,null,null,null,0,25.1,0,0,{"$f":"VLOOKUP(AJ23,'3.1) Infrastructure Replacement'!$AE$74:$AK$109,4,FALSE)","v":{"$error":"#N/A"}},122,{"$error":"#N/A"},{"$error":"#N/A"},{"$error":"#N/A"},0,{"$error":"#DIV/0!"},{"$error":"#N/A"},{"$error":"#N/A"},0,{"$error":"#DIV/0!"},{"$error":"#N/A"},{"$error":"#N/A"},{"$error":"#N/A"},{"$error":"#N/A"},0,{"$error":"#DIV/0!"},{"$error":"#N/A"},{"$error":"#N/A"},0,{"$error":"#DIV/0!"},0,{"$error":"#N/A"},{"$f":"IF(#REF!=0,AL23,IF(#REF!>0,AN23))","v":{"$error":"#REF!"}}]
[null,null,"Capital Inflation Factor:",{"$f":"(1+D21)^(D17-D22)","v":1.2803177593951399E-26},null,null,null,null,null,null,null,null,null,null,null,null,null,null,null,null,null,null,null,null,null,"Water Pumping Station-Concrete Structures",50,70,{"$f":"AVERAGE(AA24,AB24)","v":60},122,100000,{"$f":"IF(AC24*1<$I$11,\"past due\",AC24*1-$I$11)","v":60},null,null,null,null,null,null,null,null,null,null,0,26.1,0,0,{"$f":"VLOOKUP(AJ24,'3.1) Infrastructure Replacement'!$AE$74:$AK$109,4,FALSE)","v":{"$error":"#N/A"}},122,{"$error":"#N/A"},{"$error":"#N/A"},{"$error":"#N/A"},0,{"$error":"#DIV/0!"},{"$error":"#N/A"},{"$error":"#N/A"},0,{"$error":"#DIV/0!"},{"$error":"#N/A"},{"$error":"#N/A"},{"$error":"#N/A"},{"$error":"#N/A"},0,{"$error":"#DIV/0!"},{"$error":"#N/A"},{"$error":"#N/A"},0,{"$error":"#DIV/0!"},0,{"$error":"#N/A"},{"$f":"IF(#REF!=0,AL24,IF(#REF!>0,AN24))","v":{"$error":"#REF!"}}]
[null,null,null,null,null,null,null,null,null,null,null,null,null,null,null,null,null,null,null,null,null,null,null,null,null,"Water Pumping Station-Mechanical and Electrical",10,25,{"$f":"AVERAGE(AA25,AB25)","v":17.5},122,100000,{"$f":"IF(AC25*1<$I$11,\"past due\",AC25*1-$I$11)","v":17.5},null,null,null,null,null,null,null,null,null,null,0,27.1,0,0,{"$f":"VLOOKUP(AJ25,'3.1) Infrastructure Replacement'!$AE$74:$AK$109,4,FALSE)","v":{"$error":"#N/A"}},122,{"$error":"#N/A"},{"$error":"#N/A"},{"$error":"#N/A"},0,{"$error":"#DIV/0!"},{"$error":"#N/A"},{"$error":"#N/A"},0,{"$error":"#DIV/0!"},{"$error":"#N/A"},{"$error":"#N/A"},{"$error":"#N/A"},{"$error":"#N/A"},0,{"$error":"#DIV/0!"},{"$error":"#N/A"},{"$error":"#N/A"},0,{"$error":"#DIV/0!"},0,{"$error":"#N/A"},{"$f":"IF(#REF!=0,AL25,IF(#REF!>0,AN25))","v":{"$error":"#REF!"}}]
[null,null,null,null,null,null,null,null,null,null,null,null,null,null,null,null,null,null,null,null,null,null,null,null,null,null,null,null,null,null,null,null,null,null,null,null,null,null,null,null,null,null,0,28.1,0,0,{"$f":"VLOOKUP(AJ26,'3.1) Infrastructure Replacement'!$AE$74:$AK$109,4,FALSE)","v":{"$error":"#N/A"}},122,{"$error":"#N/A"},{"$error":"#N/A"},{"$error":"#N/A"},0,{"$error":"#DIV/0!"},{"$error":"#N/A"},{"$error":"#N/A"},0,{"$error":"#DIV/0!"},{"$error":"#N/A"},{"$error":"#N/A"},{"$error":"#N/A"},{"$error":"#N/A"},0,{"$error":"#DIV/0!"},{"$error":"#N/A"},{"$error":"#N/A"},0,{"$error":"#DIV/0!"},0,{"$error":"#N/A"},{"$f":"IF(#REF!=0,AL26,IF(#REF!>0,AN26))","v":{"$error":"#REF!"}}]
[null,null,"Geographic Region Option #","Geographic Region","Capital Cost Factor","O&M Cost Factor",null,null,null,null,null,null,null,null,null,null,null,null,null,null,null,null,null,null,null,"Choose Storage Tank Type:",null,null,null,{"$f":"DATEDIF($I$9,NOW(),\"Y\")","v":122},null,null,null,null,null,null,null,null,null,null,null,null,0,29.1,0,0,{"$f":"VLOOKUP(AJ27,'3.1) Infrastructure Replacement'!$AE$74:$AK$109,4,FALSE)","v":{"$error":"#N/A"}},122,{"$error":"#N/A"},{"$error":"#N/A"},{"$error":"#N/A"},0,{"$error":"#DIV/0!"},{"$error":"#N/A"},{"$error":"#N/A"},0,{"$error":"#DIV/0!"},{"$error":"#N/A"},{"$error":"#N/A"},{"$error":"#N/A"},{"$error":"#N/A"},0,{"$error":"#DIV/0!"},{"$error":"#N/A"},{"$error":"#N/A"},0,{"$error":"#DIV/0!"},0,{"$error":"#N/A"},{"$f":"IF(#REF!=0,AL27,IF(#REF!>0,AN27))","v":{"$error":"#REF!"}}]
[null,null,1,null,1,1,null,null,null,null,null,null,null,null,null,null,null,null,null,null,null,null,null,null,null,"Concrete Storage Tank",50,80,{"$f":"AVERAGE(AA28,AB28)","v":65},122,1000000,{"$f":"IF(AC28*1<$I$11,\"past due\",AC28*1-$I$11)","v":65},null,null,null,null,null,null,null,null,null,null,0,30.1,0,0,{"$f":"VLOOKUP(AJ28,'3.1) Infrastructure Replacement'!$AE$74:$AK$109,4,FALSE)","v":{"$error":"#N/A"}},122,{"$error":"#N/A"},{"$error":"#N/A"},{"$error":"#N/A"},0,{"$error":"#DIV/0!"},{"$error":"#N/A"},{"$error":"#N/A"},0,{"$error":"#DIV/0!"},{"$error":"#N/A"},{"$error":"#N/A"},{"$error":"#N/A"},{"$error":"#N/A"},0,{"$error":"#DIV/0!"},{"$error":"#N/A"},{"$error":"#N/A"},0,{"$error":"#DIV/0!"},0,{"$error":"#N/A"},{"$f":"IF(#REF!=0,AL28,IF(#REF!>0,AN28))","v":{"$error":"#REF!"}}]
[null,null,2,"Avalon (St. Johns): 1.0",1,1,null,null,null,null,null,null,null,null,null,null,null,null,null,null,null,null,null,null,null,"Wood Storage Tank",50,80,{"$f":"AVERAGE(AA29,AB29)","v":65},122,1000000,{"$f":"IF(AC29*1<$I$11,\"past due\",AC29*1-$I$11)","v":65},null,null,null,null,null,null,null,null,null,null,0,31.1,0,0,{"$f":"VLOOKUP(AJ29,'3.1) Infrastructure Replacement'!$AE$74:$AK$109,4,FALSE)","v":{"$error":"#N/A"}},122,{"$error":"#N/A"},{"$error":"#N/A"},{"$error":"#N/A"},0,{"$error":"#DIV/0!"},{"$error":"#N/A"},{"$error":"#N/A"},0,{"$error":"#DIV/0!"},{"$error":"#N/A"},{"$error":"#N/A"},{"$error":"#N/A"},{"$error":"#N/A"},0,{"$error":"#DIV/0!"},{"$error":"#N/A"},{"$error":"#N/A"},0,{"$error":"#DIV/0!"},0,{"$error":"#N/A"},{"$f":"IF(#REF!=0,AL29,IF(#REF!>0,AN29))","v":{"$error":"#REF!"}}]
[null,null,3,"Eastern (Clarenville): 1.05",1.05,1.05,null,null,null,null,null,null,null,null,null,null,null,null,null,null,null,null,null,null,null,"Metal Storage Tank",50,80,{"$f":"AVERAGE(AA30,AB30)","v":65},122,1000000,{"$f":"IF(AC30*1<$I$11,\"past due\",AC30*1-$I$11)","v":65},null,null,null,null,null,null,null,null,null,null,0,32.1,0,0,{"$f":"VLOOKUP(AJ30,'3.1) Infrastructure Replacement'!$AE$74:$AK$109,4,FALSE)","v":{"$error":"#N/A"}},122,{"$error":"#N/A"},{"$error":"#N/A"},{"$error":"#N/A"},0,{"$error":"#DIV/0!"},{"$error":"#N/A"},{"$error":"#N/A"},0,{"$error":"#DIV/0!"},{"$error":"#N/A"},{"$error":"#N/A"},{"$error":"#N/A"},{"$error":"#N/A"},0,{"$error":"#DIV/0!"},{"$error":"#N/A"},{"$error":"#N/A"},0,{"$error":"#DIV/0!"},0,{"$error":"#N/A"},{"$f":"IF(#REF!=0,AL30,IF(#REF!>0,AN30))","v":{"$error":"#REF!"}}]
[null,null,4,"Central (Gander): 1.05 ",1.05,1.05,null,null,null,null,null,null,null,null,null,null,null,null,null,null,null,null,null,null,null,"Fibreglas Storage Tank",50,80,{"$f":"AVERAGE(AA31,AB31)","v":65},122,1000000,{"$f":"IF(AC31*1<$I$11,\"past due\",AC31*1-$I$11)","v":65},null,null,null,null,null,null,null,null,null,null,0,33.1,0,0,{"$f":"VLOOKUP(AJ31,'3.1) Infrastructure Replacement'!$AE$74:$AK$109,4,FALSE)","v":{"$error":"#N/A"}},122,{"$error":"#N/A"},{"$error":"#N/A"},{"$error":"#N/A"},0,{"$error":"#DIV/0!"},{"$error":"#N/A"},{"$error":"#N/A"},0,{"$error":"#DIV/0!"},{"$error":"#N/A"},{"$error":"#N/A"},{"$error":"#N/A"},{"$error":"#N/A"},0,{"$error":"#DIV/0!"},{"$error":"#N/A"},{"$error":"#N/A"},0,{"$error":"#DIV/0!"},0,{"$error":"#N/A"},{"$f":"IF(#REF!=0,AL31,IF(#REF!>0,AN31))","v":{"$error":"#REF!"}}]
[null,null,5,"Central West (Corner Brook): 1.05",1.05,1.05,null,null,null,null,null,null,null,null,null,null,null,null,null,null,null,null,null,null,null,null,null,null,null,122,null,null,null,null,null,null,null,null,null,null,null,null,0,34.1,0,0,{"$f":"VLOOKUP(AJ32,'3.1) Infrastructure Replacement'!$AE$74:$AK$109,4,FALSE)","v":{"$error":"#N/A"}},122,{"$error":"#N/A"},{"$error":"#N/A"},{"$error":"#N/A"},0,{"$error":"#DIV/0!"},{"$error":"#N/A"},{"$error":"#N/A"},0,{"$error":"#DIV/0!"},{"$error":"#N/A"},{"$error":"#N/A"},{"$error":"#N/A"},{"$error":"#N/A"},0,{"$error":"#DIV/0!"},{"$error":"#N/A"},{"$error":"#N/A"},0,{"$error":"#DIV/0!"},0,{"$error":"#N/A"},{"$f":"IF(#REF!=0,AL32,IF(#REF!>0,AN32))","v":{"$error":"#REF!"}}]
[null,null,6,"North West (St. Anthony): 1.1",1.1000000000000001,1.1000000000000001,null,null,null,null,null,null,null,null,null,null,null,null,null,null,null,null,null,null,null,"Electrical Systems",7,10,{"$f":"AVERAGE(AA33,AB33)","v":8.5},122,1,{"$f":"IF(AC33*1<$I$11,\"past due\",AC33*1-$I$11)","v":8.5},null,null,null,null,null,null,null,null,null,null,0,35.1,0,0,{"$f":"VLOOKUP(AJ33,'3.1) Infrastructure Replacement'!$AE$74:$AK$109,4,FALSE)","v":{"$error":"#N/A"}},122,{"$error":"#N/A"},{"$error":"#N/A"},{"$error":"#N/A"},0,{"$error":"#DIV/0!"},{"$error":"#N/A"},{"$error":"#N/A"},0,{"$error":"#DIV/0!"},{"$error":"#N/A"},{"$error":"#N/A"},{"$error":"#N/A"},{"$error":"#N/A"},0,{"$error":"#DIV/0!"},{"$error":"#N/A"},{"$error":"#N/A"},0,{"$error":"#DIV/0!"},0,{"$error":"#N/A"},{"$f":"IF(#REF!=0,AL33,IF(#REF!>0,AN33))","v":{"$error":"#REF!"}}]
[null,null,7,"South West (Port Aux Basques): 1.3",1.3,1.3,null,null,null,null,null,null,null,null,null,null,null,null,null,null,null,null,null,null,null,"Valves and Backflow Prevention Devices",35,40,37.5,122,10000,37.5,null,null,null,null,null,null,null,null,null,null,0,36.1,0,0,{"$f":"VLOOKUP(AJ34,'3.1) Infrastructure Replacement'!$AE$74:$AK$109,4,FALSE)","v":{"$error":"#N/A"}},122,{"$error":"#N/A"},{"$error":"#N/A"},{"$error":"#N/A"},0,{"$error":"#DIV/0!"},{"$error":"#N/A"},{"$error":"#N/A"},0,{"$error":"#DIV/0!"},{"$error":"#N/A"},{"$error":"#N/A"},{"$error":"#N/A"},{"$error":"#N/A"},0,{"$error":"#DIV/0!"},{"$error":"#N/A"},{"$error":"#N/A"},0,{"$error":"#DIV/0!"},0,{"$error":"#N/A"},{"$f":"IF(#REF!=0,AL34,IF(#REF!>0,AN34))","v":{"$error":"#REF!"}}]
[null,null,8,"Labrador Central (Happy Valley-Goose Bay): 1.7",1.7,1.7,null,null,null,null,null,null,null,null,null,null,null,null,null,null,null,null,null,null,null,"Meters",10,15,12.5,122,1,12.5,null,null,null,null,null,null,null,null,null,null,0,37.1,0,0,{"$f":"VLOOKUP(AJ35,'3.1) Infrastructure Replacement'!$AE$74:$AK$109,4,FALSE)","v":{"$error":"#N/A"}},122,{"$error":"#N/A"},{"$error":"#N/A"},{"$error":"#N/A"},0,{"$error":"#DIV/0!"},{"$error":"#N/A"},{"$error":"#N/A"},0,{"$error":"#DIV/0!"},{"$error":"#N/A"},{"$error":"#N/A"},{"$error":"#N/A"},{"$error":"#N/A"},0,{"$error":"#DIV/0!"},{"$error":"#N/A"},{"$error":"#N/A"},0,{"$error":"#DIV/0!"},0,{"$error":"#N/A"},{"$f":"IF(#REF!=0,AL35,IF(#REF!>0,AN35))","v":{"$error":"#REF!"}}]
[null,null,9,"Labrador West (Wabush): 1.7",1.7,1.7,null,null,null,null,null,null,null,null,null,null,null,null,null,null,null,null,null,null,null,"Hydrants",40,60,50,122,5000,50,null,null,null,null,null,null,null,null,null,null,0,38.1,0,0,{"$f":"VLOOKUP(AJ36,'3.1) Infrastructure Replacement'!$AE$74:$AK$109,4,FALSE)","v":{"$error":"#N/A"}},122,{"$error":"#N/A"},{"$error":"#N/A"},{"$error":"#N/A"},0,{"$error":"#DIV/0!"},{"$error":"#N/A"},{"$error":"#N/A"},0,{"$error":"#DIV/0!"},{"$error":"#N/A"},{"$error":"#N/A"},{"$error":"#N/A"},{"$error":"#N/A"},0,{"$error":"#DIV/0!"},{"$error":"#N/A"},{"$error":"#N/A"},0,{"$error":"#DIV/0!"},0,{"$error":"#N/A"},{"$f":"IF(#REF!=0,AL36,IF(#REF!>0,AN36))","v":{"$error":"#REF!"}}]
[null,null,10,"Labrador (North): 2.0",2,2,null,null,null,null,null,null,null,null,null,null,null,null,null,null,null,null,null,null,null,"Lab and Monitoring Equipment",5,7,6,122,1,6,null,null,null,null,null,null,null,null,null,null,0,39.1,0,0,{"$f":"VLOOKUP(AJ37,'3.1) Infrastructure Replacement'!$AE$74:$AK$109,4,FALSE)","v":{"$error":"#N/A"}},122,{"$error":"#N/A"},{"$error":"#N/A"},{"$error":"#N/A"},0,{"$error":"#DIV/0!"},{"$error":"#N/A"},{"$error":"#N/A"},0,{"$error":"#DIV/0!"},{"$error":"#N/A"},{"$error":"#N/A"},{"$error":"#N/A"},{"$error":"#N/A"},0,{"$error":"#DIV/0!"},{"$error":"#N/A"},{"$error":"#N/A"},0,{"$error":"#DIV/0!"},0,{"$error":"#N/A"},{"$f":"IF(#REF!=0,AL37,IF(#REF!>0,AN37))","v":{"$error":"#REF!"}}]
[null,null,null,null,null,null,null,null,null,null,null,null,null,null,null,null,null,null,null,null,null,null,null,null,null,"Buildings",30,60,45,122,1,45,null,null,null,null,null,null,null,null,null,null,0,40.1,0,0,{"$f":"VLOOKUP(AJ38,'3.1) Infrastructure Replacement'!$AE$74:$AK$109,4,FALSE)","v":{"$error":"#N/A"}},122,{"$error":"#N/A"},{"$error":"#N/A"},{"$error":"#N/A"},0,{"$error":"#DIV/0!"},{"$error":"#N/A"},{"$error":"#N/A"},0,{"$error":"#DIV/0!"},{"$error":"#N/A"},{"$error":"#N/A"},{"$error":"#N/A"},{"$error":"#N/A"},0,{"$error":"#DIV/0!"},{"$error":"#N/A"},{"$error":"#N/A"},0,{"$error":"#DIV/0!"},0,{"$error":"#N/A"},{"$f":"IF(#REF!=0,AL38,IF(#REF!>0,AN38))","v":{"$error":"#REF!"}}]
[null,null,"Geographic Region Option #",1,null,null,null,null,null,null,null,null,null,null,null,null,null,null,null,null,null,null,null,null,null,null,null,null,null,null,null,null,null,null,null,null,null,null,null,null,null,null,0,41.1,0,0,{"$f":"VLOOKUP(AJ39,'3.1) Infrastructure Replacement'!$AE$74:$AK$109,4,FALSE)","v":{"$error":"#N/A"}},122,{"$error":"#N/A"},{"$error":"#N/A"},{"$error":"#N/A"},0,{"$error":"#DIV/0!"},{"$error":"#N/A"},{"$error":"#N/A"},0,{"$error":"#DIV/0!"},{"$error":"#N/A"},{"$error":"#N/A"},{"$error":"#N/A"},{"$error":"#N/A"},0,{"$error":"#DIV/0!"},{"$error":"#N/A"},{"$error":"#N/A"},0,{"$error":"#DIV/0!"},0,{"$error":"#N/A"},{"$f":"IF(#REF!=0,AL39,IF(#REF!>0,AN39))","v":{"$error":"#REF!"}}]
[null,null,"Geographic Region:",{"$f":"VLOOKUP(D39,C28:F37,2,FALSE)","v":0},null,null,null,null,null,null,null,null,null,null,null,null,null,null,null,null,null,null,null,null,null,null,null,null,null,null,null,null,null,null,null,null,null,null,null,null,null,null,0,42.1,0,0,{"$f":"VLOOKUP(AJ40,'3.1) Infrastructure Replacement'!$AE$74:$AK$109,4,FALSE)","v":{"$error":"#N/A"}},122,{"$error":"#N/A"},{"$error":"#N/A"},{"$error":"#N/A"},0,{"$error":"#DIV/0!"},{"$error":"#N/A"},{"$error":"#N/A"},0,{"$error":"#DIV/0!"},{"$error":"#N/A"},{"$error":"#N/A"},{"$error":"#N/A"},{"$error":"#N/A"},0,{"$error":"#DIV/0!"},{"$error":"#N/A"},{"$error":"#N/A"},0,{"$error":"#DIV/0!"},0,{"$error":"#N/A"},{"$f":"IF(#REF!=0,AL40,IF(#REF!>0,AN40))","v":{"$error":"#REF!"}}]
[null,null,"Geographic Region Capital Cost Factor:",{"$f":"VLOOKUP(D39,C28:F37,3,FALSE)","v":1},null,null,null,null,null,null,null,null,null,null,null,null,null,null,null,null,null,null,null,null,null,null,null,null,null,null,null,null,null,null,null,null,null,null,null,null,null,null,0,43.1,0,0,{"$f":"VLOOKUP(AJ41,'3.1) Infrastructure Replacement'!$AE$74:$AK$109,4,FALSE)","v":{"$error":"#N/A"}},122,{"$error":"#N/A"},{"$error":"#N/A"},{"$error":"#N/A"},0,{"$error":"#DIV/0!"},{"$error":"#N/A"},{"$error":"#N/A"},0,{"$error":"#DIV/0!"},{"$error":"#N/A"},{"$error":"#N/A"},{"$error":"#N/A"},{"$error":"#N/A"},0,{"$error":"#DIV/0!"},{"$error":"#N/A"},{"$error":"#N/A"},0,{"$error":"#DIV/0!"},0,{"$error":"#N/A"},{"$f":"IF(#REF!=0,AL41,IF(#REF!>0,AN41))","v":{"$error":"#REF!"}}]
[null,null,"Geographic Region O&M Cost Factor:",{"$f":"VLOOKUP(D39,C28:F37,4,FALSE)","v":1},null,null,null,null,null,null,null,null,null,null,null,null,null,null,null,null,null,null,null,null,null,null,null,null,null,null,null,null,null,null,null,null,null,null,null,null,null,null,0,44.1,0,0,{"$f":"VLOOKUP(AJ42,'3.1) Infrastructure Replacement'!$AE$74:$AK$109,4,FALSE)","v":{"$error":"#N/A"}},122,{"$error":"#N/A"},{"$error":"#N/A"},{"$error":"#N/A"},0,{"$error":"#DIV/0!"},{"$error":"#N/A"},{"$error":"#N/A"},0,{"$error":"#DIV/0!"},{"$error":"#N/A"},{"$error":"#N/A"},{"$error":"#N/A"},{"$error":"#N/A"},0,{"$error":"#DIV/0!"},{"$error":"#N/A"},{"$error":"#N/A"},0,{"$error":"#DIV/0!"},0,{"$error":"#N/A"},{"$f":"IF(#REF!=0,AL42,IF(#REF!>0,AN42))","v":{"$error":"#REF!"}}]
[null,null,null,null,null,null,null,null,null,null,null,null,null,null,null,null,null,null,null,null,null,null,null,null,null,null,null,null,null,null,null,null,null,null,null,null,null,null,null,null,null,null,0,45.1,0,0,{"$f":"VLOOKUP(AJ43,'3.1) Infrastructure Replacement'!$AE$74:$AK$109,4,FALSE)","v":{"$error":"#N/A"}},122,{"$error":"#N/A"},{"$error":"#N/A"},{"$error":"#N/A"},0,{"$error":"#DIV/0!"},{"$error":"#N/A"},{"$error":"#N/A"},0,{"$error":"#DIV/0!"},{"$error":"#N/A"},{"$error":"#N/A"},{"$error":"#N/A"},{"$error":"#N/A"},0,{"$error":"#DIV/0!"},{"$error":"#N/A"},{"$error":"#N/A"},0,{"$error":"#DIV/0!"},0,{"$error":"#N/A"},{"$f":"IF(#REF!=0,AL43,IF(#REF!>0,AN43))","v":{"$error":"#REF!"}}]
[null,null,null,null,null,null,null,null,null,null,null,null,null,null,null,null,null,null,null,null,null,null,null,null,null,null,null,null,null,null,null,null,null,null,null,null,null,null,null,null,null,null,0,46.1,0,0,{"$f":"VLOOKUP(AJ44,'3.1) Infrastructure Replacement'!$AE$74:$AK$109,4,FALSE)","v":{"$error":"#N/A"}},122,{"$error":"#N/A"},{"$error":"#N/A"},{"$error":"#N/A"},0,{"$error":"#DIV/0!"},{"$error":"#N/A"},{"$error":"#N/A"},0,{"$error":"#DIV/0!"},{"$error":"#N/A"},{"$error":"#N/A"},{"$error":"#N/A"},{"$error":"#N/A"},0,{"$error":"#DIV/0!"},{"$error":"#N/A"},{"$error":"#N/A"},0,{"$error":"#DIV/0!"},0,{"$error":"#N/A"},{"$f":"IF(#REF!=0,AL44,IF(#REF!>0,AN44))","v":{"$error":"#REF!"}}]
[null,null,"Existing System Flows:",null,null,null,null,null,null,null,null,null,null,null,null,null,null,null,null,null,null,null,null,null,null,null,null,null,null,null,null,null,null,null,null,null,null,null,null,null,null,null,0,47.1,0,0,{"$f":"VLOOKUP(AJ45,'3.1) Infrastructure Replacement'!$AE$74:$AK$109,4,FALSE)","v":{"$error":"#N/A"}},122,{"$error":"#N/A"},{"$error":"#N/A"},{"$error":"#N/A"},0,{"$error":"#DIV/0!"},{"$error":"#N/A"},{"$error":"#N/A"},0,{"$error":"#DIV/0!"},{"$error":"#N/A"},{"$error":"#N/A"},{"$error":"#N/A"},{"$error":"#N/A"},0,{"$error":"#DIV/0!"},{"$error":"#N/A"},{"$error":"#N/A"},0,{"$error":"#DIV/0!"},0,{"$error":"#N/A"},{"$f":"IF(#REF!=0,AL45,IF(#REF!>0,AN45))","v":{"$error":"#REF!"}}]
[null,null,null,null,null,null,null,null,null,null,null,null,null,null,null,null,null,null,null,null,null,null,null,null,null,null,null,null,null,null,null,null,null,null,null,null,null,null,null,null,null,null,0,48.1,0,0,{"$f":"VLOOKUP(AJ46,'3.1) Infrastructure Replacement'!$AE$74:$AK$109,4,FALSE)","v":{"$error":"#N/A"}},122,{"$error":"#N/A"},{"$error":"#N/A"},{"$error":"#N/A"},0,{"$error":"#DIV/0!"},{"$error":"#N/A"},{"$error":"#N/A"},0,{"$error":"#DIV/0!"},{"$error":"#N/A"},{"$error":"#N/A"},{"$error":"#N/A"},{"$error":"#N/A"},0,{"$error":"#DIV/0!"},{"$error":"#N/A"},{"$error":"#N/A"},0,{"$error":"#DIV/0!"},0,{"$error":"#N/A"},{"$f":"IF(#REF!=0,AL46,IF(#REF!>0,AN46))","v":{"$error":"#REF!"}}]
[null,null,"Water System Population:",{"$f":"'1.1) Community Data'!Q11:Q11","v":0},null,null,null,null,null,null,null,null,null,null,null,null,null,null,null,null,null,null,null,null,null,null,null,null,null,null,null,null,null,null,null,null,null,null,null,null,null,null,0,49.1,0,0,{"$f":"VLOOKUP(AJ47,'3.1) Infrastructure Replacement'!$AE$74:$AK$109,4,FALSE)","v":{"$error":"#N/A"}},122,{"$error":"#N/A"},{"$error":"#N/A"},{"$error":"#N/A"},0,{"$error":"#DIV/0!"},{"$error":"#N/A"},{"$error":"#N/A"},0,{"$error":"#DIV/0!"},{"$error":"#N/A"},{"$error":"#N/A"},{"$error":"#N/A"},{"$error":"#N/A"},0,{"$error":"#DIV/0!"},{"$error":"#N/A"},{"$error":"#N/A"},0,{"$error":"#DIV/0!"},0,{"$error":"#N/A"},{"$f":"IF(#REF!=0,AL47,IF(#REF!>0,AN47))","v":{"$error":"#REF!"}}]
[null,null,null,null,null,null,null,null,null,null,null,null,null,null,null,null,null,null,null,null,null,null,null,null,null,null,null,null,null,null,null,null,null,null,null,null,null,null,null,null,null,null,0,50.1,0,0,{"$f":"VLOOKUP(AJ48,'3.1) Infrastructure Replacement'!$AE$74:$AK$109,4,FALSE)","v":{"$error":"#N/A"}},122,{"$error":"#N/A"},{"$error":"#N/A"},{"$error":"#N/A"},0,{"$error":"#DIV/0!"},{"$error":"#N/A"},{"$error":"#N/A"},0,{"$error":"#DIV/0!"},{"$error":"#N/A"},{"$error":"#N/A"},{"$error":"#N/A"},{"$error":"#N/A"},0,{"$error":"#DIV/0!"},{"$error":"#N/A"},{"$error":"#N/A"},0,{"$error":"#DIV/0!"},0,{"$error":"#N/A"},{"$f":"IF(#REF!=0,AL48,IF(#REF!>0,AN48))","v":{"$error":"#REF!"}}]
[null,null,"User Entered Flow Data (if Available):",null,null,null,null,null,null,null,null,null,null,null,null,null,null,null,null,null,null,null,null,null,null,null,null,null,null,null,null,null,null,null,null,null,null,null,null,null,null,null,0,51.1,0,0,{"$f":"VLOOKUP(AJ49,'3.1) Infrastructure Replacement'!$AE$74:$AK$109,4,FALSE)","v":{"$error":"#N/A"}},122,{"$error":"#N/A"},{"$error":"#N/A"},{"$error":"#N/A"},0,{"$error":"#DIV/0!"},{"$error":"#N/A"},{"$error":"#N/A"},0,{"$error":"#DIV/0!"},{"$error":"#N/A"},{"$error":"#N/A"},{"$error":"#N/A"},{"$error":"#N/A"},0,{"$error":"#DIV/0!"},{"$error":"#N/A"},{"$error":"#N/A"},0,{"$error":"#DIV/0!"},0,{"$error":"#N/A"},{"$f":"IF(#REF!=0,AL49,IF(#REF!>0,AN49))","v":{"$error":"#REF!"}}]
[null,null,"Parameter","User Entered Flow Value","User Entered Flow Unit","Conversion Factor","Flow By User (m3/d)",null,null,null,null,null,null,null,null,null,null,null,null,null,null,null,null,null,null,null,null,null,null,null,null,null,null,null,null,null,null,null,null,null,null,null,0,52.1,0,0,{"$f":"VLOOKUP(AJ50,'3.1) Infrastructure Replacement'!$AE$74:$AK$109,4,FALSE)","v":{"$error":"#N/A"}},122,{"$error":"#N/A"},{"$error":"#N/A"},{"$error":"#N/A"},0,{"$error":"#DIV/0!"},{"$error":"#N/A"},{"$error":"#N/A"},0,{"$error":"#DIV/0!"},{"$error":"#N/A"},{"$error":"#N/A"},{"$error":"#N/A"},{"$error":"#N/A"},0,{"$error":"#DIV/0!"},{"$error":"#N/A"},{"$error":"#N/A"},0,{"$error":"#DIV/0!"},0,{"$error":"#N/A"},{"$f":"IF(#REF!=0,AL50,IF(#REF!>0,AN50))","v":{"$error":"#REF!"}}]
[null,null,"User Entered Average Flow - Season 1",{"$f":"'1.1) Community Data'!H18","v":0},{"$f":"'1.1) Community Data'!I18","v":"m3/d"},{"$f":"IF(E51=\"<Units>\",0,VLOOKUP(E51,'Table Inputs'!$T$4:$U$6,2,FALSE))","v":1},{"$f":"D51*F51","v":0},null,null,null,null,null,null,null,null,null,null,null,null,null,null,null,null,null,null,null,null,null,null,null,null,null,null,null,null,null,null,null,null,null,null,null,0,53.1,0,0,{"$f":"VLOOKUP(AJ51,'3.1) Infrastructure Replacement'!$AE$74:$AK$109,4,FALSE)","v":{"$error":"#N/A"}},122,{"$error":"#N/A"},{"$error":"#N/A"},{"$error":"#N/A"},0,{"$error":"#DIV/0!"},{"$error":"#N/A"},{"$error":"#N/A"},0,{"$error":"#DIV/0!"},{"$error":"#N/A"},{"$error":"#N/A"},{"$error":"#N/A"},{"$error":"#N/A"},0,{"$error":"#DIV/0!"},{"$error":"#N/A"},{"$error":"#N/A"},0,{"$error":"#DIV/0!"},0,{"$error":"#N/A"},{"$f":"IF(#REF!=0,AL51,IF(#REF!>0,AN51))","v":{"$error":"#REF!"}}]
[null,null,"User Entered Maximum Day Flow - Season 1",{"$f":"'1.1) Community Data'!H19","v":0},{"$f":"'1.1) Community Data'!I19","v":"<Units>"},{"$f":"IF(E52=\"<Units>\",0,VLOOKUP(E52,'Table Inputs'!$T$4:$U$6,2,FALSE))","v":0},{"$f":"D52*F52","v":0},null,null,null,null,null,null,null,null,null,null,null,null,null,null,null,null,null,null,null,null,null,null,null,null,null,null,null,null,null,null,null,null,null,null,null,0,54.1,0,0,{"$f":"VLOOKUP(AJ52,'3.1) Infrastructure Replacement'!$AE$74:$AK$109,4,FALSE)","v":{"$error":"#N/A"}},122,{"$error":"#N/A"},{"$error":"#N/A"},{"$error":"#N/A"},0,{"$error":"#DIV/0!"},{"$error":"#N/A"},{"$error":"#N/A"},0,{"$error":"#DIV/0!"},{"$error":"#N/A"},{"$error":"#N/A"},{"$error":"#N/A"},{"$error":"#N/A"},0,{"$error":"#DIV/0!"},{"$error":"#N/A"},{"$error":"#N/A"},0,{"$error":"#DIV/0!"},0,{"$error":"#N/A"},{"$f":"IF(#REF!=0,AL52,IF(#REF!>0,AN52))","v":{"$error":"#REF!"}}]
[null,null,"User Entered Peak Hour Flow - Season 1",{"$f":"'1.1) Community Data'!H20","v":0},{"$f":"'1.1) Community Data'!I20","v":"<Units>"},{"$f":"IF(E53=\"<Units>\",0,VLOOKUP(E53,'Table Inputs'!$T$4:$U$6,2,FALSE))","v":0},{"$f":"D53*F53","v":0},null,null,null,null,null,null,null,null,null,null,null,null,null,null,null,null,null,null,null,null,null,null,null,null,null,null,null,null,null,null,null,null,null,null,null,0,55.1,0,0,{"$f":"VLOOKUP(AJ53,'3.1) Infrastructure Replacement'!$AE$74:$AK$109,4,FALSE)","v":{"$error":"#N/A"}},122,{"$error":"#N/A"},{"$error":"#N/A"},{"$error":"#N/A"},0,{"$error":"#DIV/0!"},{"$error":"#N/A"},{"$error":"#N/A"},0,{"$error":"#DIV/0!"},{"$error":"#N/A"},{"$error":"#N/A"},{"$error":"#N/A"},{"$error":"#N/A"},0,{"$error":"#DIV/0!"},{"$error":"#N/A"},{"$error":"#N/A"},0,{"$error":"#DIV/0!"},0,{"$error":"#N/A"},{"$f":"IF(#REF!=0,AL53,IF(#REF!>0,AN53))","v":{"$error":"#REF!"}}]
[null,null,null,null,null,null,null,null,null,null,null,null,null,null,null,null,null,null,null,null,null,null,null,null,null,null,null,null,null,null,null,null,null,null,null,null,null,null,null,null,null,null,0,56.1,0,0,{"$f":"VLOOKUP(AJ54,'3.1) Infrastructure Replacement'!$AE$74:$AK$109,4,FALSE)","v":{"$error":"#N/A"}},122,{"$error":"#N/A"},{"$error":"#N/A"},{"$error":"#N/A"},0,{"$error":"#DIV/0!"},{"$error":"#N/A"},{"$error":"#N/A"},0,{"$error":"#DIV/0!"},{"$error":"#N/A"},{"$error":"#N/A"},{"$error":"#N/A"},{"$error":"#N/A"},0,{"$error":"#DIV/0!"},{"$error":"#N/A"},{"$error":"#N/A"},0,{"$error":"#DIV/0!"},0,{"$error":"#N/A"},{"$f":"IF(#REF!=0,AL54,IF(#REF!>0,AN54))","v":{"$error":"#REF!"}}]
[null,null,null,null,null,null,null,null,null,null,null,null,null,null,null,null,null,null,null,null,null,null,null,null,null,null,null,null,null,null,null,null,null,null,null,null,null,null,null,null,null,null,0,57.1,0,0,{"$f":"VLOOKUP(AJ55,'3.1) Infrastructure Replacement'!$AE$74:$AK$109,4,FALSE)","v":{"$error":"#N/A"}},122,{"$error":"#N/A"},{"$error":"#N/A"},{"$error":"#N/A"},0,{"$error":"#DIV/0!"},{"$error":"#N/A"},{"$error":"#N/A"},0,{"$error":"#DIV/0!"},{"$error":"#N/A"},{"$error":"#N/A"},{"$error":"#N/A"},{"$error":"#N/A"},0,{"$error":"#DIV/0!"},{"$error":"#N/A"},{"$error":"#N/A"},0,{"$error":"#DIV/0!"},0,{"$error":"#N/A"},{"$f":"IF(#REF!=0,AL55,IF(#REF!>0,AN55))","v":{"$error":"#REF!"}}]
[null,null,"Theoretical Per Capita Demand",340,"L/p/d",null,null,null,null,null,null,null,null,null,null,null,null,null,null,null,null,null,null,null,null,null,null,null,null,null,null,null,null,null,null,null,null,null,null,null,null,null,0,58.1,0,0,{"$f":"VLOOKUP(AJ56,'3.1) Infrastructure Replacement'!$AE$74:$AK$109,4,FALSE)","v":{"$error":"#N/A"}},122,{"$error":"#N/A"},{"$error":"#N/A"},{"$error":"#N/A"},0,{"$error":"#DIV/0!"},{"$error":"#N/A"},{"$error":"#N/A"},0,{"$error":"#DIV/0!"},{"$error":"#N/A"},{"$error":"#N/A"},{"$error":"#N/A"},{"$error":"#N/A"},0,{"$error":"#DIV/0!"},{"$error":"#N/A"},{"$error":"#N/A"},0,{"$error":"#DIV/0!"},0,{"$error":"#N/A"},{"$f":"IF(#REF!=0,AL56,IF(#REF!>0,AN56))","v":{"$error":"#REF!"}}]
[null,null,"Average Day Flow",{"$f":"IF(G51>0,G51,D47*D56/1000)","v":0},"m3/d",{"$f":"D57*1000/3.785/1440","v":0},"gpm",null,null,null,null,null,null,null,null,null,null,null,null,null,null,null,null,null,null,null,null,null,null,null,null,null,null,null,null,null,null,null,null,null,null,null,0,59.1,0,0,{"$f":"VLOOKUP(AJ57,'3.1) Infrastructure Replacement'!$AE$74:$AK$109,4,FALSE)","v":{"$error":"#N/A"}},122,{"$error":"#N/A"},{"$error":"#N/A"},{"$error":"#N/A"},0,{"$error":"#DIV/0!"},{"$error":"#N/A"},{"$error":"#N/A"},0,{"$error":"#DIV/0!"},{"$error":"#N/A"},{"$error":"#N/A"},{"$error":"#N/A"},{"$error":"#N/A"},0,{"$error":"#DIV/0!"},{"$error":"#N/A"},{"$error":"#N/A"},0,{"$error":"#DIV/0!"},0,{"$error":"#N/A"},{"$f":"IF(#REF!=0,AL57,IF(#REF!>0,AN57))","v":{"$error":"#REF!"}}]
[null,null,"Maximum Day Flow",{"$f":"IF(G52>0,G52,D57*VLOOKUP(D47,'Table Inputs'!B4:E12,3,TRUE))","v":0},"m3/d",{"$f":"D58*1000/3.785/1440","v":0},"gpm",null,null,null,null,null,null,null,null,null,null,null,null,null,null,null,null,null,null,null,null,null,null,null,null,null,null,null,null,null,null,null,null,null,null,null,0,60.1,0,0,{"$f":"VLOOKUP(AJ58,'3.1) Infrastructure Replacement'!$AE$74:$AK$109,4,FALSE)","v":{"$error":"#N/A"}},122,{"$error":"#N/A"},{"$error":"#N/A"},{"$error":"#N/A"},0,{"$error":"#DIV/0!"},{"$error":"#N/A"},{"$error":"#N/A"},0,{"$error":"#DIV/0!"},{"$error":"#N/A"},{"$error":"#N/A"},{"$error":"#N/A"},{"$error":"#N/A"},0,{"$error":"#DIV/0!"},{"$error":"#N/A"},{"$error":"#N/A"},0,{"$error":"#DIV/0!"},0,{"$error":"#N/A"},{"$f":"IF(#REF!=0,AL58,IF(#REF!>0,AN58))","v":{"$error":"#REF!"}}]
[null,null,"Peak Hour Flow",{"$f":"IF(G53>0,G53,D57*VLOOKUP(D47,'Table Inputs'!B4:E12,4,TRUE))","v":0},"m3/d",{"$f":"D59*1000/3.785/1440","v":0},"gpm",null,null,null,null,null,null,null,null,null,null,null,null,null,null,null,null,null,null,null,null,null,null,null,null,null,null,null,null,null,null,null,null,null,null,null,0,61.1,0,0,{"$f":"VLOOKUP(AJ59,'3.1) Infrastructure Replacement'!$AE$74:$AK$109,4,FALSE)","v":{"$error":"#N/A"}},122,{"$error":"#N/A"},{"$error":"#N/A"},{"$error":"#N/A"},0,{"$error":"#DIV/0!"},{"$error":"#N/A"},{"$error":"#N/A"},0,{"$error":"#DIV/0!"},{"$error":"#N/A"},{"$error":"#N/A"},{"$error":"#N/A"},{"$error":"#N/A"},0,{"$error":"#DIV/0!"},{"$error":"#N/A"},{"$error":"#N/A"},0,{"$error":"#DIV/0!"},0,{"$error":"#N/A"},{"$f":"IF(#REF!=0,AL59,IF(#REF!>0,AN59))","v":{"$error":"#REF!"}}]
[null,null,null,null,null,null,null,null,null,null,null,null,null,null,null,null,null,null,null,null,null,null,null,null,null,null,null,null,null,null,null,null,null,null,null,null,null,null,null,null,null,null,0,62.1,0,0,{"$f":"VLOOKUP(AJ60,'3.1) Infrastructure Replacement'!$AE$74:$AK$109,4,FALSE)","v":{"$error":"#N/A"}},122,{"$error":"#N/A"},{"$error":"#N/A"},{"$error":"#N/A"},0,{"$error":"#DIV/0!"},{"$error":"#N/A"},{"$error":"#N/A"},0,{"$error":"#DIV/0!"},{"$error":"#N/A"},{"$error":"#N/A"},{"$error":"#N/A"},{"$error":"#N/A"},0,{"$error":"#DIV/0!"},{"$error":"#N/A"},{"$error":"#N/A"},0,{"$error":"#DIV/0!"},0,{"$error":"#N/A"},{"$f":"IF(#REF!=0,AL60,IF(#REF!>0,AN60))","v":{"$error":"#REF!"}}]
[null,null,"Per Capita Values - Primary Season",null,null,null,null,null,null,null,null,null,null,null,null,null,null,null,null,null,null,null,null,null,null,null,null,null,null,null,null,null,null,null,null,null,null,null,null,null,null,null,0,63.1,0,0,{"$f":"VLOOKUP(AJ61,'3.1) Infrastructure Replacement'!$AE$74:$AK$109,4,FALSE)","v":{"$error":"#N/A"}},122,{"$error":"#N/A"},{"$error":"#N/A"},{"$error":"#N/A"},0,{"$error":"#DIV/0!"},{"$error":"#N/A"},{"$error":"#N/A"},0,{"$error":"#DIV/0!"},{"$error":"#N/A"},{"$error":"#N/A"},{"$error":"#N/A"},{"$error":"#N/A"},0,{"$error":"#DIV/0!"},{"$error":"#N/A"},{"$error":"#N/A"},0,{"$error":"#DIV/0!"},0,{"$error":"#N/A"},{"$f":"IF(#REF!=0,AL61,IF(#REF!>0,AN61))","v":{"$error":"#REF!"}}]
[null,null,"Average",{"$f":"D57/D47*1000","v":{"$error":"#DIV/0!"}},"L/p/d",null,null,null,null,null,null,null,null,null,null,null,null,null,null,null,null,null,null,null,null,null,null,null,null,null,null,null,null,null,null,null,null,null,null,null,null,null,0,64.099999999999994,0,0,{"$f":"VLOOKUP(AJ62,'3.1) Infrastructure Replacement'!$AE$74:$AK$109,4,FALSE)","v":{"$error":"#N/A"}},122,{"$error":"#N/A"},{"$error":"#N/A"},{"$error":"#N/A"},0,{"$error":"#DIV/0!"},{"$error":"#N/A"},{"$error":"#N/A"},0,{"$error":"#DIV/0!"},{"$error":"#N/A"},{"$error":"#N/A"},{"$error":"#N/A"},{"$error":"#N/A"},0,{"$error":"#DIV/0!"},{"$error":"#N/A"},{"$error":"#N/A"},0,{"$error":"#DIV/0!"},0,{"$error":"#N/A"},{"$f":"IF(#REF!=0,AL62,IF(#REF!>0,AN62))","v":{"$error":"#REF!"}}]
[null,null,"MDD",{"$f":"D58/D47*1000","v":{"$error":"#DIV/0!"}},"L/p/d",null,null,null,null,null,null,null,null,null,null,null,null,null,null,null,null,null,null,null,null,null,null,null,null,null,null,null,null,null,null,null,null,null,null,null,null,null,0,65.099999999999994,0,0,{"$f":"VLOOKUP(AJ63,'3.1) Infrastructure Replacement'!$AE$74:$AK$109,4,FALSE)","v":{"$error":"#N/A"}},122,{"$error":"#N/A"},{"$error":"#N/A"},{"$error":"#N/A"},0,{"$error":"#DIV/0!"},{"$error":"#N/A"},{"$error":"#N/A"},0,{"$error":"#DIV/0!"},{"$error":"#N/A"},{"$error":"#N/A"},{"$error":"#N/A"},{"$error":"#N/A"},0,{"$error":"#DIV/0!"},{"$error":"#N/A"},{"$error":"#N/A"},0,{"$error":"#DIV/0!"},0,{"$error":"#N/A"},{"$f":"IF(#REF!=0,AL63,IF(#REF!>0,AN63))","v":{"$error":"#REF!"}}]
[null,null,"Peak Hour",{"$f":"D59/D47*1000","v":{"$error":"#DIV/0!"}},"L/p/d",null,null,null,null,null,null,null,null,null,null,null,null,null,null,null,null,null,null,null,null,null,null,null,null,null,null,null,null,null,null,null,null,null,null,null,null,null,0,66.099999999999994,0,0,{"$f":"VLOOKUP(AJ64,'3.1) Infrastructure Replacement'!$AE$74:$AK$109,4,FALSE)","v":{"$error":"#N/A"}},122,{"$error":"#N/A"},{"$error":"#N/A"},{"$error":"#N/A"},0,{"$error":"#DIV/0!"},{"$error":"#N/A"},{"$error":"#N/A"},0,{"$error":"#DIV/0!"},{"$error":"#N/A"},{"$error":"#N/A"},{"$error":"#N/A"},{"$error":"#N/A"},0,{"$error":"#DIV/0!"},{"$error":"#N/A"},{"$error":"#N/A"},0,{"$error":"#DIV/0!"},0,{"$error":"#N/A"},{"$f":"IF(#REF!=0,AL64,IF(#REF!>0,AN64))","v":{"$error":"#REF!"}}]
[null,null,null,null,null,null,null,null,null,null,null,null,null,null,null,null,null,null,null,null,null,null,null,null,null,null,null,null,null,null,null,null,null,null,null,null,null,null,null,null,null,null,0,67.099999999999994,0,0,{"$f":"VLOOKUP(AJ65,'3.1) Infrastructure Replacement'!$AE$74:$AK$109,4,FALSE)","v":{"$error":"#N/A"}},122,{"$error":"#N/A"},{"$error":"#N/A"},{"$error":"#N/A"},0,{"$error":"#DIV/0!"},{"$error":"#N/A"},{"$error":"#N/A"},0,{"$error":"#DIV/0!"},{"$error":"#N/A"},{"$error":"#N/A"},{"$error":"#N/A"},{"$error":"#N/A"},0,{"$error":"#DIV/0!"},{"$error":"#N/A"},{"$error":"#N/A"},0,{"$error":"#DIV/0!"},0,{"$error":"#N/A"},{"$f":"IF(#REF!=0,AL65,IF(#REF!>0,AN65))","v":{"$error":"#REF!"}}]
[null,null,null,null,null,null,null,null,null,null,null,null,null,null,null,null,null,null,null,null,null,null,null,null,null,null,null,null,null,null,null,null,null,null,null,null,null,null,null,null,null,null,0,68.099999999999994,0,0,{"$f":"VLOOKUP(AJ66,'3.1) Infrastructure Replacement'!$AE$74:$AK$109,4,FALSE)","v":{"$error":"#N/A"}},122,{"$error":"#N/A"},{"$error":"#N/A"},{"$error":"#N/A"},0,{"$error":"#DIV/0!"},{"$error":"#N/A"},{"$error":"#N/A"},0,{"$error":"#DIV/0!"},{"$error":"#N/A"},{"$error":"#N/A"},{"$error":"#N/A"},{"$error":"#N/A"},0,{"$error":"#DIV/0!"},{"$error":"#N/A"},{"$error":"#N/A"},0,{"$error":"#DIV/0!"},0,{"$error":"#N/A"},{"$f":"IF(#REF!=0,AL66,IF(#REF!>0,AN66))","v":{"$error":"#REF!"}}]
[null,null,null,null,null,null,null,null,null,null,null,null,null,null,null,null,null,null,null,null,null,null,null,null,null,null,null,null,null,null,null,null,null,null,null,null,null,null,null,null,null,null,{"$f":"AP67-AO67","v":0},69.099999999999994,{"$f":"AN67*(1-AR67)","v":0},{"$f":"AL67*(1-AR67)","v":0},{"$f":"VLOOKUP(AJ67,'3.1) Infrastructure Replacement'!$AE$74:$AK$109,4,FALSE)","v":{"$error":"#N/A"}},{"$f":"DATEDIF(AK67,NOW(),\"Y\")","v":122},{"$f":"IF(AU67*1<AV67,\"past due\",AU67*1-AV67)","v":{"$error":"#N/A"}},{"$f":"(AL67*((1+AQ67)^(-AW67)))","v":{"$error":"#N/A"}},{"$f":"IF(AQ67=0%,(AX67/AW67),((AX67*AQ67)*((1+AQ67)^(AW67)))/(((1+AQ67)^(AW67))-1))","v":{"$error":"#N/A"}},{"$f":"(AL67/((1+AQ67)^(AM67)))","v":0},{"$f":"IF(AQ67=0%,(AZ67/AM67),((AZ67*AQ67)*((1+AQ67)^(AM67)))/(((1+AQ67)^(AM67))-1))","v":{"$error":"#DIV/0!"}},{"$f":"(AN67/((1+AQ67)^(AW67)))","v":{"$error":"#N/A"}},{"$f":"IF(AQ67=0%,(BB67/AW67),(BB67*((AQ67*((1+AQ67)^(AW67)))/(((1+AQ67)^(AW67))-1))))","v":{"$error":"#N/A"}},0,{"$f":"IF(AQ67=0%,(BD67/AM67),(BD67*((AQ67*((1+AQ67)^(AM67)))/(((1+AQ67)^(AM67))-1))))","v":{"$error":"#DIV/0!"}},{"$f":"IF(AND(AN67>0,AM67>0),BE67,IF(AN67>0,BC67,IF(AM67>0,BA67,AY67)))","v":{"$error":"#N/A"}},{"$f":"IF(AND(AN67>0,AM67>0),BO67,IF(AND(AM67=0,AN67>0),BM67,IF(AND(AN67=0,AM67>0),BK67,BI67)))","v":{"$error":"#N/A"}},{"$f":"AT67*((1+AQ67)^(-AW67))","v":{"$error":"#N/A"}},{"$f":"IF(AQ67=0%,(BH67/AW67),((BH67*AQ67)*((1+AQ67)^(AW67)))/(((1+AQ67)^(AW67))-1))","v":{"$error":"#N/A"}},{"$f":"AT67/((1+AQ67)^(AM67))","v":0},{"$f":"IF(AQ67=0%,(BJ67/AM67),((BJ67*AQ67)*((1+AQ67)^(AM67)))/(((1+AQ67)^(AM67))-1))","v":{"$error":"#DIV/0!"}},{"$f":"AS67/((1+AQ67)^(AW67))","v":{"$error":"#N/A"}},{"$f":"IF(AQ67=0%,(BL67/AW67),(BL67*((AQ67*((1+AQ67)^(AW67)))/(((1+AQ67)^(AW67))-1))))","v":{"$error":"#N/A"}},{"$f":"AS67/((1+AQ67)^(AM67))","v":0},{"$f":"IF(AQ67=0%,(BN67/AM67),(BN67*((AQ67*((1+AQ67)^(AM67)))/(((1+AQ67)^(AM67))-1))))","v":{"$error":"#DIV/0!"}},{"$f":"IF(AN67>0,AS67,IF(AN67=0,AT67))","v":0},{"$f":"BF67-BG67","v":{"$error":"#N/A"}},{"$f":"IF(#REF!=0,AL67,IF(#REF!>0,AN67))","v":{"$error":"#REF!"}}]
[null,null,null,null,null,null,null,null,null,null,null,null,null,null,null,null,null,null,null,null,null,null,null,null,null,null,null,null,null,null,null,null,null,null,null,null,null,null,null,null,null,null,0,70.099999999999994,0,0,{"$f":"VLOOKUP(AJ68,'3.1) Infrastructure Replacement'!$AE$74:$AK$109,4,FALSE)","v":{"$error":"#N/A"}},122,{"$error":"#N/A"},{"$error":"#N/A"},{"$error":"#N/A"},0,{"$error":"#DIV/0!"},{"$error":"#N/A"},{"$error":"#N/A"},0,{"$error":"#DIV/0!"},{"$error":"#N/A"},{"$error":"#N/A"},{"$error":"#N/A"},{"$error":"#N/A"},0,{"$error":"#DIV/0!"},{"$error":"#N/A"},{"$error":"#N/A"},0,{"$error":"#DIV/0!"},0,{"$error":"#N/A"},{"$f":"IF(#REF!=0,AL68,IF(#REF!>0,AN68))","v":{"$error":"#REF!"}}]
[null,null,null,null,null,null,null,null,null,null,null,null,null,null,null,null,null,null,null,null,null,null,null,null,null,null,null,null,null,null,null,null,null,null,null,null,null,null,null,null,null,null,0,71.099999999999994,0,0,{"$f":"VLOOKUP(AJ69,'3.1) Infrastructure Replacement'!$AE$74:$AK$109,4,FALSE)","v":{"$error":"#N/A"}},122,{"$error":"#N/A"},{"$error":"#N/A"},{"$error":"#N/A"},0,{"$error":"#DIV/0!"},{"$error":"#N/A"},{"$error":"#N/A"},0,{"$error":"#DIV/0!"},{"$error":"#N/A"},{"$error":"#N/A"},{"$error":"#N/A"},{"$error":"#N/A"},0,{"$error":"#DIV/0!"},{"$error":"#N/A"},{"$error":"#N/A"},0,{"$error":"#DIV/0!"},0,{"$error":"#N/A"},{"$f":"IF(#REF!=0,AL69,IF(#REF!>0,AN69))","v":{"$error":"#REF!"}}]
[null,null,"PAGE 2 - Existing System Operation",null,null,null,null,null,null,null,null,null,null,null,null,null,null,null,null,null,null,null,null,null,null,null,null,null,null,null,null,null,null,null,null,null,null,null,null,null,null,null,0,72.099999999999994,0,0,{"$f":"VLOOKUP(AJ70,'3.1) Infrastructure Replacement'!$AE$74:$AK$109,4,FALSE)","v":{"$error":"#N/A"}},122,{"$error":"#N/A"},{"$error":"#N/A"},{"$error":"#N/A"},0,{"$error":"#DIV/0!"},{"$error":"#N/A"},{"$error":"#N/A"},0,{"$error":"#DIV/0!"},{"$error":"#N/A"},{"$error":"#N/A"},{"$error":"#N/A"},{"$error":"#N/A"},0,{"$error":"#DIV/0!"},{"$error":"#N/A"},{"$error":"#N/A"},0,{"$error":"#DIV/0!"},0,{"$error":"#N/A"},{"$f":"IF(#REF!=0,AL70,IF(#REF!>0,AN70))","v":{"$error":"#REF!"}}]
[null,null,null,null,null,null,null,null,null,null,null,null,null,null,null,null,null,null,null,null,null,null,null,null,null,null,null,null,null,null,null,null,null,null,null,null,null,null,null,null,null,null,0,73.099999999999994,0,0,{"$f":"VLOOKUP(AJ71,'3.1) Infrastructure Replacement'!$AE$74:$AK$109,4,FALSE)","v":{"$error":"#N/A"}},122,{"$error":"#N/A"},{"$error":"#N/A"},{"$error":"#N/A"},0,{"$error":"#DIV/0!"},{"$error":"#N/A"},{"$error":"#N/A"},0,{"$error":"#DIV/0!"},{"$error":"#N/A"},{"$error":"#N/A"},{"$error":"#N/A"},{"$error":"#N/A"},0,{"$error":"#DIV/0!"},{"$error":"#N/A"},{"$error":"#N/A"},0,{"$error":"#DIV/0!"},0,{"$error":"#N/A"},{"$f":"IF(#REF!=0,AL71,IF(#REF!>0,AN71))","v":{"$error":"#REF!"}}]
[null,null,"Disinfection:",null,null,null,null,null,null,null,null,null,null,null,null,null,null,null,null,null,null,null,null,null,null,null,null,null,null,null,null,null,null,null,null,null,null,null,null,null,null,null,0,74.099999999999994,0,0,{"$f":"VLOOKUP(AJ72,'3.1) Infrastructure Replacement'!$AE$74:$AK$109,4,FALSE)","v":{"$error":"#N/A"}},122,{"$error":"#N/A"},{"$error":"#N/A"},{"$error":"#N/A"},0,{"$error":"#DIV/0!"},{"$error":"#N/A"},{"$error":"#N/A"},0,{"$error":"#DIV/0!"},{"$error":"#N/A"},{"$error":"#N/A"},{"$error":"#N/A"},{"$error":"#N/A"},0,{"$error":"#DIV/0!"},{"$error":"#N/A"},{"$error":"#N/A"},0,{"$error":"#DIV/0!"},0,{"$error":"#N/A"},{"$f":"IF(#REF!=0,AL72,IF(#REF!>0,AN72))","v":{"$error":"#REF!"}}]
[null,null,"Disinfection Type #","Chemical","System","$/kg (Available Chlorine)","Predicted Dose (mg/L)",null,null,null,null,null,null,null,null,null,null,null,null,null,null,null,null,null,null,null,null,null,null,null,null,null,null,null,null,null,null,null,null,null,null,null,0,75.099999999999994,0,0,{"$f":"VLOOKUP(AJ73,'3.1) Infrastructure Replacement'!$AE$74:$AK$109,4,FALSE)","v":{"$error":"#N/A"}},122,{"$error":"#N/A"},{"$error":"#N/A"},{"$error":"#N/A"},0,{"$error":"#DIV/0!"},{"$error":"#N/A"},{"$error":"#N/A"},{"$f":"AN73/((1+AQ73)^(AM73))","v":0},{"$error":"#DIV/0!"},{"$error":"#N/A"},{"$error":"#N/A"},{"$error":"#N/A"},{"$error":"#N/A"},0,{"$error":"#DIV/0!"},{"$error":"#N/A"},{"$error":"#N/A"},0,{"$error":"#DIV/0!"},0,{"$error":"#N/A"},{"$f":"IF(#REF!=0,AL73,IF(#REF!>0,AN73))","v":{"$error":"#REF!"}}]
[null,null,1,"Sodium Hypochlorite","Liquid Chlorine",14,{"$f":"IF($D$19=\"Surface Water\",5,2.5)","v":2.5},null,null,null,null,null,null,null,null,null,null,null,null,null,null,null,null,null,null,null,null,null,null,null,null,null,null,null,null,null,null,null,null,null,null,null,0,76.099999999999994,0,0,{"$f":"VLOOKUP(AJ74,'3.1) Infrastructure Replacement'!$AE$74:$AK$109,4,FALSE)","v":{"$error":"#N/A"}},122,{"$error":"#N/A"},{"$error":"#N/A"},{"$error":"#N/A"},0,{"$error":"#DIV/0!"},{"$error":"#N/A"},{"$error":"#N/A"},0,{"$error":"#DIV/0!"},{"$error":"#N/A"},{"$error":"#N/A"},{"$error":"#N/A"},{"$error":"#N/A"},0,{"$error":"#DIV/0!"},{"$error":"#N/A"},{"$error":"#N/A"},0,{"$error":"#DIV/0!"},0,{"$error":"#N/A"},{"$f":"IF(#REF!=0,AL74,IF(#REF!>0,AN74))","v":{"$error":"#REF!"}}]
[null,null,2,"Chlorine Gas","Chlorine Gas",6,{"$f":"IF($D$19=\"Surface Water\",5,2.5)","v":2.5},null,null,null,null,null,null,null,null,null,null,null,null,null,null,null,null,null,null,null,null,null,null,null,null,null,null,null,null,null,null,null,null,null,null,null,0,77.099999999999994,0,0,{"$f":"VLOOKUP(AJ75,'3.1) Infrastructure Replacement'!$AE$74:$AK$109,4,FALSE)","v":{"$error":"#N/A"}},122,{"$error":"#N/A"},{"$error":"#N/A"},{"$error":"#N/A"},0,{"$error":"#DIV/0!"},{"$error":"#N/A"},{"$error":"#N/A"},0,{"$error":"#DIV/0!"},{"$error":"#N/A"},{"$error":"#N/A"},{"$error":"#N/A"},{"$error":"#N/A"},0,{"$error":"#DIV/0!"},{"$error":"#N/A"},{"$error":"#N/A"},0,{"$error":"#DIV/0!"},0,{"$error":"#N/A"},{"$f":"IF(#REF!=0,AL75,IF(#REF!>0,AN75))","v":{"$error":"#REF!"}}]
[null,null,3,"Salt","Mixed Oxidants",0.9,{"$f":"IF($D$19=\"Surface Water\",5*3,2.5*3)","v":7.5},null,null,null,null,null,null,null,null,null,null,null,null,null,null,null,null,null,null,null,null,null,null,null,null,null,null,null,null,null,null,null,null,null,null,null,0,78.099999999999994,0,0,{"$f":"VLOOKUP(AJ76,'3.1) Infrastructure Replacement'!$AE$74:$AK$109,4,FALSE)","v":{"$error":"#N/A"}},122,{"$error":"#N/A"},{"$error":"#N/A"},{"$error":"#N/A"},0,{"$error":"#DIV/0!"},{"$error":"#N/A"},{"$error":"#N/A"},0,{"$error":"#DIV/0!"},{"$error":"#N/A"},{"$error":"#N/A"},{"$error":"#N/A"},{"$error":"#N/A"},0,{"$error":"#DIV/0!"},{"$error":"#N/A"},{"$error":"#N/A"},0,{"$error":"#DIV/0!"},0,{"$error":"#N/A"},{"$f":"IF(#REF!=0,AL76,IF(#REF!>0,AN76))","v":{"$error":"#REF!"}}]
[null,null,4,"Calcium Hypochlorite","Powdered chlorine",9,{"$f":"IF($D$19=\"Surface Water\",5,2.5)","v":2.5},null,null,null,null,null,null,null,null,null,null,null,null,null,null,null,null,null,null,null,null,null,null,null,null,null,null,null,null,null,null,null,null,null,null,null,0,79.099999999999994,0,0,{"$f":"VLOOKUP(AJ77,'3.1) Infrastructure Replacement'!$AE$74:$AK$109,4,FALSE)","v":{"$error":"#N/A"}},122,{"$error":"#N/A"},{"$error":"#N/A"},{"$error":"#N/A"},0,{"$error":"#DIV/0!"},{"$error":"#N/A"},{"$error":"#N/A"},0,{"$error":"#DIV/0!"},{"$error":"#N/A"},{"$error":"#N/A"},{"$error":"#N/A"},{"$error":"#N/A"},0,{"$error":"#DIV/0!"},{"$error":"#N/A"},{"$error":"#N/A"},0,{"$error":"#DIV/0!"},0,{"$error":"#N/A"},{"$f":"IF(#REF!=0,AL77,IF(#REF!>0,AN77))","v":{"$error":"#REF!"}}]
[null,null,"Disinfection type (option #):",1,null,null,null,null,null,null,null,null,null,null,null,null,null,null,null,null,null,null,null,null,null,null,null,null,null,null,null,null,null,null,null,null,null,null,null,null,null,null,0,80.099999999999994,0,0,{"$f":"VLOOKUP(AJ78,'3.1) Infrastructure Replacement'!$AE$74:$AK$109,4,FALSE)","v":{"$error":"#N/A"}},122,{"$error":"#N/A"},{"$error":"#N/A"},{"$error":"#N/A"},0,{"$error":"#DIV/0!"},{"$error":"#N/A"},{"$error":"#N/A"},0,{"$error":"#DIV/0!"},{"$error":"#N/A"},{"$error":"#N/A"},{"$error":"#N/A"},{"$error":"#N/A"},0,{"$error":"#DIV/0!"},{"$error":"#N/A"},{"$error":"#N/A"},0,{"$error":"#DIV/0!"},0,{"$error":"#N/A"},{"$f":"IF(#REF!=0,AL78,IF(#REF!>0,AN78))","v":{"$error":"#REF!"}}]
[null,null,"Disinfectant Type:",{"$f":"VLOOKUP(D78,C74:E77,3,FALSE)","v":"Liquid Chlorine"},null,null,null,null,null,null,null,null,null,null,null,null,null,null,null,null,null,null,null,null,null,null,null,null,null,null,null,null,null,null,null,null,null,null,null,null,null,null,0,81.099999999999994,0,0,{"$f":"VLOOKUP(AJ79,'3.1) Infrastructure Replacement'!$AE$74:$AK$109,4,FALSE)","v":{"$error":"#N/A"}},122,{"$error":"#N/A"},{"$error":"#N/A"},{"$error":"#N/A"},0,{"$error":"#DIV/0!"},{"$error":"#N/A"},{"$error":"#N/A"},0,{"$error":"#DIV/0!"},{"$error":"#N/A"},{"$error":"#N/A"},{"$error":"#N/A"},{"$error":"#N/A"},0,{"$error":"#DIV/0!"},{"$error":"#N/A"},{"$error":"#N/A"},0,{"$error":"#DIV/0!"},0,{"$error":"#N/A"},{"$f":"IF(#REF!=0,AL79,IF(#REF!>0,AN79))","v":{"$error":"#REF!"}}]
[null,null,"Disinfection Chemical:",{"$f":"VLOOKUP(D78,C74:D77,2,FALSE)","v":"Sodium Hypochlorite"},null,null,null,null,null,null,null,null,null,null,null,null,null,null,null,null,null,null,null,null,null,null,null,null,null,null,null,null,null,null,null,null,null,null,null,null,null,null,0,82.1,0,0,{"$f":"VLOOKUP(AJ80,'3.1) Infrastructure Replacement'!$AE$74:$AK$109,4,FALSE)","v":{"$error":"#N/A"}},122,{"$error":"#N/A"},{"$error":"#N/A"},{"$error":"#N/A"},0,{"$error":"#DIV/0!"},{"$error":"#N/A"},{"$error":"#N/A"},0,{"$error":"#DIV/0!"},{"$error":"#N/A"},{"$error":"#N/A"},{"$error":"#N/A"},{"$error":"#N/A"},0,{"$error":"#DIV/0!"},{"$error":"#N/A"},{"$error":"#N/A"},0,{"$error":"#DIV/0!"},0,{"$error":"#N/A"},{"$f":"IF(#REF!=0,AL80,IF(#REF!>0,AN80))","v":{"$error":"#REF!"}}]
[null,null,"UV disinfection included:",false,null,null,null,null,null,null,null,null,null,null,null,null,null,null,null,null,null,null,null,null,null,null,null,null,null,null,null,null,null,null,null,null,null,null,null,null,null,null,0,83.1,0,0,{"$f":"VLOOKUP(AJ81,'3.1) Infrastructure Replacement'!$AE$74:$AK$109,4,FALSE)","v":{"$error":"#N/A"}},122,{"$error":"#N/A"},{"$error":"#N/A"},{"$error":"#N/A"},0,{"$error":"#DIV/0!"},{"$error":"#N/A"},{"$error":"#N/A"},0,{"$error":"#DIV/0!"},{"$error":"#N/A"},{"$error":"#N/A"},{"$error":"#N/A"},{"$error":"#N/A"},0,{"$error":"#DIV/0!"},{"$error":"#N/A"},{"$error":"#N/A"},0,{"$error":"#DIV/0!"},0,{"$error":"#N/A"},{"$f":"IF(#REF!=0,AL81,IF(#REF!>0,AN81))","v":{"$error":"#REF!"}}]
[null,null,null,null,null,null,null,null,null,null,null,null,null,null,null,null,null,null,null,null,null,null,null,null,null,null,null,null,null,null,null,null,null,null,null,null,null,null,null,null,null,null,0,84.1,0,0,{"$f":"VLOOKUP(AJ82,'3.1) Infrastructure Replacement'!$AE$74:$AK$109,4,FALSE)","v":{"$error":"#N/A"}},122,{"$error":"#N/A"},{"$error":"#N/A"},{"$error":"#N/A"},0,{"$error":"#DIV/0!"},{"$error":"#N/A"},{"$error":"#N/A"},0,{"$error":"#DIV/0!"},{"$error":"#N/A"},{"$error":"#N/A"},{"$error":"#N/A"},{"$error":"#N/A"},0,{"$error":"#DIV/0!"},{"$error":"#N/A"},{"$error":"#N/A"},0,{"$error":"#DIV/0!"},0,{"$error":"#N/A"},{"$f":"IF(#REF!=0,AL82,IF(#REF!>0,AN82))","v":{"$error":"#REF!"}}]
[null,null,null,null,null,null,null,null,null,null,null,null,null,null,null,null,null,null,null,null,null,null,null,null,null,null,null,null,null,null,null,null,null,null,null,null,null,null,null,null,null,null,0,85.1,0,0,{"$f":"VLOOKUP(AJ83,'3.1) Infrastructure Replacement'!$AE$74:$AK$109,4,FALSE)","v":{"$error":"#N/A"}},122,{"$error":"#N/A"},{"$error":"#N/A"},{"$error":"#N/A"},0,{"$error":"#DIV/0!"},{"$error":"#N/A"},{"$error":"#N/A"},0,{"$error":"#DIV/0!"},{"$error":"#N/A"},{"$error":"#N/A"},{"$error":"#N/A"},{"$error":"#N/A"},0,{"$error":"#DIV/0!"},{"$error":"#N/A"},{"$error":"#N/A"},0,{"$error":"#DIV/0!"},0,{"$error":"#N/A"},{"$f":"IF(#REF!=0,AL83,IF(#REF!>0,AN83))","v":{"$error":"#REF!"}}]
[null,null,"Treatment Chemicals",null,null,null,null,null,null,null,null,null,null,null,null,null,null,null,null,null,null,null,null,null,null,null,null,null,null,null,null,null,null,null,null,null,null,null,null,null,null,null,0,86.1,0,0,{"$f":"VLOOKUP(AJ84,'3.1) Infrastructure Replacement'!$AE$74:$AK$109,4,FALSE)","v":{"$error":"#N/A"}},122,{"$error":"#N/A"},{"$error":"#N/A"},{"$error":"#N/A"},0,{"$error":"#DIV/0!"},{"$error":"#N/A"},{"$error":"#N/A"},0,{"$error":"#DIV/0!"},{"$error":"#N/A"},{"$error":"#N/A"},{"$error":"#N/A"},{"$error":"#N/A"},0,{"$error":"#DIV/0!"},{"$error":"#N/A"},{"$error":"#N/A"},0,{"$error":"#DIV/0!"},0,{"$error":"#N/A"},{"$f":"IF(#REF!=0,AL84,IF(#REF!>0,AN84))","v":{"$error":"#REF!"}}]
[null,null,"pH Adjustment Chemical #","Chemical","$/kg","Predicted Dose (mg/L)",null,null,null,null,null,null,null,null,null,null,null,null,null,null,null,null,null,null,null,null,null,null,null,null,null,null,null,null,null,null,null,null,null,null,null,null,0,87.1,0,0,{"$f":"VLOOKUP(AJ85,'3.1) Infrastructure Replacement'!$AE$74:$AK$109,4,FALSE)","v":{"$error":"#N/A"}},122,{"$error":"#N/A"},{"$error":"#N/A"},{"$error":"#N/A"},0,{"$error":"#DIV/0!"},{"$error":"#N/A"},{"$error":"#N/A"},0,{"$error":"#DIV/0!"},{"$error":"#N/A"},{"$error":"#N/A"},{"$error":"#N/A"},{"$error":"#N/A"},0,{"$error":"#DIV/0!"},{"$error":"#N/A"},{"$error":"#N/A"},0,{"$error":"#DIV/0!"},0,{"$error":"#N/A"},{"$f":"IF(#REF!=0,AL85,IF(#REF!>0,AN85))","v":{"$error":"#REF!"}}]
[null,null,1,"None",0,0,null,null,null,null,null,null,null,null,null,null,null,null,null,null,null,null,null,null,null,null,null,null,null,null,null,null,null,null,null,null,null,null,null,null,null,null,0,88.1,0,0,{"$f":"VLOOKUP(AJ86,'3.1) Infrastructure Replacement'!$AE$74:$AK$109,4,FALSE)","v":{"$error":"#N/A"}},122,{"$error":"#N/A"},{"$error":"#N/A"},{"$error":"#N/A"},0,{"$error":"#DIV/0!"},{"$error":"#N/A"},{"$error":"#N/A"},0,{"$error":"#DIV/0!"},{"$error":"#N/A"},{"$error":"#N/A"},{"$error":"#N/A"},{"$error":"#N/A"},0,{"$error":"#DIV/0!"},{"$error":"#N/A"},{"$error":"#N/A"},0,{"$error":"#DIV/0!"},0,{"$error":"#N/A"},{"$f":"IF(#REF!=0,AL86,IF(#REF!>0,AN86))","v":{"$error":"#REF!"}}]
[null,null,2,"Soda Ash",1.55,30,null,null,null,null,null,null,null,null,null,null,null,null,null,null,null,null,null,null,null,null,null,null,null,null,null,null,null,null,null,null,null,null,null,null,null,null,0,89.1,0,0,{"$f":"VLOOKUP(AJ87,'3.1) Infrastructure Replacement'!$AE$74:$AK$109,4,FALSE)","v":{"$error":"#N/A"}},122,{"$error":"#N/A"},{"$error":"#N/A"},{"$error":"#N/A"},0,{"$error":"#DIV/0!"},{"$error":"#N/A"},{"$error":"#N/A"},0,{"$error":"#DIV/0!"},{"$error":"#N/A"},{"$error":"#N/A"},{"$error":"#N/A"},{"$error":"#N/A"},0,{"$error":"#DIV/0!"},{"$error":"#N/A"},{"$error":"#N/A"},0,{"$error":"#DIV/0!"},0,{"$error":"#N/A"},{"$f":"IF(#REF!=0,AL87,IF(#REF!>0,AN87))","v":{"$error":"#REF!"}}]
[null,null,3,"Lime",1.1000000000000001,11,null,null,null,null,null,null,null,null,null,null,null,null,null,null,null,null,null,null,null,null,null,null,null,null,null,null,null,null,null,null,null,null,null,null,null,null,0,90.1,0,0,{"$f":"VLOOKUP(AJ88,'3.1) Infrastructure Replacement'!$AE$74:$AK$109,4,FALSE)","v":{"$error":"#N/A"}},122,{"$error":"#N/A"},{"$error":"#N/A"},{"$error":"#N/A"},0,{"$error":"#DIV/0!"},{"$error":"#N/A"},{"$error":"#N/A"},0,{"$error":"#DIV/0!"},{"$error":"#N/A"},{"$error":"#N/A"},{"$error":"#N/A"},{"$error":"#N/A"},0,{"$error":"#DIV/0!"},{"$error":"#N/A"},{"$error":"#N/A"},0,{"$error":"#DIV/0!"},0,{"$error":"#N/A"},{"$f":"IF(#REF!=0,AL88,IF(#REF!>0,AN88))","v":{"$error":"#REF!"}}]
[null,null,4,"Caustic Soda",1.5,12,null,null,null,null,null,null,null,null,null,null,null,null,null,null,null,null,null,null,null,null,null,null,null,null,null,null,null,null,null,null,null,null,null,null,null,null,0,91.1,0,0,{"$f":"VLOOKUP(AJ89,'3.1) Infrastructure Replacement'!$AE$74:$AK$109,4,FALSE)","v":{"$error":"#N/A"}},122,{"$error":"#N/A"},{"$error":"#N/A"},{"$error":"#N/A"},0,{"$error":"#DIV/0!"},{"$error":"#N/A"},{"$error":"#N/A"},0,{"$error":"#DIV/0!"},{"$error":"#N/A"},{"$error":"#N/A"},{"$error":"#N/A"},{"$error":"#N/A"},0,{"$error":"#DIV/0!"},{"$error":"#N/A"},{"$error":"#N/A"},0,{"$error":"#DIV/0!"},0,{"$error":"#N/A"},{"$f":"IF(#REF!=0,AL89,IF(#REF!>0,AN89))","v":{"$error":"#REF!"}}]
[null,null,"pH adjustment chemical Option #:",1,null,null,null,null,null,null,null,null,null,null,null,null,null,null,null,null,null,null,null,null,null,null,null,null,null,null,null,null,null,null,null,null,null,null,null,null,null,null,0,92.1,0,0,{"$f":"VLOOKUP(AJ90,'3.1) Infrastructure Replacement'!$AE$74:$AK$109,4,FALSE)","v":{"$error":"#N/A"}},122,{"$error":"#N/A"},{"$error":"#N/A"},{"$error":"#N/A"},0,{"$error":"#DIV/0!"},{"$error":"#N/A"},{"$error":"#N/A"},0,{"$error":"#DIV/0!"},{"$error":"#N/A"},{"$error":"#N/A"},{"$error":"#N/A"},{"$error":"#N/A"},0,{"$error":"#DIV/0!"},{"$error":"#N/A"},{"$error":"#N/A"},0,{"$error":"#DIV/0!"},0,{"$error":"#N/A"},{"$f":"IF(#REF!=0,AL90,IF(#REF!>0,AN90))","v":{"$error":"#REF!"}}]
[null,null,"pH adjustment chemical selected:",{"$f":"VLOOKUP(D90,C86:D89,2,FALSE)","v":"None"},null,null,null,null,null,null,null,null,null,null,null,null,null,null,null,null,null,null,null,null,null,null,null,null,null,null,null,null,null,null,null,null,null,null,null,null,null,null,0,93.1,0,0,{"$f":"VLOOKUP(AJ91,'3.1) Infrastructure Replacement'!$AE$74:$AK$109,4,FALSE)","v":{"$error":"#N/A"}},122,{"$error":"#N/A"},{"$error":"#N/A"},{"$error":"#N/A"},0,{"$error":"#DIV/0!"},{"$error":"#N/A"},{"$error":"#N/A"},0,{"$error":"#DIV/0!"},{"$error":"#N/A"},{"$error":"#N/A"},{"$error":"#N/A"},{"$error":"#N/A"},0,{"$error":"#DIV/0!"},{"$error":"#N/A"},{"$error":"#N/A"},0,{"$error":"#DIV/0!"},0,{"$error":"#N/A"},{"$f":"IF(#REF!=0,AL91,IF(#REF!>0,AN91))","v":{"$error":"#REF!"}}]
[null,null,null,null,null,null,null,null,null,null,null,null,null,null,null,null,null,null,null,null,null,null,null,null,null,null,null,null,null,null,null,null,null,null,null,null,null,null,null,null,null,null,0,94.1,0,0,{"$f":"VLOOKUP(AJ92,'3.1) Infrastructure Replacement'!$AE$74:$AK$109,4,FALSE)","v":{"$error":"#N/A"}},122,{"$error":"#N/A"},{"$error":"#N/A"},{"$error":"#N/A"},0,{"$error":"#DIV/0!"},{"$error":"#N/A"},{"$error":"#N/A"},0,{"$error":"#DIV/0!"},{"$error":"#N/A"},{"$error":"#N/A"},{"$error":"#N/A"},{"$error":"#N/A"},0,{"$error":"#DIV/0!"},{"$error":"#N/A"},{"$error":"#N/A"},0,{"$error":"#DIV/0!"},0,{"$error":"#N/A"},{"$f":"IF(#REF!=0,AL92,IF(#REF!>0,AN92))","v":{"$error":"#REF!"}}]
[null,null,null,null,null,null,null,null,null,null,null,null,null,null,null,null,null,null,null,null,null,null,null,null,null,null,null,null,null,null,null,null,null,null,null,null,null,null,null,null,null,null,0,95.1,0,0,{"$f":"VLOOKUP(AJ93,'3.1) Infrastructure Replacement'!$AE$74:$AK$109,4,FALSE)","v":{"$error":"#N/A"}},122,{"$error":"#N/A"},{"$error":"#N/A"},{"$error":"#N/A"},0,{"$error":"#DIV/0!"},{"$error":"#N/A"},{"$error":"#N/A"},0,{"$error":"#DIV/0!"},{"$error":"#N/A"},{"$error":"#N/A"},{"$error":"#N/A"},{"$error":"#N/A"},0,{"$error":"#DIV/0!"},{"$error":"#N/A"},{"$error":"#N/A"},0,{"$error":"#DIV/0!"},0,{"$error":"#N/A"},{"$f":"IF(#REF!=0,AL93,IF(#REF!>0,AN93))","v":{"$error":"#REF!"}}]
[null,null,"Treatment Process","Included?",null,null,null,null,null,null,null,null,null,null,null,null,null,null,null,null,null,null,null,null,null,null,null,null,null,null,null,null,null,null,null,null,null,null,null,null,null,null,0,96.1,0,0,{"$f":"VLOOKUP(AJ94,'3.1) Infrastructure Replacement'!$AE$74:$AK$109,4,FALSE)","v":{"$error":"#N/A"}},122,{"$error":"#N/A"},{"$error":"#N/A"},{"$error":"#N/A"},0,{"$error":"#DIV/0!"},{"$error":"#N/A"},{"$error":"#N/A"},0,{"$error":"#DIV/0!"},{"$error":"#N/A"},{"$error":"#N/A"},{"$error":"#N/A"},{"$error":"#N/A"},0,{"$error":"#DIV/0!"},{"$error":"#N/A"},{"$error":"#N/A"},0,{"$error":"#DIV/0!"},0,{"$error":"#N/A"},{"$f":"IF(#REF!=0,AL94,IF(#REF!>0,AN94))","v":{"$error":"#REF!"}}]
[null,null,"None",false,null,null,null,null,null,null,null,null,null,null,null,null,null,null,null,null,null,null,null,null,null,null,null,null,null,null,null,null,null,null,null,null,null,null,null,null,null,null,0,97.1,0,0,{"$f":"VLOOKUP(AJ95,'3.1) Infrastructure Replacement'!$AE$74:$AK$109,4,FALSE)","v":{"$error":"#N/A"}},122,{"$error":"#N/A"},{"$error":"#N/A"},{"$error":"#N/A"},0,{"$error":"#DIV/0!"},{"$error":"#N/A"},{"$error":"#N/A"},0,{"$error":"#DIV/0!"},{"$error":"#N/A"},{"$error":"#N/A"},{"$error":"#N/A"},{"$error":"#N/A"},0,{"$error":"#DIV/0!"},{"$error":"#N/A"},{"$error":"#N/A"},0,{"$error":"#DIV/0!"},0,{"$error":"#N/A"},{"$f":"IF(#REF!=0,AL95,IF(#REF!>0,AN95))","v":{"$error":"#REF!"}}]
[null,null,"Inline Filtration",false,null,null,null,null,null,null,null,null,null,null,null,null,null,null,null,null,null,null,null,null,null,null,null,null,null,null,null,null,null,null,null,null,null,null,null,null,null,null,0,98.1,0,0,{"$f":"VLOOKUP(AJ96,'3.1) Infrastructure Replacement'!$AE$74:$AK$109,4,FALSE)","v":{"$error":"#N/A"}},122,{"$error":"#N/A"},{"$error":"#N/A"},{"$error":"#N/A"},0,{"$error":"#DIV/0!"},{"$error":"#N/A"},{"$error":"#N/A"},0,{"$error":"#DIV/0!"},{"$error":"#N/A"},{"$error":"#N/A"},{"$error":"#N/A"},{"$error":"#N/A"},0,{"$error":"#DIV/0!"},{"$error":"#N/A"},{"$error":"#N/A"},0,{"$error":"#DIV/0!"},0,{"$error":"#N/A"},{"$f":"IF(#REF!=0,AL96,IF(#REF!>0,AN96))","v":{"$error":"#REF!"}}]
[null,null,"Iron / Manganese Removal",false,null,null,null,null,null,null,null,null,null,null,null,null,null,null,null,null,null,null,null,null,null,null,null,null,null,null,null,null,null,null,null,null,null,null,null,null,null,null,0,99.1,0,0,{"$f":"VLOOKUP(AJ97,'3.1) Infrastructure Replacement'!$AE$74:$AK$109,4,FALSE)","v":{"$error":"#N/A"}},122,{"$error":"#N/A"},{"$error":"#N/A"},{"$error":"#N/A"},0,{"$error":"#DIV/0!"},{"$error":"#N/A"},{"$error":"#N/A"},0,{"$error":"#DIV/0!"},{"$error":"#N/A"},{"$error":"#N/A"},{"$error":"#N/A"},{"$error":"#N/A"},0,{"$error":"#DIV/0!"},{"$error":"#N/A"},{"$error":"#N/A"},0,{"$error":"#DIV/0!"},0,{"$error":"#N/A"},{"$f":"IF(#REF!=0,AL97,IF(#REF!>0,AN97))","v":{"$error":"#REF!"}}]
[null,null,"Arsenic Removal",false,null,null,null,null,null,null,null,null,null,null,null,null,null,null,null,null,null,null,null,null,null,null,null,null,null,null,null,null,null,null,null,null,null,null,null,null,null,null,0,100.1,0,0,{"$f":"VLOOKUP(AJ98,'3.1) Infrastructure Replacement'!$AE$74:$AK$109,4,FALSE)","v":{"$error":"#N/A"}},122,{"$error":"#N/A"},{"$error":"#N/A"},{"$error":"#N/A"},0,{"$error":"#DIV/0!"},{"$error":"#N/A"},{"$error":"#N/A"},0,{"$error":"#DIV/0!"},{"$error":"#N/A"},{"$error":"#N/A"},{"$error":"#N/A"},{"$error":"#N/A"},0,{"$error":"#DIV/0!"},{"$error":"#N/A"},{"$error":"#N/A"},0,{"$error":"#DIV/0!"},0,{"$error":"#N/A"},{"$f":"IF(#REF!=0,AL98,IF(#REF!>0,AN98))","v":{"$error":"#REF!"}}]
[null,null,"Membrane Treatment ",false,null,null,null,null,null,null,null,null,null,null,null,null,null,null,null,null,null,null,null,null,null,null,null,null,null,null,null,null,null,null,null,null,null,null,null,null,null,null,0,101.1,0,0,{"$f":"VLOOKUP(AJ99,'3.1) Infrastructure Replacement'!$AE$74:$AK$109,4,FALSE)","v":{"$error":"#N/A"}},122,{"$error":"#N/A"},{"$error":"#N/A"},{"$error":"#N/A"},0,{"$error":"#DIV/0!"},{"$error":"#N/A"},{"$error":"#N/A"},0,{"$error":"#DIV/0!"},{"$error":"#N/A"},{"$error":"#N/A"},{"$error":"#N/A"},{"$error":"#N/A"},0,{"$error":"#DIV/0!"},{"$error":"#N/A"},{"$error":"#N/A"},0,{"$error":"#DIV/0!"},0,{"$error":"#N/A"},{"$f":"IF(#REF!=0,AL99,IF(#REF!>0,AN99))","v":{"$error":"#REF!"}}]
[null,null,"Conventional WTP",false,null,null,null,null,null,null,null,null,null,null,null,null,null,null,null,null,null,null,null,null,null,null,null,null,null,null,null,null,null,null,null,null,null,null,null,null,null,null,0,102.1,0,0,{"$f":"VLOOKUP(AJ100,'3.1) Infrastructure Replacement'!$AE$74:$AK$109,4,FALSE)","v":{"$error":"#N/A"}},122,{"$error":"#N/A"},{"$error":"#N/A"},{"$error":"#N/A"},0,{"$error":"#DIV/0!"},{"$error":"#N/A"},{"$error":"#N/A"},0,{"$error":"#DIV/0!"},{"$error":"#N/A"},{"$error":"#N/A"},{"$error":"#N/A"},{"$error":"#N/A"},0,{"$error":"#DIV/0!"},{"$error":"#N/A"},{"$error":"#N/A"},0,{"$error":"#DIV/0!"},0,{"$error":"#N/A"},{"$f":"IF(#REF!=0,AL100,IF(#REF!>0,AN100))","v":{"$error":"#REF!"}}]
[null,null,"PWDU",false,null,null,null,null,null,null,null,null,null,null,null,null,null,null,null,null,null,null,null,null,null,null,null,null,null,null,null,null,null,null,null,null,null,null,null,null,null,null,0,103.1,0,0,{"$f":"VLOOKUP(AJ101,'3.1) Infrastructure Replacement'!$AE$74:$AK$109,4,FALSE)","v":{"$error":"#N/A"}},122,{"$error":"#N/A"},{"$error":"#N/A"},{"$error":"#N/A"},0,{"$error":"#DIV/0!"},{"$error":"#N/A"},{"$error":"#N/A"},0,{"$error":"#DIV/0!"},{"$error":"#N/A"},{"$error":"#N/A"},{"$error":"#N/A"},{"$error":"#N/A"},0,{"$error":"#DIV/0!"},{"$error":"#N/A"},{"$error":"#N/A"},0,{"$error":"#DIV/0!"},0,{"$error":"#N/A"},{"$f":"IF(#REF!=0,AL101,IF(#REF!>0,AN101))","v":{"$error":"#REF!"}}]
[null,null,null,null,null,null,null,null,null,null,null,null,null,null,null,null,null,null,null,null,null,null,null,null,null,null,null,null,null,null,null,null,null,null,null,null,null,null,null,null,null,null,0,104.1,0,0,{"$f":"VLOOKUP(AJ102,'3.1) Infrastructure Replacement'!$AE$74:$AK$109,4,FALSE)","v":{"$error":"#N/A"}},122,{"$error":"#N/A"},{"$error":"#N/A"},{"$error":"#N/A"},0,{"$error":"#DIV/0!"},{"$error":"#N/A"},{"$error":"#N/A"},0,{"$error":"#DIV/0!"},{"$error":"#N/A"},{"$error":"#N/A"},{"$error":"#N/A"},{"$error":"#N/A"},0,{"$error":"#DIV/0!"},{"$error":"#N/A"},{"$error":"#N/A"},0,{"$error":"#DIV/0!"},0,{"$error":"#N/A"},{"$f":"IF(#REF!=0,AL102,IF(#REF!>0,AN102))","v":{"$error":"#REF!"}}]
[null,null,null,null,null,null,null,null,null,null,null,null,null,null,null,null,null,null,null,null,null,null,null,null,null,null,null,null,null,null,null,null,null,null,null,null,null,null,null,null,null,null,0,105.1,0,0,{"$f":"VLOOKUP(AJ103,'3.1) Infrastructure Replacement'!$AE$74:$AK$109,4,FALSE)","v":{"$error":"#N/A"}},122,{"$error":"#N/A"},{"$error":"#N/A"},{"$error":"#N/A"},0,{"$error":"#DIV/0!"},{"$error":"#N/A"},{"$error":"#N/A"},0,{"$error":"#DIV/0!"},{"$error":"#N/A"},{"$error":"#N/A"},{"$error":"#N/A"},{"$error":"#N/A"},0,{"$error":"#DIV/0!"},{"$error":"#N/A"},{"$error":"#N/A"},0,{"$error":"#DIV/0!"},0,{"$error":"#N/A"},{"$f":"IF(#REF!=0,AL103,IF(#REF!>0,AN103))","v":{"$error":"#REF!"}}]
[null,null,null,"Population Under 500?",{"$f":"IF(D47>499, \"OVER\", \"UNDER\")","v":"UNDER"},null,null,null,null,null,null,null,null,null,null,null,null,null,null,null,null,null,null,null,null,null,null,null,null,null,null,null,null,null,null,null,null,null,null,null,null,null,0,106.1,0,0,{"$f":"VLOOKUP(AJ104,'3.1) Infrastructure Replacement'!$AE$74:$AK$109,4,FALSE)","v":{"$error":"#N/A"}},122,{"$error":"#N/A"},{"$error":"#N/A"},{"$error":"#N/A"},0,{"$error":"#DIV/0!"},{"$error":"#N/A"},{"$error":"#N/A"},0,{"$error":"#DIV/0!"},{"$error":"#N/A"},{"$error":"#N/A"},{"$error":"#N/A"},{"$error":"#N/A"},0,{"$error":"#DIV/0!"},{"$error":"#N/A"},{"$error":"#N/A"},0,{"$error":"#DIV/0!"},0,{"$error":"#N/A"},{"$f":"IF(#REF!=0,AL104,IF(#REF!>0,AN104))","v":{"$error":"#REF!"}}]
[null,null,"O&M Costs for Treatment Items:",null,"Population Under 500",null,null,"Population Over 500",null,null,null,null,null,null,null,null,null,null,null,null,null,null,null,null,null,null,null,null,null,null,null,null,null,null,null,null,null,null,null,null,null,null,null,0,107.1,0,0,{"$f":"VLOOKUP(AK105,'3.1) Infrastructure Replacement'!$AE$74:$AK$109,4,FALSE)","v":{"$error":"#N/A"}},122,{"$error":"#N/A"},{"$error":"#N/A"},{"$error":"#N/A"},0,{"$error":"#DIV/0!"},{"$error":"#N/A"},{"$error":"#N/A"},0,{"$error":"#DIV/0!"},{"$error":"#N/A"},{"$error":"#N/A"},{"$error":"#N/A"},{"$error":"#N/A"},0,{"$error":"#DIV/0!"},{"$error":"#N/A"},{"$error":"#N/A"},0,{"$error":"#DIV/0!"},0,{"$error":"#N/A"},{"$f":"IF(#REF!=0,AM105,IF(#REF!>0,AO105))","v":{"$error":"#REF!"}}]
[null,null,"Treatment Type","Selected?","Slope","Intercept",null,"Slope","Intercept","Cost",null,null,null,null,null,null,null,null,null,null,null,null,null,null,null,null,null,null,null,null,null,null,null,null,null,null,null,null,null,null,null,null,null,null,null,0,108.1,0,0,{"$f":"VLOOKUP(AM106,'3.1) Infrastructure Replacement'!$AE$74:$AK$109,4,FALSE)","v":{"$error":"#N/A"}},122,{"$error":"#N/A"},{"$error":"#N/A"},{"$error":"#N/A"},0,{"$error":"#DIV/0!"},{"$error":"#N/A"},{"$error":"#N/A"},0,{"$error":"#DIV/0!"},{"$error":"#N/A"},{"$error":"#N/A"},{"$error":"#N/A"},{"$error":"#N/A"},0,{"$error":"#DIV/0!"},{"$error":"#N/A"},{"$error":"#N/A"},0,{"$error":"#DIV/0!"},0,{"$error":"#N/A"},{"$f":"IF(#REF!=0,AO106,IF(#REF!>0,AQ106))","v":{"$error":"#REF!"}}]
[null,null,"Disinfection with Sodium Hypochlorite",{"$f":"IF(D78=1,TRUE,FALSE)","v":true},{"$f":"(H107*$D$57+I107-F107)/170","v":35.747679503012684},{"$f":"0.1*I107","v":675.2339461680175},{"$f":"IF(OR($D$57<0.00001,D107=FALSE,$E$104=\"OVER\"),0,($D$57*E107+F107))","v":0},24.560345823878983,6752.3394616801743,{"$f":"IF(OR($D$57<0.00001,D107=FALSE,$E$104=\"UNDER\"),0,D107*(I107+H107*$D$57))","v":0},null,null,null,null,null,null,null,null,null,null,null,null,null,null,null,null,null,null,null,null,null,null,null,null,null,null,null,null,null,null,null,null,null,null,null,0,109.1,0,0,{"$f":"VLOOKUP(AM107,'3.1) Infrastructure Replacement'!$AE$74:$AK$109,4,FALSE)","v":{"$error":"#N/A"}},122,{"$error":"#N/A"},{"$error":"#N/A"},{"$error":"#N/A"},0,{"$error":"#DIV/0!"},{"$error":"#N/A"},{"$error":"#N/A"},0,{"$error":"#DIV/0!"},{"$error":"#N/A"},{"$error":"#N/A"},{"$error":"#N/A"},{"$error":"#N/A"},0,{"$error":"#DIV/0!"},{"$error":"#N/A"},{"$error":"#N/A"},0,{"$error":"#DIV/0!"},0,{"$error":"#N/A"},{"$f":"IF(#REF!=0,AO107,IF(#REF!>0,AQ107))","v":{"$error":"#REF!"}}]
[null,null,"Disinfection with Chlorine Gas",{"$f":"IF(D78=2,TRUE,FALSE)","v":false},{"$f":"(H108*$D$57+I108-F108)/170","v":44.775805975515745},{"$f":"0.1*I108","v":845.76522398196414},{"$f":"IF(OR($D$57<0.00001,D108=FALSE,$E$104=\"OVER\"),0,($D$57*E108+F108))","v":0},17.892213890256492,8457.6522398196412,{"$f":"IF(OR($D$57<0.00001,D108=FALSE,$E$104=\"UNDER\"),0,D108*(I108+H108*$D$57))","v":0},null,null,null,null,null,null,null,null,null,null,null,null,null,null,null,null,null,null,null,null,null,null,null,null,null,null,null,null,null,null,null,null,null,null,null,0,110.1,0,0,{"$f":"VLOOKUP(AM108,'3.1) Infrastructure Replacement'!$AE$74:$AK$109,4,FALSE)","v":{"$error":"#N/A"}},122,{"$error":"#N/A"},{"$error":"#N/A"},{"$error":"#N/A"},0,{"$error":"#DIV/0!"},{"$error":"#N/A"},{"$error":"#N/A"},0,{"$error":"#DIV/0!"},{"$error":"#N/A"},{"$error":"#N/A"},{"$error":"#N/A"},{"$error":"#N/A"},0,{"$error":"#DIV/0!"},{"$error":"#N/A"},{"$error":"#N/A"},0,{"$error":"#DIV/0!"},0,{"$error":"#N/A"},{"$f":"IF(#REF!=0,AO108,IF(#REF!>0,AQ108))","v":{"$error":"#REF!"}}]
[null,null,"Disinfection with OSHG",{"$f":"IF(D78=3,TRUE,FALSE)","v":false},109.81746110464294,2074.3298208654778,{"$f":"IF(OR($D$57<0.00001,D109=FALSE,$E$104=\"OVER\"),0,($D$57*E109+F109))","v":0},11.303012941653165,20743.298208654778,0,null,null,null,null,null,null,null,null,null,null,null,null,null,null,null,null,null,null,null,null,null,null,null,null,null,null,null,null,null,null,null,null,null,null,null,0,111.1,0,0,{"$f":"VLOOKUP(AM109,'3.1) Infrastructure Replacement'!$AE$74:$AK$109,4,FALSE)","v":{"$error":"#N/A"}},122,{"$error":"#N/A"},{"$error":"#N/A"},{"$error":"#N/A"},0,{"$error":"#DIV/0!"},{"$error":"#N/A"},{"$error":"#N/A"},0,{"$error":"#DIV/0!"},{"$error":"#N/A"},{"$error":"#N/A"},{"$error":"#N/A"},{"$error":"#N/A"},0,{"$error":"#DIV/0!"},{"$error":"#N/A"},{"$error":"#N/A"},0,{"$error":"#DIV/0!"},0,{"$error":"#N/A"},{"$f":"IF(#REF!=0,AO109,IF(#REF!>0,AQ109))","v":{"$error":"#REF!"}}]
[null,null,"Disinfection with Calcium Hypochlorite",{"$f":"IF(D78=4,TRUE,FALSE)","v":false},30.298256297750033,572.30039673527847,0,19.840191853052399,5723.0039673527845,0,null,null,null,null,null,null,null,null,null,null,null,null,null,null,null,null,null,null,null,null,null,null,null,null,null,null,null,null,null,null,null,null,null,null,null,0,112.1,0,0,{"$f":"VLOOKUP(AM110,'3.1) Infrastructure Replacement'!$AE$74:$AK$109,4,FALSE)","v":{"$error":"#N/A"}},122,{"$error":"#N/A"},{"$error":"#N/A"},{"$error":"#N/A"},0,{"$error":"#DIV/0!"},{"$error":"#N/A"},{"$error":"#N/A"},0,{"$error":"#DIV/0!"},{"$error":"#N/A"},{"$error":"#N/A"},{"$error":"#N/A"},{"$error":"#N/A"},0,{"$error":"#DIV/0!"},{"$error":"#N/A"},{"$error":"#N/A"},0,{"$error":"#DIV/0!"},0,{"$error":"#N/A"},{"$f":"IF(#REF!=0,AO110,IF(#REF!>0,AQ110))","v":{"$error":"#REF!"}}]
[null,null,"UV Disinfection",{"$f":"IF(D81=TRUE,TRUE,FALSE)","v":false},9.8046195465487624,185.19836921258775,0,9.1560742618854682,1851.9836921258775,0,null,null,null,null,null,null,null,null,null,null,null,null,null,null,null,null,null,null,null,null,null,null,null,null,null,null,null,null,null,null,null,null,null,null,null,0,113.1,0,0,{"$f":"VLOOKUP(AM111,'3.1) Infrastructure Replacement'!$AE$74:$AK$109,4,FALSE)","v":{"$error":"#N/A"}},122,{"$error":"#N/A"},{"$error":"#N/A"},{"$error":"#N/A"},0,{"$error":"#DIV/0!"},{"$error":"#N/A"},{"$error":"#N/A"},0,{"$error":"#DIV/0!"},{"$error":"#N/A"},{"$error":"#N/A"},{"$error":"#N/A"},{"$error":"#N/A"},0,{"$error":"#DIV/0!"},{"$error":"#N/A"},{"$error":"#N/A"},0,{"$error":"#DIV/0!"},0,{"$error":"#N/A"},{"$f":"IF(#REF!=0,AO111,IF(#REF!>0,AQ111))","v":{"$error":"#REF!"}}]
[null,null,"+ pH adjustment with Soda Ash",{"$f":"IF(D90=2,TRUE,FALSE)","v":false},14.484449505825154,273.59515733225288,0,22.201576274230145,2735.9515733225289,0,null,null,null,null,null,null,null,null,null,null,null,null,null,null,null,null,null,null,null,null,null,null,null,null,null,null,null,null,null,null,null,null,null,null,null,0,114.1,0,0,{"$f":"VLOOKUP(AM112,'3.1) Infrastructure Replacement'!$AE$74:$AK$109,4,FALSE)","v":{"$error":"#N/A"}},122,{"$error":"#N/A"},{"$error":"#N/A"},{"$error":"#N/A"},0,{"$error":"#DIV/0!"},{"$error":"#N/A"},{"$error":"#N/A"},0,{"$error":"#DIV/0!"},{"$error":"#N/A"},{"$error":"#N/A"},{"$error":"#N/A"},{"$error":"#N/A"},0,{"$error":"#DIV/0!"},{"$error":"#N/A"},{"$error":"#N/A"},0,{"$error":"#DIV/0!"},0,{"$error":"#N/A"},{"$f":"IF(#REF!=0,AO112,IF(#REF!>0,AQ112))","v":{"$error":"#REF!"}}]
[null,null,"+ pH adjustment with Lime",{"$f":"IF(D90=3,TRUE,FALSE)","v":false},20.193790720430925,381.43826916369528,0,11.8637934541329,3814.3826916369526,0,null,null,null,null,null,null,null,null,null,null,null,null,null,null,null,null,null,null,null,null,null,null,null,null,null,null,null,null,null,null,null,null,null,null,null,0,115.1,0,0,{"$f":"VLOOKUP(AM113,'3.1) Infrastructure Replacement'!$AE$74:$AK$109,4,FALSE)","v":{"$error":"#N/A"}},122,{"$error":"#N/A"},{"$error":"#N/A"},{"$error":"#N/A"},0,{"$error":"#DIV/0!"},{"$error":"#N/A"},{"$error":"#N/A"},0,{"$error":"#DIV/0!"},{"$error":"#N/A"},{"$error":"#N/A"},{"$error":"#N/A"},{"$error":"#N/A"},0,{"$error":"#DIV/0!"},{"$error":"#N/A"},{"$error":"#N/A"},0,{"$error":"#DIV/0!"},0,{"$error":"#N/A"},{"$f":"IF(#REF!=0,AO113,IF(#REF!>0,AQ113))","v":{"$error":"#REF!"}}]
[null,null,"+ pH adjustment with Caustic Soda",{"$f":"IF(D90=4, TRUE,FALSE)","v":false},9.9087971203165193,187.16616782820094,0,11.086855202593194,1871.6616782820092,{"$f":"IF(OR($D$57<0.00001,D114=FALSE,$E$104=\"UNDER\"),0,D114*(I114+H114*$D$57))","v":0},null,null,null,null,null,null,null,null,null,null,null,null,null,null,null,null,null,null,null,null,null,null,null,null,null,null,null,null,null,null,null,null,null,null,null,0,116.1,0,0,{"$f":"VLOOKUP(AM114,'3.1) Infrastructure Replacement'!$AE$74:$AK$109,4,FALSE)","v":{"$error":"#N/A"}},122,{"$error":"#N/A"},{"$error":"#N/A"},{"$error":"#N/A"},0,{"$error":"#DIV/0!"},{"$error":"#N/A"},{"$error":"#N/A"},0,{"$error":"#DIV/0!"},{"$error":"#N/A"},{"$error":"#N/A"},{"$error":"#N/A"},{"$error":"#N/A"},0,{"$error":"#DIV/0!"},{"$error":"#N/A"},{"$error":"#N/A"},0,{"$error":"#DIV/0!"},0,{"$error":"#N/A"},{"$f":"IF(#REF!=0,AO114,IF(#REF!>0,AQ114))","v":{"$error":"#REF!"}}]
[null,null,"Inline Filtration",{"$f":"D96","v":false},25.717039960911425,485.76631037277133,0,15.309744675227705,4857.663103727713,0,null,null,null,null,null,null,null,null,null,null,null,null,null,null,null,null,null,null,null,null,null,null,null,null,null,null,null,null,null,null,null,null,null,null,null,0,117.1,0,0,{"$f":"VLOOKUP(AM115,'3.1) Infrastructure Replacement'!$AE$74:$AK$109,4,FALSE)","v":{"$error":"#N/A"}},122,{"$error":"#N/A"},{"$error":"#N/A"},{"$error":"#N/A"},0,{"$error":"#DIV/0!"},{"$error":"#N/A"},{"$error":"#N/A"},0,{"$error":"#DIV/0!"},{"$error":"#N/A"},{"$error":"#N/A"},{"$error":"#N/A"},{"$error":"#N/A"},0,{"$error":"#DIV/0!"},{"$error":"#N/A"},{"$error":"#N/A"},0,{"$error":"#DIV/0!"},0,{"$error":"#N/A"},{"$f":"IF(#REF!=0,AO115,IF(#REF!>0,AQ115))","v":{"$error":"#REF!"}}]
[null,null,"Iron / Manganes Removal",false,15.471161612165139,292.23305267423041,0,20.864488565017009,2922.3305267423038,{"$f":"IF(OR($D$57<0.00001,D116=FALSE,$E$104=\"UNDER\"),0,D116*(I116+H116*$D$57))","v":0},null,null,null,null,null,null,null,null,null,null,null,null,null,null,null,null,null,null,null,null,null,null,null,null,null,null,null,null,null,null,null,null,null,null,null,0,118.1,0,0,{"$f":"VLOOKUP(AM116,'3.1) Infrastructure Replacement'!$AE$74:$AK$109,4,FALSE)","v":{"$error":"#N/A"}},122,{"$error":"#N/A"},{"$error":"#N/A"},{"$error":"#N/A"},0,{"$error":"#DIV/0!"},{"$error":"#N/A"},{"$error":"#N/A"},0,{"$error":"#DIV/0!"},{"$error":"#N/A"},{"$error":"#N/A"},{"$error":"#N/A"},{"$error":"#N/A"},0,{"$error":"#DIV/0!"},{"$error":"#N/A"},{"$error":"#N/A"},0,{"$error":"#DIV/0!"},0,{"$error":"#N/A"},{"$f":"IF(#REF!=0,AO116,IF(#REF!>0,AQ116))","v":{"$error":"#REF!"}}]
[null,null,"Arsenic Removal",false,16.86568711507292,318.5740899513774,0,20.855287624984591,3185.7408995137739,0,null,null,null,null,null,null,null,null,null,null,null,null,null,null,null,null,null,null,null,null,null,null,null,null,null,null,null,null,null,null,null,null,null,null,null,0,119.1,0,0,{"$f":"VLOOKUP(AM117,'3.1) Infrastructure Replacement'!$AE$74:$AK$109,4,FALSE)","v":{"$error":"#N/A"}},122,{"$error":"#N/A"},{"$error":"#N/A"},{"$error":"#N/A"},0,{"$error":"#DIV/0!"},{"$error":"#N/A"},{"$error":"#N/A"},0,{"$error":"#DIV/0!"},{"$error":"#N/A"},{"$error":"#N/A"},{"$error":"#N/A"},{"$error":"#N/A"},0,{"$error":"#DIV/0!"},{"$error":"#N/A"},{"$error":"#N/A"},0,{"$error":"#DIV/0!"},0,{"$error":"#N/A"},{"$f":"IF(#REF!=0,AO117,IF(#REF!>0,AQ117))","v":{"$error":"#REF!"}}]
[null,null,"Membrane Treatment",false,327.04563308978368,6177.5286250292484,0,59.808470355596754,61775.286250292476,0,null,null,null,null,null,null,null,null,null,null,null,null,null,null,null,null,null,null,null,null,null,null,null,null,null,null,null,null,null,null,null,null,null,null,null,0,120.1,0,0,{"$f":"VLOOKUP(AM118,'3.1) Infrastructure Replacement'!$AE$74:$AK$109,4,FALSE)","v":{"$error":"#N/A"}},122,{"$error":"#N/A"},{"$error":"#N/A"},{"$error":"#N/A"},0,{"$error":"#DIV/0!"},{"$error":"#N/A"},{"$error":"#N/A"},0,{"$error":"#DIV/0!"},{"$error":"#N/A"},{"$error":"#N/A"},{"$error":"#N/A"},{"$error":"#N/A"},0,{"$error":"#DIV/0!"},{"$error":"#N/A"},{"$error":"#N/A"},0,{"$error":"#DIV/0!"},0,{"$error":"#N/A"},{"$f":"IF(#REF!=0,AO118,IF(#REF!>0,AQ118))","v":{"$error":"#REF!"}}]
[null,null,"Engineered Filtration",false,341.07542719400169,6442.53584699781,0,78.419303609637012,64425.358469978099,0,null,null,null,null,null,null,null,null,null,null,null,null,null,null,null,null,null,null,null,null,null,null,null,null,null,null,null,null,null,null,null,null,null,null,null,0,121.1,0,0,{"$f":"VLOOKUP(AM119,'3.1) Infrastructure Replacement'!$AE$74:$AK$109,4,FALSE)","v":{"$error":"#N/A"}},122,{"$error":"#N/A"},{"$error":"#N/A"},{"$error":"#N/A"},0,{"$error":"#DIV/0!"},{"$error":"#N/A"},{"$error":"#N/A"},0,{"$error":"#DIV/0!"},{"$error":"#N/A"},{"$error":"#N/A"},{"$error":"#N/A"},{"$error":"#N/A"},0,{"$error":"#DIV/0!"},{"$error":"#N/A"},{"$error":"#N/A"},0,{"$error":"#DIV/0!"},0,{"$error":"#N/A"},{"$f":"IF(#REF!=0,AO119,IF(#REF!>0,AQ119))","v":{"$error":"#REF!"}}]
[null,null,"PWDU",false,{"$f":"H120","v":52.316238430578061},{"$f":"I120","v":1968.8933522420339},0,52.316238430578061,1968.8933522420339,0,null,null,null,null,null,null,null,null,null,null,null,null,null,null,null,null,null,null,null,null,null,null,null,null,null,null,null,null,null,null,null,null,null,null,null,0,122.1,0,0,{"$f":"VLOOKUP(AM120,'3.1) Infrastructure Replacement'!$AE$74:$AK$109,4,FALSE)","v":{"$error":"#N/A"}},122,{"$error":"#N/A"},{"$error":"#N/A"},{"$error":"#N/A"},0,{"$error":"#DIV/0!"},{"$error":"#N/A"},{"$error":"#N/A"},0,{"$error":"#DIV/0!"},{"$error":"#N/A"},{"$error":"#N/A"},{"$error":"#N/A"},{"$error":"#N/A"},0,{"$error":"#DIV/0!"},{"$error":"#N/A"},{"$error":"#N/A"},0,{"$error":"#DIV/0!"},0,{"$error":"#N/A"},{"$f":"IF(#REF!=0,AO120,IF(#REF!>0,AQ120))","v":{"$error":"#REF!"}}]
[null,null,null,null,null,null,null,null,{"$f":"\"Total Treatment Cost (\"&$D$22&\"$)\"","v":"Total Treatment Cost (2017$)"},{"$f":"ROUND(SUM(J107:J120,G107:G120,D136),-3)","v":0},null,null,null,null,null,null,null,null,null,null,null,null,null,null,null,null,null,null,null,null,null,null,null,null,null,null,null,null,null,null,null,null,null,null,null,0,123.1,0,0,{"$f":"VLOOKUP(AM121,'3.1) Infrastructure Replacement'!$AE$74:$AK$109,4,FALSE)","v":{"$error":"#N/A"}},122,{"$error":"#N/A"},{"$error":"#N/A"},{"$error":"#N/A"},0,{"$error":"#DIV/0!"},{"$error":"#N/A"},{"$error":"#N/A"},0,{"$error":"#DIV/0!"},{"$error":"#N/A"},{"$error":"#N/A"},{"$error":"#N/A"},{"$error":"#N/A"},0,{"$error":"#DIV/0!"},{"$error":"#N/A"},{"$error":"#N/A"},0,{"$error":"#DIV/0!"},0,{"$error":"#N/A"},{"$f":"IF(#REF!=0,AO121,IF(#REF!>0,AQ121))","v":{"$error":"#REF!"}}]
[null,null,null,null,null,null,null,null,{"$f":"\"Total Cost (\"&$D$17&\"$)\"","v":"Total Cost (0$)"},{"$f":"J121*$D$23","v":0},null,null,null,null,null,null,null,null,null,null,null,null,null,null,null,null,null,null,null,null,null,null,null,null,null,null,null,null,null,null,null,null,null,null,null,0,124.1,0,0,{"$f":"VLOOKUP(AM122,'3.1) Infrastructure Replacement'!$AE$74:$AK$109,4,FALSE)","v":{"$error":"#N/A"}},122,{"$error":"#N/A"},{"$error":"#N/A"},{"$error":"#N/A"},0,{"$error":"#DIV/0!"},{"$error":"#N/A"},{"$error":"#N/A"},0,{"$error":"#DIV/0!"},{"$error":"#N/A"},{"$error":"#N/A"},{"$error":"#N/A"},{"$error":"#N/A"},0,{"$error":"#DIV/0!"},{"$error":"#N/A"},{"$error":"#N/A"},0,{"$error":"#DIV/0!"},0,{"$error":"#N/A"},{"$f":"IF(#REF!=0,AO122,IF(#REF!>0,AQ122))","v":{"$error":"#REF!"}}]
[null,null,null,null,null,null,null,null,{"$f":"\"Total Cost (\"&$D$40&\"$)\"","v":"Total Cost (0$)"},{"$f":"J122*$D$23*$D$42","v":0},null,null,null,null,null,null,null,null,null,null,null,null,null,null,null,null,null,null,null,null,null,null,null,null,null,null,null,null,null,null,null,null,0,125.1,0,0,{"$f":"VLOOKUP(AJ123,'3.1) Infrastructure Replacement'!$AE$74:$AK$109,4,FALSE)","v":{"$error":"#N/A"}},122,{"$error":"#N/A"},{"$error":"#N/A"},{"$error":"#N/A"},0,{"$error":"#DIV/0!"},{"$error":"#N/A"},{"$error":"#N/A"},0,{"$error":"#DIV/0!"},{"$error":"#N/A"},{"$error":"#N/A"},{"$error":"#N/A"},{"$error":"#N/A"},0,{"$error":"#DIV/0!"},{"$error":"#N/A"},{"$error":"#N/A"},0,{"$error":"#DIV/0!"},0,{"$error":"#N/A"},{"$f":"IF(#REF!=0,AL123,IF(#REF!>0,AN123))","v":{"$error":"#REF!"}}]
[null,null,"Distribution System Chlorine Boosting:",null,1,0,null,null,null,null,null,null,null,null,null,null,null,null,null,null,null,null,null,null,null,null,null,null,null,null,null,null,null,null,null,null,null,null,null,null,null,null,0,126.1,0,0,{"$f":"VLOOKUP(AJ124,'3.1) Infrastructure Replacement'!$AE$74:$AK$109,4,FALSE)","v":{"$error":"#N/A"}},122,{"$error":"#N/A"},{"$error":"#N/A"},{"$error":"#N/A"},0,{"$error":"#DIV/0!"},{"$error":"#N/A"},{"$error":"#N/A"},0,{"$error":"#DIV/0!"},{"$error":"#N/A"},{"$error":"#N/A"},{"$error":"#N/A"},{"$error":"#N/A"},0,{"$error":"#DIV/0!"},{"$error":"#N/A"},{"$error":"#N/A"},0,{"$error":"#DIV/0!"},0,{"$error":"#N/A"},{"$f":"IF(#REF!=0,AL124,IF(#REF!>0,AN124))","v":{"$error":"#REF!"}}]
[null,null,"Boosting Option Value",1,2,0.1,null,null,null,null,null,null,null,null,null,null,null,null,null,null,null,null,null,null,null,null,null,null,null,null,null,null,null,null,null,null,null,null,null,null,null,null,0,127.1,0,0,{"$f":"VLOOKUP(AJ125,'3.1) Infrastructure Replacement'!$AE$74:$AK$109,4,FALSE)","v":{"$error":"#N/A"}},122,{"$error":"#N/A"},{"$error":"#N/A"},{"$error":"#N/A"},0,{"$error":"#DIV/0!"},{"$error":"#N/A"},{"$error":"#N/A"},0,{"$error":"#DIV/0!"},{"$error":"#N/A"},{"$error":"#N/A"},{"$error":"#N/A"},{"$error":"#N/A"},0,{"$error":"#DIV/0!"},{"$error":"#N/A"},{"$error":"#N/A"},0,{"$error":"#DIV/0!"},0,{"$error":"#N/A"},{"$f":"IF(#REF!=0,AL125,IF(#REF!>0,AN125))","v":{"$error":"#REF!"}}]
[null,null,"No",null,3,0.2,null,null,null,null,null,null,null,null,null,null,null,null,null,null,null,null,null,null,null,null,null,null,null,null,null,null,null,null,null,null,null,null,null,null,null,null,0,128.1,0,0,{"$f":"VLOOKUP(AJ126,'3.1) Infrastructure Replacement'!$AE$74:$AK$109,4,FALSE)","v":{"$error":"#N/A"}},122,{"$error":"#N/A"},{"$error":"#N/A"},{"$error":"#N/A"},0,{"$error":"#DIV/0!"},{"$error":"#N/A"},{"$error":"#N/A"},0,{"$error":"#DIV/0!"},{"$error":"#N/A"},{"$error":"#N/A"},{"$error":"#N/A"},{"$error":"#N/A"},0,{"$error":"#DIV/0!"},{"$error":"#N/A"},{"$error":"#N/A"},0,{"$error":"#DIV/0!"},0,{"$error":"#N/A"},{"$f":"IF(#REF!=0,AL126,IF(#REF!>0,AN126))","v":{"$error":"#REF!"}}]
[null,null,"Yes, with sodium hypochlorite",null,4,0.3,null,null,null,null,null,null,null,null,null,null,null,null,null,null,null,null,null,null,null,null,null,null,null,null,null,null,null,null,null,null,null,null,null,null,null,null,0,129.1,0,0,{"$f":"VLOOKUP(AJ127,'3.1) Infrastructure Replacement'!$AE$74:$AK$109,4,FALSE)","v":{"$error":"#N/A"}},122,{"$error":"#N/A"},{"$error":"#N/A"},{"$error":"#N/A"},0,{"$error":"#DIV/0!"},{"$error":"#N/A"},{"$error":"#N/A"},0,{"$error":"#DIV/0!"},{"$error":"#N/A"},{"$error":"#N/A"},{"$error":"#N/A"},{"$error":"#N/A"},0,{"$error":"#DIV/0!"},{"$error":"#N/A"},{"$error":"#N/A"},0,{"$error":"#DIV/0!"},0,{"$error":"#N/A"},{"$f":"IF(#REF!=0,AL127,IF(#REF!>0,AN127))","v":{"$error":"#REF!"}}]
[null,null,"Yes, with chlorine gas",null,5,0.4,null,null,null,null,null,null,null,null,null,null,null,null,null,null,null,null,null,null,null,null,null,null,null,null,null,null,null,null,null,null,null,null,null,null,null,null,0,130.1,0,0,{"$f":"VLOOKUP(AJ128,'3.1) Infrastructure Replacement'!$AE$74:$AK$109,4,FALSE)","v":{"$error":"#N/A"}},122,{"$error":"#N/A"},{"$error":"#N/A"},{"$error":"#N/A"},0,{"$error":"#DIV/0!"},{"$error":"#N/A"},{"$error":"#N/A"},0,{"$error":"#DIV/0!"},{"$error":"#N/A"},{"$error":"#N/A"},{"$error":"#N/A"},{"$error":"#N/A"},0,{"$error":"#DIV/0!"},{"$error":"#N/A"},{"$error":"#N/A"},0,{"$error":"#DIV/0!"},0,{"$error":"#N/A"},{"$f":"IF(#REF!=0,AL128,IF(#REF!>0,AN128))","v":{"$error":"#REF!"}}]
[null,null,"Rule",{"$f":"IF(OR(D125=2,D125=3),TRUE,FALSE)","v":false},6,0.5,null,null,null,null,null,null,null,null,null,null,null,null,null,null,null,null,null,null,null,null,null,null,null,null,null,null,null,null,null,null,null,null,null,null,null,null,0,131.1,0,0,{"$f":"VLOOKUP(AJ129,'3.1) Infrastructure Replacement'!$AE$74:$AK$109,4,FALSE)","v":{"$error":"#N/A"}},122,{"$error":"#N/A"},{"$error":"#N/A"},{"$error":"#N/A"},0,{"$error":"#DIV/0!"},{"$error":"#N/A"},{"$error":"#N/A"},0,{"$error":"#DIV/0!"},{"$error":"#N/A"},{"$error":"#N/A"},{"$error":"#N/A"},{"$error":"#N/A"},0,{"$error":"#DIV/0!"},{"$error":"#N/A"},{"$error":"#N/A"},0,{"$error":"#DIV/0!"},0,{"$error":"#N/A"},{"$f":"IF(#REF!=0,AL129,IF(#REF!>0,AN129))","v":{"$error":"#REF!"}}]
[null,null,"Dist. Percent Boosted Option #",1,7,0.6,null,null,null,null,null,null,null,null,null,null,null,null,null,null,null,null,null,null,null,null,null,null,null,null,null,null,null,null,null,null,null,null,null,null,null,null,0,132.1,0,0,{"$f":"VLOOKUP(AJ130,'3.1) Infrastructure Replacement'!$AE$74:$AK$109,4,FALSE)","v":{"$error":"#N/A"}},122,{"$error":"#N/A"},{"$error":"#N/A"},{"$error":"#N/A"},0,{"$error":"#DIV/0!"},{"$error":"#N/A"},{"$error":"#N/A"},0,{"$error":"#DIV/0!"},{"$error":"#N/A"},{"$error":"#N/A"},{"$error":"#N/A"},{"$error":"#N/A"},0,{"$error":"#DIV/0!"},{"$error":"#N/A"},{"$error":"#N/A"},0,{"$error":"#DIV/0!"},0,{"$error":"#N/A"},{"$f":"IF(#REF!=0,AL130,IF(#REF!>0,AN130))","v":{"$error":"#REF!"}}]
[null,null,null,null,8,0.7,null,null,null,null,null,null,null,null,null,null,null,null,null,null,null,null,null,null,null,null,null,null,null,null,null,null,null,null,null,null,null,null,null,null,null,null,{"$f":"AP131-AO131","v":0},133.1,{"$f":"AN131*(1-AR131)","v":0},{"$f":"AL131*(1-AR131)","v":0},{"$f":"VLOOKUP(AJ131,'3.1) Infrastructure Replacement'!$AE$74:$AK$109,4,FALSE)","v":{"$error":"#N/A"}},{"$f":"DATEDIF(AK131,NOW(),\"Y\")","v":122},{"$f":"IF(AU131*1<AV131,\"past due\",AU131*1-AV131)","v":{"$error":"#N/A"}},{"$f":"(AL131*((1+AQ131)^(-AW131)))","v":{"$error":"#N/A"}},{"$f":"IF(AQ131=0%,(AX131/AW131),((AX131*AQ131)*((1+AQ131)^(AW131)))/(((1+AQ131)^(AW131))-1))","v":{"$error":"#N/A"}},{"$f":"(AL131/((1+AQ131)^(AM131)))","v":0},{"$f":"IF(AQ131=0%,(AZ131/AM131),((AZ131*AQ131)*((1+AQ131)^(AM131)))/(((1+AQ131)^(AM131))-1))","v":{"$error":"#DIV/0!"}},{"$f":"(AN131/((1+AQ131)^(AW131)))","v":{"$error":"#N/A"}},{"$f":"IF(AQ131=0%,(BB131/AW131),(BB131*((AQ131*((1+AQ131)^(AW131)))/(((1+AQ131)^(AW131))-1))))","v":{"$error":"#N/A"}},0,{"$f":"IF(AQ131=0%,(BD131/AM131),(BD131*((AQ131*((1+AQ131)^(AM131)))/(((1+AQ131)^(AM131))-1))))","v":{"$error":"#DIV/0!"}},{"$f":"IF(AND(AN131>0,AM131>0),BE131,IF(AN131>0,BC131,IF(AM131>0,BA131,AY131)))","v":{"$error":"#N/A"}},{"$f":"IF(AND(AN131>0,AM131>0),BO131,IF(AND(AM131=0,AN131>0),BM131,IF(AND(AN131=0,AM131>0),BK131,BI131)))","v":{"$error":"#N/A"}},{"$f":"AT131*((1+AQ131)^(-AW131))","v":{"$error":"#N/A"}},{"$f":"IF(AQ131=0%,(BH131/AW131),((BH131*AQ131)*((1+AQ131)^(AW131)))/(((1+AQ131)^(AW131))-1))","v":{"$error":"#N/A"}},{"$f":"AT131/((1+AQ131)^(AM131))","v":0},{"$f":"IF(AQ131=0%,(BJ131/AM131),((BJ131*AQ131)*((1+AQ131)^(AM131)))/(((1+AQ131)^(AM131))-1))","v":{"$error":"#DIV/0!"}},{"$f":"AS131/((1+AQ131)^(AW131))","v":{"$error":"#N/A"}},{"$f":"IF(AQ131=0%,(BL131/AW131),(BL131*((AQ131*((1+AQ131)^(AW131)))/(((1+AQ131)^(AW131))-1))))","v":{"$error":"#N/A"}},{"$f":"AS131/((1+AQ131)^(AM131))","v":0},{"$f":"IF(AQ131=0%,(BN131/AM131),(BN131*((AQ131*((1+AQ131)^(AM131)))/(((1+AQ131)^(AM131))-1))))","v":{"$error":"#DIV/0!"}},{"$f":"IF(AN131>0,AS131,IF(AN131=0,AT131))","v":0},{"$f":"BF131-BG131","v":{"$error":"#N/A"}},{"$f":"IF(#REF!=0,AL131,IF(#REF!>0,AN131))","v":{"$error":"#REF!"}}]
[null,null,null,null,9,0.8,null,null,null,null,null,null,null,null,null,null,null,null,null,null,null,null,null,null,null,null,null,null,null,null,null,null,null,null,null,null,null,null,null,null,null,null,0,134.1,0,0,{"$f":"VLOOKUP(AJ132,'3.1) Infrastructure Replacement'!$AE$74:$AK$109,4,FALSE)","v":{"$error":"#N/A"}},122,{"$error":"#N/A"},{"$error":"#N/A"},{"$error":"#N/A"},0,{"$error":"#DIV/0!"},{"$error":"#N/A"},{"$error":"#N/A"},0,{"$error":"#DIV/0!"},{"$error":"#N/A"},{"$error":"#N/A"},{"$error":"#N/A"},{"$error":"#N/A"},0,{"$error":"#DIV/0!"},{"$error":"#N/A"},{"$error":"#N/A"},0,{"$error":"#DIV/0!"},0,{"$error":"#N/A"},{"$f":"IF(#REF!=0,AL132,IF(#REF!>0,AN132))","v":{"$error":"#REF!"}}]
[null,null,"Percent Serviced",{"$f":"VLOOKUP(D130,E124:F134,2,FALSE)","v":0},10,0.9,null,null,null,null,null,null,null,null,null,null,null,null,null,null,null,null,null,null,null,null,null,null,null,null,null,null,null,null,null,null,null,null,null,null,null,null,0,135.1,0,0,{"$f":"VLOOKUP(AJ133,'3.1) Infrastructure Replacement'!$AE$74:$AK$109,4,FALSE)","v":{"$error":"#N/A"}},122,{"$error":"#N/A"},{"$error":"#N/A"},{"$error":"#N/A"},0,{"$error":"#DIV/0!"},{"$error":"#N/A"},{"$error":"#N/A"},0,{"$error":"#DIV/0!"},{"$error":"#N/A"},{"$error":"#N/A"},{"$error":"#N/A"},{"$error":"#N/A"},0,{"$error":"#DIV/0!"},{"$error":"#N/A"},{"$error":"#N/A"},0,{"$error":"#DIV/0!"},0,{"$error":"#N/A"},{"$f":"IF(#REF!=0,AL133,IF(#REF!>0,AN133))","v":{"$error":"#REF!"}}]
[null,null,"Dose as Chlorine (mg/L)",1,11,1,null,null,null,null,null,null,null,null,null,null,null,null,null,null,null,null,null,null,null,null,null,null,null,null,null,null,null,null,null,null,null,null,null,null,null,null,0,136.1,0,0,{"$f":"VLOOKUP(AJ134,'3.1) Infrastructure Replacement'!$AE$74:$AK$109,4,FALSE)","v":{"$error":"#N/A"}},122,{"$error":"#N/A"},{"$error":"#N/A"},{"$error":"#N/A"},0,{"$error":"#DIV/0!"},{"$error":"#N/A"},{"$error":"#N/A"},0,{"$error":"#DIV/0!"},{"$error":"#N/A"},{"$error":"#N/A"},{"$error":"#N/A"},{"$error":"#N/A"},0,{"$error":"#DIV/0!"},{"$error":"#N/A"},{"$error":"#N/A"},0,{"$error":"#DIV/0!"},0,{"$error":"#N/A"},{"$f":"IF(#REF!=0,AL134,IF(#REF!>0,AN134))","v":{"$error":"#REF!"}}]
[null,null,"Unit Cost of Chemical",{"$f":"IF(D125=2,F74,IF(D125=3,F75,0))","v":0},null,null,null,null,null,null,null,null,null,null,null,null,null,null,null,null,null,null,null,null,null,null,null,null,null,null,null,null,null,null,null,null,null,null,null,null,null,null,0,137.1,0,0,{"$f":"VLOOKUP(AJ135,'3.1) Infrastructure Replacement'!$AE$74:$AK$109,4,FALSE)","v":{"$error":"#N/A"}},122,{"$error":"#N/A"},{"$error":"#N/A"},{"$error":"#N/A"},0,{"$error":"#DIV/0!"},{"$error":"#N/A"},{"$error":"#N/A"},0,{"$error":"#DIV/0!"},{"$error":"#N/A"},{"$error":"#N/A"},{"$error":"#N/A"},{"$error":"#N/A"},0,{"$error":"#DIV/0!"},{"$error":"#N/A"},{"$error":"#N/A"},0,{"$error":"#DIV/0!"},0,{"$error":"#N/A"},{"$f":"IF(#REF!=0,AL135,IF(#REF!>0,AN135))","v":{"$error":"#REF!"}}]
[null,null,"Annual Cost",{"$f":"$D$57*1000*365*D134/1000/1000*D135*D133*D42*D23","v":0},null,null,null,null,null,null,null,null,null,null,null,null,null,null,null,null,null,null,null,null,null,null,null,null,null,null,null,null,null,null,null,null,null,null,null,null,null,null,0,138.1,0,0,{"$f":"VLOOKUP(AJ136,'3.1) Infrastructure Replacement'!$AE$74:$AK$109,4,FALSE)","v":{"$error":"#N/A"}},122,{"$error":"#N/A"},{"$error":"#N/A"},{"$error":"#N/A"},0,{"$error":"#DIV/0!"},{"$error":"#N/A"},{"$error":"#N/A"},0,{"$error":"#DIV/0!"},{"$error":"#N/A"},{"$error":"#N/A"},{"$error":"#N/A"},{"$error":"#N/A"},0,{"$error":"#DIV/0!"},{"$error":"#N/A"},{"$error":"#N/A"},0,{"$error":"#DIV/0!"},0,{"$error":"#N/A"},{"$f":"IF(#REF!=0,AL136,IF(#REF!>0,AN136))","v":{"$error":"#REF!"}}]
[null,null,null,null,null,null,null,null,null,null,null,null,null,null,null,null,null,null,null,null,null,null,null,null,null,null,null,null,null,null,null,null,null,null,null,null,null,null,null,null,null,null,0,139.1,0,0,{"$f":"VLOOKUP(AJ137,'3.1) Infrastructure Replacement'!$AE$74:$AK$109,4,FALSE)","v":{"$error":"#N/A"}},122,{"$error":"#N/A"},{"$error":"#N/A"},{"$error":"#N/A"},0,{"$error":"#DIV/0!"},{"$error":"#N/A"},{"$error":"#N/A"},{"$f":"AN137/((1+AQ137)^(AM137))","v":0},{"$error":"#DIV/0!"},{"$error":"#N/A"},{"$error":"#N/A"},{"$error":"#N/A"},{"$error":"#N/A"},0,{"$error":"#DIV/0!"},{"$error":"#N/A"},{"$error":"#N/A"},0,{"$error":"#DIV/0!"},0,{"$error":"#N/A"},{"$f":"IF(#REF!=0,AL137,IF(#REF!>0,AN137))","v":{"$error":"#REF!"}}]
[null,null,null,null,null,null,null,null,null,null,null,null,null,null,null,null,null,null,null,null,null,null,null,null,null,null,null,null,null,null,null,null,null,null,null,null,null,null,null,null,null,null,0,140.1,0,0,{"$f":"VLOOKUP(AJ138,'3.1) Infrastructure Replacement'!$AE$74:$AK$109,4,FALSE)","v":{"$error":"#N/A"}},122,{"$error":"#N/A"},{"$error":"#N/A"},{"$error":"#N/A"},0,{"$error":"#DIV/0!"},{"$error":"#N/A"},{"$error":"#N/A"},0,{"$error":"#DIV/0!"},{"$error":"#N/A"},{"$error":"#N/A"},{"$error":"#N/A"},{"$error":"#N/A"},0,{"$error":"#DIV/0!"},{"$error":"#N/A"},{"$error":"#N/A"},0,{"$error":"#DIV/0!"},0,{"$error":"#N/A"},{"$f":"IF(#REF!=0,AL138,IF(#REF!>0,AN138))","v":{"$error":"#REF!"}}]
[null,null,"O&M Costs for non-treatment Related Items:",null,"Population Under 500?",{"$f":"IF(D47>499, \"OVER\", \"UNDER\")","v":"UNDER"},null,null,null,null,null,null,null,null,null,null,null,null,null,null,null,null,null,null,null,null,null,null,null,null,null,null,null,null,null,null,null,null,null,null,null,null,null,null,0,141.1,0,0,{"$f":"VLOOKUP(AL139,'3.1) Infrastructure Replacement'!$AE$74:$AK$109,4,FALSE)","v":{"$error":"#N/A"}},122,{"$error":"#N/A"},{"$error":"#N/A"},{"$error":"#N/A"},0,{"$error":"#DIV/0!"},{"$error":"#N/A"},{"$error":"#N/A"},0,{"$error":"#DIV/0!"},{"$error":"#N/A"},{"$error":"#N/A"},{"$error":"#N/A"},{"$error":"#N/A"},0,{"$error":"#DIV/0!"},{"$error":"#N/A"},{"$error":"#N/A"},0,{"$error":"#DIV/0!"},0,{"$error":"#N/A"},{"$f":"IF(#REF!=0,AN139,IF(#REF!>0,AP139))","v":{"$error":"#REF!"}}]
[null,null,"Item","Source Type","Slope (Under)","Intercept (Under)","Slope (Over)","Intercept (Over)",{"$f":"\"Cost (\"&$D$22&\"$)\"","v":"Cost (2017$)"},null,null,null,null,null,null,null,null,null,null,null,null,null,null,null,null,null,null,null,null,null,null,null,null,null,null,null,null,null,null,null,null,null,null,null,0,142.1,0,0,{"$f":"VLOOKUP(AL140,'3.1) Infrastructure Replacement'!$AE$74:$AK$109,4,FALSE)","v":{"$error":"#N/A"}},122,{"$error":"#N/A"},{"$error":"#N/A"},{"$error":"#N/A"},0,{"$error":"#DIV/0!"},{"$error":"#N/A"},{"$error":"#N/A"},0,{"$error":"#DIV/0!"},{"$error":"#N/A"},{"$error":"#N/A"},{"$error":"#N/A"},{"$error":"#N/A"},0,{"$error":"#DIV/0!"},{"$error":"#N/A"},{"$error":"#N/A"},0,{"$error":"#DIV/0!"},0,{"$error":"#N/A"},{"$f":"IF(#REF!=0,AN140,IF(#REF!>0,AP140))","v":{"$error":"#REF!"}}]
[null,null,"Source",{"$f":"D19","v":"<Type of Supply>"},3.6,689,5.2,770,{"$f":"IF($D$57<0.00001,0,IF($D$47<500,ROUNDUP(F141+E141*$D$57,-2),ROUNDUP(H141+G141*$D$57,-2)))","v":0},null,null,null,null,null,null,null,null,null,null,null,null,null,null,null,null,null,null,null,null,null,null,null,null,null,null,null,null,null,null,null,null,null,null,null,0,143.1,0,0,{"$f":"VLOOKUP(AL141,'3.1) Infrastructure Replacement'!$AE$74:$AK$109,4,FALSE)","v":{"$error":"#N/A"}},122,{"$error":"#N/A"},{"$error":"#N/A"},{"$error":"#N/A"},0,{"$error":"#DIV/0!"},{"$error":"#N/A"},{"$error":"#N/A"},0,{"$error":"#DIV/0!"},{"$error":"#N/A"},{"$error":"#N/A"},{"$error":"#N/A"},{"$error":"#N/A"},0,{"$error":"#DIV/0!"},{"$error":"#N/A"},{"$error":"#N/A"},0,{"$error":"#DIV/0!"},0,{"$error":"#N/A"},{"$f":"IF(#REF!=0,AN141,IF(#REF!>0,AP141))","v":{"$error":"#REF!"}}]
[null,null,"Distribution",{"$f":"D19","v":"<Type of Supply>"},{"$f":"(80*170+10000-1000)/170","v":132.94117647058823},1000,80,10000,{"$f":"IF($D$57<0.00001,0,IF($D$47<500,ROUNDUP(F142+E142*$D$57,-2),ROUNDUP(H142+G142*$D$57,-2)))","v":0},null,null,null,null,null,null,null,null,null,null,null,null,null,null,null,null,null,null,null,null,null,null,null,null,null,null,null,null,null,null,null,null,null,null,null,0,144.1,0,0,{"$f":"VLOOKUP(AL142,'3.1) Infrastructure Replacement'!$AE$74:$AK$109,4,FALSE)","v":{"$error":"#N/A"}},122,{"$error":"#N/A"},{"$error":"#N/A"},{"$error":"#N/A"},0,{"$error":"#DIV/0!"},{"$error":"#N/A"},{"$error":"#N/A"},0,{"$error":"#DIV/0!"},{"$error":"#N/A"},{"$error":"#N/A"},{"$error":"#N/A"},{"$error":"#N/A"},0,{"$error":"#DIV/0!"},{"$error":"#N/A"},{"$error":"#N/A"},0,{"$error":"#DIV/0!"},0,{"$error":"#N/A"},{"$f":"IF(#REF!=0,AN142,IF(#REF!>0,AP142))","v":{"$error":"#REF!"}}]
[null,null,"Administration",{"$f":"D19","v":"<Type of Supply>"},null,null,null,null,null,null,null,null,null,null,null,null,null,null,null,null,null,null,null,null,null,null,null,null,null,null,null,null,null,null,null,null,null,null,null,null,null,null,null,null,0,145.1,0,0,{"$f":"VLOOKUP(AL143,'3.1) Infrastructure Replacement'!$AE$74:$AK$109,4,FALSE)","v":{"$error":"#N/A"}},122,{"$error":"#N/A"},{"$error":"#N/A"},{"$error":"#N/A"},0,{"$error":"#DIV/0!"},{"$error":"#N/A"},{"$error":"#N/A"},0,{"$error":"#DIV/0!"},{"$error":"#N/A"},{"$error":"#N/A"},{"$error":"#N/A"},{"$error":"#N/A"},0,{"$error":"#DIV/0!"},{"$error":"#N/A"},{"$error":"#N/A"},0,{"$error":"#DIV/0!"},0,{"$error":"#N/A"},{"$f":"IF(#REF!=0,AN143,IF(#REF!>0,AP143))","v":{"$error":"#REF!"}}]
[null,null,null,null,null,"Total ",null,null,{"$f":"SUM(I141:I143)","v":0},null,null,null,null,null,null,null,null,null,null,null,null,null,null,null,null,null,null,null,null,null,null,null,null,null,null,null,null,null,null,null,null,null,null,null,0,146.1,0,0,{"$f":"VLOOKUP(AL144,'3.1) Infrastructure Replacement'!$AE$74:$AK$109,4,FALSE)","v":{"$error":"#N/A"}},122,{"$error":"#N/A"},{"$error":"#N/A"},{"$error":"#N/A"},0,{"$error":"#DIV/0!"},{"$error":"#N/A"},{"$error":"#N/A"},0,{"$error":"#DIV/0!"},{"$error":"#N/A"},{"$error":"#N/A"},{"$error":"#N/A"},{"$error":"#N/A"},0,{"$error":"#DIV/0!"},{"$error":"#N/A"},{"$error":"#N/A"},0,{"$error":"#DIV/0!"},0,{"$error":"#N/A"},{"$f":"IF(#REF!=0,AN144,IF(#REF!>0,AP144))","v":{"$error":"#REF!"}}]
[null,null,null,null,null,null,null,null,null,null,null,null,null,null,null,null,null,null,null,null,null,null,null,null,null,null,null,null,null,null,null,null,null,null,null,null,null,null,null,null,null,null,0,147.1,0,0,{"$f":"VLOOKUP(AJ145,'3.1) Infrastructure Replacement'!$AE$74:$AK$109,4,FALSE)","v":{"$error":"#N/A"}},122,{"$error":"#N/A"},{"$error":"#N/A"},{"$error":"#N/A"},0,{"$error":"#DIV/0!"},{"$error":"#N/A"},{"$error":"#N/A"},0,{"$error":"#DIV/0!"},{"$error":"#N/A"},{"$error":"#N/A"},{"$error":"#N/A"},{"$error":"#N/A"},0,{"$error":"#DIV/0!"},{"$error":"#N/A"},{"$error":"#N/A"},0,{"$error":"#DIV/0!"},0,{"$error":"#N/A"},{"$f":"IF(#REF!=0,AL145,IF(#REF!>0,AN145))","v":{"$error":"#REF!"}}]
[null,null,"O&M Costs for Pumping:",null,null,null,null,null,null,null,null,null,null,null,null,null,null,null,null,null,null,null,null,null,null,null,null,null,null,null,null,null,null,null,null,null,null,null,null,null,null,null,0,148.1,0,0,{"$f":"VLOOKUP(AJ146,'3.1) Infrastructure Replacement'!$AE$74:$AK$109,4,FALSE)","v":{"$error":"#N/A"}},122,{"$error":"#N/A"},{"$error":"#N/A"},{"$error":"#N/A"},0,{"$error":"#DIV/0!"},{"$error":"#N/A"},{"$error":"#N/A"},0,{"$error":"#DIV/0!"},{"$error":"#N/A"},{"$error":"#N/A"},{"$error":"#N/A"},{"$error":"#N/A"},0,{"$error":"#DIV/0!"},{"$error":"#N/A"},{"$error":"#N/A"},0,{"$error":"#DIV/0!"},0,{"$error":"#N/A"},{"$f":"IF(#REF!=0,AL146,IF(#REF!>0,AN146))","v":{"$error":"#REF!"}}]
[null,null,"Dist. Syst. Pumping Option #",1,null,null,null,null,null,null,null,null,null,null,null,null,null,null,null,null,null,null,null,null,null,null,null,null,null,null,null,null,null,null,null,null,null,null,null,null,null,null,0,149.1,0,0,{"$f":"VLOOKUP(AJ147,'3.1) Infrastructure Replacement'!$AE$74:$AK$109,4,FALSE)","v":{"$error":"#N/A"}},122,{"$error":"#N/A"},{"$error":"#N/A"},{"$error":"#N/A"},0,{"$error":"#DIV/0!"},{"$error":"#N/A"},{"$error":"#N/A"},0,{"$error":"#DIV/0!"},{"$error":"#N/A"},{"$error":"#N/A"},{"$error":"#N/A"},{"$error":"#N/A"},0,{"$error":"#DIV/0!"},{"$error":"#N/A"},{"$error":"#N/A"},0,{"$error":"#DIV/0!"},0,{"$error":"#N/A"},{"$f":"IF(#REF!=0,AL147,IF(#REF!>0,AN147))","v":{"$error":"#REF!"}}]
[null,null,null,null,null,null,null,null,null,null,null,null,null,null,null,null,null,null,null,null,null,null,null,null,null,null,null,null,null,null,null,null,null,null,null,null,null,null,null,null,null,null,0,150.1,0,0,{"$f":"VLOOKUP(AJ148,'3.1) Infrastructure Replacement'!$AE$74:$AK$109,4,FALSE)","v":{"$error":"#N/A"}},122,{"$error":"#N/A"},{"$error":"#N/A"},{"$error":"#N/A"},0,{"$error":"#DIV/0!"},{"$error":"#N/A"},{"$error":"#N/A"},0,{"$error":"#DIV/0!"},{"$error":"#N/A"},{"$error":"#N/A"},{"$error":"#N/A"},{"$error":"#N/A"},0,{"$error":"#DIV/0!"},{"$error":"#N/A"},{"$error":"#N/A"},0,{"$error":"#DIV/0!"},0,{"$error":"#N/A"},{"$f":"IF(#REF!=0,AL148,IF(#REF!>0,AN148))","v":{"$error":"#REF!"}}]
[null,null,null,null,null,null,null,null,null,null,null,null,null,null,null,null,null,null,null,null,null,null,null,null,null,null,null,null,null,null,null,null,null,null,null,null,null,null,null,null,null,null,0,151.1,0,0,{"$f":"VLOOKUP(AJ149,'3.1) Infrastructure Replacement'!$AE$74:$AK$109,4,FALSE)","v":{"$error":"#N/A"}},122,{"$error":"#N/A"},{"$error":"#N/A"},{"$error":"#N/A"},0,{"$error":"#DIV/0!"},{"$error":"#N/A"},{"$error":"#N/A"},0,{"$error":"#DIV/0!"},{"$error":"#N/A"},{"$error":"#N/A"},{"$error":"#N/A"},{"$error":"#N/A"},0,{"$error":"#DIV/0!"},{"$error":"#N/A"},{"$error":"#N/A"},0,{"$error":"#DIV/0!"},0,{"$error":"#N/A"},{"$f":"IF(#REF!=0,AL149,IF(#REF!>0,AN149))","v":{"$error":"#REF!"}}]
[null,null,"Fraction dist. syst. served by booster pumps",{"$f":"VLOOKUP(D147,E124:F134,2,FALSE)","v":0},null,null,null,null,null,null,null,null,null,null,null,null,null,null,null,null,null,null,null,null,null,null,null,null,null,null,null,null,null,null,null,null,null,null,null,null,null,null,0,152.1,0,0,{"$f":"VLOOKUP(AJ150,'3.1) Infrastructure Replacement'!$AE$74:$AK$109,4,FALSE)","v":{"$error":"#N/A"}},122,{"$error":"#N/A"},{"$error":"#N/A"},{"$error":"#N/A"},0,{"$error":"#DIV/0!"},{"$error":"#N/A"},{"$error":"#N/A"},0,{"$error":"#DIV/0!"},{"$error":"#N/A"},{"$error":"#N/A"},{"$error":"#N/A"},{"$error":"#N/A"},0,{"$error":"#DIV/0!"},{"$error":"#N/A"},{"$error":"#N/A"},0,{"$error":"#DIV/0!"},0,{"$error":"#N/A"},{"$f":"IF(#REF!=0,AL150,IF(#REF!>0,AN150))","v":{"$error":"#REF!"}}]
[null,null,null,null,null,"Power Costs",null,null,null,null,null,null,null,null,"Labour Costs",null,null,"Miscellaneou Replacements",null,null,null,null,null,null,null,null,null,null,null,null,null,null,null,null,null,null,null,null,null,null,null,null,0,153.1,0,0,{"$f":"VLOOKUP(AJ151,'3.1) Infrastructure Replacement'!$AE$74:$AK$109,4,FALSE)","v":{"$error":"#N/A"}},122,{"$error":"#N/A"},{"$error":"#N/A"},{"$error":"#N/A"},0,{"$error":"#DIV/0!"},{"$error":"#N/A"},{"$error":"#N/A"},0,{"$error":"#DIV/0!"},{"$error":"#N/A"},{"$error":"#N/A"},{"$error":"#N/A"},{"$error":"#N/A"},0,{"$error":"#DIV/0!"},{"$error":"#N/A"},{"$error":"#N/A"},0,{"$error":"#DIV/0!"},0,{"$error":"#N/A"},{"$f":"IF(#REF!=0,AL151,IF(#REF!>0,AN151))","v":{"$error":"#REF!"}}]
[null,null,"Item","Option Button Value","Flow (m3/d)","Fixed Costs","Fixed Costs Applied (yes/no)","Power Rate per Pump (kW/m3/d)","Pump Power (kW)","Demand Rate","Consumption Rate ($/kWh)","Demand Cost","Consumption Cost","Total Power Cost","Slope","Intercept","Costs","Slope","Intercept","Costs",null,null,null,null,null,null,null,null,null,null,null,null,null,null,null,null,null,null,null,null,null,null,0,154.1,0,0,{"$f":"VLOOKUP(AJ152,'3.1) Infrastructure Replacement'!$AE$74:$AK$109,4,FALSE)","v":{"$error":"#N/A"}},122,{"$error":"#N/A"},{"$error":"#N/A"},{"$error":"#N/A"},0,{"$error":"#DIV/0!"},{"$error":"#N/A"},{"$error":"#N/A"},0,{"$error":"#DIV/0!"},{"$error":"#N/A"},{"$error":"#N/A"},{"$error":"#N/A"},{"$error":"#N/A"},0,{"$error":"#DIV/0!"},{"$error":"#N/A"},{"$error":"#N/A"},0,{"$error":"#DIV/0!"},0,{"$error":"#N/A"},{"$f":"IF(#REF!=0,AL152,IF(#REF!>0,AN152))","v":{"$error":"#REF!"}}]
[null,null,"Ground water pumping",false,{"$f":"D153*$D$57","v":0},null,{"$f":"F153*D153","v":0},1.5443999999999999E-2,{"$f":"H153*E153","v":0},7.63,0.09,{"$f":"J153*I153*12","v":0},{"$f":"I153*24*365*K153","v":0},{"$f":"L153+M153+G153","v":0},0.82929577464788728,643.15492957746483,{"$f":"IF(E153=0,0,P153+O153*E153)","v":0},0.46300000000000002,359,{"$f":"IF(E153=0,0,S153+R153*E153)","v":0},null,null,null,null,null,null,null,null,null,null,null,null,null,null,null,null,null,null,null,null,null,null,0,155.1,0,0,{"$f":"VLOOKUP(AJ153,'3.1) Infrastructure Replacement'!$AE$74:$AK$109,4,FALSE)","v":{"$error":"#N/A"}},122,{"$error":"#N/A"},{"$error":"#N/A"},{"$error":"#N/A"},0,{"$error":"#DIV/0!"},{"$error":"#N/A"},{"$error":"#N/A"},0,{"$error":"#DIV/0!"},{"$error":"#N/A"},{"$error":"#N/A"},{"$error":"#N/A"},{"$error":"#N/A"},0,{"$error":"#DIV/0!"},{"$error":"#N/A"},{"$error":"#N/A"},0,{"$error":"#DIV/0!"},0,{"$error":"#N/A"},{"$f":"IF(#REF!=0,AL153,IF(#REF!>0,AN153))","v":{"$error":"#REF!"}}]
[null,null,"Low Lift Pumping",false,{"$f":"D154*$D$57","v":0},null,{"$f":"F154*D154","v":0},4.5044999999999998E-3,{"$f":"H154*E154","v":0},7.63,0.09,{"$f":"J154*I154*12","v":0},{"$f":"I154*24*365*K154","v":0},{"$f":"L154+M154+G154","v":0},0.82929577464788728,643.15492957746483,{"$f":"IF(E154=0,0,P154+O154*E154)","v":0},0.46300000000000002,359,{"$f":"IF(E154=0,0,S154+R154*E154)","v":0},null,null,null,null,null,null,null,null,null,null,null,null,null,null,null,null,null,null,null,null,null,null,0,156.1,0,0,{"$f":"VLOOKUP(AJ154,'3.1) Infrastructure Replacement'!$AE$74:$AK$109,4,FALSE)","v":{"$error":"#N/A"}},122,{"$error":"#N/A"},{"$error":"#N/A"},{"$error":"#N/A"},0,{"$error":"#DIV/0!"},{"$error":"#N/A"},{"$error":"#N/A"},0,{"$error":"#DIV/0!"},{"$error":"#N/A"},{"$error":"#N/A"},{"$error":"#N/A"},{"$error":"#N/A"},0,{"$error":"#DIV/0!"},{"$error":"#N/A"},{"$error":"#N/A"},0,{"$error":"#DIV/0!"},0,{"$error":"#N/A"},{"$f":"IF(#REF!=0,AL154,IF(#REF!>0,AN154))","v":{"$error":"#REF!"}}]
[null,null,"High Lift Pumping",false,{"$f":"D155*$D$57","v":0},null,{"$f":"F155*D155","v":0},1.223E-2,{"$f":"H155*E155","v":0},7.63,0.09,{"$f":"J155*I155*12","v":0},{"$f":"I155*24*365*K155","v":0},{"$f":"L155+M155+G155","v":0},0.82929577464788728,643.15492957746483,{"$f":"IF(E155=0,0,P155+O155*E155)","v":0},0.46300000000000002,359,{"$f":"IF(E155=0,0,S155+R155*E155)","v":0},null,null,null,null,null,null,null,null,null,null,null,null,null,null,null,null,null,null,null,null,null,null,0,null,0,0,{"$f":"VLOOKUP(AJ155,'3.1) Infrastructure Replacement'!$AE$74:$AK$109,4,FALSE)","v":{"$error":"#N/A"}},122,{"$error":"#N/A"},{"$error":"#N/A"},{"$error":"#N/A"},0,{"$error":"#DIV/0!"},{"$error":"#N/A"},{"$error":"#N/A"},0,{"$error":"#DIV/0!"},{"$error":"#N/A"},{"$error":"#N/A"},{"$error":"#N/A"},{"$error":"#N/A"},0,{"$error":"#DIV/0!"},{"$error":"#N/A"},{"$error":"#N/A"},0,{"$error":"#DIV/0!"},0,{"$error":"#N/A"},{"$f":"IF(#REF!=0,AL155,IF(#REF!>0,AN155))","v":{"$error":"#REF!"}}]
[null,null,"Distribution System Pumping",false,{"$f":"IF(D150=\"<Percentage>\",0,D156*$D$57*$D$150)","v":0},993,{"$f":"F156*D156","v":0},9.0089999999999996E-3,{"$f":"H156*E156","v":0},7.63,0.09,{"$f":"J156*I156*12","v":0},{"$f":"I156*24*365*K156","v":0},{"$f":"L156+M156+G156","v":0},0.82929577464788728,643.15492957746483,{"$f":"IF(E156=0,0,P156+O156*E156)","v":0},0.46300000000000002,359,{"$f":"IF(E156=0,0,S156+R156*E156)","v":0},null,null,null,null,null,null,null,null,null,null,null,null,null,null,null,null,null,null,null,null,null,null,0,null,0,0,{"$f":"VLOOKUP(AJ156,'3.1) Infrastructure Replacement'!$AE$74:$AK$109,4,FALSE)","v":{"$error":"#N/A"}},122,{"$error":"#N/A"},{"$error":"#N/A"},{"$error":"#N/A"},0,{"$error":"#DIV/0!"},{"$error":"#N/A"},{"$error":"#N/A"},0,{"$error":"#DIV/0!"},{"$error":"#N/A"},{"$error":"#N/A"},{"$error":"#N/A"},{"$error":"#N/A"},0,{"$error":"#DIV/0!"},{"$error":"#N/A"},{"$error":"#N/A"},0,{"$error":"#DIV/0!"},0,{"$error":"#N/A"},{"$f":"IF(#REF!=0,AL156,IF(#REF!>0,AN156))","v":{"$error":"#REF!"}}]
[null,null,{"$f":"\"Total Pumping Cost (\"&$D$22&\"$)\"","v":"Total Pumping Cost (2017$)"},{"$f":"ROUND(SUM(N153:N156,Q153:Q156,T153:T156),-2)","v":0},null,null,null,null,null,null,null,null,null,null,null,null,null,null,null,null,null,null,null,null,null,null,null,null,null,null,null,null,null,null,null,null,null,null,null,null,null,null,0,null,0,0,{"$f":"VLOOKUP(AJ157,'3.1) Infrastructure Replacement'!$AE$74:$AK$109,4,FALSE)","v":{"$error":"#N/A"}},122,{"$error":"#N/A"},{"$error":"#N/A"},{"$error":"#N/A"},0,{"$error":"#DIV/0!"},{"$error":"#N/A"},{"$error":"#N/A"},0,{"$error":"#DIV/0!"},{"$error":"#N/A"},{"$error":"#N/A"},{"$error":"#N/A"},{"$error":"#N/A"},0,{"$error":"#DIV/0!"},{"$error":"#N/A"},{"$error":"#N/A"},0,{"$error":"#DIV/0!"},0,{"$error":"#N/A"},{"$f":"IF(#REF!=0,AL157,IF(#REF!>0,AN157))","v":{"$error":"#REF!"}}]
[null,null,null,null,null,null,null,null,null,null,null,null,null,null,null,null,null,null,null,null,null,null,null,null,null,null,null,null,null,null,null,null,null,null,null,null,null,null,null,null,null,null,0,null,0,0,{"$f":"VLOOKUP(AJ158,'3.1) Infrastructure Replacement'!$AE$74:$AK$109,4,FALSE)","v":{"$error":"#N/A"}},122,{"$error":"#N/A"},{"$error":"#N/A"},{"$error":"#N/A"},0,{"$error":"#DIV/0!"},{"$error":"#N/A"},{"$error":"#N/A"},0,{"$error":"#DIV/0!"},{"$error":"#N/A"},{"$error":"#N/A"},{"$error":"#N/A"},{"$error":"#N/A"},0,{"$error":"#DIV/0!"},{"$error":"#N/A"},{"$error":"#N/A"},0,{"$error":"#DIV/0!"},0,{"$error":"#N/A"},{"$f":"IF(#REF!=0,AL158,IF(#REF!>0,AN158))","v":{"$error":"#REF!"}}]
[null,null,"Summary of Theoretical Existing O&M Costs with Additional Location and Inflation Factors Included",null,null,null,null,null,null,null,null,null,null,null,null,null,null,null,null,null,null,null,null,null,null,null,null,null,null,null,null,null,null,null,null,null,null,null,null,null,null,null,0,null,0,0,{"$f":"VLOOKUP(AJ159,'3.1) Infrastructure Replacement'!$AE$74:$AK$109,4,FALSE)","v":{"$error":"#N/A"}},122,{"$error":"#N/A"},{"$error":"#N/A"},{"$error":"#N/A"},0,{"$error":"#DIV/0!"},{"$error":"#N/A"},{"$error":"#N/A"},0,{"$error":"#DIV/0!"},{"$error":"#N/A"},{"$error":"#N/A"},{"$error":"#N/A"},{"$error":"#N/A"},0,{"$error":"#DIV/0!"},{"$error":"#N/A"},{"$error":"#N/A"},0,{"$error":"#DIV/0!"},0,{"$error":"#N/A"},{"$f":"IF(#REF!=0,AL159,IF(#REF!>0,AN159))","v":{"$error":"#REF!"}}]
[null,null,"Item","Base Year (2017) Theoretical Costs",{"$f":"\"Inflated Theoretical Costs (\"&C17&\"$)\"","v":"Inflated Theoretical Costs (Year:$)"},{"$f":"\"Inflated Theoretical Costs for (\"&D40&\")\"","v":"Inflated Theoretical Costs for (0)"},null,null,null,null,null,null,null,null,null,null,null,null,null,null,null,null,null,null,null,null,null,null,null,null,null,null,null,null,null,null,null,null,null,null,null,null,null,0,null,0,0,{"$f":"VLOOKUP(AK160,'3.1) Infrastructure Replacement'!$AE$74:$AK$109,4,FALSE)","v":{"$error":"#N/A"}},122,{"$error":"#N/A"},{"$error":"#N/A"},{"$error":"#N/A"},0,{"$error":"#DIV/0!"},{"$error":"#N/A"},{"$error":"#N/A"},0,{"$error":"#DIV/0!"},{"$error":"#N/A"},{"$error":"#N/A"},{"$error":"#N/A"},{"$error":"#N/A"},0,{"$error":"#DIV/0!"},{"$error":"#N/A"},{"$error":"#N/A"},0,{"$error":"#DIV/0!"},0,{"$error":"#N/A"},{"$f":"IF(#REF!=0,AM160,IF(#REF!>0,AO160))","v":{"$error":"#REF!"}}]
[null,null,"Source",{"$f":"ROUND(I141,0)","v":0},{"$f":"$D$161*$D$23","v":0},{"$f":"ROUND(D161*$D$23*$D$42,-2)","v":0},null,null,null,null,null,null,null,null,null,null,null,0.46277665995975853,358.90342052313883,null,null,null,null,null,null,null,null,null,null,null,null,null,null,null,null,null,null,null,null,null,null,null,null,0,null,0,0,{"$f":"VLOOKUP(AK161,'3.1) Infrastructure Replacement'!$AE$74:$AK$109,4,FALSE)","v":{"$error":"#N/A"}},122,{"$error":"#N/A"},{"$error":"#N/A"},{"$error":"#N/A"},0,{"$error":"#DIV/0!"},{"$error":"#N/A"},{"$error":"#N/A"},0,{"$error":"#DIV/0!"},{"$error":"#N/A"},{"$error":"#N/A"},{"$error":"#N/A"},{"$error":"#N/A"},0,{"$error":"#DIV/0!"},{"$error":"#N/A"},{"$error":"#N/A"},0,{"$error":"#DIV/0!"},0,{"$error":"#N/A"},{"$f":"IF(#REF!=0,AM161,IF(#REF!>0,AO161))","v":{"$error":"#REF!"}}]
[null,null,"Pumping",{"$f":"ROUND(D157,0)","v":0},{"$f":"$D$162*$D$23","v":0},{"$f":"ROUND(D162*$D$23*$D$42,-2)","v":0},null,null,null,null,null,null,null,null,null,null,null,0.46277665995975853,358.90342052313883,null,null,null,null,null,null,null,null,null,null,null,null,null,null,null,null,null,null,null,null,null,null,null,null,0,null,0,0,{"$f":"VLOOKUP(AK162,'3.1) Infrastructure Replacement'!$AE$74:$AK$109,4,FALSE)","v":{"$error":"#N/A"}},122,{"$error":"#N/A"},{"$error":"#N/A"},{"$error":"#N/A"},0,{"$error":"#DIV/0!"},{"$error":"#N/A"},{"$error":"#N/A"},0,{"$error":"#DIV/0!"},{"$error":"#N/A"},{"$error":"#N/A"},{"$error":"#N/A"},{"$error":"#N/A"},0,{"$error":"#DIV/0!"},{"$error":"#N/A"},{"$error":"#N/A"},0,{"$error":"#DIV/0!"},0,{"$error":"#N/A"},{"$f":"IF(#REF!=0,AM162,IF(#REF!>0,AO162))","v":{"$error":"#REF!"}}]
[null,null,"Treatment",{"$f":"ROUND(J121,0)","v":0},{"$f":"$D$163*$D$23","v":0},{"$f":"ROUND(D163*$D$23*$D$42,-3)","v":0},null,null,null,null,null,null,null,null,null,null,null,null,null,null,null,null,null,null,null,null,null,null,null,null,null,null,null,null,null,null,null,null,null,null,null,null,null,0,null,0,0,{"$f":"VLOOKUP(AK163,'3.1) Infrastructure Replacement'!$AE$74:$AK$109,4,FALSE)","v":{"$error":"#N/A"}},122,{"$error":"#N/A"},{"$error":"#N/A"},{"$error":"#N/A"},0,{"$error":"#DIV/0!"},{"$error":"#N/A"},{"$error":"#N/A"},0,{"$error":"#DIV/0!"},{"$error":"#N/A"},{"$error":"#N/A"},{"$error":"#N/A"},{"$error":"#N/A"},0,{"$error":"#DIV/0!"},{"$error":"#N/A"},{"$error":"#N/A"},0,{"$error":"#DIV/0!"},0,{"$error":"#N/A"},{"$f":"IF(#REF!=0,AM163,IF(#REF!>0,AO163))","v":{"$error":"#REF!"}}]
[null,null,"Transmission & Distribution",{"$f":"ROUND(I142,0)","v":0},{"$f":"$D$164*$D$23","v":0},{"$f":"ROUND(D164*$D$23*$D$42,-3)","v":0},null,null,null,null,null,null,null,null,null,null,null,null,null,null,null,null,null,null,null,null,null,null,null,null,null,null,null,null,null,null,null,null,null,null,null,null,null,0,null,0,0,{"$f":"VLOOKUP(AK164,'3.1) Infrastructure Replacement'!$AE$74:$AK$109,4,FALSE)","v":{"$error":"#N/A"}},122,{"$error":"#N/A"},{"$error":"#N/A"},{"$error":"#N/A"},0,{"$error":"#DIV/0!"},{"$error":"#N/A"},{"$error":"#N/A"},0,{"$error":"#DIV/0!"},{"$error":"#N/A"},{"$error":"#N/A"},{"$error":"#N/A"},{"$error":"#N/A"},0,{"$error":"#DIV/0!"},{"$error":"#N/A"},{"$error":"#N/A"},0,{"$error":"#DIV/0!"},0,{"$error":"#N/A"},{"$f":"IF(#REF!=0,AM164,IF(#REF!>0,AO164))","v":{"$error":"#REF!"}}]
[null,null,"Administration",{"$f":"ROUND(SUM(D161:D164)*0.1,0)","v":0},{"$f":"$D$165*$D$23","v":0},{"$f":"ROUND(D165*$D$23*$D$42,-2)","v":0},null,null,null,null,null,null,null,null,null,null,null,null,null,null,null,null,null,null,null,null,null,null,null,null,null,null,null,null,null,null,null,null,null,null,null,null,null,0,null,0,0,{"$f":"VLOOKUP(AK165,'3.1) Infrastructure Replacement'!$AE$74:$AK$109,4,FALSE)","v":{"$error":"#N/A"}},122,{"$error":"#N/A"},{"$error":"#N/A"},{"$error":"#N/A"},0,{"$error":"#DIV/0!"},{"$error":"#N/A"},{"$error":"#N/A"},0,{"$error":"#DIV/0!"},{"$error":"#N/A"},{"$error":"#N/A"},{"$error":"#N/A"},{"$error":"#N/A"},0,{"$error":"#DIV/0!"},{"$error":"#N/A"},{"$error":"#N/A"},0,{"$error":"#DIV/0!"},0,{"$error":"#N/A"},{"$f":"IF(#REF!=0,AM165,IF(#REF!>0,AO165))","v":{"$error":"#REF!"}}]
[null,null,"Total",{"$f":"SUM(D161:D165)","v":0},{"$f":"SUM(E161:E165)","v":0},{"$f":"SUM(F161:F165)","v":0},null,null,null,null,null,null,null,null,null,null,null,null,null,null,null,null,null,null,null,null,null,null,null,null,null,null,null,null,null,null,null,null,null,null,null,null,null,0,null,0,0,{"$f":"VLOOKUP(AK166,'3.1) Infrastructure Replacement'!$AE$74:$AK$109,4,FALSE)","v":{"$error":"#N/A"}},122,{"$error":"#N/A"},{"$error":"#N/A"},{"$error":"#N/A"},0,{"$error":"#DIV/0!"},{"$error":"#N/A"},{"$error":"#N/A"},0,{"$error":"#DIV/0!"},{"$error":"#N/A"},{"$error":"#N/A"},{"$error":"#N/A"},{"$error":"#N/A"},0,{"$error":"#DIV/0!"},{"$error":"#N/A"},{"$error":"#N/A"},0,{"$error":"#DIV/0!"},0,{"$error":"#N/A"},{"$f":"IF(#REF!=0,AM166,IF(#REF!>0,AO166))","v":{"$error":"#REF!"}}]
[null,null,"Annual Cost per Population",{"$f":"D166/$D$47","v":{"$error":"#DIV/0!"}},{"$f":"E166/$D$47","v":{"$error":"#DIV/0!"}},{"$error":"#DIV/0!"},null,null,null,null,null,null,null,null,null,null,null,null,null,null,null,null,null,null,null,null,null,null,null,null,null,null,null,null,null,null,null,null,null,null,null,null,0,null,0,0,{"$f":"VLOOKUP(AJ167,'3.1) Infrastructure Replacement'!$AE$74:$AK$109,4,FALSE)","v":{"$error":"#N/A"}},122,{"$error":"#N/A"},{"$error":"#N/A"},{"$error":"#N/A"},0,{"$error":"#DIV/0!"},{"$error":"#N/A"},{"$error":"#N/A"},0,{"$error":"#DIV/0!"},{"$error":"#N/A"},{"$error":"#N/A"},{"$error":"#N/A"},{"$error":"#N/A"},0,{"$error":"#DIV/0!"},{"$error":"#N/A"},{"$error":"#N/A"},0,{"$error":"#DIV/0!"},0,{"$error":"#N/A"},{"$f":"IF(#REF!=0,AL167,IF(#REF!>0,AN167))","v":{"$error":"#REF!"}}]
[null,null,"Monthly Cost per Person",{"$f":"D167/12","v":{"$error":"#DIV/0!"}},{"$f":"E167/12","v":{"$error":"#DIV/0!"}},{"$error":"#DIV/0!"},null,null,null,null,null,null,null,null,null,null,null,null,null,null,null,null,null,null,null,null,null,null,null,null,null,null,null,null,null,null,null,null,null,null,null,null,0,null,0,0,{"$f":"VLOOKUP(AJ168,'3.1) Infrastructure Replacement'!$AE$74:$AK$109,4,FALSE)","v":{"$error":"#N/A"}},122,{"$error":"#N/A"},{"$error":"#N/A"},{"$error":"#N/A"},0,{"$error":"#DIV/0!"},{"$error":"#N/A"},{"$error":"#N/A"},0,{"$error":"#DIV/0!"},{"$error":"#N/A"},{"$error":"#N/A"},{"$error":"#N/A"},{"$error":"#N/A"},0,{"$error":"#DIV/0!"},{"$error":"#N/A"},{"$error":"#N/A"},0,{"$error":"#DIV/0!"},0,{"$error":"#N/A"},{"$f":"IF(#REF!=0,AL168,IF(#REF!>0,AN168))","v":{"$error":"#REF!"}}]
[null,null,null,null,null,null,null,null,null,null,null,null,null,null,null,null,null,null,null,null,null,null,null,null,null,null,null,null,null,null,null,null,null,null,null,null,null,null,null,null,null,null,0,null,0,0,{"$f":"VLOOKUP(AJ169,'3.1) Infrastructure Replacement'!$AE$74:$AK$109,4,FALSE)","v":{"$error":"#N/A"}},122,{"$error":"#N/A"},{"$error":"#N/A"},{"$error":"#N/A"},0,{"$error":"#DIV/0!"},{"$error":"#N/A"},{"$error":"#N/A"},0,{"$error":"#DIV/0!"},{"$error":"#N/A"},{"$error":"#N/A"},{"$error":"#N/A"},{"$error":"#N/A"},0,{"$error":"#DIV/0!"},{"$error":"#N/A"},{"$error":"#N/A"},0,{"$error":"#DIV/0!"},0,{"$error":"#N/A"},{"$f":"IF(#REF!=0,AL169,IF(#REF!>0,AN169))","v":{"$error":"#REF!"}}]
[null,null,null,null,null,null,null,null,null,null,null,null,null,null,null,null,null,null,null,null,null,null,null,null,null,null,null,null,null,null,null,null,null,null,null,null,null,null,null,null,null,null,0,null,0,0,{"$f":"VLOOKUP(AJ170,'3.1) Infrastructure Replacement'!$AE$74:$AK$109,4,FALSE)","v":{"$error":"#N/A"}},122,{"$error":"#N/A"},{"$error":"#N/A"},{"$error":"#N/A"},0,{"$error":"#DIV/0!"},{"$error":"#N/A"},{"$error":"#N/A"},0,{"$error":"#DIV/0!"},{"$error":"#N/A"},{"$error":"#N/A"},{"$error":"#N/A"},{"$error":"#N/A"},0,{"$error":"#DIV/0!"},{"$error":"#N/A"},{"$error":"#N/A"},0,{"$error":"#DIV/0!"},0,{"$error":"#N/A"},{"$f":"IF(#REF!=0,AL170,IF(#REF!>0,AN170))","v":{"$error":"#REF!"}}]
[null,null,null,null,null,null,null,null,null,null,null,null,null,null,null,null,null,null,null,null,null,null,null,null,null,null,null,null,null,null,null,null,null,null,null,null,null,null,null,null,null,null,0,null,0,0,{"$f":"VLOOKUP(AJ171,'3.1) Infrastructure Replacement'!$AE$74:$AK$109,4,FALSE)","v":{"$error":"#N/A"}},122,{"$error":"#N/A"},{"$error":"#N/A"},{"$error":"#N/A"},0,{"$error":"#DIV/0!"},{"$error":"#N/A"},{"$error":"#N/A"},0,{"$error":"#DIV/0!"},{"$error":"#N/A"},{"$error":"#N/A"},{"$error":"#N/A"},{"$error":"#N/A"},0,{"$error":"#DIV/0!"},{"$error":"#N/A"},{"$error":"#N/A"},0,{"$error":"#DIV/0!"},0,{"$error":"#N/A"},{"$f":"IF(#REF!=0,AL171,IF(#REF!>0,AN171))","v":{"$error":"#REF!"}}]
[null,null,null,null,null,null,null,null,null,null,null,null,null,null,null,null,null,null,null,null,null,null,null,null,null,null,null,null,null,null,null,null,null,null,null,null,null,null,null,null,null,null,0,null,0,0,{"$f":"VLOOKUP(AJ172,'3.1) Infrastructure Replacement'!$AE$74:$AK$109,4,FALSE)","v":{"$error":"#N/A"}},122,{"$error":"#N/A"},{"$error":"#N/A"},{"$error":"#N/A"},0,{"$error":"#DIV/0!"},{"$error":"#N/A"},{"$error":"#N/A"},0,{"$error":"#DIV/0!"},{"$error":"#N/A"},{"$error":"#N/A"},{"$error":"#N/A"},{"$error":"#N/A"},0,{"$error":"#DIV/0!"},{"$error":"#N/A"},{"$error":"#N/A"},0,{"$error":"#DIV/0!"},0,{"$error":"#N/A"},{"$f":"IF(#REF!=0,AL172,IF(#REF!>0,AN172))","v":{"$error":"#REF!"}}]
[null,null,"PAGE 3 - Existing Expenditures",null,null,null,null,null,null,null,null,null,null,null,null,null,null,null,null,null,null,null,null,null,null,null,null,null,null,null,null,null,null,null,null,null,null,null,null,null,null,null,0,null,0,0,{"$f":"VLOOKUP(AJ173,'3.1) Infrastructure Replacement'!$AE$74:$AK$109,4,FALSE)","v":{"$error":"#N/A"}},122,{"$error":"#N/A"},{"$error":"#N/A"},{"$error":"#N/A"},0,{"$error":"#DIV/0!"},{"$error":"#N/A"},{"$error":"#N/A"},0,{"$error":"#DIV/0!"},{"$error":"#N/A"},{"$error":"#N/A"},{"$error":"#N/A"},{"$error":"#N/A"},0,{"$error":"#DIV/0!"},{"$error":"#N/A"},{"$error":"#N/A"},0,{"$error":"#DIV/0!"},0,{"$error":"#N/A"},{"$f":"IF(#REF!=0,AL173,IF(#REF!>0,AN173))","v":{"$error":"#REF!"}}]
[null,null,null,null,null,null,null,null,null,null,null,null,null,null,null,null,null,null,null,null,null,null,null,null,null,null,null,null,null,null,null,null,null,null,null,null,null,null,null,null,null,null,0,null,0,0,{"$f":"VLOOKUP(AJ174,'3.1) Infrastructure Replacement'!$AE$74:$AK$109,4,FALSE)","v":{"$error":"#N/A"}},122,{"$error":"#N/A"},{"$error":"#N/A"},{"$error":"#N/A"},0,{"$error":"#DIV/0!"},{"$error":"#N/A"},{"$error":"#N/A"},0,{"$error":"#DIV/0!"},{"$error":"#N/A"},{"$error":"#N/A"},{"$error":"#N/A"},{"$error":"#N/A"},0,{"$error":"#DIV/0!"},{"$error":"#N/A"},{"$error":"#N/A"},0,{"$error":"#DIV/0!"},0,{"$error":"#N/A"},{"$f":"IF(#REF!=0,AL174,IF(#REF!>0,AN174))","v":{"$error":"#REF!"}}]
[null,null,"ACTUAL O&M COSTS",null,null,null,null,null,null,null,null,null,null,null,null,null,null,null,null,null,null,null,null,null,null,null,null,null,null,null,null,null,null,null,null,null,null,null,null,null,null,null,0,null,0,0,{"$f":"VLOOKUP(AJ175,'3.1) Infrastructure Replacement'!$AE$74:$AK$109,4,FALSE)","v":{"$error":"#N/A"}},122,{"$error":"#N/A"},{"$error":"#N/A"},{"$error":"#N/A"},0,{"$error":"#DIV/0!"},{"$error":"#N/A"},{"$error":"#N/A"},0,{"$error":"#DIV/0!"},{"$error":"#N/A"},{"$error":"#N/A"},{"$error":"#N/A"},{"$error":"#N/A"},0,{"$error":"#DIV/0!"},{"$error":"#N/A"},{"$error":"#N/A"},0,{"$error":"#DIV/0!"},0,{"$error":"#N/A"},{"$f":"IF(#REF!=0,AL175,IF(#REF!>0,AN175))","v":{"$error":"#REF!"}}]
[null,null,"Previous Year Actual Expenditures:",{"$f":"IF(D17>2016,D17-1,\"\")","v":""},null,null,null,null,null,null,null,null,null,null,null,null,null,null,null,null,null,null,null,null,null,null,null,null,null,null,null,null,null,null,null,null,null,null,null,null,null,null,0,null,0,0,{"$f":"VLOOKUP(AJ176,'3.1) Infrastructure Replacement'!$AE$74:$AK$109,4,FALSE)","v":{"$error":"#N/A"}},122,{"$error":"#N/A"},{"$error":"#N/A"},{"$error":"#N/A"},0,{"$error":"#DIV/0!"},{"$error":"#N/A"},{"$error":"#N/A"},0,{"$error":"#DIV/0!"},{"$error":"#N/A"},{"$error":"#N/A"},{"$error":"#N/A"},{"$error":"#N/A"},0,{"$error":"#DIV/0!"},{"$error":"#N/A"},{"$error":"#N/A"},0,{"$error":"#DIV/0!"},0,{"$error":"#N/A"},{"$f":"IF(#REF!=0,AL176,IF(#REF!>0,AN176))","v":{"$error":"#REF!"}}]
[null,null,null,null,null,null,null,null,null,null,null,null,null,null,null,null,null,null,null,null,null,null,null,null,null,null,null,null,null,null,null,null,null,null,null,null,null,null,null,null,null,null,0,null,0,0,{"$f":"VLOOKUP(AJ177,'3.1) Infrastructure Replacement'!$AE$74:$AK$109,4,FALSE)","v":{"$error":"#N/A"}},122,{"$error":"#N/A"},{"$error":"#N/A"},{"$error":"#N/A"},0,{"$error":"#DIV/0!"},{"$error":"#N/A"},{"$error":"#N/A"},0,{"$error":"#DIV/0!"},{"$error":"#N/A"},{"$error":"#N/A"},{"$error":"#N/A"},{"$error":"#N/A"},0,{"$error":"#DIV/0!"},{"$error":"#N/A"},{"$error":"#N/A"},0,{"$error":"#DIV/0!"},0,{"$error":"#N/A"},{"$f":"IF(#REF!=0,AL177,IF(#REF!>0,AN177))","v":{"$error":"#REF!"}}]
[null,null,null,null,null,null,null,null,null,null,null,null,null,null,null,null,null,null,null,null,null,null,null,null,null,null,null,null,null,null,null,null,null,null,null,null,null,null,null,null,null,null,0,null,0,0,{"$f":"VLOOKUP(AJ178,'3.1) Infrastructure Replacement'!$AE$74:$AK$109,4,FALSE)","v":{"$error":"#N/A"}},122,{"$error":"#N/A"},{"$error":"#N/A"},{"$error":"#N/A"},0,{"$error":"#DIV/0!"},{"$error":"#N/A"},{"$error":"#N/A"},0,{"$error":"#DIV/0!"},{"$error":"#N/A"},{"$error":"#N/A"},{"$error":"#N/A"},{"$error":"#N/A"},0,{"$error":"#DIV/0!"},{"$error":"#N/A"},{"$error":"#N/A"},0,{"$error":"#DIV/0!"},0,{"$error":"#N/A"},{"$f":"IF(#REF!=0,AL178,IF(#REF!>0,AN178))","v":{"$error":"#REF!"}}]
[null,null,"Item",null,null,null,null,null,null,null,null,null,null,null,null,null,null,null,null,null,null,null,null,null,null,null,null,null,null,null,null,null,null,null,null,null,null,null,null,null,null,null,0,null,0,0,{"$f":"VLOOKUP(AJ179,'3.1) Infrastructure Replacement'!$AE$74:$AK$109,4,FALSE)","v":{"$error":"#N/A"}},122,{"$error":"#N/A"},{"$error":"#N/A"},{"$error":"#N/A"},0,{"$error":"#DIV/0!"},{"$error":"#N/A"},{"$error":"#N/A"},0,{"$error":"#DIV/0!"},{"$error":"#N/A"},{"$error":"#N/A"},{"$error":"#N/A"},{"$error":"#N/A"},0,{"$error":"#DIV/0!"},{"$error":"#N/A"},{"$error":"#N/A"},0,{"$error":"#DIV/0!"},0,{"$error":"#N/A"},{"$f":"IF(#REF!=0,AL179,IF(#REF!>0,AN179))","v":{"$error":"#REF!"}}]
[null,null,"Source of Supply",{"$f":"'1.3) Existing Expenditures'!Q8","v":0},null,null,null,null,null,null,null,null,null,null,null,null,null,null,null,null,null,null,null,null,null,null,null,null,null,null,null,null,null,null,null,null,null,null,null,null,null,null,0,null,0,0,{"$f":"VLOOKUP(AJ180,'3.1) Infrastructure Replacement'!$AE$74:$AK$109,4,FALSE)","v":{"$error":"#N/A"}},122,{"$error":"#N/A"},{"$error":"#N/A"},{"$error":"#N/A"},0,{"$error":"#DIV/0!"},{"$error":"#N/A"},{"$error":"#N/A"},0,{"$error":"#DIV/0!"},{"$error":"#N/A"},{"$error":"#N/A"},{"$error":"#N/A"},{"$error":"#N/A"},0,{"$error":"#DIV/0!"},{"$error":"#N/A"},{"$error":"#N/A"},0,{"$error":"#DIV/0!"},0,{"$error":"#N/A"},{"$f":"IF(#REF!=0,AL180,IF(#REF!>0,AN180))","v":{"$error":"#REF!"}}]
[null,null,"Pumping",{"$f":"'1.3) Existing Expenditures'!Q9","v":0}]
[null,null,"Water Treatment",{"$f":"'1.3) Existing Expenditures'!Q10","v":0},null,null,null,null,null,null,null,null,null,null,null,null,null,null,null,null,null,null,null,null,null,null,null,null,null,null,null,null,null,null,null,null,null,null,null,null,null,null,null,null,null,null,null,null,null,null,null,null,null,null,"Total Annual Cost:",null,null,{"$f":"SUMIF(BF3:BF180,\"<>#N/A\")","v":{"$error":"#DIV/0!"}},{"$f":"SUMIF(BG3:BG180,\"<>#N/A\")","v":{"$error":"#DIV/0!"}}]
[null,null,"Transmission & Distribution",{"$f":"'1.3) Existing Expenditures'!Q11","v":0}]
[null,null,"Administration",{"$f":"'1.3) Existing Expenditures'!Q12","v":0}]
[null,null,"Total",{"$f":"SUM(D180:D184)","v":0}]
[]
[]
[]
[]
[]
[null,null,"PAGE 4 - Existing Revenue"]
[]
[null,null,"Water Tax Revenue:"]
[null,null,"Enter the number of customers that pay Water Taxes:",null,{"$f":"'1.4) Existing Revenue'!Q7","v":0}]
[null,null,"If known, enter the number of people per household:",null,2.2999999999999998]
[null,null,"Population:",null,{"$f":"D47","v":0}]
[null,null,"Number of customers:",null,{"$f":"IF(E194=0,E196/E195,E194)","v":0}]
[null,null,"Water Tax:",null,{"$f":"'1.4) Existing Revenue'!Q8","v":0}]
[]
[null,null,"Water & Sewer Tax Revenue:"]
[null,null,"Enter the number of customers that pay Water & Sewer Tax:",null,{"$f":"'1.4) Existing Revenue'!Q12","v":0}]
[null,null,"Enter the annual Water & Sewer Tax rate charged to each customer:",null,{"$f":"'1.4) Existing Revenue'!Q13","v":0}]
[null,null,"%age applied to Sewer",null,{"$f":"'1.4) Existing Revenue'!Q14","v":0}]
[null,null,"Percentage applied to water services",null,{"$f":"E202*(1-E203)","v":0}]
[]
[null,null,"Other Revenue:"]
[null,null,"Number of Industrial Customers:",null,{"$f":"'1.4) Existing Revenue'!Q19","v":0}]
[null,null,"Industrial Rate:",null,{"$f":"'1.4) Existing Revenue'!Q20","v":0}]
[null,null,"Other Revenue:",null,{"$f":"'1.4) Existing Revenue'!Q22","v":0}]
[]
[null,null,"Customer Type","Revenue"]
[null,null,"Water Tax",{"$f":"E197*E198","v":0}]
[null,null,"Water & Sewer Tax",{"$f":"E204*E201","v":0}]
[null,null,"Industrial/Commercial Customers",{"$f":"E207*E208","v":0}]
[null,null,"Other",{"$f":"E209","v":0}]
[null,null,"Total",{"$f":"SUM(D212:D215)","v":0}]
[]
[null,null,"Total Residential and Industrial Customers",{"$f":"SUM(E197,E201,E207)","v":0}]
[null,null,"Total Revenue per Customer",{"$f":"D216/D218","v":{"$error":"#DIV/0!"}}]
[]
[]
[]
[]
[null,null,"PAGE 5 - Gap Analysis"]
[]
[null,null,"Analysis of Existing Budget:"]
[null,null,"Actual Total Expenditures:",{"$f":"D185","v":0}]
[null,null,"Current Balance:",{"$f":"D216-D227","v":0}]
[null,null,"Conditional Formatting Rule",{"$f":"IF(D228<0,TRUE,FALSE)","v":false}]
[null,null,"Statement on Current Budget Balance:",{"$f":"IF(D229=TRUE,\"This indicates that existing revenues are not sufficient to cover the costs of operation.\",\"\")","v":""}]
[]
[]
[null,null,"Evaluation of Existing Costs"]
[null,null,"Item",{"$f":"F160","v":"Inflated Theoretical Costs for (0)"},"Actual Cost","Delta"]
[null,null,"Source",0,{"$f":"IF($D$185=0,E180,D180)","v":0},{"$f":"E235-D161","v":0}]
[null,null,"Pumping",0,0,0]
[null,null,"Treatment",0,0,0]
[null,null,"Transmission & Distribution",0,0,0]
[null,null,"Administration",0,0,0]
[null,null,"Total",0,0,0]
[]
[null,null,"Statement on Existing Costs:"]
[null,null,{"$f":"IF(F240<0,\"This result indicates that the community should consider increasing the budget for operation and maintenance of the water supply system.\",\"\")","v":""}]
[null,null,"Conditional Formatting Rule:",{"$f":"IF(F240<0,TRUE,FALSE)","v":false}]
[]
[null,null,"Gap Analysis:"]
[]
[null,null,"Annual Water Tax",null,{"$f":"IF(D248=0,\"\",IF(D248<0,\"This indicates that existing revenues are not sufficient to cover the costs of operation. \",\"Revenue is sufficient to fund existing operations\"))","v":""}]
[null,null,"Funding Goal","Annual Tax","Gap"]
[null,null,"Current Per Customer Tax",{"$f":"D219","v":{"$error":"#DIV/0!"}},0]
[null,null,"Minimum Per Customer Tax to Fund Existing Operations",{"$f":"(D227)/D218","v":{"$error":"#DIV/0!"}},{"$f":"D251-D250","v":{"$error":"#DIV/0!"}}]
[null,null,"Minimum Per Customer Tax to fund Best Practices",{"$f":"F166/D218","v":{"$error":"#DIV/0!"}},{"$f":"D252-D250","v":{"$error":"#DIV/0!"}}]
[]
[null,null,"Conditional Formating Rule",{"$f":"IF(E251>0,TRUE,FALSE)","v":{"$error":"#DIV/0!"}}]
[null,null,{"$f":"\"Water taxes should be increased to a minimum of $\"&ROUNDUP(D251,0)&\" per household to fund existing operations. If water system operation budgets are increased, taxes should be further increased.\"","v":{"$error":"#DIV/0!"}}]
[null,null,"Water taxes are sufficient to fund existing operations. If operations costs are increased, the tax rate should be re-evaluated."]
[]
[]
[]
[]
[]
[null,null,"PART 2 - Capital Upgrades"]
[]
[null,null,"Parameter","Value","Units","Conversion Factor","Flow by User (m3/d)","Per Capita Consumption (L/p/d)"]
[null,null,{"$f":"'2.2) Design Parameters'!D11","v":"Population Serviced"},{"$f":"'2.2) Design Parameters'!I11:I11","v":0}]
[null,null,{"$f":"'2.2) Design Parameters'!D12","v":"Average Flow "},{"$f":"'2.2) Design Parameters'!I12","v":0},{"$f":"'2.2) Design Parameters'!J12","v":"m3/d"},{"$f":"IF(OR(E266=\"<Units>\",E266=0,E266=\"\"),0,VLOOKUP(E266,'Table Inputs'!$T$4:$U$6,2,FALSE))","v":1},{"$f":"D266*F266","v":0},{"$f":"G266*1000/$D$265","v":{"$error":"#DIV/0!"}}]
[null,null,{"$f":"'2.2) Design Parameters'!D13","v":"Maximum Day Flow"},{"$f":"'2.2) Design Parameters'!I13","v":0},{"$f":"'2.2) Design Parameters'!J13","v":"<Units>"},{"$f":"IF(OR(E267=\"<Units>\",E267=0,E267=\"\"),0,VLOOKUP(E267,'Table Inputs'!$T$4:$U$6,2,FALSE))","v":0},{"$f":"D267*F267","v":0},{"$f":"G267*1000/$D$265","v":{"$error":"#DIV/0!"}}]
[null,null,{"$f":"'2.2) Design Parameters'!D14","v":"Peak Flow"},{"$f":"'2.2) Design Parameters'!I14","v":0},{"$f":"'2.2) Design Parameters'!J14","v":"<Units>"},{"$f":"IF(OR(E268=\"<Units>\",E268=0,E268=\"\"),0,VLOOKUP(E268,'Table Inputs'!$T$4:$U$6,2,FALSE))","v":0},{"$f":"D268*F268","v":0}]
[]
[null,null,"Design Flows:","Value","Per Capita"]
[null,null,"Theoretical Per Capita Avg Flow",340]
[null,null,"Average Flow (m3/d)",{"$f":"MAX(G266,D265*D271/1000)","v":0},{"$f":"IF(D265=0,0,D272*1000/D265)","v":0}]
[null,null,"Maximum Day Flow (m3/d)",{"$f":"IF(G267>0,G267,D272*VLOOKUP($D$265,'Table Inputs'!$B$4:$E$12,3,TRUE))","v":0},{"$f":"IF(D265=0,0,D273*1000/D265)","v":0}]
[null,null,"Peak Flow (m3/d)",{"$f":"IF(G268>0,G268,D272*VLOOKUP($D$265,'Table Inputs'!$B$4:$E$12,3,TRUE))","v":0},{"$f":"IF(D265=0,0,D274*1000/D265)","v":0}]
[]
[]
[null,null,"Design Life for Facility Option #",1]
[null,null,"Design Life Option #","Design Life (years)"]
[null,null,1,15]
[null,null,2,20]
[null,null,3,25]
[null,null,4,30]
[]
[null,null,"Chosen Design Life:",{"$f":"VLOOKUP(D277,C279:D282,2,FALSE)","v":15}]
[]
[null,null,"Population Change:"]
[null,null,"Year","Population","Annual Percentage Change"]
[null,null,{"$f":"VLOOKUP(D17,'Table Inputs'!G64:H83,2,TRUE)","v":{"$error":"#N/A"}},{"$f":"'2.2) Design Parameters'!K27","v":0}]
[null,null,{"$f":"C288-5","v":{"$error":"#N/A"}},{"$f":"'2.2) Design Parameters'!K28","v":0},{"$f":"(D288-D289)/D289/(C288-C289)","v":{"$error":"#DIV/0!"}}]
[null,null,{"$f":"C289-5","v":{"$error":"#N/A"}},{"$f":"'2.2) Design Parameters'!K29","v":0},{"$f":"IF(AND(D290>0,D289>0),(D289-D290)/D290/(C289-C290),\"\")","v":""}]
[null,null,null,"Average",{"$f":"IF(AND(E289>0,E290>0),AVERAGE(E289:E290),E289)","v":{"$error":"#DIV/0!"}}]
[]
[null,null,{"$f":"IF(E291>0, \"The census data indicates that the population of the community has increased by approximately \"&ROUND(E291*100,1)&\"% per year\",\"The census data indicates that the population of the community has declined by approximately \"&ROUND(E291*100,1)&\"% per year.\")","v":{"$error":"#DIV/0!"}}]
[]
[null,null,"Population Growth Option #",9]
[null,null,"Population Growth Option #","Growth Value"]
[null,null,1,-0.02]
[null,null,2,-1.7500000000000002E-2]
[null,null,3,-1.4999999999999999E-2]
[null,null,4,-1.2500000000000001E-2]
[null,null,5,-0.01]
[null,null,6,-7.4999999999999997E-3]
[null,null,7,-5.0000000000000001E-3]
[null,null,8,-2.5000000000000001E-3]
[null,null,9,0]
[null,null,10,2.5000000000000001E-3]
[null,null,11,5.0000000000000001E-3]
[null,null,12,7.4999999999999997E-3]
[null,null,13,0.01]
[null,null,14,1.2500000000000001E-2]
[null,null,15,1.4999999999999999E-2]
[null,null,16,1.7500000000000002E-2]
[null,null,17,0.02]
[null,null,18,2.2499999999999999E-2]
[null,null,19,2.5000000000000001E-2]
[null,null,20,2.75E-2]
[]
[null,null,"Selected Annual Population Growth Rate",{"$f":"VLOOKUP(D295,C297:D316,2,FALSE)","v":0}]
[]
[null,null,"Design Life",{"$f":"D284","v":15}]
[null,null,"Selected Growth Rate",{"$f":"D318","v":0}]
[null,null,"Population Change Factor",{"$f":"(1+D321)^D320","v":1}]
[null,null,"Future Design Population",{"$f":"D265*D322","v":0}]
[]
[]
[null,null,"Per Capita Consumption (design values):"]
[null,null,"Average Per Capita Flow",{"$f":"E272","v":0},"L/p/d"]
[null,null,"MDD per capita flow",{"$f":"E273","v":0},"L/p/d"]
[null,null,"Peak Hour Flow",{"$f":"E274","v":0},"L/p/d"]
[]
[null,null,"Design Flows:"]
[null,null,"Design Average Day Flow",{"$f":"MAX(D323,D265)*D327/1000","v":0},"m3/d",{"$f":"D332*1000/3.785/1440","v":0},"usgpm"]
[null,null,"Design Maximum Day Flow",{"$f":"MAX(D323,D265)*D328/1000","v":0},"m3/d",{"$f":"D333*1000/3.785/1440","v":0},"usgpm"]
[null,null,"Design Peak Hour Flow",{"$f":"D329*MAX(D323,D265)/1000","v":0},"m3/d",{"$f":"D334*1000/3.785/1440","v":0},"usgpm"]
[]
[]
[null,null,"Capital Costs for Part 2: Capital Upgrades"]
[]
[null,null,"Wells"]
[]
[null,null,"Are the upgrades for the community or just specified system?"]
[]
[]
[]
[null,null,"Disinfection System Type"]
[null,null,"Disinfection Option #",1]
[null,null,"Option #","System"]
[null,null,1,"Liquid Chlorine"]
[null,null,2,"Chlorine Gas"]
[null,null,3,"OSHG"]
[null,null,4,"Calcium Hypochlorite"]
[]
[null,null,"New or Existing Equipment Option #",1]
[null,null,"Option #","New/Existing"]
[null,null,1,"New"]
[null,null,2,"Existing"]
[]
[null,null,"UV Yes or No Option #",1]
[null,null,"Option #","New/Existing",null,null,1]
[null,null,1,"Not included"]
[null,null,2,"New"]
[null,null,3,"Existing"]
[]
[null,null,"pH Equipment Option #",1]
[null,null,"Option #","Equipment"]
[null,null,1,"Not included"]
[null,null,2,"New"]
[null,null,3,"Existing"]
[]
[null,null,"Inline Filter Option #",1]
[null,null,"Option #","Equipment"]
[null,null,1,"Not included"]
[null,null,2,"New"]
[null,null,3,"Existing"]
[]
[null,null,"Fe/Mn Removal Option #",1]
[null,null,"Option #","Equipment"]
[null,null,1,"Not included"]
[null,null,2,"New"]
[null,null,3,"Existing"]
[]
[null,null,"As Removal Option #",1]
[null,null,"Option #","Equipment"]
[null,null,1,"Not included"]
[null,null,2,"New"]
[null,null,3,"Existing"]
[]
[null,null,"Membrane Option #",1]
[null,null,"Option #","Equipment"]
[null,null,1,"Not included"]
[null,null,2,"New"]
[null,null,3,"Existing",null,"New Building #",2]
[null,null,null,null,null,"Will New building be required?",{"$f":"IF(G392=1,\"yes\",\"no\")","v":"no"}]
[null,null,"WTP Option #",1]
[null,null,"Option #","Equipment",null,"Will Any of the following requires a new building?"]
[null,null,1,"Not included",null,"Disinfection System",false]
[null,null,2,"New",null,"UV Disinfection System",false]
[null,null,3,"Existing",null,"pH Adjustment System",false]
[null,null,null,null,null,"Inline Filter Building Option #",false]
[null,null,"PWDU Option #",1,null,"Fe/Mn Building Option #",false]
[null,null,"Option #","Equipment",null,"As Building Option #",false]
[null,null,1,"Not included",null,"Membrane  Building Option #",false]
[null,null,2,"New",null,"WTP Building Option #",false]
[null,null,3,"Existing",null,"PWDU Building Option #",false]
[]
[]
[]
[null,null,null,"Design Population More or Less than 500?:",{"$f":"IF(D323<500,\"LESS\",\"MORE\")","v":"LESS"},"Population Less Than 500",null,null,null,null,null,"Population Greater Than 500"]
[null,null,"Treatment Processes",null,null,"Equipment Cost",null,null,"Building Cost",null,null,"Equipment Cost",null,null,"Building Cost"]
[null,null,null,"Inflation Factor (from Base Year$)","Flow Rate (input)","Slope","Intercept","Value","Slope","Intercept","Value","Slope","Intercept","Value","Slope","Intercept","Flow Rate (input)","Value"]
[null,null,"Sodium Hypochlorite",{"$f":"$D$24*$D$41","v":1.2803177593951399E-26},{"$f":"IF(AND($D$346=1,$D$353=1),$D$332,0)","v":0},{"$f":"(L411*E411+M411-G411)/170","v":303.47108213802352},{"$f":"0.1*M411","v":5732.2315514960001},{"$f":"IF(OR(E411=0,$E$408=\"more\"),0,ROUNDUP((F411*E411+G411)*D411,-3))","v":0},{"$f":"(O411*E411+P411-J411)/170","v":387.40018831315359},{"$f":"0.1*P411","v":7317.55911258179},{"$f":"IF(AND($G$396=TRUE,E411>0,$E$408=\"LESS\",$G$393=\"yes\"),ROUNDUP((I411*E411+J411)*D411,-3),0)","v":0},11.984576982381199,57322.315514959999,{"$f":"IF(OR(E411=0,$E$408=\"LESS\"),0,ROUNDUP((L411*E411+M411)*D411,-3))","v":0},78.658979784437093,73175.591125817897,{"$f":"IF(AND($G$392=1,$G$396=TRUE,$E$408=\"MORE\"),$D$332,0)","v":0},{"$f":"IF(Q411=0,0,ROUNDUP((O411*Q411+P411)*D411,-3))","v":0}]
[null,null,"Gas Chlorination",{"$f":"$D$24*$D$41","v":1.2803177593951399E-26},{"$f":"IF(AND($D$346=2,$D$353=1),$D$332,0)","v":0},{"$f":"(L412*E412+M412-G412)/170","v":330.48383940000002},{"$f":"0.1*M412","v":6242.4725220000009},{"$f":"IF(OR(E412=0,$E$408=\"more\"),0,ROUNDUP((F412*E412+G412)*D412,-3))","v":0},{"$f":"(O412*E412+P412-J412)/170","v":1484.1860942260266},{"$f":"0.1*P412","v":28034.626224269392},{"$f":"IF(AND($G$396=TRUE,E412>0,$E$408=\"LESS\",$G$393=\"yes\"),ROUNDUP((I412*E412+J412)*D412,-3),0)","v":0},85.774431600000028,62424.725220000008,{"$f":"IF(OR(E412=0,$E$408=\"LESS\"),0,ROUNDUP((L412*E412+M412)*D412,-3))","v":0},70.254869466122429,280346.26224269392,{"$f":"IF(AND($G$392=2,$G$396=TRUE,$E$408=\"MORE\"),$D$332,0)","v":0},0]
[null,null,"Onsite Sodium Hypochlorite Generation System",1.2803177593951399E-26,{"$f":"IF(AND($D$346=3,$D$353=1),$D$332,0)","v":0},2789.760746113247,52695.480759916885,0,{"$f":"(O413*E413+P413-J413)/170","v":1366.3238825885064},25808.340004449565,{"$f":"IF(AND($G$396=TRUE,E413>0,$E$408=\"LESS\",$G$393=\"yes\"),ROUNDUP((I413*E413+J413)*D413,-3),0)","v":0},46.093200606138147,526954.80759916885,0,83.289027724130932,258083.40004449565,{"$f":"IF(AND($G$392=3,$G$396=TRUE,$E$408=\"MORE\"),$D$332,0)","v":0},0]
[null,null,"Calcium Hypochlorite",1.2803177593951399E-26,{"$f":"IF(AND($D$346=4,$D$353=1),$D$332,0)","v":0},303.47108213802329,5732.2315514959955,0,387.40018831315342,7317.5591125817873,{"$f":"IF(AND($G$396=TRUE,E414>0,$E$408=\"LESS\",$G$393=\"yes\"),ROUNDUP((I414*E414+J414)*D414,-3),0)","v":0},11.984576982381203,57322.315514959955,0,78.658979784437079,73175.591125817868,{"$f":"IF(AND($G$392=4,$G$396=TRUE,$E$408=\"MORE\"),$D$332,0)","v":0},0]
[null,null,"UV Disinfection System",1.2803177593951399E-26,{"$f":"IF(D358=2,$D$332,0)","v":0},1270.3799135709341,23996.065034117652,0,364.56439243782154,6886.2163016032955,{"$f":"IF(AND(G397=TRUE,E415>0,$E$408=\"LESS\",$G$393=\"yes\"),ROUNDUP((I415*E415+J415)*D415,-3),0)","v":0},166.20651105882345,239960.65034117649,0,42.97979958204705,68862.163016032951,{"$f":"IF(AND($G$392=1,G397=TRUE,$E$408=\"MORE\"),$D$332,0)","v":0},0]
[null,null,"pH Adjustment System",1.2803177593951399E-26,{"$f":"IF(D364=2,$D$332,0)","v":0},113.66627482017492,2147.0296354921929,0,442.90857053658999,8366.0507768022562,{"$f":"IF(AND(G398=TRUE,E416>0,$E$408=\"LESS\",$G$393=\"yes\"),ROUNDUP((I416*E416+J416)*D416,-3),0)","v":0},95.883016498842537,21470.296354921928,0,72.915515129557988,83660.507768022551,0,0]
[null,null,"Inline Pressure Filtration System",1.2803177593951399E-26,{"$f":"IF(D370=2,$D$332,0)","v":0},406.66309199999995,7681.4139599999999,0,453.67394594823531,8569.3967567999989,0,764.88310799999988,76814.139599999995,0,244.63661904000003,85693.967567999993,0,0]
[null,null,"Iron and/or Manganese Removal",1.2803177593951399E-26,{"$f":"IF(D376=2,$D$332,0)","v":0},1769.4916539834026,33423.73124190871,0,483.80241479603865,{"$f":"0.1*P418","v":9138.4900572585084},0,912.62483701244821,334237.3124190871,0,176.90636308929464,91384.900572585073,0,0]
[null,null,"Arsenic Removal",1.2803177593951399E-26,{"$f":"IF(D382=2,$D$332,0)","v":0},{"$f":"(L419*E419+M419-G419)/170","v":1383.2876079831938},26128.76592857144,0,701.74460137789754,{"$f":"0.1*P419","v":13255.175803804734},0,2554.8126685714283,261287.65928571438,0,174.08539391990047,132551.75803804732,{"$f":"IF(AND($G$392=1,G401=TRUE,$E$408=\"MORE\"),$D$332,0)","v":0},0]
[null,null,"Membrane Filtration",1.2803177593951399E-26,{"$f":"IF(D388=2,$D$332,0)","v":0},{"$f":"(L420*E420+M420-G420)/170","v":5076.5505423247741},95890.399132801293,0,3255.4890477615163,61492.570902161977,0,1916.0176309587571,958903.9913280129,0,901.9075772034281,614925.70902161975,{"$f":"IF(AND($G$392=1,G402=TRUE,$E$408=\"MORE\"),$D$332,0)","v":0},0]
[null,null,"Conventional WTP",1.2803177593951399E-26,{"$f":"IF(D394=2,$D$332,0)","v":0},6410.440006891663,121086.08901906475,0,3442.4633282209725,65024.307310840595,0,1001.9744061151077,1210860.8901906474,0,983.61213913346751,650243.07310840592,0,0]
[null,null,"PWDU",1.2803177593951399E-26,{"$f":"IF(D400=2,$D$332,0)","v":0},1,{"$f":"M422","v":206725},{"$f":"IF(OR(E422=0,$E$408=\"more\"),0,ROUNDUP((F422*E422+G422)*D422,-3))","v":0},1,190925,{"$f":"IF(AND(G404=TRUE,E422>0,$E$408=\"LESS\"),ROUNDUP((I422*E422+J422)*D422,-3),0)","v":0},1,206725,{"$f":"IF(OR(E422=0,$E$408=\"LESS\"),0,ROUNDUP((L422*E422+M422)*D422,-3))","v":0},1,190925,0,0]
[null,null,"Total Cost",null,{"$f":"ROUNDUP(SUM(R411:R422,N411:N422,K411:K422,H411:H422),-3)","v":0}]
[]
[null,null,"Other Capital Items",null,null,null,null,null,null,null,"Value",null,"Value"]
[null,null,"Yard Pipe",null,"Flow (m3/d)","Pipe Diameter","Cost ($/m)","Length of Yard Pipe (m) (input)","Cost",null,60000,{"$f":"K426-H411","v":60000},87000,{"$f":"M426-K411","v":87000}]
[null,null,"Watermain from WTP","MDD",{"$f":"D333","v":0},{"$f":"VLOOKUP(E427,'Table Inputs'!I4:K21,3,TRUE)","v":4},{"$f":"VLOOKUP(F427,'Table Inputs'!M4:R11,6,FALSE)","v":203.83679999999998},{"$f":"IF(AND('2.3) Treatment Upgrades'!P51=\"\",SUM(R411:R422)>0),20,'2.3) Treatment Upgrades'!P51)","v":0},{"$f":"IF(H427*G427>0,H427*G427,0)","v":0},null,0,{"$f":"K427-H412","v":0},293000,{"$f":"M427-K412","v":293000}]
[null,null,"Sewer main (assume 8\" PVC)","N/A","N/A",8,{"$f":"'Table Inputs'!R18","v":208.71359999999999},{"$f":"IF('2.3) Treatment Upgrades'!P55=\"\",0,'2.3) Treatment Upgrades'!P55)","v":0},{"$f":"IF(H428*G428>0,H428*G428,0)","v":0},null,0,0,273000,{"$f":"M428-K413","v":273000}]
[null,null,"Sub-Total",null,{"$f":"SUM(I427:I428)","v":0},null,null,null,null,null,0,0,87000,87000]
[null,null,"Inflation Factor",{"$f":"$D$24*$D$41","v":1.2803177593951399E-26},{"$f":"E429*D430","v":0},null,null,null,null,null,269000,269000,77000,77000]
[null,null,"Design Development & Construction",0.5,{"$f":"E430*D431","v":0},null,null,null,null,null,38000,38000,97000,97000]
[null,null,"Location Factor",0.05,{"$f":"SUM(E430:E431)*D432","v":0},null,null,null,null,null,207000,207000,128000,128000]
[null,null,"Engineering",0.15,{"$f":"SUM(E430:E432)*D433","v":0},null,null,null,null,null,490000,490000,122000,122000]
[null,null,"Yard Pipe Costs",null,{"$f":"ROUNDUP(SUM(E430:E433),-3)","v":0},null,null,null,null,null,696000,{"$f":"K434-H419","v":696000},163000,163000]
[null,null,null,null,null,null,null,null,null,null,1285000,1285000,769000,769000]
[null,null,"Pumping Included?",null,null,null,null,null,null,null,1382000,1382000,818000,818000]
[null,null,1,"Not Included",null,null,null,null,null,null,0,0,0,0]
[null,null,2,"New"]
[null,null,3,"Existing"]
[]
[null,null,"Pumps Included?",null,"Included?","New Building for Pumps?"]
[null,null,"Well Pump",1,{"$f":"VLOOKUP(D442,$C$437:$D$439,2,FALSE)","v":"Not Included"}]
[null,null,"Low Lift Pump",1,{"$f":"VLOOKUP(D443,$C$437:$D$439,2,FALSE)","v":"Not Included"},false]
[null,null,"High Lift Pump",1,{"$f":"VLOOKUP(D444,$C$437:$D$439,2,FALSE)","v":"Not Included"},false]
[]
[]
[]
[]
[null,null,"Default Pump Head (ft):"]
[null,null,"Well Pump",310]
[null,null,"Low Lift Pump",140]
[null,null,"High Lift Pump",280]
[null,null,"Booster Pumps in Distribution system",140]
[null,null,null,null,null,null,null,null,null,"Building Cost"]
[null,null,"Pumps:","Flow Rate (input)","Head (ft)","HP Required","Slope","Intercept","Cost Per Pump","Slope","Intercept","Building Cost"]
[null,null,"Well Pump",{"$f":"$D$333","v":0},{"$f":"D450","v":310},{"$f":"MROUND(D456*1000/3.785/1440*E456/3960/0.78/0.98,0.5)","v":0},258.702685363125,3678.7037348924969,{"$f":"IF(D442=2,G456*F456+H456,0)","v":0}]
[null,null,"Low Lift Pump",{"$f":"$D$333","v":0},{"$f":"D451","v":140},{"$f":"MROUND(D457*1000/3.785/1440*E457/3960/0.78/0.98,0.5)","v":0},819.45457258064516,2874.9712499999951,{"$f":"IF(D443=2,G457*F457+H457,0)","v":0},42.97979958204705,68862.163016032951,{"$f":"IF(F443=TRUE,ROUNDUP(J457*D457+K457,-3),0)","v":0},"<--- used same as UV building addition"]
[null,null,"High Lift Pump",{"$f":"$D$333","v":0},{"$f":"D452","v":280},{"$f":"MROUND(D458*1000/3.785/1440*E458/3960/0.78/0.98,0.5)","v":0},819.45457258064516,2874.9712499999951,{"$f":"IF(D444=2,G458*F458+H458,0)","v":0},42.97979958204705,68862.163016032951,{"$f":"IF(F444=TRUE,ROUNDUP(J458*D458+K458,-3),0)","v":0},"<--- used same as UV building addition"]
[null,null,"Total Pump Costs",null,{"$f":"SUM(I456:I458)","v":0}]
[null,null,"Inflation Factor",{"$f":"$D$24","v":1.2803177593951399E-26},{"$f":"E459*D460","v":0}]
[null,null,"Mechanical Pipes & Valves",0.2,{"$f":"$E$460*D461","v":0}]
[null,null,"Mechanical Installation",0.25,{"$f":"$E$460*D462","v":0}]
[null,null,"Process Electrical",0.25,{"$f":"$E$460*D463","v":0}]
[null,null,"Sub-Total",null,{"$f":"SUM(E460:E463)","v":0}]
[null,null,"Design Development & Construction",0.3,{"$f":"E464*D465","v":0}]
[null,null,"Location Factor",0.05,{"$f":"SUM(E464:E465)*D466","v":0}]
[null,null,"Engineering",0.1,{"$f":"SUM(E464:E466)*D467","v":0}]
[null,null,"Total Pump Costs",null,{"$f":"ROUNDUP(SUM(E464:E467),-3)","v":0}]
[]
[null,null,"Pumping Related Building Costs:",{"$f":"SUM(L457:L458)*D460","v":0}]
[]
[]
[]
[]
[null,null,"Treated Water Storage Volume:"]
[null,null,"Treated Water Storage","With Fire Storage","Without Fire Storage"]
[null,null,"Fire Storage, A (m3)",{"$f":"D478*D479*3.785/1000","v":567.75},0]
[null,null,"Fire Storage Duration (min)",{"$f":"IF('2.5) Distribution Upgrades'!O12=\"<Fire Storage>\",120,'2.5) Distribution Upgrades'!O12)","v":120}]
[null,null,"Fire Flow Rate (gpm)",{"$f":"IF('2.5) Distribution Upgrades'!O15=\"<Fire Flow>\",1250,'2.5) Distribution Upgrades'!O15)","v":1250}]
[null,null,"Peak Balancing Storage, B",{"$f":"0.25*D333","v":0},{"$f":"0.25*D333","v":0}]
[null,null,"Emergency Storage, C",{"$f":"SUM(D477,D480)*0.25","v":141.9375},{"$f":"0.4*D332","v":0}]
[null,null,"Total Storage",{"$f":"D477+D480+D481","v":709.6875},{"$f":"E477+E480+E481","v":0}]
[null,null,"Required Storage Volume (if storage is provided)",{"$f":"IF('2.5) Distribution Upgrades'!O9=\"yes\",D482,E482)","v":0}]
[]
[null,null,"Storage Cost Curve Values:"]
[null,null,"Cost of Storage ($/m3)"]
[null,null,"Base",50461]
[null,null,"Exponent",0.4425]
[]
[]
[null,null,"Total Storage Cost",null,{"$f":"IF('2.5) Distribution Upgrades'!O7=\"Yes\",D487*D483^D488)","v":false}]
[null,null,"Design Development & Construction",0.3,{"$f":"E491*D492","v":0}]
[null,null,"Location Factor",0.05,{"$f":"SUM(E491:E492)*D493","v":0}]
[null,null,"Engineering",0.1,{"$f":"SUM(E491:E493)*D494","v":0}]
[null,null,"Total Storage Costs",null,{"$f":"ROUNDUP(SUM(E491:E494),-3)","v":0}]
[]
[]
[]
[null,null,"New Distribution System"]
[null,null,"Is the community planning to expand dist. Syst.",{"$f":"'2.5) Distribution Upgrades'!O21","v":"<Yes/No>"}]
[]
[null,null,"Components","Length","Quantity","Unit","Unit Price","Total"]
[null,null,"Mobilization",null,null,"allow",null,{"$f":"SUM(H504:H518)*0.1","v":1150}]
[null,null,"Flagperson",null,null,"allow",null,5000]
[null,null,"Project Sign",null,null,"allow",null,1500]
[null,null,"Topsoil",{"$f":"'2.5) Distribution Upgrades'!$O$23","v":0},{"$f":"D506*1.5","v":0},"m2",10,{"$f":"G506*E506","v":0}]
[null,null,"Sod",{"$f":"'2.5) Distribution Upgrades'!$O$23","v":0},{"$f":"D507*1.5","v":0},"m2",10,{"$f":"G507*E507","v":0}]
[null,null,"Removal of Water lines",null,null,"allow",null,5000]
[null,null,"Trench Excavation",{"$f":"'2.5) Distribution Upgrades'!$O$23","v":0},{"$f":"D509*3*3/2","v":0},"m3",20,{"$f":"G509*E509","v":0}]
[null,null,"Pipe Bedding",{"$f":"'2.5) Distribution Upgrades'!$O$23","v":0},{"$f":"D510*0.8*0.8","v":0},"m3",45,0]
[null,null,"Imported Backfill",{"$f":"'2.5) Distribution Upgrades'!$O$23","v":0},{"$f":"D511*1*2","v":0},"m3",30,0]
[null,null,"Marking & Plastic Tape",{"$f":"'2.5) Distribution Upgrades'!$O$23","v":0},{"$f":"D512","v":0},"m",10,0]
[null,null,"Removal of Asphalt",{"$f":"'2.5) Distribution Upgrades'!$O$23","v":0},{"$f":"D513*2","v":0},"m2",10,0]
[null,null,"Patching of Asphalt",{"$f":"'2.5) Distribution Upgrades'!$O$23","v":0},{"$f":"D514*2","v":0},"m2",80,0]
[null,null,"Watermain (assume 200 mm)",{"$f":"'2.5) Distribution Upgrades'!$O$23","v":0},{"$f":"D515","v":0},"m",{"$f":"'Table Inputs'!N7","v":275},{"$f":"G515*E515","v":0}]
[null,null,"Valves including Valve Boxes",{"$f":"'2.5) Distribution Upgrades'!O25","v":0},{"$f":"D516","v":0},"Ea",5000,{"$f":"G516*E516","v":0}]
[null,null,"Hydrants",{"$f":"'2.5) Distribution Upgrades'!O27","v":0},{"$f":"D517","v":0},"Ea",7500,{"$f":"G517*E517","v":0}]
[null,null,"Restraints, Thrust Blocks, & Fittings Allowance",null,null,"allow",null,{"$f":"0.1*SUM(H515:H517)","v":0}]
[null,null,"Watermain Disinfection",{"$f":"'2.5) Distribution Upgrades'!$O$23","v":0},{"$f":"D519","v":0},"m",2,{"$f":"G519*E519","v":0}]
[null,null,null,null,null,null,"Subtotal",{"$f":"SUM(H503:H519)","v":12650}]
[null,null,"Prime Contractor OH&Profits",null,0.1,null,null,{"$f":"H520*E521","v":1265}]
[null,null,"Design Development & Contingency",null,0.3,null,null,{"$f":"(H520+H521)*E522","v":4174.5}]
[null,null,"Engineering",null,0.15,null,null,{"$f":"(H520+H521+H522)*E523","v":2713.4249999999997}]
[null,null,null,null,null,null,"Total",{"$f":"IF(D500=\"Yes\",SUM(H520:H523),0)","v":0}]
[]
[]
[]
[]
[null,null,"Engineering Study Completed Value:",2]
[null,null,"Yes",1]
[null,null,"No",2]
[]
[null,null,"Cost from Engineering Study",{"$f":"IF(D529=1,'2.6) Cost Curve Predictions'!I11,0)","v":0}]
[]
[null,null,"Upgrade Cost Table - Calculated By Tool"]
[null,null,"Component","Capital Budget Estimate","Government Contributions","Net Funding Required"]
[null,null,"Water Treatment Facility",{"$f":"SUM(E423,E434)","v":0},{"$f":"IF($D$556=\"<Funding>\",\"\",D537*$D$556)","v":""},{"$f":"IF($D$556=\"<Funding>\",D537,D537-E537)","v":0}]
[null,null,"Pumping Systems",{"$f":"SUM(E468,D470)","v":0},{"$f":"IF($D$556=\"<Funding>\",\"\",D538*$D$556)","v":""},{"$f":"IF($D$556=\"<Funding>\",D538,D538-E538)","v":0}]
[null,null,"Distribution ",{"$f":"H524","v":0},{"$f":"IF($D$556=\"<Funding>\",\"\",D539*$D$556)","v":""},{"$f":"IF($D$556=\"<Funding>\",D539,D539-E539)","v":0}]
[null,null,"Storage",{"$f":"E495","v":0},{"$f":"IF($D$556=\"<Funding>\",\"\",D540*$D$556)","v":""},{"$f":"IF($D$556=\"<Funding>\",D540,D540-E540)","v":0}]
[null,null,"Total",{"$f":"SUM(D537:D540)","v":0},{"$f":"SUM(E537:E540)","v":0},{"$f":"SUM(F537:F540)","v":0}]
[]
[]
[null,null,"Cost Table Shown To User"]
[null,null,"Component","Capital Budget Estimate","Government Contributions","Net Funding Required"]
[null,null,"Water Treatment Facility",{"$f":"IF($D$529=1,\"\",D537)","v":0},{"$f":"IF($D$529=1,\"\",E537)","v":""},{"$f":"IF($D$529=1,\"\",F537)","v":0}]
[null,null,"Pumping Systems",{"$f":"IF($D$529=1,\"\",D538)","v":0},"",{"$f":"IF($D$529=1,\"\",F538)","v":0}]
[null,null,"Distribution ",0,"",0]
[null,null,"Storage",0,"",0]
[null,null,"Total",{"$f":"IF(D529=1,D533,SUM(D546:D549))","v":0},{"$f":"IF(D529=1,IF(D556=\"<Funding>\",0,D550*D556),E541)","v":0},{"$f":"IF(D556=\"<Funding>\",D550,D550-E550)","v":0}]
[null,null,"-30%",{"$f":"D550*0.7","v":0},{"$f":"E550*0.7","v":0},{"$f":"F550*0.7","v":0}]
[null,null,"+30%",{"$f":"D550*1.3","v":0},{"$f":"E550*1.3","v":0},{"$f":"F550*1.3","v":0}]
[]
[null,null,"Page X - Financing of Proposed Upgrades"]
[]
[null,null,"Fraction Funded by Government",{"$f":"'2.6) Cost Curve Predictions'!Q16","v":"<Funding>"}]
[null,null,"Term of Loan",{"$f":"'2.7) Financing Results'!P8","v":0}]
[null,null,"Term of Loan (in months)",{"$f":"D557*12","v":0}]
[null,null,"Cash Set Aside for Project By Community",{"$f":"'2.7) Financing Results'!P6","v":0}]
[null,null,"Annual Interest Rate",{"$f":"IF('2.7) Financing Results'!P9=\"<Loan Interest Rate>\",0,'2.7) Financing Results'!P9)","v":0}]
[null,null,"Monthly Interest Rate",{"$f":"D560/12","v":0}]
[]
[]
[null,null,"Principal",{"$f":"F541-D559","v":0}]
[null,null,"Payment Type Option #",1]
[null,null,null,null,null,null,null,null,null,null,null,null,null,"Loan Repayment","Total Annual Payment","Required Water Tax","Current Water Tax"]
[null,null,null,"Blended Payment Option",null,null,null,"Serial Payment Option",null,null,null,"Selected Type:",null,{"$f":"IF(D565=2,\"Serial Payment\",\"Blended Payment\")","v":"Blended Payment"}]
[null,null,"Year ","Principal","Interest","Total","Balance","Principal","Interest","Annual Payment","Principal Balance","Year","Calendar Year","Annual Payment","Annual Payment"]
[null,null,1,{"$f":"-PPMT($D$560,C569,$D$557,$D$564)","v":{"$error":"#NUM!"}},{"$f":"-IPMT($D$560,C569,$D$557,$D$564)","v":{"$error":"#NUM!"}},{"$f":"SUM(D569:E569)","v":{"$error":"#NUM!"}},{"$f":"D564-D569","v":{"$error":"#NUM!"}},{"$f":"$D$564/$D$557","v":{"$error":"#DIV/0!"}},{"$f":"$D$560*D564","v":0},{"$f":"H569+I569","v":{"$error":"#DIV/0!"}},{"$f":"D564-H569","v":{"$error":"#DIV/0!"}},1,{"$f":"L569+$D$17","v":1},{"$f":"IF(L569<($D$557+1),ROUND(VLOOKUP(L569,$C$569:$K$598,IF($D$565=2,8,4),FALSE),0),0)","v":0},{"$f":"N569+$E$655","v":0},{"$f":"O569/$D$660","v":{"$error":"#DIV/0!"}},{"$f":"$E$198","v":0}]
[null,null,2,{"$error":"#NUM!"},{"$error":"#NUM!"},{"$f":"SUM(D570:E570)","v":{"$error":"#NUM!"}},{"$f":"G569-D570","v":{"$error":"#NUM!"}},{"$error":"#DIV/0!"},{"$f":"$D$560*K569","v":{"$error":"#DIV/0!"}},{"$f":"H570+I570","v":{"$error":"#DIV/0!"}},{"$f":"K569-H570","v":{"$error":"#DIV/0!"}},2,2,0,0,{"$error":"#DIV/0!"},0]
[null,null,3,{"$error":"#NUM!"},{"$error":"#NUM!"},{"$error":"#NUM!"},{"$f":"G570-D571","v":{"$error":"#NUM!"}},{"$error":"#DIV/0!"},{"$f":"$D$560*K570","v":{"$error":"#DIV/0!"}},{"$error":"#DIV/0!"},{"$f":"K570-H571","v":{"$error":"#DIV/0!"}},3,3,0,0,{"$error":"#DIV/0!"},0]
[null,null,4,{"$error":"#NUM!"},{"$error":"#NUM!"},{"$error":"#NUM!"},{"$error":"#NUM!"},{"$error":"#DIV/0!"},{"$error":"#DIV/0!"},{"$error":"#DIV/0!"},{"$error":"#DIV/0!"},4,4,0,0,{"$error":"#DIV/0!"},0]
[null,null,5,{"$error":"#NUM!"},{"$error":"#NUM!"},{"$error":"#NUM!"},{"$error":"#NUM!"},{"$error":"#DIV/0!"},{"$error":"#DIV/0!"},{"$error":"#DIV/0!"},{"$error":"#DIV/0!"},5,5,0,0,{"$error":"#DIV/0!"},0]
[null,null,6,{"$error":"#NUM!"},{"$error":"#NUM!"},{"$error":"#NUM!"},{"$error":"#NUM!"},{"$error":"#DIV/0!"},{"$error":"#DIV/0!"},{"$error":"#DIV/0!"},{"$error":"#DIV/0!"},6,6,0,0,{"$error":"#DIV/0!"},0]
[null,null,7,{"$error":"#NUM!"},{"$error":"#NUM!"},{"$error":"#NUM!"},{"$error":"#NUM!"},{"$error":"#DIV/0!"},{"$error":"#DIV/0!"},{"$error":"#DIV/0!"},{"$error":"#DIV/0!"},7,7,0,0,{"$error":"#DIV/0!"},0]
[null,null,8,{"$error":"#NUM!"},{"$error":"#NUM!"},{"$error":"#NUM!"},{"$error":"#NUM!"},{"$error":"#DIV/0!"},{"$error":"#DIV/0!"},{"$error":"#DIV/0!"},{"$error":"#DIV/0!"},8,8,0,0,{"$error":"#DIV/0!"},0]
[null,null,9,{"$error":"#NUM!"},{"$error":"#NUM!"},{"$error":"#NUM!"},{"$error":"#NUM!"},{"$error":"#DIV/0!"},{"$error":"#DIV/0!"},{"$error":"#DIV/0!"},{"$error":"#DIV/0!"},9,9,0,0,{"$error":"#DIV/0!"},0]
[null,null,10,{"$error":"#NUM!"},{"$error":"#NUM!"},{"$error":"#NUM!"},{"$error":"#NUM!"},{"$error":"#DIV/0!"},{"$error":"#DIV/0!"},{"$error":"#DIV/0!"},{"$error":"#DIV/0!"},10,10,0,0,{"$error":"#DIV/0!"},0]
[null,null,11,{"$error":"#NUM!"},{"$error":"#NUM!"},{"$error":"#NUM!"},{"$error":"#NUM!"},{"$error":"#DIV/0!"},{"$error":"#DIV/0!"},{"$error":"#DIV/0!"},{"$error":"#DIV/0!"},11,11,0,0,{"$error":"#DIV/0!"},0]
[null,null,12,{"$error":"#NUM!"},{"$error":"#NUM!"},{"$error":"#NUM!"},{"$error":"#NUM!"},{"$error":"#DIV/0!"},{"$error":"#DIV/0!"},{"$error":"#DIV/0!"},{"$error":"#DIV/0!"},12,12,0,0,{"$error":"#DIV/0!"},0]
[null,null,13,{"$error":"#NUM!"},{"$error":"#NUM!"},{"$error":"#NUM!"},{"$error":"#NUM!"},{"$error":"#DIV/0!"},{"$error":"#DIV/0!"},{"$error":"#DIV/0!"},{"$error":"#DIV/0!"},13,13,0,0,{"$error":"#DIV/0!"},0]
[null,null,14,{"$error":"#NUM!"},{"$error":"#NUM!"},{"$error":"#NUM!"},{"$error":"#NUM!"},{"$error":"#DIV/0!"},{"$error":"#DIV/0!"},{"$error":"#DIV/0!"},{"$error":"#DIV/0!"},14,14,0,0,{"$error":"#DIV/0!"},0]
[null,null,15,{"$error":"#NUM!"},{"$error":"#NUM!"},{"$error":"#NUM!"},{"$error":"#NUM!"},{"$error":"#DIV/0!"},{"$error":"#DIV/0!"},{"$error":"#DIV/0!"},{"$error":"#DIV/0!"},15,15,0,0,{"$error":"#DIV/0!"},0]
[null,null,16,{"$error":"#NUM!"},{"$error":"#NUM!"},{"$error":"#NUM!"},{"$error":"#NUM!"},{"$error":"#DIV/0!"},{"$error":"#DIV/0!"},{"$error":"#DIV/0!"},{"$error":"#DIV/0!"},16,16,0,0,{"$error":"#DIV/0!"},0]
[null,null,17,{"$error":"#NUM!"},{"$error":"#NUM!"},{"$error":"#NUM!"},{"$error":"#NUM!"},{"$error":"#DIV/0!"},{"$error":"#DIV/0!"},{"$error":"#DIV/0!"},{"$error":"#DIV/0!"},17,17,0,0,{"$error":"#DIV/0!"},0]
[null,null,18,{"$error":"#NUM!"},{"$error":"#NUM!"},{"$error":"#NUM!"},{"$error":"#NUM!"},{"$error":"#DIV/0!"},{"$error":"#DIV/0!"},{"$error":"#DIV/0!"},{"$error":"#DIV/0!"},18,18,0,0,{"$error":"#DIV/0!"},0]
[null,null,19,{"$error":"#NUM!"},{"$error":"#NUM!"},{"$error":"#NUM!"},{"$error":"#NUM!"},{"$error":"#DIV/0!"},{"$error":"#DIV/0!"},{"$error":"#DIV/0!"},{"$error":"#DIV/0!"},19,19,0,0,{"$error":"#DIV/0!"},0]
[null,null,20,{"$error":"#NUM!"},{"$error":"#NUM!"},{"$error":"#NUM!"},{"$error":"#NUM!"},{"$error":"#DIV/0!"},{"$error":"#DIV/0!"},{"$error":"#DIV/0!"},{"$error":"#DIV/0!"},20,20,0,0,{"$error":"#DIV/0!"},0]
[null,null,21,{"$error":"#NUM!"},{"$error":"#NUM!"},{"$error":"#NUM!"},{"$error":"#NUM!"},{"$error":"#DIV/0!"},{"$error":"#DIV/0!"},{"$error":"#DIV/0!"},{"$error":"#DIV/0!"},21,21,0,0,{"$error":"#DIV/0!"},0]
[null,null,22,{"$error":"#NUM!"},{"$error":"#NUM!"},{"$error":"#NUM!"},{"$error":"#NUM!"},{"$error":"#DIV/0!"},{"$error":"#DIV/0!"},{"$error":"#DIV/0!"},{"$error":"#DIV/0!"},22,22,0,0,{"$error":"#DIV/0!"},0]
[null,null,23,{"$error":"#NUM!"},{"$error":"#NUM!"},{"$error":"#NUM!"},{"$error":"#NUM!"},{"$error":"#DIV/0!"},{"$error":"#DIV/0!"},{"$error":"#DIV/0!"},{"$error":"#DIV/0!"},23,23,0,0,{"$error":"#DIV/0!"},0]
[null,null,24,{"$error":"#NUM!"},{"$error":"#NUM!"},{"$error":"#NUM!"},{"$error":"#NUM!"},{"$error":"#DIV/0!"},{"$error":"#DIV/0!"},{"$error":"#DIV/0!"},{"$error":"#DIV/0!"},24,24,0,0,{"$error":"#DIV/0!"},0]
[null,null,25,{"$error":"#NUM!"},{"$error":"#NUM!"},{"$error":"#NUM!"},{"$error":"#NUM!"},{"$error":"#DIV/0!"},{"$f":"$D$560*K592","v":{"$error":"#DIV/0!"}},{"$error":"#DIV/0!"},{"$error":"#DIV/0!"},25,25,0,0,{"$error":"#DIV/0!"},0]
[null,null,26,{"$error":"#NUM!"},{"$error":"#NUM!"},{"$error":"#NUM!"},{"$error":"#NUM!"},{"$error":"#DIV/0!"},{"$error":"#DIV/0!"},{"$error":"#DIV/0!"},{"$error":"#DIV/0!"},26,26,0,0,{"$error":"#DIV/0!"},0]
[null,null,27,{"$error":"#NUM!"},{"$error":"#NUM!"},{"$f":"SUM(D595:E595)","v":{"$error":"#NUM!"}},{"$f":"G594-D595","v":{"$error":"#NUM!"}},{"$error":"#DIV/0!"},{"$error":"#DIV/0!"},{"$error":"#DIV/0!"},{"$error":"#DIV/0!"},27,27,0,0,{"$error":"#DIV/0!"},0]
[null,null,28,{"$error":"#NUM!"},{"$error":"#NUM!"},{"$f":"SUM(D596:E596)","v":{"$error":"#NUM!"}},{"$f":"G595-D596","v":{"$error":"#NUM!"}},{"$error":"#DIV/0!"},{"$error":"#DIV/0!"},{"$error":"#DIV/0!"},{"$error":"#DIV/0!"},28,28,0,0,{"$error":"#DIV/0!"},0]
[null,null,29,{"$error":"#NUM!"},{"$error":"#NUM!"},{"$f":"SUM(D597:E597)","v":{"$error":"#NUM!"}},{"$f":"G596-D597","v":{"$error":"#NUM!"}},{"$error":"#DIV/0!"},{"$error":"#DIV/0!"},{"$error":"#DIV/0!"},{"$error":"#DIV/0!"},29,29,0,0,{"$error":"#DIV/0!"},0]
[null,null,30,{"$error":"#NUM!"},{"$error":"#NUM!"},{"$f":"SUM(D598:E598)","v":{"$error":"#NUM!"}},{"$f":"G597-D598","v":{"$error":"#NUM!"}},{"$error":"#DIV/0!"},{"$error":"#DIV/0!"},{"$error":"#DIV/0!"},{"$error":"#DIV/0!"},30,30,0,0,{"$error":"#DIV/0!"},0]
[]
[]
[]
[null,null,"Loan Calculations:"]
[null,null,"Principal:",{"$f":"F541-D559","v":0}]
[null,null,"Monthly Payment",{"$f":"D603*D561/(1-(1+D561)^-D558)","v":{"$error":"#DIV/0!"}}]
[null,null,"Annual Payment",{"$f":"D604*12","v":{"$error":"#DIV/0!"}}]
[null,null,"Total Cost",{"$f":"D604*D558","v":{"$error":"#DIV/0!"}}]
[null,null,"Total Interest Paid",{"$f":"D606-D603","v":{"$error":"#DIV/0!"}}]
[]
[]
[null,null,"Operation and Maintenance Costs for Part 2: Capital Upgrades"]
[null,null,"Population over 500?",{"$f":"IF('2.2) Design Parameters'!I11:I11>500,\"OVER\",\"UNDER\")","v":"UNDER"},null,null,null,null,"From O&M Calculations Section:",null,"Population Under 500",null,null,"Population Over 500"]
[null,null,"Treatment Type","Selected?","Slope","Intercept","Cost (2017$)",{"$f":"\"Cost (\"&D17&\"$)\"","v":"Cost (0$)"},null,null,"Slope","Intercept",null,"Slope","Intercept","Cost"]
[null,null,"Disinfection with Sodium Hypochlorite",{"$f":"IF(D346=1,TRUE,FALSE)","v":true},{"$f":"IF($D$611=\"UNDER\",K613,N613)","v":35.796800194660449},675.2339461680175,{"$f":"D613*(F613+E613*$D$332)","v":675.2339461680175},{"$f":"G613*$D$23","v":6.1298105297303946E-11},null,"Disinfection with Sodium Hypochlorite",35.796800194660449,675.2339461680175,687.40485823420204,24.560345823878983,6752.3394616801743,0]
[null,null,"Disinfection with Chlorine Gas",{"$f":"IF(D346=2,TRUE,FALSE)","v":false},44.811590403296265,845.76522398196414,0,0,null,"Disinfection with Chlorine Gas",44.811590403296265,845.76522398196414,0,17.892213890256492,8457.6522398196412,0]
[null,null,"Disinfection with OSHG",{"$f":"IF(D346=3,TRUE,FALSE)","v":false},109.84006713052625,2074.3298208654778,0,0,null,"Disinfection with OSHG",109.84006713052625,2074.3298208654778,0,11.303012941653165,20743.298208654778,0]
[null,null,"Disinfection with CaOCl",{"$f":"IF(D346=4,TRUE,FALSE)","v":false},30.337936681456139,572.30039673527847,0,null,null,"Disinfection with Calcium Hypochlorite",30.337936681456139,572.30039673527847,0,19.840191853052399,5723.0039673527845,0]
[null,null,"UV Disinfection",{"$f":"IF(OR(D358=2,D358=3),TRUE,FALSE)","v":false},9.8229316950725334,185.19836921258775,0,0,null,"UV Disinfection",9.8229316950725334,185.19836921258775,0,9.1560742618854682,1851.9836921258775,0]
[null,null,"+ pH adjustment with Soda Ash",{"$f":"IF(OR(D364=2,D364=3),TRUE,FALSE)","v":false},14.528852658373616,273.59515733225288,0,0,null,"+ pH adjustment with Soda Ash",14.528852658373616,273.59515733225288,0,22.201576274230145,2735.9515733225289,0]
[null,null,"Inline Filtration",{"$f":"IF(OR(D370=2,D370=3),TRUE,FALSE)","v":false},{"$f":"IF($D$611=\"UNDER\",K619,N619)","v":25.747659450261878},{"$f":"IF($D$611=\"UNDER\",L619,O619)","v":485.76631037277133},0,0,null,"Inline Filtration",25.747659450261878,485.76631037277133,0,15.309744675227705,4857.663103727713,0]
[null,null,"Iron / Manganes Removal",{"$f":"IF(OR(D376=2,D376=3),TRUE,FALSE)","v":false},15.512890589295171,292.23305267423041,0,0,null,"Iron / Manganes Removal",15.512890589295171,292.23305267423041,0,20.864488565017009,2922.3305267423038,0]
[null,null,"Arsenic Removal",{"$f":"IF(OR(D382=2,D382=3),TRUE,FALSE)","v":false},16.907397690322888,318.5740899513774,0,0,null,"Arsenic Removal",16.907397690322888,318.5740899513774,0,20.855287624984591,3185.7408995137739,0]
[null,null,"Membrane Treatment",{"$f":"IF(OR(D388=2,D388=3),TRUE,FALSE)","v":false},327.16525003049492,6177.5286250292484,0,0,null,"Membrane Treatment",327.16525003049492,6177.5286250292484,0,59.808470355596754,61775.286250292476,0]
[null,null,"Conventional Treatment",{"$f":"IF(OR(D394=2,D394=3),TRUE,FALSE)","v":false},341.23226580122099,6442.53584699781,{"$f":"D623*((F623+E623*$D$332)-SUM(G613:G615,G618))","v":0},0,null,"Engineered Filtration",341.23226580122099,6442.53584699781,0,78.419303609637012,64425.358469978099,0]
[null,null,"PWDU",{"$f":"IF(OR(D400=2,D400=3),TRUE,FALSE)","v":false},52.316238430578061,1968.8933522420339,{"$f":"D624*(F624+E624*$D$332)","v":0},0,null,"PWDU",52.316238430578061,1968.8933522420339,0,52.316238430578061,1968.8933522420339,0]
[null,null,null,null,null,"Total Treatment Cost",{"$f":"IF($D$332>0,(SUM(G613:G624)))","v":false},{"$f":"IF($D$332>0,ROUND(SUM(H613:H624),-2),0)","v":0}]
[]
[]
[null,null,"O&M Costs for non-treatment Related Items:"]
[null,null,"Item","Slope","Intercept","Cost (2017$)",{"$f":"\"Cost (\"&D17&\"$)\"","v":"Cost (0$)"}]
[null,null,"Source",{"$f":"E141","v":3.6},{"$f":"F141","v":689},{"$f":"IF($D$332>0,ROUND(E630+D630*$D$332,-2),0)","v":0},{"$f":"F630*$D$23","v":0}]
[null,null,"Transmission & Distribution",{"$f":"E142","v":132.94117647058823},{"$f":"F142","v":1000},{"$f":"IF($D$332>0,ROUND(E631+D631*$D$332,-2),0)","v":0},{"$f":"F631*$D$23","v":0}]
[null,null,"Administration"]
[null,null,null,null,"Total",{"$f":"SUM(F630:F632)","v":0},{"$f":"SUM(G630:G632)","v":0}]
[]
[null,null,"O&M Costs for Pumping:"]
[null,null,"Fraction dist. syst. served by booster pumps",{"$f":"D150","v":0}]
[null,null,null,null,null,"Power Costs",null,null,null,null,null,null,null,null,"Labour Costs",null,null,"Miscellaneou Replacements"]
[null,null,"Item","Option Button Value","Flow (m3/d)","Fixed Costs Value","Fixed Cost (Applied/Not Applied)","Pump Power Rate (kW/m3/d)","Pump Power (kW)","Demand Rate","Consumption Rate ($/kWh)","Demand Cost","Consumption Cost","Total Power Cost","Slope","Intercept","Costs","Slope","Intercept","Costs"]
[null,null,"Ground water pumping",{"$f":"IF(OR(D442=2,D442=3),TRUE,FALSE)","v":false},{"$f":"D639*$D$332","v":0},null,{"$f":"F639*D639","v":0},1.4999999999999999E-2,{"$f":"H639*E639","v":0},7.63,0.09,{"$f":"J639*I639*12","v":0},{"$f":"I639*24*365*K639","v":0},{"$f":"L639+M639+G639","v":0},0.83,643.15,{"$f":"IF(E639=0,0,P639+O639*E639)","v":0},0.46,359,{"$f":"IF(E639=0,0,S639+R639*E639)","v":0}]
[null,null,"Low Lift Pumping",{"$f":"IF(OR(D443=2,D443=3),TRUE,FALSE)","v":false},{"$f":"D640*$D$332","v":0},null,{"$f":"F640*D640","v":0},5.0000000000000001E-3,{"$f":"H640*E640","v":0},7.63,0.09,{"$f":"J640*I640*12","v":0},{"$f":"I640*24*365*K640","v":0},{"$f":"L640+M640+G640","v":0},0.83,643.15,{"$f":"IF(E640=0,0,P640+O640*E640)","v":0},0.46,359,{"$f":"IF(E640=0,0,S640+R640*E640)","v":0}]
[null,null,"High Lift Pumping",{"$f":"IF(OR(D444=2,D444=3),TRUE,FALSE)","v":false},{"$f":"D641*$D$332","v":0},null,{"$f":"F641*D641","v":0},1.2E-2,{"$f":"H641*E641","v":0},7.63,0.09,{"$f":"J641*I641*12","v":0},{"$f":"I641*24*365*K641","v":0},{"$f":"L641+M641+G641","v":0},0.83,643.15,{"$f":"IF(E641=0,0,P641+O641*E641)","v":0},0.46,359,{"$f":"IF(E641=0,0,S641+R641*E641)","v":0}]
[null,null,"Distribution System Pumping",{"$f":"D156","v":false},{"$f":"IF(D636=\"<Percentage>\",0,D642*D332*D636)","v":0},993,{"$f":"F642*D642","v":0},8.9999999999999993E-3,{"$f":"H642*E642","v":0},7.63,0.09,{"$f":"J642*I642*12","v":0},{"$f":"I642*24*365*K642","v":0},{"$f":"L642+M642+G642","v":0},0.83,643.15,{"$f":"IF(E642=0,0,P642+O642*E642)","v":0},0.45600000000000002,359,{"$f":"IF(E642=0,0,S642+R642*E642)","v":0}]
[null,null,{"$f":"\"Total Cost (\"&D22&\"$)\"","v":"Total Cost (2017$)"},{"$f":"ROUND(SUM(N639:N642,Q639:Q642,T639:T642),-2)","v":0}]
[null,null,{"$f":"\"Total Cost (\"&D17&\"$)\"","v":"Total Cost (0$)"},{"$f":"D643*$D$23","v":0}]
[]
[]
[null,null,"TOTAL O&M COSTS For Upgraded System"]
[]
[null,null,"Item",{"$f":"\"Theoretical Cost (\"&D17&\"$)\"","v":"Theoretical Cost (0$)"},{"$f":"\"Theoretical Cost (\"&D40&\"$)\"","v":"Theoretical Cost (0$)"}]
[null,null,"Source",{"$f":"ROUND(G630,-2)","v":0},{"$f":"D650*$D$42","v":0}]
[null,null,"Pumping",{"$f":"$D$644","v":0},{"$f":"ROUND(D651*$D$42,-2)","v":0}]
[null,null,"Treatment",{"$f":"ROUND($H$625,-3)","v":0},{"$f":"D652*$D$42","v":0}]
[null,null,"Transmission & Distribution",{"$f":"ROUND($G$631,-3)","v":0},{"$f":"D653*$D$42","v":0}]
[null,null,"Administration",{"$f":"ROUND(SUM(D650:$D$653)*0.1,-2)","v":0},0]
[null,null,"Total",{"$f":"SUM(D650:D654)","v":0},{"$f":"SUM(E650:E654)","v":0}]
[null,null,"Annual Cost per Population",{"$f":"D655/D265","v":{"$error":"#DIV/0!"}},{"$f":"E655/$D$265","v":{"$error":"#DIV/0!"}}]
[null,null,"Monthly Cost per Person",{"$f":"D656/12","v":{"$error":"#DIV/0!"}},{"$f":"E656/12","v":{"$error":"#DIV/0!"}}]
[null,null,null,null,"Annual water fees or taxes including infrastructure replacement cost"]
[null,null,"Number of Customers Entered:",{"$f":"'2.6) Cost Curve Predictions'!Q6","v":0},"O&M + infrastructure ","Considering upgrades + O&M +Infrastructure"]
[null,null,"Number of Customers (at year 1)",{"$f":"IF(D659>0,D659,ROUND(D265/2.31,0))","v":0},{"$f":"F660","v":0},{"$f":"D662+'3.1) Infrastructure Replacement'!U27","v":0},{"$f":"IF(Calculations!D254=TRUE,Calculations!C255,Calculations!C256)","v":{"$error":"#DIV/0!"}}]
[null,null,"Current Water Tax",{"$f":"'2.6) Cost Curve Predictions'!Q7","v":""},null,null,{"$f":"IF(Calculations!D250>'3.1) Infrastructure Replacement'!M31,\"\",\"Annual Water Tax would need to be increased by $\"&ROUND(('3.1) Infrastructure Replacement'!M31-Calculations!D250)/12,0)&\" per month in order to completely fund the upgrades.\")","v":{"$error":"#DIV/0!"}}]
[null,null,"Total Annual Costs (Year 1)",{"$f":"O569","v":0},{"$f":"IF(D332=0,E660/E197,F662)","v":{"$error":"#DIV/0!"}},{"$f":"IF(D332=0,0,F660/D660)","v":0}]
[null,null,"Recommended Water Tax",{"$f":"IF(D332=0,0,D662/D660)","v":0},{"$f":"IF(F662=0,E662,F662)","v":{"$error":"#DIV/0!"}},null,{"$f":"IF('2.7) Financing Results'!P22:R22=0,Calculations!G660,Calculations!G661)","v":{"$error":"#DIV/0!"}},{"$error":"#DIV/0!"},{"$error":"#DIV/0!"}]
[null,null,"Water Tax Statement Conditional Formatting",{"$f":"IF('2.7) Financing Results'!P22>'2.7) Financing Results'!P20,TRUE,FALSE)","v":false}]
[]
[null,null,"PART 3: INFRASTRUCTURE REPLACEMENT COSTS"]
[]
[null,null,"Infrastructure Annual Replacement Cost"]
[null,null,"<Asset Type>","Life Range",null,"AVG Life Range","Asset Age","Price($)","Funded Portion","Interest","Inflation","Estimated Book Life Remaining for Asset:"]
[null,null,"Select Asset"]
[null,null,null,null,null,null,null,null,0,0,0]
[null,null,"Concrete Reservoir and Dam",50,100,{"$f":"AVERAGE(D672,E672)","v":75},{"$f":"Title!$Q$21-'3.1) Infrastructure Replacement'!$K$9","v":0},"Enter Cost in the Box Below",0.05,5.0000000000000001E-3,5.0000000000000001E-3,{"$f":"IF(F672*1<G672,\"past due\",F672*1-G672)","v":75}]
[null,null,"Steel Reservoir and Dam",30,80,{"$f":"AVERAGE(D673,E673)","v":55},{"$f":"Title!$Q$21-'3.1) Infrastructure Replacement'!$K$9","v":0},"Enter Cost in the Box Below",0.1,0.01,0.01,{"$f":"IF(F673*1<G673,\"past due\",F673*1-G673)","v":55}]
[null,null,"Wood Reservoir and Dam",15,30,{"$f":"AVERAGE(D674,E674)","v":22.5},{"$f":"Title!$Q$21-'3.1) Infrastructure Replacement'!$K$9","v":0},"Enter Cost in the Box Below",0.15,1.4999999999999999E-2,1.4999999999999999E-2,22.5]
[null,null,"Earthen Reservoir and Dam",20,50,{"$f":"AVERAGE(D675,E675)","v":35},{"$f":"Title!$Q$21-'3.1) Infrastructure Replacement'!$K$9","v":0},"Enter Cost in the Box Below",0.2,0.02,0.02,35]
[null,null,null,null,null,null,null,null,0.25,2.5000000000000001E-2,2.5000000000000001E-2]
[null,null,"Intake (no impoundment)",20,50,{"$f":"AVERAGE(D677,E677)","v":35},{"$f":"Title!$Q$21-'3.1) Infrastructure Replacement'!$K$9","v":0},100000,0.3,0.03,0.03,35]
[null,null,"Groundwater Well",15,35,{"$f":"AVERAGE(D678,E678)","v":25},{"$f":"Title!$Q$21-'3.1) Infrastructure Replacement'!$K$9","v":0},100000,0.35,3.5000000000000003E-2,3.5000000000000003E-2,25]
[null,null,"Water Treatment Plants-Concrete Structures",20,50,{"$f":"AVERAGE(D679,E679)","v":35},{"$f":"Title!$Q$21-'3.1) Infrastructure Replacement'!$K$9","v":0},500000,0.4,0.04,0.04,35]
[null,null,"Water Treatment Plants-Mechanical and Electrical",15,25,{"$f":"AVERAGE(D680,E680)","v":20},{"$f":"Title!$Q$21-'3.1) Infrastructure Replacement'!$K$9","v":0},500000,0.45,4.4999999999999998E-2,4.4999999999999998E-2,20]
[null,null,"Chlorination Equipment",10,15,{"$f":"AVERAGE(D681,E681)","v":12.5},{"$f":"Title!$Q$21-'3.1) Infrastructure Replacement'!$K$9","v":0},50000,0.5,0.05,0.05,12.5]
[null,null,null,null,null,null,null,null,0.55000000000000004]
[null,null,"Cast Iron Trunk Mains and Distribution Mains",25,100,{"$f":"AVERAGE(D683,E683)","v":62.5},{"$f":"Title!$Q$21-'3.1) Infrastructure Replacement'!$K$9","v":0},"Enter Cost in the Box Below",0.65,null,null,62.5]
[null,null,"Ductile Iron Trunk Mains and Distribution Mains",75,100,87.5,{"$f":"Title!$Q$21-'3.1) Infrastructure Replacement'!$K$9","v":0},"Enter Cost in the Box Below",0.7,null,null,87.5]
[null,null,"Steel Trunk Mains and Distribution Mains",50,100,75,{"$f":"Title!$Q$21-'3.1) Infrastructure Replacement'!$K$9","v":0},"Enter Cost in the Box Below",0.75,null,null,75]
[null,null,"Concrete Trunk Mains and Distribution Mains",75,100,87.5,{"$f":"Title!$Q$21-'3.1) Infrastructure Replacement'!$K$9","v":0},"Enter Cost in the Box Below",0.8,null,null,87.5]
[null,null,"Asbestos Cement Trunk Mains and Distribution Mains",60,100,80,{"$f":"Title!$Q$21-'3.1) Infrastructure Replacement'!$K$9","v":0},"Enter Cost in the Box Below",0.85,null,null,80]
[null,null,"PVC Trunk Mains and Distribution Mains",25,100,62.5,{"$f":"Title!$Q$21-'3.1) Infrastructure Replacement'!$K$9","v":0},"Enter Cost in the Box Below",0.9,null,null,62.5]
[null,null,"HDPE  Trunk Mains and Distribution Mains",70,100,85,{"$f":"Title!$Q$21-'3.1) Infrastructure Replacement'!$K$9","v":0},"Enter Cost in the Box Below",1,null,null,85]
[null,null,null,null,null,null,{"$f":"Title!$Q$21-'3.1) Infrastructure Replacement'!$K$9","v":0}]
[null,null,"Water Pumping Station-Concrete Structures",50,70,{"$f":"AVERAGE(D691,E691)","v":60},{"$f":"Title!$Q$21-'3.1) Infrastructure Replacement'!$K$9","v":0},100000,null,null,null,60]
[null,null,"Water Pumping Station-Mechanical and Electrical",10,25,{"$f":"AVERAGE(D692,E692)","v":17.5},{"$f":"Title!$Q$21-'3.1) Infrastructure Replacement'!$K$9","v":0},100000,null,null,null,17.5]
[]
[null,null,"Concrete Storage Tank",50,80,{"$f":"AVERAGE(D694,E694)","v":65},{"$f":"Title!$Q$21-'3.1) Infrastructure Replacement'!$K$9","v":0},1000000,null,null,null,65]
[null,null,"Wood Storage Tank",50,80,{"$f":"AVERAGE(D695,E695)","v":65},{"$f":"Title!$Q$21-'3.1) Infrastructure Replacement'!$K$9","v":0},1000000,null,null,null,65]
[null,null,"Metal Storage Tank",50,80,{"$f":"AVERAGE(D696,E696)","v":65},{"$f":"Title!$Q$21-'3.1) Infrastructure Replacement'!$K$9","v":0},1000000,null,null,null,65]
[null,null,"Fibreglas Storage Tank",50,80,{"$f":"AVERAGE(D697,E697)","v":65},{"$f":"Title!$Q$21-'3.1) Infrastructure Replacement'!$K$9","v":0},1000000,null,null,null,65]
[]
[null,null,"Electrical Systems",7,10,{"$f":"AVERAGE(D699,E699)","v":8.5},{"$f":"Title!$Q$21-'3.1) Infrastructure Replacement'!$K$9","v":0},"Enter Cost in the Box Below",null,null,null,8.5]
[null,null,"Valves and Backflow Prevention Devices",35,40,37.5,{"$f":"Title!$Q$21-'3.1) Infrastructure Replacement'!$K$9","v":0},10000,null,null,null,37.5]
[null,null,"Meters",10,15,12.5,{"$f":"Title!$Q$21-'3.1) Infrastructure Replacement'!$K$9","v":0},"Enter Cost in the Box Below",null,null,null,12.5]
[null,null,"Hydrants",40,60,50,{"$f":"Title!$Q$21-'3.1) Infrastructure Replacement'!$K$9","v":0},5000,null,null,null,50]
[null,null,"Lab and Monitoring Equipment",5,7,6,{"$f":"Title!$Q$21-'3.1) Infrastructure Replacement'!$K$9","v":0},"Enter Cost in the Box Below",null,null,null,6]
[null,null,"Buildings",30,60,45,{"$f":"Title!$Q$21-'3.1) Infrastructure Replacement'!$K$9","v":0},"Enter Cost in the Box Below",null,null,null,45]
[null,null,"Others","-","-","-","-","-","-","-","-","-"]
[]
[]
[]
[]
[]
[null,null,"Calculations after clicking 'Calculate' button",null,null,null,null,null,null,null,null,null,null,null,null,null,null,null,null,null,null,null,null,null,"Annual Cost","Funded Annual Cost"]
[null,null,"<Asset Type>","Year of Acqusition","Asset Cost","Estimated Life","Estimated Price","Interest Rate","Inflation Rate","Rate %","Funded Portion","Estimated Municipality Cost","Municipality Cost","Avarage Life","Asset Age","Useful Life","PV (given data)","Annual Cos (given data)","PV (est life)","AC (est life)","PV (est cost)","AC (est cost)","PV (est both)","AC (est both)",null,null,"PV (given data)","Annual Cos (given data)","PV (est life)","AC (est life)","PV (est cost)","AC (est cost)","PV (est both)","AC (est both)","Municipality cost(For Table):","Funded Annual Cost","Asset cost (for Table):"]
[null,null,null,null,null,null,null,null,null,{"$f":"I713-H713","v":0},null,{"$f":"G713*(1-K713)","v":0},{"$f":"E713*(1-K713)","v":0},{"$f":"VLOOKUP(C713,$C$669:$L$704,4,FALSE)","v":{"$error":"#N/A"}},{"$f":"Title!$Q$21-D713","v":0},{"$f":"IF(N713*1<O713,\"past due\",N713*1-O713)","v":{"$error":"#N/A"}},{"$f":"(E713*((1+J713)^(-P713)))","v":{"$error":"#N/A"}},{"$f":"IF(J713=0%,(Q713/P713),((Q713*J713)*((1+J713)^(P713)))/(((1+J713)^(P713))-1))","v":{"$error":"#N/A"}},{"$f":"(E713/((1+J713)^(F713)))","v":0},{"$f":"IF(J713=0%,(S713/F713),((S713*J713)*((1+J713)^(F713)))/(((1+J713)^(F713))-1))","v":{"$error":"#DIV/0!"}},{"$f":"(G713/((1+J713)^(P713)))","v":{"$error":"#N/A"}},{"$f":"IF(J713=0%,(U713/P713),(U713*((J713*((1+J713)^(P713)))/(((1+J713)^(P713))-1))))","v":{"$error":"#N/A"}},{"$f":"G713/((1+J713)^(F713))","v":0},{"$f":"IF(J713=0%,(W713/F713),(W713*((J713*((1+J713)^(F713)))/(((1+J713)^(F713))-1))))","v":{"$error":"#DIV/0!"}},{"$f":"IF(AND(G713>0,F713>0),X713,IF(G713>0,V713,IF(F713>0,T713,R713)))","v":{"$error":"#N/A"}},{"$f":"IF(AND(G713>0,F713>0),AH713,IF(AND(F713=0,G713>0),AF713,IF(AND(G713=0,F713>0),AD713,AB713)))","v":{"$error":"#N/A"}},{"$f":"M713*((1+J713)^(-P713))","v":{"$error":"#N/A"}},{"$f":"IF(J713=0%,(AA713/P713),((AA713*J713)*((1+J713)^(P713)))/(((1+J713)^(P713))-1))","v":{"$error":"#N/A"}},{"$f":"M713/((1+J713)^(F713))","v":0},{"$f":"IF(J713=0%,(AC713/F713),((AC713*J713)*((1+J713)^(F713)))/(((1+J713)^(F713))-1))","v":{"$error":"#DIV/0!"}},{"$f":"L713/((1+J713)^(P713))","v":{"$error":"#N/A"}},{"$f":"IF(J713=0%,(AE713/P713),(AE713*((J713*((1+J713)^(P713)))/(((1+J713)^(P713))-1))))","v":{"$error":"#N/A"}},{"$f":"L713/((1+J713)^(F713))","v":0},{"$f":"IF(J713=0%,(AG713/F713),(AG713*((J713*((1+J713)^(F713)))/(((1+J713)^(F713))-1))))","v":{"$error":"#DIV/0!"}},{"$f":"IF(G713>0,L713,IF(G713=0,M713))","v":0},{"$f":"Y713-Z713","v":{"$error":"#N/A"}},{"$f":"IF(G713=0,E713,IF(G713>0,G713))","v":0}]
[null,null,null,null,null,null,null,null,null,0,null,0,0,{"$error":"#N/A"},{"$f":"Title!$Q$21-D714","v":0},{"$error":"#N/A"},{"$error":"#N/A"},{"$error":"#N/A"},0,{"$error":"#DIV/0!"},{"$error":"#N/A"},{"$error":"#N/A"},0,{"$error":"#DIV/0!"},{"$error":"#N/A"},{"$error":"#N/A"},{"$error":"#N/A"},{"$error":"#N/A"},0,{"$error":"#DIV/0!"},{"$error":"#N/A"},{"$error":"#N/A"},0,{"$error":"#DIV/0!"},0,{"$error":"#N/A"},0]
[null,null,null,null,null,null,null,null,null,0,null,0,0,{"$error":"#N/A"},{"$f":"Title!$Q$21-D715","v":0},{"$error":"#N/A"},{"$error":"#N/A"},{"$error":"#N/A"},0,{"$error":"#DIV/0!"},{"$error":"#N/A"},{"$error":"#N/A"},0,{"$error":"#DIV/0!"},{"$error":"#N/A"},{"$error":"#N/A"},{"$error":"#N/A"},{"$error":"#N/A"},0,{"$error":"#DIV/0!"},{"$error":"#N/A"},{"$error":"#N/A"},0,{"$error":"#DIV/0!"},0,{"$error":"#N/A"},0]
[null,null,null,null,null,null,null,null,null,0,null,0,0,{"$error":"#N/A"},{"$f":"Title!$Q$21-D716","v":0},{"$error":"#N/A"},{"$error":"#N/A"},{"$error":"#N/A"},0,{"$error":"#DIV/0!"},{"$error":"#N/A"},{"$error":"#N/A"},0,{"$error":"#DIV/0!"},{"$error":"#N/A"},{"$error":"#N/A"},{"$error":"#N/A"},{"$error":"#N/A"},0,{"$error":"#DIV/0!"},{"$error":"#N/A"},{"$error":"#N/A"},0,{"$error":"#DIV/0!"},0,{"$error":"#N/A"},0]
[null,null,null,null,null,null,null,null,null,0,null,0,0,{"$error":"#N/A"},{"$f":"Title!$Q$21-D717","v":0},{"$error":"#N/A"},{"$error":"#N/A"},{"$error":"#N/A"},0,{"$error":"#DIV/0!"},{"$error":"#N/A"},{"$error":"#N/A"},0,{"$error":"#DIV/0!"},{"$error":"#N/A"},{"$error":"#N/A"},{"$error":"#N/A"},{"$error":"#N/A"},0,{"$error":"#DIV/0!"},{"$error":"#N/A"},{"$error":"#N/A"},0,{"$error":"#DIV/0!"},0,{"$error":"#N/A"},0]
[null,null,null,null,null,null,null,null,null,0,null,0,0,{"$error":"#N/A"},{"$f":"Title!$Q$21-D718","v":0},{"$error":"#N/A"},{"$error":"#N/A"},{"$error":"#N/A"},0,{"$error":"#DIV/0!"},{"$error":"#N/A"},{"$error":"#N/A"},0,{"$error":"#DIV/0!"},{"$error":"#N/A"},{"$error":"#N/A"},{"$error":"#N/A"},{"$error":"#N/A"},0,{"$error":"#DIV/0!"},{"$error":"#N/A"},{"$error":"#N/A"},0,{"$error":"#DIV/0!"},0,{"$error":"#N/A"},0]
[null,null,null,null,null,null,null,null,null,0,null,0,0,{"$error":"#N/A"},{"$f":"Title!$Q$21-D719","v":0},{"$error":"#N/A"},{"$error":"#N/A"},{"$error":"#N/A"},0,{"$error":"#DIV/0!"},{"$error":"#N/A"},{"$error":"#N/A"},0,{"$error":"#DIV/0!"},{"$error":"#N/A"},{"$error":"#N/A"},{"$error":"#N/A"},{"$error":"#N/A"},0,{"$error":"#DIV/0!"},{"$error":"#N/A"},{"$error":"#N/A"},0,{"$error":"#DIV/0!"},0,{"$error":"#N/A"},0]
[null,null,null,null,null,null,null,null,null,0,null,0,0,{"$error":"#N/A"},{"$f":"Title!$Q$21-D720","v":0},{"$error":"#N/A"},{"$error":"#N/A"},{"$error":"#N/A"},0,{"$error":"#DIV/0!"},{"$error":"#N/A"},{"$error":"#N/A"},0,{"$error":"#DIV/0!"},{"$error":"#N/A"},{"$error":"#N/A"},{"$error":"#N/A"},{"$error":"#N/A"},0,{"$error":"#DIV/0!"},{"$error":"#N/A"},{"$error":"#N/A"},0,{"$error":"#DIV/0!"},0,{"$error":"#N/A"},0]
[null,null,null,null,null,null,null,null,null,0,null,0,0,{"$error":"#N/A"},{"$f":"Title!$Q$21-D721","v":0},{"$error":"#N/A"},{"$error":"#N/A"},{"$error":"#N/A"},0,{"$error":"#DIV/0!"},{"$error":"#N/A"},{"$error":"#N/A"},0,{"$error":"#DIV/0!"},{"$error":"#N/A"},{"$error":"#N/A"},{"$error":"#N/A"},{"$error":"#N/A"},0,{"$error":"#DIV/0!"},{"$error":"#N/A"},{"$error":"#N/A"},0,{"$error":"#DIV/0!"},0,{"$error":"#N/A"},0]
[null,null,null,null,null,null,null,null,null,0,null,0,0,{"$error":"#N/A"},{"$f":"Title!$Q$21-D722","v":0},{"$error":"#N/A"},{"$error":"#N/A"},{"$error":"#N/A"},0,{"$error":"#DIV/0!"},{"$error":"#N/A"},{"$error":"#N/A"},0,{"$error":"#DIV/0!"},{"$error":"#N/A"},{"$error":"#N/A"},{"$error":"#N/A"},{"$error":"#N/A"},0,{"$error":"#DIV/0!"},{"$error":"#N/A"},{"$error":"#N/A"},0,{"$error":"#DIV/0!"},0,{"$error":"#N/A"},0]
[null,null,null,null,null,null,null,null,null,0,null,0,0,{"$error":"#N/A"},{"$f":"Title!$Q$21-D723","v":0},{"$error":"#N/A"},{"$error":"#N/A"},{"$error":"#N/A"},0,{"$error":"#DIV/0!"},{"$error":"#N/A"},{"$error":"#N/A"},0,{"$error":"#DIV/0!"},{"$error":"#N/A"},{"$error":"#N/A"},{"$error":"#N/A"},{"$error":"#N/A"},0,{"$error":"#DIV/0!"},{"$error":"#N/A"},{"$error":"#N/A"},0,{"$error":"#DIV/0!"},0,{"$error":"#N/A"},0]
[null,null,null,null,null,null,null,null,null,0,null,0,0,{"$error":"#N/A"},{"$f":"Title!$Q$21-D724","v":0},{"$error":"#N/A"},{"$error":"#N/A"},{"$error":"#N/A"},0,{"$error":"#DIV/0!"},{"$error":"#N/A"},{"$error":"#N/A"},0,{"$error":"#DIV/0!"},{"$error":"#N/A"},{"$error":"#N/A"},{"$error":"#N/A"},{"$error":"#N/A"},0,{"$error":"#DIV/0!"},{"$error":"#N/A"},{"$error":"#N/A"},0,{"$error":"#DIV/0!"},0,{"$error":"#N/A"},0]
[null,null,null,null,null,null,null,null,null,0,null,0,0,{"$error":"#N/A"},{"$f":"Title!$Q$21-D725","v":0},{"$error":"#N/A"},{"$error":"#N/A"},{"$error":"#N/A"},0,{"$error":"#DIV/0!"},{"$error":"#N/A"},{"$error":"#N/A"},0,{"$error":"#DIV/0!"},{"$error":"#N/A"},{"$error":"#N/A"},{"$error":"#N/A"},{"$error":"#N/A"},0,{"$error":"#DIV/0!"},{"$error":"#N/A"},{"$error":"#N/A"},0,{"$error":"#DIV/0!"},0,{"$error":"#N/A"},0]
[null,null,null,null,null,null,null,null,null,0,null,0,0,{"$error":"#N/A"},{"$f":"Title!$Q$21-D726","v":0},{"$error":"#N/A"},{"$error":"#N/A"},{"$error":"#N/A"},0,{"$error":"#DIV/0!"},{"$error":"#N/A"},{"$error":"#N/A"},0,{"$error":"#DIV/0!"},{"$error":"#N/A"},{"$error":"#N/A"},{"$error":"#N/A"},{"$error":"#N/A"},0,{"$error":"#DIV/0!"},{"$error":"#N/A"},{"$error":"#N/A"},0,{"$error":"#DIV/0!"},0,{"$error":"#N/A"},0]
[null,null,null,null,null,null,null,null,null,0,null,0,0,{"$error":"#N/A"},{"$f":"Title!$Q$21-D727","v":0},{"$error":"#N/A"},{"$error":"#N/A"},{"$error":"#N/A"},0,{"$error":"#DIV/0!"},{"$error":"#N/A"},{"$error":"#N/A"},0,{"$error":"#DIV/0!"},{"$error":"#N/A"},{"$error":"#N/A"},{"$error":"#N/A"},{"$error":"#N/A"},0,{"$error":"#DIV/0!"},{"$error":"#N/A"},{"$error":"#N/A"},0,{"$error":"#DIV/0!"},0,{"$error":"#N/A"},0]
[null,null,null,null,null,null,null,null,null,0,null,0,0,{"$error":"#N/A"},{"$f":"Title!$Q$21-D728","v":0},{"$error":"#N/A"},{"$error":"#N/A"},{"$error":"#N/A"},0,{"$error":"#DIV/0!"},{"$error":"#N/A"},{"$error":"#N/A"},0,{"$error":"#DIV/0!"},{"$error":"#N/A"},{"$error":"#N/A"},{"$error":"#N/A"},{"$error":"#N/A"},0,{"$error":"#DIV/0!"},{"$error":"#N/A"},{"$error":"#N/A"},0,{"$error":"#DIV/0!"},0,{"$error":"#N/A"},0]
[null,null,null,null,null,null,null,null,null,0,null,0,0,{"$error":"#N/A"},{"$f":"Title!$Q$21-D729","v":0},{"$error":"#N/A"},{"$error":"#N/A"},{"$error":"#N/A"},0,{"$error":"#DIV/0!"},{"$error":"#N/A"},{"$error":"#N/A"},0,{"$error":"#DIV/0!"},{"$error":"#N/A"},{"$error":"#N/A"},{"$error":"#N/A"},{"$error":"#N/A"},0,{"$error":"#DIV/0!"},{"$error":"#N/A"},{"$error":"#N/A"},0,{"$error":"#DIV/0!"},0,{"$error":"#N/A"},0]
[null,null,null,null,null,null,null,null,null,0,null,0,0,{"$error":"#N/A"},{"$f":"Title!$Q$21-D730","v":0},{"$error":"#N/A"},{"$error":"#N/A"},{"$error":"#N/A"},0,{"$error":"#DIV/0!"},{"$error":"#N/A"},{"$error":"#N/A"},0,{"$error":"#DIV/0!"},{"$error":"#N/A"},{"$error":"#N/A"},{"$error":"#N/A"},{"$error":"#N/A"},0,{"$error":"#DIV/0!"},{"$error":"#N/A"},{"$error":"#N/A"},0,{"$error":"#DIV/0!"},0,{"$error":"#N/A"},0]
[null,null,null,null,null,null,null,null,null,0,null,0,0,{"$error":"#N/A"},{"$f":"Title!$Q$21-D731","v":0},{"$error":"#N/A"},{"$error":"#N/A"},{"$error":"#N/A"},0,{"$error":"#DIV/0!"},{"$error":"#N/A"},{"$error":"#N/A"},0,{"$error":"#DIV/0!"},{"$error":"#N/A"},{"$error":"#N/A"},{"$error":"#N/A"},{"$error":"#N/A"},0,{"$error":"#DIV/0!"},{"$error":"#N/A"},{"$error":"#N/A"},0,{"$error":"#DIV/0!"},0,{"$error":"#N/A"},0]
[null,null,null,null,null,null,null,null,null,0,null,0,0,{"$error":"#N/A"},{"$f":"Title!$Q$21-D732","v":0},{"$error":"#N/A"},{"$error":"#N/A"},{"$error":"#N/A"},0,{"$error":"#DIV/0!"},{"$error":"#N/A"},{"$error":"#N/A"},0,{"$error":"#DIV/0!"},{"$error":"#N/A"},{"$error":"#N/A"},{"$error":"#N/A"},{"$error":"#N/A"},0,{"$error":"#DIV/0!"},{"$error":"#N/A"},{"$error":"#N/A"},0,{"$error":"#DIV/0!"},0,{"$error":"#N/A"},0]
[null,null,null,null,null,null,null,null,null,0,null,0,0,{"$error":"#N/A"},{"$f":"Title!$Q$21-D733","v":0},{"$error":"#N/A"},{"$error":"#N/A"},{"$error":"#N/A"},0,{"$error":"#DIV/0!"},{"$error":"#N/A"},{"$error":"#N/A"},0,{"$error":"#DIV/0!"},{"$error":"#N/A"},{"$error":"#N/A"},{"$error":"#N/A"},{"$error":"#N/A"},0,{"$error":"#DIV/0!"},{"$error":"#N/A"},{"$error":"#N/A"},0,{"$error":"#DIV/0!"},0,{"$error":"#N/A"},0]
[null,null,null,null,null,null,null,null,null,0,null,0,0,{"$error":"#N/A"},{"$f":"Title!$Q$21-D734","v":0},{"$error":"#N/A"},{"$error":"#N/A"},{"$error":"#N/A"},0,{"$error":"#DIV/0!"},{"$error":"#N/A"},{"$error":"#N/A"},0,{"$error":"#DIV/0!"},{"$error":"#N/A"},{"$error":"#N/A"},{"$error":"#N/A"},{"$error":"#N/A"},0,{"$error":"#DIV/0!"},{"$error":"#N/A"},{"$error":"#N/A"},0,{"$error":"#DIV/0!"},0,{"$error":"#N/A"},0]
[null,null,null,null,null,null,null,null,null,0,null,0,0,{"$error":"#N/A"},{"$f":"Title!$Q$21-D735","v":0},{"$error":"#N/A"},{"$error":"#N/A"},{"$error":"#N/A"},0,{"$error":"#DIV/0!"},{"$error":"#N/A"},{"$error":"#N/A"},0,{"$error":"#DIV/0!"},{"$error":"#N/A"},{"$error":"#N/A"},{"$error":"#N/A"},{"$error":"#N/A"},0,{"$error":"#DIV/0!"},{"$error":"#N/A"},{"$error":"#N/A"},0,{"$error":"#DIV/0!"},0,{"$error":"#N/A"},0]
[null,null,null,null,null,null,null,null,null,0,null,0,0,{"$error":"#N/A"},{"$f":"Title!$Q$21-D736","v":0},{"$error":"#N/A"},{"$error":"#N/A"},{"$error":"#N/A"},0,{"$error":"#DIV/0!"},{"$error":"#N/A"},{"$error":"#N/A"},0,{"$error":"#DIV/0!"},{"$error":"#N/A"},{"$error":"#N/A"},{"$error":"#N/A"},{"$error":"#N/A"},0,{"$error":"#DIV/0!"},{"$error":"#N/A"},{"$error":"#N/A"},0,{"$error":"#DIV/0!"},0,{"$error":"#N/A"},0]
[null,null,null,null,null,null,null,null,null,0,null,0,0,{"$error":"#N/A"},{"$f":"Title!$Q$21-D737","v":0},{"$error":"#N/A"},{"$error":"#N/A"},{"$error":"#N/A"},0,{"$error":"#DIV/0!"},{"$error":"#N/A"},{"$error":"#N/A"},0,{"$error":"#DIV/0!"},{"$error":"#N/A"},{"$error":"#N/A"},{"$error":"#N/A"},{"$error":"#N/A"},0,{"$error":"#DIV/0!"},{"$error":"#N/A"},{"$error":"#N/A"},0,{"$error":"#DIV/0!"},0,{"$error":"#N/A"},0]
[null,null,null,null,null,null,null,null,null,0,null,0,0,{"$error":"#N/A"},{"$f":"Title!$Q$21-D738","v":0},{"$error":"#N/A"},{"$error":"#N/A"},{"$error":"#N/A"},0,{"$error":"#DIV/0!"},{"$error":"#N/A"},{"$error":"#N/A"},0,{"$error":"#DIV/0!"},{"$error":"#N/A"},{"$error":"#N/A"},{"$error":"#N/A"},{"$error":"#N/A"},0,{"$error":"#DIV/0!"},{"$error":"#N/A"},{"$error":"#N/A"},0,{"$error":"#DIV/0!"},0,{"$error":"#N/A"},0]
[null,null,null,null,null,null,null,null,null,0,null,0,0,{"$error":"#N/A"},{"$f":"Title!$Q$21-D739","v":0},{"$error":"#N/A"},{"$error":"#N/A"},{"$error":"#N/A"},0,{"$error":"#DIV/0!"},{"$error":"#N/A"},{"$error":"#N/A"},0,{"$error":"#DIV/0!"},{"$error":"#N/A"},{"$error":"#N/A"},{"$error":"#N/A"},{"$error":"#N/A"},0,{"$error":"#DIV/0!"},{"$error":"#N/A"},{"$error":"#N/A"},0,{"$error":"#DIV/0!"},0,{"$error":"#N/A"},0]
[null,null,null,null,null,null,null,null,null,0,null,0,0,{"$error":"#N/A"},{"$f":"Title!$Q$21-D740","v":0},{"$error":"#N/A"},{"$error":"#N/A"},{"$error":"#N/A"},0,{"$error":"#DIV/0!"},{"$error":"#N/A"},{"$error":"#N/A"},0,{"$error":"#DIV/0!"},{"$error":"#N/A"},{"$error":"#N/A"},{"$error":"#N/A"},{"$error":"#N/A"},0,{"$error":"#DIV/0!"},{"$error":"#N/A"},{"$error":"#N/A"},0,{"$error":"#DIV/0!"},0,{"$error":"#N/A"},0]
[null,null,null,null,null,null,null,null,null,0,null,0,0,{"$error":"#N/A"},{"$f":"Title!$Q$21-D741","v":0},{"$error":"#N/A"},{"$error":"#N/A"},{"$error":"#N/A"},0,{"$error":"#DIV/0!"},{"$error":"#N/A"},{"$error":"#N/A"},0,{"$error":"#DIV/0!"},{"$error":"#N/A"},{"$error":"#N/A"},{"$error":"#N/A"},{"$error":"#N/A"},0,{"$error":"#DIV/0!"},{"$error":"#N/A"},{"$error":"#N/A"},0,{"$error":"#DIV/0!"},0,{"$error":"#N/A"},0]
[null,null,null,null,null,null,null,null,null,{"$f":"I742-H742","v":0},null,{"$f":"G742*(1-K742)","v":0},{"$f":"E742*(1-K742)","v":0},{"$error":"#N/A"},{"$f":"Title!$Q$21-D742","v":0},{"$f":"IF(N742*1<O742,\"past due\",N742*1-O742)","v":{"$error":"#N/A"}},{"$f":"(E742*((1+J742)^(-P742)))","v":{"$error":"#N/A"}},{"$f":"IF(J742=0%,(Q742/P742),((Q742*J742)*((1+J742)^(P742)))/(((1+J742)^(P742))-1))","v":{"$error":"#N/A"}},{"$f":"(E742/((1+J742)^(F742)))","v":0},{"$f":"IF(J742=0%,(S742/F742),((S742*J742)*((1+J742)^(F742)))/(((1+J742)^(F742))-1))","v":{"$error":"#DIV/0!"}},{"$f":"(G742/((1+J742)^(P742)))","v":{"$error":"#N/A"}},{"$f":"IF(J742=0%,(U742/P742),(U742*((J742*((1+J742)^(P742)))/(((1+J742)^(P742))-1))))","v":{"$error":"#N/A"}},{"$f":"G742/((1+J742)^(F742))","v":0},{"$f":"IF(J742=0%,(W742/F742),(W742*((J742*((1+J742)^(F742)))/(((1+J742)^(F742))-1))))","v":{"$error":"#DIV/0!"}},{"$f":"IF(AND(G742>0,F742>0),X742,IF(G742>0,V742,IF(F742>0,T742,R742)))","v":{"$error":"#N/A"}},{"$f":"IF(AND(G742>0,F742>0),AH742,IF(AND(F742=0,G742>0),AF742,IF(AND(G742=0,F742>0),AD742,AB742)))","v":{"$error":"#N/A"}},{"$f":"M742*((1+J742)^(-P742))","v":{"$error":"#N/A"}},{"$f":"IF(J742=0%,(AA742/P742),((AA742*J742)*((1+J742)^(P742)))/(((1+J742)^(P742))-1))","v":{"$error":"#N/A"}},{"$f":"M742/((1+J742)^(F742))","v":0},{"$f":"IF(J742=0%,(AC742/F742),((AC742*J742)*((1+J742)^(F742)))/(((1+J742)^(F742))-1))","v":{"$error":"#DIV/0!"}},{"$f":"L742/((1+J742)^(P742))","v":{"$error":"#N/A"}},{"$f":"IF(J742=0%,(AE742/P742),(AE742*((J742*((1+J742)^(P742)))/(((1+J742)^(P742))-1))))","v":{"$error":"#N/A"}},{"$f":"L742/((1+J742)^(F742))","v":0},{"$f":"IF(J742=0%,(AG742/F742),(AG742*((J742*((1+J742)^(F742)))/(((1+J742)^(F742))-1))))","v":{"$error":"#DIV/0!"}},{"$f":"IF(G742>0,L742,IF(G742=0,M742))","v":0},{"$f":"Y742-Z742","v":{"$error":"#N/A"}},{"$f":"IF(G742=0,E742,IF(G742>0,G742))","v":0}]
[null,null,null,null,null,null,null,null,null,0,null,0,0,{"$f":"VLOOKUP(C743,$C$669:$L$704,4,FALSE)","v":{"$error":"#N/A"}},{"$f":"Title!$Q$21-D743","v":0},{"$error":"#N/A"},{"$error":"#N/A"},{"$error":"#N/A"},0,{"$error":"#DIV/0!"},{"$error":"#N/A"},{"$error":"#N/A"},0,{"$error":"#DIV/0!"},{"$error":"#N/A"},{"$error":"#N/A"},{"$error":"#N/A"},{"$error":"#N/A"},0,{"$error":"#DIV/0!"},{"$error":"#N/A"},{"$error":"#N/A"},0,{"$error":"#DIV/0!"},0,{"$error":"#N/A"},0]
[null,null,null,null,null,null,null,null,null,0,null,0,0,{"$error":"#N/A"},{"$f":"Title!$Q$21-D744","v":0},{"$error":"#N/A"},{"$error":"#N/A"},{"$error":"#N/A"},0,{"$error":"#DIV/0!"},{"$error":"#N/A"},{"$error":"#N/A"},0,{"$error":"#DIV/0!"},{"$error":"#N/A"},{"$error":"#N/A"},{"$error":"#N/A"},{"$error":"#N/A"},0,{"$error":"#DIV/0!"},{"$error":"#N/A"},{"$error":"#N/A"},0,{"$error":"#DIV/0!"},0,{"$error":"#N/A"},0]
[null,null,null,null,null,null,null,null,null,0,null,0,0,{"$error":"#N/A"},{"$f":"Title!$Q$21-D745","v":0},{"$error":"#N/A"},{"$error":"#N/A"},{"$error":"#N/A"},0,{"$error":"#DIV/0!"},{"$error":"#N/A"},{"$error":"#N/A"},0,{"$error":"#DIV/0!"},{"$error":"#N/A"},{"$error":"#N/A"},{"$error":"#N/A"},{"$error":"#N/A"},0,{"$error":"#DIV/0!"},{"$error":"#N/A"},{"$error":"#N/A"},0,{"$error":"#DIV/0!"},0,{"$error":"#N/A"},0]
[null,null,null,null,null,null,null,null,null,0,null,0,0,{"$error":"#N/A"},{"$f":"Title!$Q$21-D746","v":0},{"$error":"#N/A"},{"$error":"#N/A"},{"$error":"#N/A"},0,{"$error":"#DIV/0!"},{"$error":"#N/A"},{"$error":"#N/A"},0,{"$error":"#DIV/0!"},{"$error":"#N/A"},{"$error":"#N/A"},{"$error":"#N/A"},{"$error":"#N/A"},0,{"$error":"#DIV/0!"},{"$error":"#N/A"},{"$error":"#N/A"},0,{"$error":"#DIV/0!"},0,{"$error":"#N/A"},0]
[null,null,null,null,null,null,null,null,null,0,null,0,0,{"$error":"#N/A"},{"$f":"Title!$Q$21-D747","v":0},{"$error":"#N/A"},{"$error":"#N/A"},{"$error":"#N/A"},0,{"$error":"#DIV/0!"},{"$error":"#N/A"},{"$error":"#N/A"},0,{"$error":"#DIV/0!"},{"$error":"#N/A"},{"$error":"#N/A"},{"$error":"#N/A"},{"$error":"#N/A"},0,{"$error":"#DIV/0!"},{"$error":"#N/A"},{"$error":"#N/A"},0,{"$error":"#DIV/0!"},0,{"$error":"#N/A"},0]
[null,null,null,null,null,null,null,null,null,0,null,0,0,{"$error":"#N/A"},{"$f":"Title!$Q$21-D748","v":0},{"$error":"#N/A"},{"$error":"#N/A"},{"$error":"#N/A"},0,{"$error":"#DIV/0!"},{"$error":"#N/A"},{"$error":"#N/A"},0,{"$error":"#DIV/0!"},{"$error":"#N/A"},{"$error":"#N/A"},{"$error":"#N/A"},{"$error":"#N/A"},0,{"$error":"#DIV/0!"},{"$error":"#N/A"},{"$error":"#N/A"},0,{"$error":"#DIV/0!"},0,{"$error":"#N/A"},0]
[null,null,null,null,null,null,null,null,null,0,null,0,0,{"$error":"#N/A"},{"$f":"Title!$Q$21-D749","v":0},{"$error":"#N/A"},{"$error":"#N/A"},{"$error":"#N/A"},0,{"$error":"#DIV/0!"},{"$error":"#N/A"},{"$error":"#N/A"},0,{"$error":"#DIV/0!"},{"$error":"#N/A"},{"$error":"#N/A"},{"$error":"#N/A"},{"$error":"#N/A"},0,{"$error":"#DIV/0!"},{"$error":"#N/A"},{"$error":"#N/A"},0,{"$error":"#DIV/0!"},0,{"$error":"#N/A"},0]
[null,null,null,null,null,null,null,null,null,0,null,0,0,{"$error":"#N/A"},{"$f":"Title!$Q$21-D750","v":0},{"$error":"#N/A"},{"$error":"#N/A"},{"$error":"#N/A"},0,{"$error":"#DIV/0!"},{"$error":"#N/A"},{"$error":"#N/A"},0,{"$error":"#DIV/0!"},{"$error":"#N/A"},{"$error":"#N/A"},{"$error":"#N/A"},{"$error":"#N/A"},0,{"$error":"#DIV/0!"},{"$error":"#N/A"},{"$error":"#N/A"},0,{"$error":"#DIV/0!"},0,{"$error":"#N/A"},0]
[null,null,null,null,null,null,null,null,null,0,null,0,0,{"$error":"#N/A"},{"$f":"Title!$Q$21-D751","v":0},{"$error":"#N/A"},{"$error":"#N/A"},{"$error":"#N/A"},0,{"$error":"#DIV/0!"},{"$error":"#N/A"},{"$error":"#N/A"},0,{"$error":"#DIV/0!"},{"$error":"#N/A"},{"$error":"#N/A"},{"$error":"#N/A"},{"$error":"#N/A"},0,{"$error":"#DIV/0!"},{"$error":"#N/A"},{"$error":"#N/A"},0,{"$error":"#DIV/0!"},0,{"$error":"#N/A"},0]
[null,null,null,null,null,null,null,null,null,0,null,0,0,{"$error":"#N/A"},{"$f":"Title!$Q$21-D752","v":0},{"$error":"#N/A"},{"$error":"#N/A"},{"$error":"#N/A"},0,{"$error":"#DIV/0!"},{"$error":"#N/A"},{"$error":"#N/A"},0,{"$error":"#DIV/0!"},{"$error":"#N/A"},{"$error":"#N/A"},{"$error":"#N/A"},{"$error":"#N/A"},0,{"$error":"#DIV/0!"},{"$error":"#N/A"},{"$error":"#N/A"},0,{"$error":"#DIV/0!"},0,{"$error":"#N/A"},0]
[null,null,null,null,null,null,null,null,null,0,null,0,0,{"$error":"#N/A"},{"$f":"Title!$Q$21-D753","v":0},{"$error":"#N/A"},{"$error":"#N/A"},{"$error":"#N/A"},0,{"$error":"#DIV/0!"},{"$error":"#N/A"},{"$error":"#N/A"},0,{"$error":"#DIV/0!"},{"$error":"#N/A"},{"$error":"#N/A"},{"$error":"#N/A"},{"$error":"#N/A"},0,{"$error":"#DIV/0!"},{"$error":"#N/A"},{"$error":"#N/A"},0,{"$error":"#DIV/0!"},0,{"$error":"#N/A"},0]
[null,null,null,null,null,null,null,null,null,0,null,0,0,{"$error":"#N/A"},{"$f":"Title!$Q$21-D754","v":0},{"$error":"#N/A"},{"$error":"#N/A"},{"$error":"#N/A"},0,{"$error":"#DIV/0!"},{"$error":"#N/A"},{"$error":"#N/A"},0,{"$error":"#DIV/0!"},{"$error":"#N/A"},{"$error":"#N/A"},{"$error":"#N/A"},{"$error":"#N/A"},0,{"$error":"#DIV/0!"},{"$error":"#N/A"},{"$error":"#N/A"},0,{"$error":"#DIV/0!"},0,{"$error":"#N/A"},0]
[null,null,null,null,null,null,null,null,null,0,null,0,0,{"$error":"#N/A"},{"$f":"Title!$Q$21-D755","v":0},{"$error":"#N/A"},{"$error":"#N/A"},{"$error":"#N/A"},0,{"$error":"#DIV/0!"},{"$error":"#N/A"},{"$error":"#N/A"},0,{"$error":"#DIV/0!"},{"$error":"#N/A"},{"$error":"#N/A"},{"$error":"#N/A"},{"$error":"#N/A"},0,{"$error":"#DIV/0!"},{"$error":"#N/A"},{"$error":"#N/A"},0,{"$error":"#DIV/0!"},0,{"$error":"#N/A"},0]
[null,null,null,null,null,null,null,null,null,0,null,0,0,{"$error":"#N/A"},{"$f":"Title!$Q$21-D756","v":0},{"$error":"#N/A"},{"$error":"#N/A"},{"$error":"#N/A"},0,{"$error":"#DIV/0!"},{"$error":"#N/A"},{"$error":"#N/A"},0,{"$error":"#DIV/0!"},{"$error":"#N/A"},{"$error":"#N/A"},{"$error":"#N/A"},{"$error":"#N/A"},0,{"$error":"#DIV/0!"},{"$error":"#N/A"},{"$error":"#N/A"},0,{"$error":"#DIV/0!"},0,{"$error":"#N/A"},0]
[null,null,null,null,null,null,null,null,null,0,null,0,0,{"$error":"#N/A"},{"$f":"Title!$Q$21-D757","v":0},{"$error":"#N/A"},{"$error":"#N/A"},{"$error":"#N/A"},0,{"$error":"#DIV/0!"},{"$error":"#N/A"},{"$error":"#N/A"},0,{"$error":"#DIV/0!"},{"$error":"#N/A"},{"$error":"#N/A"},{"$error":"#N/A"},{"$error":"#N/A"},0,{"$error":"#DIV/0!"},{"$error":"#N/A"},{"$error":"#N/A"},0,{"$error":"#DIV/0!"},0,{"$error":"#N/A"},0]
[null,null,null,null,null,null,null,null,null,0,null,0,0,{"$error":"#N/A"},{"$f":"Title!$Q$21-D758","v":0},{"$error":"#N/A"},{"$error":"#N/A"},{"$error":"#N/A"},0,{"$error":"#DIV/0!"},{"$error":"#N/A"},{"$error":"#N/A"},0,{"$error":"#DIV/0!"},{"$error":"#N/A"},{"$error":"#N/A"},{"$error":"#N/A"},{"$error":"#N/A"},0,{"$error":"#DIV/0!"},{"$error":"#N/A"},{"$error":"#N/A"},0,{"$error":"#DIV/0!"},0,{"$error":"#N/A"},0]
[null,null,null,null,null,null,null,null,null,0,null,0,0,{"$error":"#N/A"},{"$f":"Title!$Q$21-D759","v":0},{"$error":"#N/A"},{"$error":"#N/A"},{"$error":"#N/A"},0,{"$error":"#DIV/0!"},{"$error":"#N/A"},{"$error":"#N/A"},0,{"$error":"#DIV/0!"},{"$error":"#N/A"},{"$error":"#N/A"},{"$error":"#N/A"},{"$error":"#N/A"},0,{"$error":"#DIV/0!"},{"$error":"#N/A"},{"$error":"#N/A"},0,{"$error":"#DIV/0!"},0,{"$error":"#N/A"},0]
[null,null,null,null,null,null,null,null,null,0,null,0,0,{"$error":"#N/A"},{"$f":"Title!$Q$21-D760","v":0},{"$error":"#N/A"},{"$error":"#N/A"},{"$error":"#N/A"},0,{"$error":"#DIV/0!"},{"$error":"#N/A"},{"$error":"#N/A"},0,{"$error":"#DIV/0!"},{"$error":"#N/A"},{"$error":"#N/A"},{"$error":"#N/A"},{"$error":"#N/A"},0,{"$error":"#DIV/0!"},{"$error":"#N/A"},{"$error":"#N/A"},0,{"$error":"#DIV/0!"},0,{"$error":"#N/A"},0]
[null,null,null,null,null,null,null,null,null,0,null,0,0,{"$error":"#N/A"},{"$f":"Title!$Q$21-D761","v":0},{"$error":"#N/A"},{"$error":"#N/A"},{"$error":"#N/A"},0,{"$error":"#DIV/0!"},{"$error":"#N/A"},{"$error":"#N/A"},0,{"$error":"#DIV/0!"},{"$error":"#N/A"},{"$error":"#N/A"},{"$error":"#N/A"},{"$error":"#N/A"},0,{"$error":"#DIV/0!"},{"$error":"#N/A"},{"$error":"#N/A"},0,{"$error":"#DIV/0!"},0,{"$error":"#N/A"},0]
[null,null,null,null,null,null,null,null,null,0,null,0,0,{"$error":"#N/A"},{"$f":"Title!$Q$21-D762","v":0},{"$error":"#N/A"},{"$error":"#N/A"},{"$error":"#N/A"},0,{"$error":"#DIV/0!"},{"$error":"#N/A"},{"$error":"#N/A"},0,{"$error":"#DIV/0!"},{"$error":"#N/A"},{"$error":"#N/A"},{"$error":"#N/A"},{"$error":"#N/A"},0,{"$error":"#DIV/0!"},{"$error":"#N/A"},{"$error":"#N/A"},0,{"$error":"#DIV/0!"},0,{"$error":"#N/A"},0]
[null,null,null,null,null,null,null,null,null,0,null,0,0,{"$error":"#N/A"},{"$f":"Title!$Q$21-D763","v":0},{"$error":"#N/A"},{"$error":"#N/A"},{"$error":"#N/A"},0,{"$error":"#DIV/0!"},{"$error":"#N/A"},{"$error":"#N/A"},0,{"$error":"#DIV/0!"},{"$error":"#N/A"},{"$error":"#N/A"},{"$error":"#N/A"},{"$error":"#N/A"},0,{"$error":"#DIV/0!"},{"$error":"#N/A"},{"$error":"#N/A"},0,{"$error":"#DIV/0!"},0,{"$error":"#N/A"},0]
[null,null,null,null,null,null,null,null,null,0,null,0,0,{"$error":"#N/A"},{"$f":"Title!$Q$21-D764","v":0},{"$error":"#N/A"},{"$error":"#N/A"},{"$error":"#N/A"},0,{"$error":"#DIV/0!"},{"$error":"#N/A"},{"$error":"#N/A"},0,{"$error":"#DIV/0!"},{"$error":"#N/A"},{"$error":"#N/A"},{"$error":"#N/A"},{"$error":"#N/A"},0,{"$error":"#DIV/0!"},{"$error":"#N/A"},{"$error":"#N/A"},0,{"$error":"#DIV/0!"},0,{"$error":"#N/A"},0]
[null,null,null,null,null,null,null,null,null,0,null,0,0,{"$error":"#N/A"},{"$f":"Title!$Q$21-D765","v":0},{"$error":"#N/A"},{"$error":"#N/A"},{"$error":"#N/A"},0,{"$error":"#DIV/0!"},{"$error":"#N/A"},{"$error":"#N/A"},0,{"$error":"#DIV/0!"},{"$error":"#N/A"},{"$error":"#N/A"},{"$error":"#N/A"},{"$error":"#N/A"},0,{"$error":"#DIV/0!"},{"$error":"#N/A"},{"$error":"#N/A"},0,{"$error":"#DIV/0!"},0,{"$error":"#N/A"},0]
[null,null,null,null,null,null,null,null,null,0,null,0,0,{"$error":"#N/A"},{"$f":"Title!$Q$21-D766","v":0},{"$error":"#N/A"},{"$error":"#N/A"},{"$error":"#N/A"},0,{"$error":"#DIV/0!"},{"$error":"#N/A"},{"$error":"#N/A"},0,{"$error":"#DIV/0!"},{"$error":"#N/A"},{"$error":"#N/A"},{"$error":"#N/A"},{"$error":"#N/A"},0,{"$error":"#DIV/0!"},{"$error":"#N/A"},{"$error":"#N/A"},0,{"$error":"#DIV/0!"},0,{"$error":"#N/A"},0]
[null,null,null,null,null,null,null,null,null,0,null,0,0,{"$error":"#N/A"},{"$f":"Title!$Q$21-D767","v":0},{"$error":"#N/A"},{"$error":"#N/A"},{"$error":"#N/A"},0,{"$error":"#DIV/0!"},{"$error":"#N/A"},{"$error":"#N/A"},0,{"$error":"#DIV/0!"},{"$error":"#N/A"},{"$error":"#N/A"},{"$error":"#N/A"},{"$error":"#N/A"},0,{"$error":"#DIV/0!"},{"$error":"#N/A"},{"$error":"#N/A"},0,{"$error":"#DIV/0!"},0,{"$error":"#N/A"},0]
[null,null,null,null,null,null,null,null,null,0,null,0,0,{"$error":"#N/A"},{"$f":"Title!$Q$21-D768","v":0},{"$error":"#N/A"},{"$error":"#N/A"},{"$error":"#N/A"},0,{"$error":"#DIV/0!"},{"$error":"#N/A"},{"$error":"#N/A"},0,{"$error":"#DIV/0!"},{"$error":"#N/A"},{"$error":"#N/A"},{"$error":"#N/A"},{"$error":"#N/A"},0,{"$error":"#DIV/0!"},{"$error":"#N/A"},{"$error":"#N/A"},0,{"$error":"#DIV/0!"},0,{"$error":"#N/A"},0]
[null,null,null,null,null,null,null,null,null,0,null,0,0,{"$error":"#N/A"},{"$f":"Title!$Q$21-D769","v":0},{"$error":"#N/A"},{"$error":"#N/A"},{"$error":"#N/A"},0,{"$error":"#DIV/0!"},{"$error":"#N/A"},{"$error":"#N/A"},0,{"$error":"#DIV/0!"},{"$error":"#N/A"},{"$error":"#N/A"},{"$error":"#N/A"},{"$error":"#N/A"},0,{"$error":"#DIV/0!"},{"$error":"#N/A"},{"$error":"#N/A"},0,{"$error":"#DIV/0!"},0,{"$error":"#N/A"},0]
[null,null,null,null,null,null,null,null,null,0,null,0,0,{"$error":"#N/A"},{"$f":"Title!$Q$21-D770","v":0},{"$error":"#N/A"},{"$error":"#N/A"},{"$error":"#N/A"},0,{"$error":"#DIV/0!"},{"$error":"#N/A"},{"$error":"#N/A"},0,{"$error":"#DIV/0!"},{"$error":"#N/A"},{"$error":"#N/A"},{"$error":"#N/A"},{"$error":"#N/A"},0,{"$error":"#DIV/0!"},{"$error":"#N/A"},{"$error":"#N/A"},0,{"$error":"#DIV/0!"},0,{"$error":"#N/A"},0]
[null,null,null,null,null,null,null,null,null,0,null,0,0,{"$error":"#N/A"},{"$f":"Title!$Q$21-D771","v":0},{"$error":"#N/A"},{"$error":"#N/A"},{"$error":"#N/A"},0,{"$error":"#DIV/0!"},{"$error":"#N/A"},{"$error":"#N/A"},0,{"$error":"#DIV/0!"},{"$error":"#N/A"},{"$error":"#N/A"},{"$error":"#N/A"},{"$error":"#N/A"},0,{"$error":"#DIV/0!"},{"$error":"#N/A"},{"$error":"#N/A"},0,{"$error":"#DIV/0!"},0,{"$error":"#N/A"},0]
[null,null,null,null,null,null,null,null,null,0,null,0,0,{"$error":"#N/A"},{"$f":"Title!$Q$21-D772","v":0},{"$error":"#N/A"},{"$error":"#N/A"},{"$error":"#N/A"},0,{"$error":"#DIV/0!"},{"$error":"#N/A"},{"$error":"#N/A"},0,{"$error":"#DIV/0!"},{"$error":"#N/A"},{"$error":"#N/A"},{"$error":"#N/A"},{"$error":"#N/A"},0,{"$error":"#DIV/0!"},{"$error":"#N/A"},{"$error":"#N/A"},0,{"$error":"#DIV/0!"},0,{"$error":"#N/A"},0]
[null,null,null,null,null,null,null,null,null,0,null,0,0,{"$error":"#N/A"},{"$f":"Title!$Q$21-D773","v":0},{"$error":"#N/A"},{"$error":"#N/A"},{"$error":"#N/A"},0,{"$error":"#DIV/0!"},{"$error":"#N/A"},{"$error":"#N/A"},0,{"$error":"#DIV/0!"},{"$error":"#N/A"},{"$error":"#N/A"},{"$error":"#N/A"},{"$error":"#N/A"},0,{"$error":"#DIV/0!"},{"$error":"#N/A"},{"$error":"#N/A"},0,{"$error":"#DIV/0!"},0,{"$error":"#N/A"},0]
[null,null,null,null,null,null,null,null,null,0,null,0,0,{"$error":"#N/A"},{"$f":"Title!$Q$21-D774","v":0},{"$error":"#N/A"},{"$error":"#N/A"},{"$error":"#N/A"},0,{"$error":"#DIV/0!"},{"$error":"#N/A"},{"$error":"#N/A"},0,{"$error":"#DIV/0!"},{"$error":"#N/A"},{"$error":"#N/A"},{"$error":"#N/A"},{"$error":"#N/A"},0,{"$error":"#DIV/0!"},{"$error":"#N/A"},{"$error":"#N/A"},0,{"$error":"#DIV/0!"},0,{"$error":"#N/A"},0]
[null,null,null,null,null,null,null,null,null,0,null,0,0,{"$f":"VLOOKUP(C775,$C$669:$L$704,4,FALSE)","v":{"$error":"#N/A"}},{"$f":"Title!$Q$21-D775","v":0},{"$error":"#N/A"},{"$error":"#N/A"},{"$error":"#N/A"},0,{"$error":"#DIV/0!"},{"$error":"#N/A"},{"$error":"#N/A"},0,{"$error":"#DIV/0!"},{"$error":"#N/A"},{"$error":"#N/A"},{"$error":"#N/A"},{"$error":"#N/A"},0,{"$error":"#DIV/0!"},{"$error":"#N/A"},{"$error":"#N/A"},0,{"$error":"#DIV/0!"},0,{"$error":"#N/A"},0]
[null,null,null,null,null,null,null,null,null,0,null,0,0,{"$error":"#N/A"},{"$f":"Title!$Q$21-D776","v":0},{"$error":"#N/A"},{"$error":"#N/A"},{"$error":"#N/A"},0,{"$error":"#DIV/0!"},{"$error":"#N/A"},{"$error":"#N/A"},0,{"$error":"#DIV/0!"},{"$error":"#N/A"},{"$error":"#N/A"},{"$error":"#N/A"},{"$error":"#N/A"},0,{"$error":"#DIV/0!"},{"$error":"#N/A"},{"$error":"#N/A"},0,{"$error":"#DIV/0!"},0,{"$error":"#N/A"},0]
[null,null,null,null,null,null,null,null,null,0,null,0,0,{"$error":"#N/A"},{"$f":"Title!$Q$21-D777","v":0},{"$error":"#N/A"},{"$error":"#N/A"},{"$error":"#N/A"},0,{"$error":"#DIV/0!"},{"$error":"#N/A"},{"$error":"#N/A"},0,{"$error":"#DIV/0!"},{"$error":"#N/A"},{"$error":"#N/A"},{"$error":"#N/A"},{"$error":"#N/A"},0,{"$error":"#DIV/0!"},{"$error":"#N/A"},{"$error":"#N/A"},0,{"$error":"#DIV/0!"},0,{"$error":"#N/A"},0]
[null,null,null,null,null,null,null,null,null,0,null,0,0,{"$error":"#N/A"},{"$f":"Title!$Q$21-D778","v":0},{"$error":"#N/A"},{"$error":"#N/A"},{"$error":"#N/A"},0,{"$error":"#DIV/0!"},{"$error":"#N/A"},{"$error":"#N/A"},0,{"$error":"#DIV/0!"},{"$error":"#N/A"},{"$error":"#N/A"},{"$error":"#N/A"},{"$error":"#N/A"},0,{"$error":"#DIV/0!"},{"$error":"#N/A"},{"$error":"#N/A"},0,{"$error":"#DIV/0!"},0,{"$error":"#N/A"},0]
[null,null,null,null,null,null,null,null,null,0,null,0,0,{"$error":"#N/A"},{"$f":"Title!$Q$21-D779","v":0},{"$error":"#N/A"},{"$error":"#N/A"},{"$error":"#N/A"},0,{"$error":"#DIV/0!"},{"$error":"#N/A"},{"$error":"#N/A"},0,{"$error":"#DIV/0!"},{"$error":"#N/A"},{"$error":"#N/A"},{"$error":"#N/A"},{"$error":"#N/A"},0,{"$error":"#DIV/0!"},{"$error":"#N/A"},{"$error":"#N/A"},0,{"$error":"#DIV/0!"},0,{"$error":"#N/A"},0]
[null,null,null,null,null,null,null,null,null,0,null,0,0,{"$error":"#N/A"},{"$f":"Title!$Q$21-D780","v":0},{"$error":"#N/A"},{"$error":"#N/A"},{"$error":"#N/A"},0,{"$error":"#DIV/0!"},{"$error":"#N/A"},{"$error":"#N/A"},0,{"$error":"#DIV/0!"},{"$error":"#N/A"},{"$error":"#N/A"},{"$error":"#N/A"},{"$error":"#N/A"},0,{"$error":"#DIV/0!"},{"$error":"#N/A"},{"$error":"#N/A"},0,{"$error":"#DIV/0!"},0,{"$error":"#N/A"},0]
[null,null,null,null,null,null,null,null,null,0,null,0,0,{"$error":"#N/A"},{"$f":"Title!$Q$21-D781","v":0},{"$error":"#N/A"},{"$error":"#N/A"},{"$error":"#N/A"},0,{"$error":"#DIV/0!"},{"$error":"#N/A"},{"$error":"#N/A"},0,{"$error":"#DIV/0!"},{"$error":"#N/A"},{"$error":"#N/A"},{"$error":"#N/A"},{"$error":"#N/A"},0,{"$error":"#DIV/0!"},{"$error":"#N/A"},{"$error":"#N/A"},0,{"$error":"#DIV/0!"},0,{"$error":"#N/A"},0]
[null,null,null,null,null,null,null,null,null,0,null,0,0,{"$error":"#N/A"},{"$f":"Title!$Q$21-D782","v":0},{"$error":"#N/A"},{"$error":"#N/A"},{"$error":"#N/A"},0,{"$error":"#DIV/0!"},{"$error":"#N/A"},{"$error":"#N/A"},0,{"$error":"#DIV/0!"},{"$error":"#N/A"},{"$error":"#N/A"},{"$error":"#N/A"},{"$error":"#N/A"},0,{"$error":"#DIV/0!"},{"$error":"#N/A"},{"$error":"#N/A"},0,{"$error":"#DIV/0!"},0,{"$error":"#N/A"},0]
[null,null,null,null,null,null,null,null,null,0,null,0,0,{"$error":"#N/A"},{"$f":"Title!$Q$21-D783","v":0},{"$error":"#N/A"},{"$error":"#N/A"},{"$error":"#N/A"},0,{"$error":"#DIV/0!"},{"$error":"#N/A"},{"$error":"#N/A"},0,{"$error":"#DIV/0!"},{"$error":"#N/A"},{"$error":"#N/A"},{"$error":"#N/A"},{"$error":"#N/A"},0,{"$error":"#DIV/0!"},{"$error":"#N/A"},{"$error":"#N/A"},0,{"$error":"#DIV/0!"},0,{"$error":"#N/A"},0]
[null,null,null,null,null,null,null,null,null,0,null,0,0,{"$error":"#N/A"},{"$f":"Title!$Q$21-D784","v":0},{"$error":"#N/A"},{"$error":"#N/A"},{"$error":"#N/A"},0,{"$error":"#DIV/0!"},{"$error":"#N/A"},{"$error":"#N/A"},0,{"$error":"#DIV/0!"},{"$error":"#N/A"},{"$error":"#N/A"},{"$error":"#N/A"},{"$error":"#N/A"},0,{"$error":"#DIV/0!"},{"$error":"#N/A"},{"$error":"#N/A"},0,{"$error":"#DIV/0!"},0,{"$error":"#N/A"},0]
[null,null,null,null,null,null,null,null,null,0,null,0,0,{"$error":"#N/A"},{"$f":"Title!$Q$21-D785","v":0},{"$error":"#N/A"},{"$error":"#N/A"},{"$error":"#N/A"},0,{"$error":"#DIV/0!"},{"$error":"#N/A"},{"$error":"#N/A"},0,{"$error":"#DIV/0!"},{"$error":"#N/A"},{"$error":"#N/A"},{"$error":"#N/A"},{"$error":"#N/A"},0,{"$error":"#DIV/0!"},{"$error":"#N/A"},{"$error":"#N/A"},0,{"$error":"#DIV/0!"},0,{"$error":"#N/A"},0]
[null,null,null,null,null,null,null,null,null,0,null,0,0,{"$error":"#N/A"},{"$f":"Title!$Q$21-D786","v":0},{"$error":"#N/A"},{"$error":"#N/A"},{"$error":"#N/A"},0,{"$error":"#DIV/0!"},{"$error":"#N/A"},{"$error":"#N/A"},0,{"$error":"#DIV/0!"},{"$error":"#N/A"},{"$error":"#N/A"},{"$error":"#N/A"},{"$error":"#N/A"},0,{"$error":"#DIV/0!"},{"$error":"#N/A"},{"$error":"#N/A"},0,{"$error":"#DIV/0!"},0,{"$error":"#N/A"},0]
[null,null,null,null,null,null,null,null,null,0,null,0,0,{"$error":"#N/A"},{"$f":"Title!$Q$21-D787","v":0},{"$error":"#N/A"},{"$error":"#N/A"},{"$error":"#N/A"},0,{"$error":"#DIV/0!"},{"$error":"#N/A"},{"$error":"#N/A"},0,{"$error":"#DIV/0!"},{"$error":"#N/A"},{"$error":"#N/A"},{"$error":"#N/A"},{"$error":"#N/A"},0,{"$error":"#DIV/0!"},{"$error":"#N/A"},{"$error":"#N/A"},0,{"$error":"#DIV/0!"},0,{"$error":"#N/A"},0]
[null,null,null,null,null,null,null,null,null,0,null,0,0,{"$error":"#N/A"},{"$f":"Title!$Q$21-D788","v":0},{"$error":"#N/A"},{"$error":"#N/A"},{"$error":"#N/A"},0,{"$error":"#DIV/0!"},{"$error":"#N/A"},{"$error":"#N/A"},0,{"$error":"#DIV/0!"},{"$error":"#N/A"},{"$error":"#N/A"},{"$error":"#N/A"},{"$error":"#N/A"},0,{"$error":"#DIV/0!"},{"$error":"#N/A"},{"$error":"#N/A"},0,{"$error":"#DIV/0!"},0,{"$error":"#N/A"},0]
[null,null,null,null,null,null,null,null,null,0,null,0,0,{"$error":"#N/A"},{"$f":"Title!$Q$21-D789","v":0},{"$error":"#N/A"},{"$error":"#N/A"},{"$error":"#N/A"},0,{"$error":"#DIV/0!"},{"$error":"#N/A"},{"$error":"#N/A"},0,{"$error":"#DIV/0!"},{"$error":"#N/A"},{"$error":"#N/A"},{"$error":"#N/A"},{"$error":"#N/A"},0,{"$error":"#DIV/0!"},{"$error":"#N/A"},{"$error":"#N/A"},0,{"$error":"#DIV/0!"},0,{"$error":"#N/A"},0]
[null,null,null,null,null,null,null,null,null,0,null,0,0,{"$error":"#N/A"},{"$f":"Title!$Q$21-D790","v":0},{"$error":"#N/A"},{"$error":"#N/A"},{"$error":"#N/A"},0,{"$error":"#DIV/0!"},{"$error":"#N/A"},{"$error":"#N/A"},0,{"$error":"#DIV/0!"},{"$error":"#N/A"},{"$error":"#N/A"},{"$error":"#N/A"},{"$error":"#N/A"},0,{"$error":"#DIV/0!"},{"$error":"#N/A"},{"$error":"#N/A"},0,{"$error":"#DIV/0!"},0,{"$error":"#N/A"},0]
[null,null,null,null,null,null,null,null,null,0,null,0,0,{"$error":"#N/A"},{"$f":"Title!$Q$21-D791","v":0},{"$error":"#N/A"},{"$error":"#N/A"},{"$error":"#N/A"},0,{"$error":"#DIV/0!"},{"$error":"#N/A"},{"$error":"#N/A"},0,{"$error":"#DIV/0!"},{"$error":"#N/A"},{"$error":"#N/A"},{"$error":"#N/A"},{"$error":"#N/A"},0,{"$error":"#DIV/0!"},{"$error":"#N/A"},{"$error":"#N/A"},0,{"$error":"#DIV/0!"},0,{"$error":"#N/A"},0]
[null,null,null,null,null,null,null,null,null,0,null,0,0,{"$error":"#N/A"},{"$f":"Title!$Q$21-D792","v":0},{"$error":"#N/A"},{"$error":"#N/A"},{"$error":"#N/A"},0,{"$error":"#DIV/0!"},{"$error":"#N/A"},{"$error":"#N/A"},0,{"$error":"#DIV/0!"},{"$error":"#N/A"},{"$error":"#N/A"},{"$error":"#N/A"},{"$error":"#N/A"},0,{"$error":"#DIV/0!"},{"$error":"#N/A"},{"$error":"#N/A"},0,{"$error":"#DIV/0!"},0,{"$error":"#N/A"},0]
[null,null,null,null,null,null,null,null,null,0,null,0,0,{"$error":"#N/A"},{"$f":"Title!$Q$21-D793","v":0},{"$error":"#N/A"},{"$error":"#N/A"},{"$error":"#N/A"},0,{"$error":"#DIV/0!"},{"$error":"#N/A"},{"$error":"#N/A"},0,{"$error":"#DIV/0!"},{"$error":"#N/A"},{"$error":"#N/A"},{"$error":"#N/A"},{"$error":"#N/A"},0,{"$error":"#DIV/0!"},{"$error":"#N/A"},{"$error":"#N/A"},0,{"$error":"#DIV/0!"},0,{"$error":"#N/A"},0]
[null,null,null,null,null,null,null,null,null,0,null,0,0,{"$error":"#N/A"},{"$f":"Title!$Q$21-D794","v":0},{"$error":"#N/A"},{"$error":"#N/A"},{"$error":"#N/A"},0,{"$error":"#DIV/0!"},{"$error":"#N/A"},{"$error":"#N/A"},0,{"$error":"#DIV/0!"},{"$error":"#N/A"},{"$error":"#N/A"},{"$error":"#N/A"},{"$error":"#N/A"},0,{"$error":"#DIV/0!"},{"$error":"#N/A"},{"$error":"#N/A"},0,{"$error":"#DIV/0!"},0,{"$error":"#N/A"},0]
[null,null,null,null,null,null,null,null,null,0,null,0,0,{"$error":"#N/A"},{"$f":"Title!$Q$21-D795","v":0},{"$error":"#N/A"},{"$error":"#N/A"},{"$error":"#N/A"},0,{"$error":"#DIV/0!"},{"$error":"#N/A"},{"$error":"#N/A"},0,{"$error":"#DIV/0!"},{"$error":"#N/A"},{"$error":"#N/A"},{"$error":"#N/A"},{"$error":"#N/A"},0,{"$error":"#DIV/0!"},{"$error":"#N/A"},{"$error":"#N/A"},0,{"$error":"#DIV/0!"},0,{"$error":"#N/A"},0]
[null,null,null,null,null,null,null,null,null,0,null,0,0,{"$error":"#N/A"},{"$f":"Title!$Q$21-D796","v":0},{"$error":"#N/A"},{"$error":"#N/A"},{"$error":"#N/A"},0,{"$error":"#DIV/0!"},{"$error":"#N/A"},{"$error":"#N/A"},0,{"$error":"#DIV/0!"},{"$error":"#N/A"},{"$error":"#N/A"},{"$error":"#N/A"},{"$error":"#N/A"},0,{"$error":"#DIV/0!"},{"$error":"#N/A"},{"$error":"#N/A"},0,{"$error":"#DIV/0!"},0,{"$error":"#N/A"},0]
[null,null,null,null,null,null,null,null,null,0,null,0,0,{"$error":"#N/A"},{"$f":"Title!$Q$21-D797","v":0},{"$error":"#N/A"},{"$error":"#N/A"},{"$error":"#N/A"},0,{"$error":"#DIV/0!"},{"$error":"#N/A"},{"$error":"#N/A"},0,{"$error":"#DIV/0!"},{"$error":"#N/A"},{"$error":"#N/A"},{"$error":"#N/A"},{"$error":"#N/A"},0,{"$error":"#DIV/0!"},{"$error":"#N/A"},{"$error":"#N/A"},0,{"$error":"#DIV/0!"},0,{"$error":"#N/A"},0]
[null,null,null,null,null,null,null,null,null,0,null,0,0,{"$error":"#N/A"},{"$f":"Title!$Q$21-D798","v":0},{"$error":"#N/A"},{"$error":"#N/A"},{"$error":"#N/A"},0,{"$error":"#DIV/0!"},{"$error":"#N/A"},{"$error":"#N/A"},0,{"$error":"#DIV/0!"},{"$error":"#N/A"},{"$error":"#N/A"},{"$error":"#N/A"},{"$error":"#N/A"},0,{"$error":"#DIV/0!"},{"$error":"#N/A"},{"$error":"#N/A"},0,{"$error":"#DIV/0!"},0,{"$error":"#N/A"},0]
[null,null,null,null,null,null,null,null,null,0,null,0,0,{"$error":"#N/A"},{"$f":"Title!$Q$21-D799","v":0},{"$error":"#N/A"},{"$error":"#N/A"},{"$error":"#N/A"},0,{"$error":"#DIV/0!"},{"$error":"#N/A"},{"$error":"#N/A"},0,{"$error":"#DIV/0!"},{"$error":"#N/A"},{"$error":"#N/A"},{"$error":"#N/A"},{"$error":"#N/A"},0,{"$error":"#DIV/0!"},{"$error":"#N/A"},{"$error":"#N/A"},0,{"$error":"#DIV/0!"},0,{"$error":"#N/A"},0]
[null,null,null,null,null,null,null,null,null,0,null,0,0,{"$error":"#N/A"},{"$f":"Title!$Q$21-D800","v":0},{"$error":"#N/A"},{"$error":"#N/A"},{"$error":"#N/A"},0,{"$error":"#DIV/0!"},{"$error":"#N/A"},{"$error":"#N/A"},0,{"$error":"#DIV/0!"},{"$error":"#N/A"},{"$error":"#N/A"},{"$error":"#N/A"},{"$error":"#N/A"},0,{"$error":"#DIV/0!"},{"$error":"#N/A"},{"$error":"#N/A"},0,{"$error":"#DIV/0!"},0,{"$error":"#N/A"},0]
[null,null,null,null,null,null,null,null,null,0,null,0,0,{"$error":"#N/A"},{"$f":"Title!$Q$21-D801","v":0},{"$error":"#N/A"},{"$error":"#N/A"},{"$error":"#N/A"},0,{"$error":"#DIV/0!"},{"$error":"#N/A"},{"$error":"#N/A"},0,{"$error":"#DIV/0!"},{"$error":"#N/A"},{"$error":"#N/A"},{"$error":"#N/A"},{"$error":"#N/A"},0,{"$error":"#DIV/0!"},{"$error":"#N/A"},{"$error":"#N/A"},0,{"$error":"#DIV/0!"},0,{"$error":"#N/A"},0]
[null,null,null,null,null,null,null,null,null,0,null,0,0,{"$error":"#N/A"},{"$f":"Title!$Q$21-D802","v":0},{"$error":"#N/A"},{"$error":"#N/A"},{"$error":"#N/A"},0,{"$error":"#DIV/0!"},{"$error":"#N/A"},{"$error":"#N/A"},0,{"$error":"#DIV/0!"},{"$error":"#N/A"},{"$error":"#N/A"},{"$error":"#N/A"},{"$error":"#N/A"},0,{"$error":"#DIV/0!"},{"$error":"#N/A"},{"$error":"#N/A"},0,{"$error":"#DIV/0!"},0,{"$error":"#N/A"},0]
[null,null,null,null,null,null,null,null,null,0,null,0,0,{"$error":"#N/A"},{"$f":"Title!$Q$21-D803","v":0},{"$error":"#N/A"},{"$error":"#N/A"},{"$error":"#N/A"},0,{"$error":"#DIV/0!"},{"$error":"#N/A"},{"$error":"#N/A"},0,{"$error":"#DIV/0!"},{"$error":"#N/A"},{"$error":"#N/A"},{"$error":"#N/A"},{"$error":"#N/A"},0,{"$error":"#DIV/0!"},{"$error":"#N/A"},{"$error":"#N/A"},0,{"$error":"#DIV/0!"},0,{"$error":"#N/A"},0]
[null,null,null,null,null,null,null,null,null,0,null,0,0,{"$error":"#N/A"},{"$f":"Title!$Q$21-D804","v":0},{"$error":"#N/A"},{"$error":"#N/A"},{"$error":"#N/A"},0,{"$error":"#DIV/0!"},{"$error":"#N/A"},{"$error":"#N/A"},0,{"$error":"#DIV/0!"},{"$error":"#N/A"},{"$error":"#N/A"},{"$error":"#N/A"},{"$error":"#N/A"},0,{"$error":"#DIV/0!"},{"$error":"#N/A"},{"$error":"#N/A"},0,{"$error":"#DIV/0!"},0,{"$error":"#N/A"},0]
[null,null,null,null,null,null,null,null,null,0,null,0,0,{"$error":"#N/A"},{"$f":"Title!$Q$21-D805","v":0},{"$error":"#N/A"},{"$error":"#N/A"},{"$error":"#N/A"},0,{"$error":"#DIV/0!"},{"$error":"#N/A"},{"$error":"#N/A"},0,{"$error":"#DIV/0!"},{"$error":"#N/A"},{"$error":"#N/A"},{"$error":"#N/A"},{"$error":"#N/A"},0,{"$error":"#DIV/0!"},{"$error":"#N/A"},{"$error":"#N/A"},0,{"$error":"#DIV/0!"},0,{"$error":"#N/A"},0]
[null,null,null,null,null,null,null,null,null,{"$f":"I806-H806","v":0},null,{"$f":"G806*(1-K806)","v":0},{"$f":"E806*(1-K806)","v":0},{"$error":"#N/A"},{"$f":"Title!$Q$21-D806","v":0},{"$f":"IF(N806*1<O806,\"past due\",N806*1-O806)","v":{"$error":"#N/A"}},{"$f":"(E806*((1+J806)^(-P806)))","v":{"$error":"#N/A"}},{"$f":"IF(J806=0%,(Q806/P806),((Q806*J806)*((1+J806)^(P806)))/(((1+J806)^(P806))-1))","v":{"$error":"#N/A"}},{"$f":"(E806/((1+J806)^(F806)))","v":0},{"$f":"IF(J806=0%,(S806/F806),((S806*J806)*((1+J806)^(F806)))/(((1+J806)^(F806))-1))","v":{"$error":"#DIV/0!"}},{"$f":"(G806/((1+J806)^(P806)))","v":{"$error":"#N/A"}},{"$f":"IF(J806=0%,(U806/P806),(U806*((J806*((1+J806)^(P806)))/(((1+J806)^(P806))-1))))","v":{"$error":"#N/A"}},{"$f":"G806/((1+J806)^(F806))","v":0},{"$f":"IF(J806=0%,(W806/F806),(W806*((J806*((1+J806)^(F806)))/(((1+J806)^(F806))-1))))","v":{"$error":"#DIV/0!"}},{"$f":"IF(AND(G806>0,F806>0),X806,IF(G806>0,V806,IF(F806>0,T806,R806)))","v":{"$error":"#N/A"}},{"$f":"IF(AND(G806>0,F806>0),AH806,IF(AND(F806=0,G806>0),AF806,IF(AND(G806=0,F806>0),AD806,AB806)))","v":{"$error":"#N/A"}},{"$f":"M806*((1+J806)^(-P806))","v":{"$error":"#N/A"}},{"$f":"IF(J806=0%,(AA806/P806),((AA806*J806)*((1+J806)^(P806)))/(((1+J806)^(P806))-1))","v":{"$error":"#N/A"}},{"$f":"M806/((1+J806)^(F806))","v":0},{"$f":"IF(J806=0%,(AC806/F806),((AC806*J806)*((1+J806)^(F806)))/(((1+J806)^(F806))-1))","v":{"$error":"#DIV/0!"}},{"$f":"L806/((1+J806)^(P806))","v":{"$error":"#N/A"}},{"$f":"IF(J806=0%,(AE806/P806),(AE806*((J806*((1+J806)^(P806)))/(((1+J806)^(P806))-1))))","v":{"$error":"#N/A"}},{"$f":"L806/((1+J806)^(F806))","v":0},{"$f":"IF(J806=0%,(AG806/F806),(AG806*((J806*((1+J806)^(F806)))/(((1+J806)^(F806))-1))))","v":{"$error":"#DIV/0!"}},{"$f":"IF(G806>0,L806,IF(G806=0,M806))","v":0},{"$f":"Y806-Z806","v":{"$error":"#N/A"}},{"$f":"IF(G806=0,E806,IF(G806>0,G806))","v":0}]
[null,null,null,null,null,null,null,null,null,0,null,0,0,{"$f":"VLOOKUP(C807,$C$669:$L$704,4,FALSE)","v":{"$error":"#N/A"}},{"$f":"Title!$Q$21-D807","v":0},{"$error":"#N/A"},{"$error":"#N/A"},{"$error":"#N/A"},0,{"$error":"#DIV/0!"},{"$error":"#N/A"},{"$error":"#N/A"},0,{"$error":"#DIV/0!"},{"$error":"#N/A"},{"$error":"#N/A"},{"$error":"#N/A"},{"$error":"#N/A"},0,{"$error":"#DIV/0!"},{"$error":"#N/A"},{"$error":"#N/A"},0,{"$error":"#DIV/0!"},0,{"$error":"#N/A"},0]
[null,null,null,null,null,null,null,null,null,0,null,0,0,{"$error":"#N/A"},{"$f":"Title!$Q$21-D808","v":0},{"$error":"#N/A"},{"$error":"#N/A"},{"$error":"#N/A"},0,{"$error":"#DIV/0!"},{"$error":"#N/A"},{"$error":"#N/A"},0,{"$error":"#DIV/0!"},{"$error":"#N/A"},{"$error":"#N/A"},{"$error":"#N/A"},{"$error":"#N/A"},0,{"$error":"#DIV/0!"},{"$error":"#N/A"},{"$error":"#N/A"},0,{"$error":"#DIV/0!"},0,{"$error":"#N/A"},0]
[null,null,null,null,null,null,null,null,null,0,null,0,0,{"$error":"#N/A"},{"$f":"Title!$Q$21-D809","v":0},{"$error":"#N/A"},{"$error":"#N/A"},{"$error":"#N/A"},0,{"$error":"#DIV/0!"},{"$error":"#N/A"},{"$error":"#N/A"},0,{"$error":"#DIV/0!"},{"$error":"#N/A"},{"$error":"#N/A"},{"$error":"#N/A"},{"$error":"#N/A"},0,{"$error":"#DIV/0!"},{"$error":"#N/A"},{"$error":"#N/A"},0,{"$error":"#DIV/0!"},0,{"$error":"#N/A"},0]
[null,null,null,null,null,null,null,null,null,0,null,0,0,{"$error":"#N/A"},{"$f":"Title!$Q$21-D810","v":0},{"$error":"#N/A"},{"$error":"#N/A"},{"$error":"#N/A"},0,{"$error":"#DIV/0!"},{"$error":"#N/A"},{"$error":"#N/A"},0,{"$error":"#DIV/0!"},{"$error":"#N/A"},{"$error":"#N/A"},{"$error":"#N/A"},{"$error":"#N/A"},0,{"$error":"#DIV/0!"},{"$error":"#N/A"},{"$error":"#N/A"},0,{"$error":"#DIV/0!"},0,{"$error":"#N/A"},0]
[null,null,null,null,null,null,null,null,null,0,null,0,0,{"$error":"#N/A"},{"$f":"Title!$Q$21-D811","v":0},{"$error":"#N/A"},{"$error":"#N/A"},{"$error":"#N/A"},0,{"$error":"#DIV/0!"},{"$error":"#N/A"},{"$error":"#N/A"},0,{"$error":"#DIV/0!"},{"$error":"#N/A"},{"$error":"#N/A"},{"$error":"#N/A"},{"$error":"#N/A"},0,{"$error":"#DIV/0!"},{"$error":"#N/A"},{"$error":"#N/A"},0,{"$error":"#DIV/0!"},0,{"$error":"#N/A"},0]
[null,null,null,null,null,null,null,null,null,0,null,0,0,{"$error":"#N/A"},{"$f":"Title!$Q$21-D812","v":0},{"$error":"#N/A"},{"$error":"#N/A"},{"$error":"#N/A"},0,{"$error":"#DIV/0!"},{"$error":"#N/A"},{"$error":"#N/A"},0,{"$error":"#DIV/0!"},{"$error":"#N/A"},{"$error":"#N/A"},{"$error":"#N/A"},{"$error":"#N/A"},0,{"$error":"#DIV/0!"},{"$error":"#N/A"},{"$error":"#N/A"},0,{"$error":"#DIV/0!"},0,{"$error":"#N/A"},0]
[null,null,null,null,null,null,null,null,null,0,null,0,0,{"$error":"#N/A"},{"$f":"Title!$Q$21-D813","v":0},{"$error":"#N/A"},{"$error":"#N/A"},{"$error":"#N/A"},0,{"$error":"#DIV/0!"},{"$error":"#N/A"},{"$error":"#N/A"},0,{"$error":"#DIV/0!"},{"$error":"#N/A"},{"$error":"#N/A"},{"$error":"#N/A"},{"$error":"#N/A"},0,{"$error":"#DIV/0!"},{"$error":"#N/A"},{"$error":"#N/A"},0,{"$error":"#DIV/0!"},0,{"$error":"#N/A"},0]
[null,null,null,null,null,null,null,null,null,0,null,0,0,{"$error":"#N/A"},{"$f":"Title!$Q$21-D814","v":0},{"$error":"#N/A"},{"$error":"#N/A"},{"$error":"#N/A"},0,{"$error":"#DIV/0!"},{"$error":"#N/A"},{"$error":"#N/A"},0,{"$error":"#DIV/0!"},{"$error":"#N/A"},{"$error":"#N/A"},{"$error":"#N/A"},{"$error":"#N/A"},0,{"$error":"#DIV/0!"},{"$error":"#N/A"},{"$error":"#N/A"},0,{"$error":"#DIV/0!"},0,{"$error":"#N/A"},0]
[null,null,null,null,null,null,null,null,null,0,null,0,0,{"$error":"#N/A"},{"$f":"Title!$Q$21-D815","v":0},{"$error":"#N/A"},{"$error":"#N/A"},{"$error":"#N/A"},0,{"$error":"#DIV/0!"},{"$error":"#N/A"},{"$error":"#N/A"},0,{"$error":"#DIV/0!"},{"$error":"#N/A"},{"$error":"#N/A"},{"$error":"#N/A"},{"$error":"#N/A"},0,{"$error":"#DIV/0!"},{"$error":"#N/A"},{"$error":"#N/A"},0,{"$error":"#DIV/0!"},0,{"$error":"#N/A"},0]
[null,null,null,null,null,null,null,null,null,0,null,0,0,{"$error":"#N/A"},{"$f":"Title!$Q$21-D816","v":0},{"$error":"#N/A"},{"$error":"#N/A"},{"$error":"#N/A"},0,{"$error":"#DIV/0!"},{"$error":"#N/A"},{"$error":"#N/A"},0,{"$error":"#DIV/0!"},{"$error":"#N/A"},{"$error":"#N/A"},{"$error":"#N/A"},{"$error":"#N/A"},0,{"$error":"#DIV/0!"},{"$error":"#N/A"},{"$error":"#N/A"},0,{"$error":"#DIV/0!"},0,{"$error":"#N/A"},0]
[null,null,null,null,null,null,null,null,null,0,null,0,0,{"$error":"#N/A"},{"$f":"Title!$Q$21-D817","v":0},{"$error":"#N/A"},{"$error":"#N/A"},{"$error":"#N/A"},0,{"$error":"#DIV/0!"},{"$error":"#N/A"},{"$error":"#N/A"},0,{"$error":"#DIV/0!"},{"$error":"#N/A"},{"$error":"#N/A"},{"$error":"#N/A"},{"$error":"#N/A"},0,{"$error":"#DIV/0!"},{"$error":"#N/A"},{"$error":"#N/A"},0,{"$error":"#DIV/0!"},0,{"$error":"#N/A"},0]
[null,null,null,null,null,null,null,null,null,0,null,0,0,{"$error":"#N/A"},{"$f":"Title!$Q$21-D818","v":0},{"$error":"#N/A"},{"$error":"#N/A"},{"$error":"#N/A"},0,{"$error":"#DIV/0!"},{"$error":"#N/A"},{"$error":"#N/A"},0,{"$error":"#DIV/0!"},{"$error":"#N/A"},{"$error":"#N/A"},{"$error":"#N/A"},{"$error":"#N/A"},0,{"$error":"#DIV/0!"},{"$error":"#N/A"},{"$error":"#N/A"},0,{"$error":"#DIV/0!"},0,{"$error":"#N/A"},0]
[null,null,null,null,null,null,null,null,null,0,null,0,0,{"$error":"#N/A"},{"$f":"Title!$Q$21-D819","v":0},{"$error":"#N/A"},{"$error":"#N/A"},{"$error":"#N/A"},0,{"$error":"#DIV/0!"},{"$error":"#N/A"},{"$error":"#N/A"},0,{"$error":"#DIV/0!"},{"$error":"#N/A"},{"$error":"#N/A"},{"$error":"#N/A"},{"$error":"#N/A"},0,{"$error":"#DIV/0!"},{"$error":"#N/A"},{"$error":"#N/A"},0,{"$error":"#DIV/0!"},0,{"$error":"#N/A"},0]
[null,null,null,null,null,null,null,null,null,0,null,0,0,{"$error":"#N/A"},{"$f":"Title!$Q$21-D820","v":0},{"$error":"#N/A"},{"$error":"#N/A"},{"$error":"#N/A"},0,{"$error":"#DIV/0!"},{"$error":"#N/A"},{"$error":"#N/A"},0,{"$error":"#DIV/0!"},{"$error":"#N/A"},{"$error":"#N/A"},{"$error":"#N/A"},{"$error":"#N/A"},0,{"$error":"#DIV/0!"},{"$error":"#N/A"},{"$error":"#N/A"},0,{"$error":"#DIV/0!"},0,{"$error":"#N/A"},0]
[null,null,null,null,null,null,null,null,null,0,null,0,0,{"$error":"#N/A"},{"$f":"Title!$Q$21-D821","v":0},{"$error":"#N/A"},{"$error":"#N/A"},{"$error":"#N/A"},0,{"$error":"#DIV/0!"},{"$error":"#N/A"},{"$error":"#N/A"},0,{"$error":"#DIV/0!"},{"$error":"#N/A"},{"$error":"#N/A"},{"$error":"#N/A"},{"$error":"#N/A"},0,{"$error":"#DIV/0!"},{"$error":"#N/A"},{"$error":"#N/A"},0,{"$error":"#DIV/0!"},0,{"$error":"#N/A"},0]
[null,null,null,null,null,null,null,null,null,0,null,0,0,{"$error":"#N/A"},{"$f":"Title!$Q$21-D822","v":0},{"$error":"#N/A"},{"$error":"#N/A"},{"$error":"#N/A"},0,{"$error":"#DIV/0!"},{"$error":"#N/A"},{"$error":"#N/A"},0,{"$error":"#DIV/0!"},{"$error":"#N/A"},{"$error":"#N/A"},{"$error":"#N/A"},{"$error":"#N/A"},0,{"$error":"#DIV/0!"},{"$error":"#N/A"},{"$error":"#N/A"},0,{"$error":"#DIV/0!"},0,{"$error":"#N/A"},0]
[null,null,null,null,null,null,null,null,null,0,null,0,0,{"$error":"#N/A"},{"$f":"Title!$Q$21-D823","v":0},{"$error":"#N/A"},{"$error":"#N/A"},{"$error":"#N/A"},0,{"$error":"#DIV/0!"},{"$error":"#N/A"},{"$error":"#N/A"},0,{"$error":"#DIV/0!"},{"$error":"#N/A"},{"$error":"#N/A"},{"$error":"#N/A"},{"$error":"#N/A"},0,{"$error":"#DIV/0!"},{"$error":"#N/A"},{"$error":"#N/A"},0,{"$error":"#DIV/0!"},0,{"$error":"#N/A"},0]
[null,null,null,null,null,null,null,null,null,0,null,0,0,{"$error":"#N/A"},{"$f":"Title!$Q$21-D824","v":0},{"$error":"#N/A"},{"$error":"#N/A"},{"$error":"#N/A"},0,{"$error":"#DIV/0!"},{"$error":"#N/A"},{"$error":"#N/A"},0,{"$error":"#DIV/0!"},{"$error":"#N/A"},{"$error":"#N/A"},{"$error":"#N/A"},{"$error":"#N/A"},0,{"$error":"#DIV/0!"},{"$error":"#N/A"},{"$error":"#N/A"},0,{"$error":"#DIV/0!"},0,{"$error":"#N/A"},0]
[null,null,null,null,null,null,null,null,null,0,null,0,0,{"$error":"#N/A"},{"$f":"Title!$Q$21-D825","v":0},{"$error":"#N/A"},{"$error":"#N/A"},{"$error":"#N/A"},0,{"$error":"#DIV/0!"},{"$error":"#N/A"},{"$error":"#N/A"},0,{"$error":"#DIV/0!"},{"$error":"#N/A"},{"$error":"#N/A"},{"$error":"#N/A"},{"$error":"#N/A"},0,{"$error":"#DIV/0!"},{"$error":"#N/A"},{"$error":"#N/A"},0,{"$error":"#DIV/0!"},0,{"$error":"#N/A"},0]
[null,null,null,null,null,null,null,null,null,0,null,0,0,{"$error":"#N/A"},{"$f":"Title!$Q$21-D826","v":0},{"$error":"#N/A"},{"$error":"#N/A"},{"$error":"#N/A"},0,{"$error":"#DIV/0!"},{"$error":"#N/A"},{"$error":"#N/A"},0,{"$error":"#DIV/0!"},{"$error":"#N/A"},{"$error":"#N/A"},{"$error":"#N/A"},{"$error":"#N/A"},0,{"$error":"#DIV/0!"},{"$error":"#N/A"},{"$error":"#N/A"},0,{"$error":"#DIV/0!"},0,{"$error":"#N/A"},0]
[null,null,null,null,null,null,null,null,null,0,null,0,0,{"$error":"#N/A"},{"$f":"Title!$Q$21-D827","v":0},{"$error":"#N/A"},{"$error":"#N/A"},{"$error":"#N/A"},0,{"$error":"#DIV/0!"},{"$error":"#N/A"},{"$error":"#N/A"},0,{"$error":"#DIV/0!"},{"$error":"#N/A"},{"$error":"#N/A"},{"$error":"#N/A"},{"$error":"#N/A"},0,{"$error":"#DIV/0!"},{"$error":"#N/A"},{"$error":"#N/A"},0,{"$error":"#DIV/0!"},0,{"$error":"#N/A"},0]
[null,null,null,null,null,null,null,null,null,0,null,0,0,{"$error":"#N/A"},{"$f":"Title!$Q$21-D828","v":0},{"$error":"#N/A"},{"$error":"#N/A"},{"$error":"#N/A"},0,{"$error":"#DIV/0!"},{"$error":"#N/A"},{"$error":"#N/A"},0,{"$error":"#DIV/0!"},{"$error":"#N/A"},{"$error":"#N/A"},{"$error":"#N/A"},{"$error":"#N/A"},0,{"$error":"#DIV/0!"},{"$error":"#N/A"},{"$error":"#N/A"},0,{"$error":"#DIV/0!"},0,{"$error":"#N/A"},0]
[null,null,null,null,null,null,null,null,null,0,null,0,0,{"$error":"#N/A"},{"$f":"Title!$Q$21-D829","v":0},{"$error":"#N/A"},{"$error":"#N/A"},{"$error":"#N/A"},0,{"$error":"#DIV/0!"},{"$error":"#N/A"},{"$error":"#N/A"},0,{"$error":"#DIV/0!"},{"$error":"#N/A"},{"$error":"#N/A"},{"$error":"#N/A"},{"$error":"#N/A"},0,{"$error":"#DIV/0!"},{"$error":"#N/A"},{"$error":"#N/A"},0,{"$error":"#DIV/0!"},0,{"$error":"#N/A"},0]
[null,null,null,null,null,null,null,null,null,0,null,0,0,{"$error":"#N/A"},{"$f":"Title!$Q$21-D830","v":0},{"$error":"#N/A"},{"$error":"#N/A"},{"$error":"#N/A"},0,{"$error":"#DIV/0!"},{"$error":"#N/A"},{"$error":"#N/A"},0,{"$error":"#DIV/0!"},{"$error":"#N/A"},{"$error":"#N/A"},{"$error":"#N/A"},{"$error":"#N/A"},0,{"$error":"#DIV/0!"},{"$error":"#N/A"},{"$error":"#N/A"},0,{"$error":"#DIV/0!"},0,{"$error":"#N/A"},0]
[null,null,null,null,null,null,null,null,null,0,null,0,0,{"$error":"#N/A"},{"$f":"Title!$Q$21-D831","v":0},{"$error":"#N/A"},{"$error":"#N/A"},{"$error":"#N/A"},0,{"$error":"#DIV/0!"},{"$error":"#N/A"},{"$error":"#N/A"},0,{"$error":"#DIV/0!"},{"$error":"#N/A"},{"$error":"#N/A"},{"$error":"#N/A"},{"$error":"#N/A"},0,{"$error":"#DIV/0!"},{"$error":"#N/A"},{"$error":"#N/A"},0,{"$error":"#DIV/0!"},0,{"$error":"#N/A"},0]
[null,null,null,null,null,null,null,null,null,0,null,0,0,{"$error":"#N/A"},{"$f":"Title!$Q$21-D832","v":0},{"$error":"#N/A"},{"$error":"#N/A"},{"$error":"#N/A"},0,{"$error":"#DIV/0!"},{"$error":"#N/A"},{"$error":"#N/A"},0,{"$error":"#DIV/0!"},{"$error":"#N/A"},{"$error":"#N/A"},{"$error":"#N/A"},{"$error":"#N/A"},0,{"$error":"#DIV/0!"},{"$error":"#N/A"},{"$error":"#N/A"},0,{"$error":"#DIV/0!"},0,{"$error":"#N/A"},0]
[null,null,null,null,null,null,null,null,null,0,null,0,0,{"$error":"#N/A"},{"$f":"Title!$Q$21-D833","v":0},{"$error":"#N/A"},{"$error":"#N/A"},{"$error":"#N/A"},0,{"$error":"#DIV/0!"},{"$error":"#N/A"},{"$error":"#N/A"},0,{"$error":"#DIV/0!"},{"$error":"#N/A"},{"$error":"#N/A"},{"$error":"#N/A"},{"$error":"#N/A"},0,{"$error":"#DIV/0!"},{"$error":"#N/A"},{"$error":"#N/A"},0,{"$error":"#DIV/0!"},0,{"$error":"#N/A"},0]
[null,null,null,null,null,null,null,null,null,0,null,0,0,{"$error":"#N/A"},{"$f":"Title!$Q$21-D834","v":0},{"$error":"#N/A"},{"$error":"#N/A"},{"$error":"#N/A"},0,{"$error":"#DIV/0!"},{"$error":"#N/A"},{"$error":"#N/A"},0,{"$error":"#DIV/0!"},{"$error":"#N/A"},{"$error":"#N/A"},{"$error":"#N/A"},{"$error":"#N/A"},0,{"$error":"#DIV/0!"},{"$error":"#N/A"},{"$error":"#N/A"},0,{"$error":"#DIV/0!"},0,{"$error":"#N/A"},0]
[null,null,null,null,null,null,null,null,null,0,null,0,0,{"$error":"#N/A"},{"$f":"Title!$Q$21-D835","v":0},{"$error":"#N/A"},{"$error":"#N/A"},{"$error":"#N/A"},0,{"$error":"#DIV/0!"},{"$error":"#N/A"},{"$error":"#N/A"},0,{"$error":"#DIV/0!"},{"$error":"#N/A"},{"$error":"#N/A"},{"$error":"#N/A"},{"$error":"#N/A"},0,{"$error":"#DIV/0!"},{"$error":"#N/A"},{"$error":"#N/A"},0,{"$error":"#DIV/0!"},0,{"$error":"#N/A"},0]
[null,null,null,null,null,null,null,null,null,0,null,0,0,{"$error":"#N/A"},{"$f":"Title!$Q$21-D836","v":0},{"$error":"#N/A"},{"$error":"#N/A"},{"$error":"#N/A"},0,{"$error":"#DIV/0!"},{"$error":"#N/A"},{"$error":"#N/A"},0,{"$error":"#DIV/0!"},{"$error":"#N/A"},{"$error":"#N/A"},{"$error":"#N/A"},{"$error":"#N/A"},0,{"$error":"#DIV/0!"},{"$error":"#N/A"},{"$error":"#N/A"},0,{"$error":"#DIV/0!"},0,{"$error":"#N/A"},0]
[null,null,null,null,null,null,null,null,null,0,null,0,0,{"$error":"#N/A"},{"$f":"Title!$Q$21-D837","v":0},{"$error":"#N/A"},{"$error":"#N/A"},{"$error":"#N/A"},0,{"$error":"#DIV/0!"},{"$error":"#N/A"},{"$error":"#N/A"},0,{"$error":"#DIV/0!"},{"$error":"#N/A"},{"$error":"#N/A"},{"$error":"#N/A"},{"$error":"#N/A"},0,{"$error":"#DIV/0!"},{"$error":"#N/A"},{"$error":"#N/A"},0,{"$error":"#DIV/0!"},0,{"$error":"#N/A"},0]
[null,null,null,null,null,null,null,null,null,0,null,0,0,{"$error":"#N/A"},{"$f":"Title!$Q$21-D838","v":0},{"$error":"#N/A"},{"$error":"#N/A"},{"$error":"#N/A"},0,{"$error":"#DIV/0!"},{"$error":"#N/A"},{"$error":"#N/A"},0,{"$error":"#DIV/0!"},{"$error":"#N/A"},{"$error":"#N/A"},{"$error":"#N/A"},{"$error":"#N/A"},0,{"$error":"#DIV/0!"},{"$error":"#N/A"},{"$error":"#N/A"},0,{"$error":"#DIV/0!"},0,{"$error":"#N/A"},0]
[null,null,null,null,null,null,null,null,null,0,null,0,0,{"$f":"VLOOKUP(C839,$C$669:$L$704,4,FALSE)","v":{"$error":"#N/A"}},{"$f":"Title!$Q$21-D839","v":0},{"$error":"#N/A"},{"$error":"#N/A"},{"$error":"#N/A"},0,{"$error":"#DIV/0!"},{"$error":"#N/A"},{"$error":"#N/A"},0,{"$error":"#DIV/0!"},{"$error":"#N/A"},{"$error":"#N/A"},{"$error":"#N/A"},{"$error":"#N/A"},0,{"$error":"#DIV/0!"},{"$error":"#N/A"},{"$error":"#N/A"},0,{"$error":"#DIV/0!"},0,{"$error":"#N/A"},0]
[null,null,null,null,null,null,null,null,null,0,null,0,0,{"$error":"#N/A"},{"$f":"Title!$Q$21-D840","v":0},{"$error":"#N/A"},{"$error":"#N/A"},{"$error":"#N/A"},0,{"$error":"#DIV/0!"},{"$error":"#N/A"},{"$error":"#N/A"},0,{"$error":"#DIV/0!"},{"$error":"#N/A"},{"$error":"#N/A"},{"$error":"#N/A"},{"$error":"#N/A"},0,{"$error":"#DIV/0!"},{"$error":"#N/A"},{"$error":"#N/A"},0,{"$error":"#DIV/0!"},0,{"$error":"#N/A"},0]
[null,null,null,null,null,null,null,null,null,0,null,0,0,{"$error":"#N/A"},{"$f":"Title!$Q$21-D841","v":0},{"$error":"#N/A"},{"$error":"#N/A"},{"$error":"#N/A"},0,{"$error":"#DIV/0!"},{"$error":"#N/A"},{"$error":"#N/A"},0,{"$error":"#DIV/0!"},{"$error":"#N/A"},{"$error":"#N/A"},{"$error":"#N/A"},{"$error":"#N/A"},0,{"$error":"#DIV/0!"},{"$error":"#N/A"},{"$error":"#N/A"},0,{"$error":"#DIV/0!"},0,{"$error":"#N/A"},0]
[null,null,null,null,null,null,null,null,null,0,null,0,0,{"$error":"#N/A"},{"$f":"Title!$Q$21-D842","v":0},{"$error":"#N/A"},{"$error":"#N/A"},{"$error":"#N/A"},0,{"$error":"#DIV/0!"},{"$error":"#N/A"},{"$error":"#N/A"},0,{"$error":"#DIV/0!"},{"$error":"#N/A"},{"$error":"#N/A"},{"$error":"#N/A"},{"$error":"#N/A"},0,{"$error":"#DIV/0!"},{"$error":"#N/A"},{"$error":"#N/A"},0,{"$error":"#DIV/0!"},0,{"$error":"#N/A"},0]
[null,null,null,null,null,null,null,null,null,0,null,0,0,{"$error":"#N/A"},{"$f":"Title!$Q$21-D843","v":0},{"$error":"#N/A"},{"$error":"#N/A"},{"$error":"#N/A"},0,{"$error":"#DIV/0!"},{"$error":"#N/A"},{"$error":"#N/A"},0,{"$error":"#DIV/0!"},{"$error":"#N/A"},{"$error":"#N/A"},{"$error":"#N/A"},{"$error":"#N/A"},0,{"$error":"#DIV/0!"},{"$error":"#N/A"},{"$error":"#N/A"},0,{"$error":"#DIV/0!"},0,{"$error":"#N/A"},0]
[null,null,null,null,null,null,null,null,null,0,null,0,0,{"$error":"#N/A"},{"$f":"Title!$Q$21-D844","v":0},{"$error":"#N/A"},{"$error":"#N/A"},{"$error":"#N/A"},0,{"$error":"#DIV/0!"},{"$error":"#N/A"},{"$error":"#N/A"},0,{"$error":"#DIV/0!"},{"$error":"#N/A"},{"$error":"#N/A"},{"$error":"#N/A"},{"$error":"#N/A"},0,{"$error":"#DIV/0!"},{"$error":"#N/A"},{"$error":"#N/A"},0,{"$error":"#DIV/0!"},0,{"$error":"#N/A"},0]
[null,null,null,null,null,null,null,null,null,0,null,0,0,{"$error":"#N/A"},{"$f":"Title!$Q$21-D845","v":0},{"$error":"#N/A"},{"$error":"#N/A"},{"$error":"#N/A"},0,{"$error":"#DIV/0!"},{"$error":"#N/A"},{"$error":"#N/A"},0,{"$error":"#DIV/0!"},{"$error":"#N/A"},{"$error":"#N/A"},{"$error":"#N/A"},{"$error":"#N/A"},0,{"$error":"#DIV/0!"},{"$error":"#N/A"},{"$error":"#N/A"},0,{"$error":"#DIV/0!"},0,{"$error":"#N/A"},0]
[null,null,null,null,null,null,null,null,null,0,null,0,0,{"$error":"#N/A"},{"$f":"Title!$Q$21-D846","v":0},{"$error":"#N/A"},{"$error":"#N/A"},{"$error":"#N/A"},0,{"$error":"#DIV/0!"},{"$error":"#N/A"},{"$error":"#N/A"},0,{"$error":"#DIV/0!"},{"$error":"#N/A"},{"$error":"#N/A"},{"$error":"#N/A"},{"$error":"#N/A"},0,{"$error":"#DIV/0!"},{"$error":"#N/A"},{"$error":"#N/A"},0,{"$error":"#DIV/0!"},0,{"$error":"#N/A"},0]
[null,null,null,null,null,null,null,null,null,0,null,0,0,{"$error":"#N/A"},{"$f":"Title!$Q$21-D847","v":0},{"$error":"#N/A"},{"$error":"#N/A"},{"$error":"#N/A"},0,{"$error":"#DIV/0!"},{"$error":"#N/A"},{"$error":"#N/A"},0,{"$error":"#DIV/0!"},{"$error":"#N/A"},{"$error":"#N/A"},{"$error":"#N/A"},{"$error":"#N/A"},0,{"$error":"#DIV/0!"},{"$error":"#N/A"},{"$error":"#N/A"},0,{"$error":"#DIV/0!"},0,{"$error":"#N/A"},0]
[null,null,null,null,null,null,null,null,null,0,null,0,0,{"$error":"#N/A"},{"$f":"Title!$Q$21-D848","v":0},{"$error":"#N/A"},{"$error":"#N/A"},{"$error":"#N/A"},0,{"$error":"#DIV/0!"},{"$error":"#N/A"},{"$error":"#N/A"},0,{"$error":"#DIV/0!"},{"$error":"#N/A"},{"$error":"#N/A"},{"$error":"#N/A"},{"$error":"#N/A"},0,{"$error":"#DIV/0!"},{"$error":"#N/A"},{"$error":"#N/A"},0,{"$error":"#DIV/0!"},0,{"$error":"#N/A"},0]
[null,null,null,null,null,null,null,null,null,0,null,0,0,{"$error":"#N/A"},{"$f":"Title!$Q$21-D849","v":0},{"$error":"#N/A"},{"$error":"#N/A"},{"$error":"#N/A"},0,{"$error":"#DIV/0!"},{"$error":"#N/A"},{"$error":"#N/A"},0,{"$error":"#DIV/0!"},{"$error":"#N/A"},{"$error":"#N/A"},{"$error":"#N/A"},{"$error":"#N/A"},0,{"$error":"#DIV/0!"},{"$error":"#N/A"},{"$error":"#N/A"},0,{"$error":"#DIV/0!"},0,{"$error":"#N/A"},0]
[null,null,null,null,null,null,null,null,null,0,null,0,0,{"$error":"#N/A"},{"$f":"Title!$Q$21-D850","v":0},{"$error":"#N/A"},{"$error":"#N/A"},{"$error":"#N/A"},0,{"$error":"#DIV/0!"},{"$error":"#N/A"},{"$error":"#N/A"},0,{"$error":"#DIV/0!"},{"$error":"#N/A"},{"$error":"#N/A"},{"$error":"#N/A"},{"$error":"#N/A"},0,{"$error":"#DIV/0!"},{"$error":"#N/A"},{"$error":"#N/A"},0,{"$error":"#DIV/0!"},0,{"$error":"#N/A"},0]
[null,null,null,null,null,null,null,null,null,0,null,0,0,{"$error":"#N/A"},{"$f":"Title!$Q$21-D851","v":0},{"$error":"#N/A"},{"$error":"#N/A"},{"$error":"#N/A"},0,{"$error":"#DIV/0!"},{"$error":"#N/A"},{"$error":"#N/A"},0,{"$error":"#DIV/0!"},{"$error":"#N/A"},{"$error":"#N/A"},{"$error":"#N/A"},{"$error":"#N/A"},0,{"$error":"#DIV/0!"},{"$error":"#N/A"},{"$error":"#N/A"},0,{"$error":"#DIV/0!"},0,{"$error":"#N/A"},0]
[null,null,null,null,null,null,null,null,null,0,null,0,0,{"$error":"#N/A"},{"$f":"Title!$Q$21-D852","v":0},{"$error":"#N/A"},{"$error":"#N/A"},{"$error":"#N/A"},0,{"$error":"#DIV/0!"},{"$error":"#N/A"},{"$error":"#N/A"},0,{"$error":"#DIV/0!"},{"$error":"#N/A"},{"$error":"#N/A"},{"$error":"#N/A"},{"$error":"#N/A"},0,{"$error":"#DIV/0!"},{"$error":"#N/A"},{"$error":"#N/A"},0,{"$error":"#DIV/0!"},0,{"$error":"#N/A"},0]
[null,null,null,null,null,null,null,null,null,0,null,0,0,{"$error":"#N/A"},{"$f":"Title!$Q$21-D853","v":0},{"$error":"#N/A"},{"$error":"#N/A"},{"$error":"#N/A"},0,{"$error":"#DIV/0!"},{"$error":"#N/A"},{"$error":"#N/A"},0,{"$error":"#DIV/0!"},{"$error":"#N/A"},{"$error":"#N/A"},{"$error":"#N/A"},{"$error":"#N/A"},0,{"$error":"#DIV/0!"},{"$error":"#N/A"},{"$error":"#N/A"},0,{"$error":"#DIV/0!"},0,{"$error":"#N/A"},0]
[null,null,null,null,null,null,null,null,null,0,null,0,0,{"$error":"#N/A"},{"$f":"Title!$Q$21-D854","v":0},{"$error":"#N/A"},{"$error":"#N/A"},{"$error":"#N/A"},0,{"$error":"#DIV/0!"},{"$error":"#N/A"},{"$error":"#N/A"},0,{"$error":"#DIV/0!"},{"$error":"#N/A"},{"$error":"#N/A"},{"$error":"#N/A"},{"$error":"#N/A"},0,{"$error":"#DIV/0!"},{"$error":"#N/A"},{"$error":"#N/A"},0,{"$error":"#DIV/0!"},0,{"$error":"#N/A"},0]
[]
[null,null,null,null,null,null,null,null,null,null,null,null,null,null,null,null,null,null,null,null,null,"Total Annual Cost:",null,null,{"$f":"SUMIFS(Y713:Y854,Y713:Y854,\"<>#N/A\",Y713:Y854,\"<>#VALUE!\")","v":0},{"$f":"SUMIFS(Z713:Z854,Z713:Z854,\"<>#N/A\",Z713:Z854,\"<>#VALUE!\")","v":0}]

{"sheet":"Table Inputs","index":20,"n_rows":106,"n_cols":22,"rows_kept":106,"cut":false,"hidden":true,"merged":[]}
[]
[null,null,null,null,null,null,null,null,null,null,null,null,"Watermain Pipe (based on Ductile Iron)"]
[null,"Population",null,"MDF","PDF",null,"Existing or New?",null,"Peak Hour Flow (m3/d)","Pipe Size (inches)","Recommended Nominal Pipe (inches)",null,"Pipe Diameter (inch)","Pipe & Installation Cost ($/m)","Excavation Volume (m3/m)","Volume Rock Excavated (/m)","Rock Allowance ($80/m3/m)","Total Installation Cost ($/m)",null,"Given Unit","Conversion Factor"]
[null,0,1000,2.75,4.13,null,"<Building?>",null,0,0,4,null,2,100,{"$f":"(M4*25.4/1000+0.7)*2+0.8^2","v":2.1415999999999999},{"$f":"O4*0.3","v":0.64247999999999994},{"$f":"P4*80","v":51.398399999999995},{"$f":"N4+Q4","v":151.39839999999998},null,"m3/d",1,"m3/d"]
[null,{"$f":"C4+1","v":1001},2000,2.5,3.75,null,"New",null,4.13,0,4,null,4,150,{"$f":"(M5*25.4/1000+0.7)*2+0.8^2","v":2.2431999999999999},{"$f":"O5*0.3","v":0.67295999999999989},{"$f":"P5*80","v":53.83679999999999},{"$f":"N5+Q5","v":203.83679999999998},null,"usgpm",{"$f":"3.785/1000*1440","v":5.4504000000000001},"m3/d"]
[null,2001,3000,2.25,3.38,null,"Existing",null,854.91,4,4,null,6,200,2.3448000000000002,0.70344000000000007,56.275200000000005,256.27519999999998,null,"igpm",{"$f":"4.55/1000*1440","v":6.5520000000000005},"m3/d"]
[null,3001,10000,2,3,null,null,null,859.04,5,6,null,8,275,2.4464000000000001,0.73392000000000002,58.7136,333.71359999999999]
[null,10001,25000,1.9,2.85,null,"<Fire Storage>",null,1404.2,6,6,null,10,300,2.548,0.76439999999999997,61.152000000000001,361.15199999999999]
[null,25001,50000,1.8,2.7,null,30,null,1788.75,6,6,null,12,325,2.6496,0.79487999999999992,63.590399999999995,388.59039999999999]
[null,50001,75000,1.75,2.62,null,60,null,1792.5,7,8,null,14,400,2.7511999999999999,0.82535999999999998,66.028800000000004,466.02879999999999]
[null,75001,150000,1.65,2.42,null,90,null,2550,8,8,null,16,450,2.8527999999999998,0.85583999999999993,68.467199999999991,518.46720000000005]
[null,150001,null,1.5,2.25,null,120,null,3062.2799999999997,8,8,null,"Assume 2 m deep, 30% excavation is rock"]
[null,null,null,null,null,null,150,null,3065.66,9,10,null,"Total Excavation volume per m"]
[null,null,null,null,null,null,180,null,3447.6,9,10]
[null,"<Units>",null,"<Design Life>",null,null,null,null,4674,10,10]
[null,"usgpm",null,20,null,null,null,null,4676.8500000000004,11,12,null,"Wastewater Pipe (assume gravity flow)"]
[null,"igpm",null,25,null,null,"<Fire flow>",null,6626.25,12,12,null,"Pipe Diameter (inch)","Pipe & Installation","Excavation Volume (m3/m)","Volume Rock Excavated (/m)","Rock Allowance ($80/m3/m)","Total Installation Cost ($/m)"]
[null,"m3/d",null,30,null,null,250,null,6629.1,13,14,null,8,150,{"$f":"(M18*25.4/1000+0.7)*2+0.8^2","v":2.4464000000000001},{"$f":"O18*0.3","v":0.73392000000000002},{"$f":"P18*80","v":58.7136},{"$f":"N18+Q18","v":208.71359999999999}]
[null,null,null,null,null,null,500,null,8914.8000000000011,14,14,null,"Assume 2 m deep, 30% excavation is rock"]
[null,null,null,null,null,null,750,null,8917.65,15,16,null,"Total Excavation volume per m"]
[null,"<Yes/No>",null,"<Geographic Region>",null,null,1000,null,11970,17,18]
[null,"No",null,"St. John's/Avalon",null,null,1250]
[null,"Yes",null,"Eastern",null,null,1500,null,null,null,null,null,"Disinfection System Type","Chemical Used","Quantity Units"]
[null,null,null,"Central",null,null,1750,null,null,null,null,null,"Sodium Hypochlorite","Sodium Hypochlorite","L/year"]
[null,null,null,"Western",null,null,2000,null,null,null,null,null,"Gas Chlorination","Chlorine Gas","kg/year"]
[null,null,null,"Labrador",null,null,null,null,null,null,null,null,"Onsite Hypo Generation","Salt","kg/year"]
[null,null,null,null,null,null,null,null,null,null,"Chemicals"]
[null,null,null,null,null,null,"pH adjustment Chemicals",null,null,null,"<pH Chemical>"]
[null,null,null,"<Type of Supply>",null,null,null,null,null,null,"Soda Ash"]
[null,null,null,"Surface Water",null,null,"Soda Ash",null,null,null,"Sodium Hydroxide"]
[null,null,null,"Groundwater ",null,null,"Sodium Hydroxide",null,null,null,"Lime"]
[null,null,null,null,null,null,"Lime"]
[null,null,null,"<Gravity or Pumped>",null,null,"Carbon Dioxide"]
[null,null,null,"Gravity",null,null,"Sulfuric Acid"]
[null,null,null,"Pumped",null,null,"Hydrochloric Acid"]
[null,null,null,null,null,null,null,null,null,null,"Treatment Chemicals"]
[null,null,null,"<Loan Interest Rate>",null,null,null,null,null,null,"<Other Chemicals>"]
[null,null,null,1.4999999999999999E-2,null,null,"Disinfection System Type",null,"Disinfection System Upgrade",null,"Polymer"]
[null,null,null,0.02,null,null,"<Disinfection System Type>",null,"<Existing/New?>",null,"Potassium Permanganate"]
[null,null,null,2.5000000000000001E-2,null,null,"Sodium Hypochlorite",null,"Existing"]
[null,null,null,0.03,null,null,"Gas Chlorination",null,"New"]
[null,null,null,3.5000000000000003E-2,null,null,"Onsite Hypo Generation"]
[null,null,null,0.04]
[null,null,null,4.4999999999999998E-2,null,null,"Treatment Processes"]
[null,null,null,0.05,null,null,"<Treatment Processes>"]
[null,null,null,5.5E-2,null,null,"pH Adjustment System"]
[null,null,null,0.06,null,null,"Pressure Filtration System"]
[null,null,null,6.5000000000000002E-2,null,null,"Membrane Filtration",null,null,null,"Other Chemicals"]
[null,"With VFD?",null,null,null,null,"As Removal",null,null,null,"<Other Chemicals>"]
[null,"Yes",null,null,null,null,"Fe and/or Mn Removal",null,null,null,"Citric Acid"]
[null,"No",null,null,null,null,"Conventional WTP",null,null,null,"Corrosion Inhibitor"]
[null,null,null,null,null,null,"PWDU"]
[]
[null,"Dates",null,null,null,null,"<USER GENERATED OR ESTIMATED BASED ON POPULATION>"]
[null,"Month","Day ","<Year>",null,null,"User Generated"]
[null,"January",1,2017,null,null,"Using Population Estimate"]
[null,"February",2,2018]
[null,"March",3,2019,null,null,"<USER GENERATED OR PEAKING FACTOR>"]
[null,"April",4,2020,null,null,"User Generated"]
[null,"May",5,2021,null,null,"Using Peaking Factor"]
[null,"June",6,2022]
[null,"July",7,2023]
[null,"August",8,2024,null,null,"Current Date","Census Year",null,null,"<Equipment>"]
[null,"September",9,2025,null,null,2017,2016,null,null,"New"]
[null,"October",10,2026,null,null,{"$f":"G64+5","v":2022},{"$f":"H64+5","v":2021},null,null,"Existing"]
[null,"November",11,2027,null,null,2027,2026]
[null,"December",12,2028,null,null,2032,2031]
[null,null,13,2029,null,null,2037,2036,null,null,"<Funding>"]
[null,null,14,2030,null,null,2042,2041,null,null,0]
[null,null,15,2031,null,null,2047,2046,null,null,0.1]
[null,null,16,2032,null,null,2052,2051,null,null,0.2]
[null,null,17,2033,null,null,2057,2056,null,null,0.3]
[null,null,18,2034,null,null,2062,2061,null,null,0.4]
[null,null,19,2035,null,null,2067,2066,null,null,0.5]
[null,null,20,2036,null,null,2072,2071,null,null,0.6]
[null,null,21,2037,null,null,2077,2076,null,null,0.7]
[null,null,22,2038,null,null,2082,2081,null,null,0.8]
[null,null,23,2039,null,null,{"$f":"G77+5","v":2087},{"$f":"H77+5","v":2086},null,null,0.9]
[null,null,24,2040,null,null,2092,2091,null,null,1]
[null,null,25,null,null,null,2097,2096]
[null,null,26,null,null,null,2102,2101]
[null,null,27,null,null,null,2107,2106]
[null,null,28,null,null,null,2112,2111]
[null,null,29]
[null,null,30]
[null,null,31,null,null,null,"<Percentage>","Booster Pump Sets"]
[null,null,null,null,null,null,0,0]
[null,null,null,null,null,null,0.1,1]
[null,null,null,null,null,null,0.2,2]
[null,"Primary Seasonal Flows",null,null,null,null,0.3,3]
[null,"Flows do not fluctuate seasonally",null,null,null,null,0.4]
[null,6,null,null,null,null,0.5]
[null,7,null,null,null,null,0.6]
[null,8,null,null,null,null,0.7]
[null,9,null,null,null,null,0.8]
[null,10,null,null,null,null,0.9]
[null,11,null,null,null,null,1]
[null,12]
[]
[null,"Secondary Seasonal Flows"]
[null,"Flows do not fluctuate seasonally "]
[null,1]
[null,2]
[null,3]
[null,4]
[null,5]